Workbook

Sheet LDC Info
AA3: Algoma Power Inc.
AA4: Atikokan Hydro Inc.
AA5: Attawapiskat Power Corporation
AA6: Bluewater Power Distribution Corp.
AA7: Brant County Power
AA8: Brantford Power Inc.
AA9: Burlington Hydro Inc.
AA10: Cambridge and North Dumfries Hydro
AA11: Canadian Niagara Power Inc. – Eastern Ontario Power/Fort Erie/Port Colborne
AA12: Centre Wellington Hydro Ltd.
AA13: Chapleau Public Utilities Corporation
D14: Utility Name | E14: Waterloo North Hydro Inc. | AA14: COLLUS Power Corp.
AA15: Cooperative Hydro Embrun Inc.
D16: Assigned EB Number | E16: EB-2015-0108 | AA16: E.L.K. Energy Inc.
AA17: Enersource Hydro Mississauga Inc.
D18: Name of Contact and Title | E18: Albert P. Singh | AA18: Entegrus Powerlines Inc.
AA19: ENWIN Utilities Ltd.
D20: Phone Number | E20: 519-888-5542 | AA20: Erie Thames Powerlines Corp.
AA21: Espanola Regional Hydro Distribution Corporation
D22: Email Address | E22: asingh@wnhydro.com | AA22: Essex Powerlines Corporation
AA23: Festival Hydro Inc.
D24: Test Year | E24: 2016 | AA24: Fort Albany Power Corporation
AA25: Fort Frances Power Corporation
D26: Bridge Year | E26: =IF(ISBLANK(E24), "", E24-1) -> 2015 | AA26: Greater Sudbury Hydro Inc.
AA27: Grimsby Power Inc.
D28: Last Rebasing Year | E28: 2011 | AA28: Guelph Hydro Electric Systems Inc.
AA29: Haldimand County Hydro Inc.
A30: Identify the accounting standard used for the test year
E31: MIFRS
A33: Did you update your depreciation and capitalization policies?
E34: Yes
A36: When did you update your depreciation and capitalization policies?
E37: 2001-01-01 | F37: 2013
A39: Identify the year that the applicant has adopted or is expected to adopt IFRS for financial reporting purposes
E40: 2015 or Later
A43: Are you applying for cost recovery for the test and/or future year(s) for Green Energy initiatives?
E44: No
A46: ="Is " & E14 & " an embedded distributor?" -> Is Waterloo North Hydro Inc. an embedded distributor? | E46: Yes
B49: Notes | AA49: Guelph Hydro Electric Systems Inc.
AA50: Halton Hills Hydro Inc.
C51: Pale green cells represent input cells. | AA51: Hearst Power Distribution Co. Ltd.
AA52: Horizon Utilities Corporation
C53: Pale blue cells represent drop-down lists. The applicant should select the appropriate item from the drop-down list. | AA53: Hydro 2000 Inc.
AA54: Hydro Hawkesbury Inc.
C55: White cells contain fixed values, automatically generated values or formulae. | AA55: Hydro One Brampton Networks Inc.
AA56: Hydro One Networks Inc.
AA57: Hydro One Remote Communities Inc.
AA58: Hydro Ottawa Limited
AA59: Innisfil Hydro Dist. Systems Limited
AA60: Kashechewan Power Corporation
AA61: Kenora Hydro Electric Corporation Ltd.
AA62: Kingston Hydro Corporation
AA63: Kitchener-Wilmot Hydro Inc.
AA64: Lakefront Utilities Inc.
AA65: Lakeland Power Distribution Ltd.
AA66: London Hydro Inc.
AA67: Midland Power Utility Corporation
AA68: Milton Hydro Distribution Inc.
AA69: Newmarket – Tay Power Distribution Ltd.
AA70: Niagara Peninsula Energy Inc.
AA71: Niagara-on-the-Lake Hydro Inc.
AA72: Norfolk Power Distribution Ltd.
AA73: North Bay Hydro Distribution Limited
AA74: Northern Ontario Wires Inc.
AA75: Oakville Hydro Distribution Inc.
AA76: Orangeville Hydro Limited
AA77: Orillia Power Distribution Corp.
AA78: Oshawa PUC Networks Inc.
AA79: Ottawa River Power Corporation
AA80: Parry Sound Power Corporation
AA81: Peterborough Distribution Inc.
AA82: PowerStream Inc.
AA83: PUC Distribution Inc.
AA84: Renfrew Hydro Inc.
AA85: Rideau St. Lawrence Distribution Inc.
AA86: St. Thomas Energy Inc.
AA87: Sioux Lookout Hydro Inc.
AA88: Thunder Bay Hydro Electricity Distribution
AA89: Tillsonburg Hydro Inc.
AA90: Toronto Hydro-Electric System Limited
AA91: Veridian Connections Inc.
AA92: Wasaga Distribution Inc.
AA93: Waterloo North Hydro Inc.
AA94: Welland Hydro Electric System Corp.
AA95: Wellington North Power Inc.
AA96: West Coast Huron Energy Inc.
AA97: Westario Power Inc.
AA98: Whitby Hydro Electric Corporation
AA99: Woodstock Hydro Services Inc.

Sheet Table of Contents
A15: 1 | B15: LDC Information Sheet | E15: 26 | F15: App.2-FC: Calculation of Renewable Generation Connection Direct Benefits/Provincial Amount: Renewable Expansion Investments
A16: 2 | B16: Index | E16: 27 | F16: App.2-G: Service Reliability Indicators
A17: 3 | B17: Cost of Service Application Flowchart | E17: 28 | F17: App.2-H: Other Operating Revenue
A18: 4 | B18: List of Key References | E18: 29 | F18: App.2-I: Load Forecast CDM Adjustment Workform
A19: 5 | B19: App.2-AA: Capital Projects Table | E19: 30 | F19: App.2-IA: Actual and Forecast Load and Customer Data
A20: 6 | B20: App.2-AB: Capital Expenditures | E20: 31 | F20: App.2-JA: OM&A Summary Analysis
A21: 7 | B21: App. 2-AC: Customer Engagement Worksheet | E21: 32 | F21: App.2-JB: Recoverable OM&A Cost Driver Table
A22: 8 | B22: App.2-B: General Accounting Instructions | E22: 33 | F22: App.2-JC: OMA Programs Table
A23: 9 | B23: App.2-BA: Fixed Asset Continuity Schedule | E23: 34 | F23: App.2-K: Employee Costs
A24: 10 | B24: Appendix 2-BB: Service Life Comparison | E24: 35 | F24: App.2-L: Recoverable OM&A Cost per Customer and per FTE
A25: 11 | B25: App.2-CA: 2012 Depreciation and Amortization Expense (Old CGAAP) | E25: 36 | F25: App.2-M: Regulatory Costs Schedule
A26: 12 | B26: App.2-CB: 2012 Depreciation and Amortization Expense (New CGAAP) | E26: 37 | F26: App.2-N: Shared Servcies and Corporate Cost Allocation
A27: 13 | B27: App.2-CC: 2013 Depreciation and Amortization Expense (New CGAAP) | E27: 38 | F27: App.2-OA: Capital Structure and Cost of Capital
A28: 14 | B28: App.2-CD: 2014 Depreciation and Amortization Expense (MIFRS) | E28: 39 | F28: App.2-OB: Debt Instruments
A29: 15 | B29: App.2-CE: 2015 Depreciation and Amortization Expense (MIFRS) | E29: 40 | F29: App.2-P: Cost Allocation
A30: 16 | B30: App.2-CF: 2013 Depreciation and Amortization Expense (Old CGAAP) | E30: 41 | F30: App.2-Q: Cost of Serving Embedded Distributor(s)
A31: 17 | B31: App.2-CG: 2013 Depreciation and Amortization Expense (New CGAAP) | E31: 42 | F31: App.2-R: Loss Factors
A32: 18 | B32: App.2-CH: 2014 Depreciation and Amortization Expense (MIFRS) | E32: 43 | F32: App.2-S: Stranded Meter Treatment
A33: 19 | B33: App.2-CI: 2015 Depreciation and Amortization Expense (MIFRS) | E33: 44 | F33: App.2-TA: Account 1592, PILs and Tax Variances
A34: 20 | B34: App.2-D: Overhead Expenses | E34: 45 | F34: App.2-TB: Account 1592, HST-OVAT Input Tax Credits
A35: 21 | B35: App.2-EA: Account 1575 PP&E Deferral Account (2015 IFRS Adopters) | E35: 46 | F35: App.2-U: One-Time Incremental IFRS Transition Costs
A36: 22 | B36: App.2-EB: Account 1576 - Accounting Changes Under CGAAP (2012 Changes) | E36: 47 | F36: App.2-V: Revenue Reconciliation
A37: 23 | B37: App.2-EC: Account 1576 - Accounting Changes Under CGAAP (2013 Changes) | E37: 48 | F37: App.2-W: Bill Impacts
A38: 24 | B38: App.2-FA: Renewable Generation Connection Investment Summary | E38: 49 | F38: App.2-Y: Transition to MIFRS Summary Impact
A39: 25 | B39: App.2-FB: Calculation of Renewable Generation Connection Direct Benefits/Provincial Amount: Renewable Enabling Improvement Investments | E39: 50 | F39: App. 2-Z: Tariff Schedule

Sheet COS Flowchart
B4: Cost of Service Rate Application Schematic
B6: The Cost of Service Rate Application Schematic is a flowchart appended to Chapter 2 of the Filing Requirements as a guide for the components of an application and how demand and costs interrelate to derive the revenue requirement and then how the revenue requirement is allocated between classes and through fixed/variable splits to derive rates that will be compensatory for the annual revenue requirement, based on the the forecasted demand. There is no form to be filled out; therefore, this Schedule is not required to be filed.

Sheet List of Key References
B3: List of Key References
A5: A list of key references for understanding the Filing Requirements has been embedded in the document below. To access the list of references and associated hyperlinks doublt click the icon below.

Sheet App.2-AA_Capital Projects
G1: File Number: | H1: =EBNUMBER -> EB-2015-0108
G2: Exhibit: | H2: 2
G3: Tab:
G4: Schedule: | H4: Table 2-38
G5: Page: | H5: 69
G7: Date: | H7: 2015-05-01
A9: Appendix 2-AA
A10: Capital Projects Table
A11: Projects | B11: 2011 Board Approved | C11: 2011 Actual | D11: 2012 Actual | E11: 2013 Actual | F11: 2014 Actual | G11: 2015 Bridge | H11: 2016 Test
A12: Reporting Basis | B12: CGAAP | C12: CGAAP | D12: CGAAP | E12: MIFRS | F12: MIFRS | G12: MIFRS | H12: MIFRS
A13: System Access
A14: System Enhancements - Distribution Automation - 12
A15: Viper Recloser Installation | E15: 389560.73
A16: Light Rail Transit Relocations - 21
A17: 2015 - LRT - Caroline St, Allen St to Railway | G17: 215149
A18: 2015 - LRT - Erb St. FDB- Caroline St. | G18: 413010
A19: 2015 - LRT - Spur - Columbia St. | G19: 760777
A20: 2015 - LRT - 27.6 kV King St.- Northfield Dr. | G20: 242336
A21: 2015 - LRT - 13.8 kV King St.- Northfield Dr. | G21: 230400
A22: 2015 - LRT - 13.8 kV Northfield Dr. - Conestogo Rd. | G22: 280221
A23: 2015 - LRT - Allen St - King St to Caroline St | G23: 261893
A24: 2014 - LRT - King St. - Union St to Allen St | G24: 336971
A25: 2014 - LRT - Spur - Erb St. | G25: 214739
A26: 2014 - LRT - William St.- King St. to Caroline St. | G26: 471290
A27: 2016 - LRT - University Ave. Spur- Westmount Rd. | H27: 245642
A28: 2016 - LRT - 27.6 kV - King St.- Northfield Dr. | H28: 221444
A29: 2016 - LRT - 13.8 kV - King St.- Northfield Dr. | H29: 221444
A30: 2016 - LRT - 13.8 kV - King St.- Conestogo Rd. | H30: 195059
A31: 2016 - LRT - 13.8 kV - Northfield Dr. - Conestogo Rd. | H31: 460277
A32: 2016 - LRT - Spur - Kumpf Dr. | H32: 222154
A33: 2016 - LRT - Spur - Quiet Pl. | H33: 202079
A34: Municipal Relocations - 22
A35: Road Relocation Projects | B35: 293382.0696
A36: Park Street - Union St to Allen St | B36: 267316.2963 | C36: 258664.85
A37: Barrel Yards - Father David Bauer Dr. | B37: 640438.6844
A38: University Ave East, Regina St N to Conestoga Pkwy | E38: 942943.85
A39: Lexington Rd-Davenport Rd to Bridge St,Waterloo | E39: 412075.42
A40: Erb St Duct Bank from Menno to FDB Dr. | E40: 247131.82
A41: Father David Bauer Drive Duct Bank Erb to Rec Centre | E41: 272510.71
A42: Erb St W, Caroline to Avondale Ave-Waterloo | F42: 261148.3
A43: King Street N.- Weber St to X-Way | F43: 182460.8
A44: Weber St., Forwell Creek to Blythwood Rd | G44: 488324
A45: King St., Printery Rd to Princess St., St Jacobs | G45: 209785
A47: Sawmill Rd., Northfield Dr to Golf Course Rd., Conestogo | G47: 342562
A48: Shantz Station Rd., Kossuth to Menno | G48: 422354
A49: Columbia St - Erbsville to F-H Rd. | G49: 348560
A50: Woolwich St S, Woolwich St N to Dolman Breslau | G50: 222315
A51: Erb St. HONI ROW to Wilmot Ln | G51: 337986
A52: Caroline St - Allen St to John St. | G52: 345027
A53: Bridgeport Rd/Caroline St, King St to Erb St | H53: 237956
A54: Hutchinson Rd - Through Crosshill | H54: 179643
A55: Erb St. - HONI to Costco | H55: 286095
A56: Customer Connections - 23
A57: New Overhead Service Connections/Upgrades | B57: 864042.4489 | C57: 654972.79 | D57: 702431.68 | E57: 439474.47 | F57: 729068.1 | G57: 724981 | H57: 727131
A58: New Underground Service Connections/Upgrades | B58: 870995.4667 | C58: 638985.22 | D58: 582981.81 | E58: 696554.55 | F58: 454003.1 | G58: 1413455 | H58: 1429245
A59: Expansions (Subdivisions) - 24
A60: Vista Hills - Wilmot Line | B60: 344309.0741
A61: Galantai - Cook Homes - Woolwich St. | B61: 296094.3437
A62: Greyerbiehl Ph 2 - Wilmot Line | B62: 344309.0741
A63: Lunor Lands - Church St. - Elmira | B63: 344309.0741
A64: Activa - Rural East | B64: 256740.5556
A65: Carriage Crossing Subd U/G Dist. (Millenium Blvd) | C65: 311870.79
A66: Riverland 2D Subdivision | C66: 199686.73
A67: Vista Hills Subdivision, West End of Waterloo | D67: 228172.09
A68: Clair Creek Meadows Subdivision, West End of Waterloo | D68: 268078.62
A69: Clair Meadows Sub, Stg. 5 | D69: 241202.91
A70: Townline Estates Subdivision, West End of Waterloo | D70: 234491.51
A71: Woolwich Estates Sub - Wat ( Carriage Way, Pelham St & Preakness St ) | D71: 271897.43
A72: Country club Estates Sub-(Lunor Group) - Elmira | E72: 382481.17
A73: Greyerbiehl Subdivision, West End of Waterloo | E73: 267756.2
A74: Carriage Crossing - Stg2 Ph1 - Activa Holdings Inc. | F74: 181833.8
A75: Galantai - Woolwich St. - 72 Lots | G75: 222531
A76: Subdivisions - 200 lots | H76: 593795
A77: Expansions (Lines) - 25
A78: Cober Rd - New line for Airport supply (design only) 1 | B78: 204132.4444
A79: Columbia St. Extension - Rhine Fall Dr. to Wilmot Line | B79: 316016.4726
A80: Conestoga Rd Feeder Egress/rebuild 2 of 2 | B80: 446307.9733
A81: HAS (TS) New Feeder Cable Installation | B81: 334359.4074
A82: Greenwood Hill Rd- Weimar Line to Ferris Dr,Wellesley | C82: 212502.85
A83: Columbia St. W. - UG Feeder | C83: 177741.91
A84: Gerber Rd - Greenwood Hill to Nafziger,Wellesley | C84: 305680.87
A85: Erb St W.-Erbsville to Wilmot Line - Duct Bank | C85: 179882.98
A86: Allen St.West-Park St to Dunbar Rd,Waterloo | D86: 449674.5
A87: Sawmill Road - Snyder Flats Rd to Bloomingdale DS. | D87: 367488.98
A88: Albert Street, University Ave to Caroline St, Waterloo | D88: 598444.37
A89: Sundew Drive 600A Feeder, West End of Waterloo | D89: 553056.38
A90: Northfield Dr. - Conestogo town limits to University Ave | E90: 460328.28
A91: West Side Subdivision Duct Bank Main Feeder | E91: 303726.77
A92: Columbia St W under HONI - UG Feeders | E92: 210886.62
A93: Gerber Rd, Nafzinger Rd to Hutchinson Rd | F93: 265981.6
A94: LTLT - 26
A95: Wilmot Line - Wideman Rd to Erb St | D95: 395448.86
A96: Perth Ln, Wilmot Easthope Rd to Rd 116 | F96: 430707.1
A97: Line 86, Manser Rd to 7810 Line 86 | G97: 420482
A98: Retail Meters - 28
A99: Residential Meters (Retail) | G99: 220898 | H99: 210467
A100: C&I Meters >50kW (Retail) | B100: 315249.6607 | E100: 178613.45 | G100: 313457 | H100: 306402
A102: Various Projects Less Than Materiality (OEB Miscellaneous) | B102: 839234.1007 | C102: 2676468.568 | D102: 2942477.602 | E102: 3463840.583 | F102: 3120730.301 | G102: 1625005 | H102: 884025
A103: Sub-Total | B103: =SUM(B14:B102) -> 6977237.147 | C103: =SUM(C14:C102) -> 5616457.558 | D103: 7835846.742 | E103: 8667884.623 | F103: 5625933.101 | G103: 11084508 | H103: 6622858
A104: System Renewal
A105: Overhead Line Renewal - 1
A106: 44kV Ckt Rebuild, Bloomingdale to Zubers | B106: 413195.2274
A107: Conestoga Rd Rebuild - 1 of 2 stage | B107: 431008.3333
A108: Reid Woods Dr. - Rebuild, Elmira TS to Northfield 1 of 2 | B108: 705296.3437
A109: William Hastings Line (Reg.#5) - Manser Rd. to Hutchinson Rd. | C109: 304175.72
A110: Woolwich St. Reconductoring, Ebycrest to Menno | C110: 249711.82
A111: King St N - Bridge to Farmer's Market Road | C111: 319413.53
A112: Conestogo Road - Scheifele DS to Dotzert Ct,Waterloo | C112: 785251.77
A113: Reid Woods Dr, E of Arthur St to Northfield Dr | C113: 278148.56
A114: Northfield Dr-Conestogo Rd to King St N,Waterloo | D114: 390067.7
A115: Northfield Drive E., Reid Woods Dr to Line 86 | E115: 667591.44
A116: Arthur St North, Elmira, Florapine Rd to Sandy Hills Dr | E116: 228968.12
A117: Colby Drive | F117: 858440.2
A118: William Hastings, Manser to Lichty | H118: 262223
A119: Underground Line Renewal - 2
A120: Bluevale T.H. Phase 1 | B120: 452207.4074
A121: Heidelberg - Wellesley Side | B121: 446657.7778
A122: Heidelberg - Woolwich Side | B122: 551674.0741
A123: Underground Capital Operations Department | B123: 326062.6711
A124: Rebuild Lee Ave and Colonial Drive | C124: 467821.64
A125: Heidelberg (Woolwich)U/G cable and transformer replacement | C125: 594150.34
A126: Bluevale townhouses Phase 2 underground cable replacement | C126: 330353.78
A127: Heidelberg I U/G cable and transformer replacement | C127: 235629.15
A128: HSA Rehab - Replace Feeder Cables | C128: 239061.3
A129: Mockingbird Dr, Elmira - Cable Replacement | D129: 236501.14
A130: Tallman Drive Cable replacement | D130: 269906.3
A131: Underground Cable replacement on Village Road in Wellesley | D131: 195292.93
A132: Birdland Phase 1, Elmira Cable Replacement | D132: 180825.79
A133: St Jacobs - Twp of Wool ( Young St, Water St ) Cable Repl. | E133: 228278.27
A134: Birdland Phase 1 Cable Replacement, Elmira | E134: 204666.21
A135: Sunset Pl, Elmira, Primary Cable and Transformer Replacement | F135: 301142.7
A136: Elmira Birdlands Phase 3 | F136: 698160.2
A137: UG Rebuild Westmount Phase 3, Stanley & Forsyth | F137: 292783.6
A138: 2015 Fox Hunt Area - Davenport Rd. | G138: 248863
A139: 2015 Green Warbler - Elmira | G139: 333833
A140: 2015 Aspen Drive - Elmira | G140: 231692
A141: 2016 Lakeshore North Ph 8 | H141: 250824
A142: 2016 Lakeshore North Ph 9 | H142: 558293
A143: Overhead Line Renewal - Failing Conductor - 3
A144: 2011 City of Waterloo #6/4 Replacement | B144: 193815.1902
A145: 2011 Elmira #6 Conductor Replacement | B145: 399049.2537
A146: Backlot Meadowlark Rd-Pole Line Rebuild (#6 primary) | C146: 214529.66
A147: Ernst/Brubacher St, Elmira - #6 copper | D147: 204453.43
A148: Stanley Dr. - 4kV Rebuild - #6 copper | D148: 360588.33
A149: Park Ave., Elmira - Arthur St. to Centre St. | E149: 197756.21
A150: Noecker Street, Brighton St to Elgin Cs | F150: 221397
A151: Shantz Station Rd, Menno St to Victoria St, Woolwich | F151: 855375.9
A152: Royal St., Waterloo - backlot pole line rebuild | F152: 474064.2
A153: Buehler Line/Rd. 116 Pole Line Rebuild | F153: 359252.5
A154: Duke Street backlot rebuild, Elmira | F154: 313380.6
A155: #4/#6 Lichty Rd from Perth Line | G155: 187366
A156: #6: Cardinal, Robin, Second, Bluebird, Backlot | G156: 549328
A157: #6: Killdeer backlot from First St W. | G157: 320347
A158: #6: Sawmill Rd, Conestogo - side streets | H158: 330981
A159: #6: Buehler Ln - Lavery Rd to Lichty Rd | H159: 578988
A160: Overhead Line Renewal (8kV) - 4
A161: 27.6kV to Wellesley-Weimar Line-Moser Young to Bamburg Limits | B161: 296478.0741
A162: 44 kV Circuit 1b. 27.6 Snyders Flats to Bloomingdale DS | B162: 280764.7274
A163: Greenwood Hill Rd, Gerber Rd to 2.1 km N. | B163: 231603.2281
A164: Greenwood Hill Rd, N of Weimar Line # 4 Rep. 2 | B164: 291617.7778
A165: Kossuth Pole Line Rebuild | C165: 291146.63
A166: Gerber Rd-Lawrence to Hutchison Rd, Wellesley | C166: 190589.29
A167: Weimar Line - Moser-Young to Hutchison Rd,Wellesley | C167: 186648.9
A168: Lobsinger Line - Rebuild, Town of Heidelberg | C168: 177849.26
A169: Lobsinger Line, Herrgott Rd to 1km West, St Clements | C169: 431522.06
A170: Lobsinger Line PH3 - St. Clements limit to Hergott Rd. | C170: 350005.53
A171: Sawmill Road 2cct Rebuild - St. Jacobs to Conestogo | D171: 754135.25
A172: Northfield Dr, Reid Woods Dr to Sandy Hills Dr, line rebuild | D172: 1018471.79
A173: Queen's Bush Rd-Greenwood to Molesworth,Wellesley | D173: 242471.33
A174: Queen's Bush Rd-Greenwood Hill to Molesworth St,Wellesley | E174: 205939.9
A175: Maplewood Rd, Paradise Lake, Phase 1 | E175: 228300.97
A176: Kennedy Rd. & Elroy Rd., Breslau | E176: 185771.42
A177: Weimar Line, Paradise Lake to Maplewood Road | E177: 182108.89
A178: Sawmill Rd and Northfield Dr, Conestogo | F178: 634375.3
A179: Menno St-Lonsdale Rd to Shantz Station Rd, Woolwich | F179: 231114.1
A180: Weimar Line Ph1, Maplewood to Kressler | F180: 342805.2
A181: Kressler Rd - Hessen Strasse to Lobsinger Ln | G181: 282755
A182: New Jerusalem Rd - Scotch Ln to Sawmill Rd | G182: 582682
A183: Floradale Rd - from existing 27.6kV to Florapine Rd + 3ph Ruggles Rd | G183: 265168
A184: Deborah Glaister Ln - Chalmers Forest to Rd 116 | H184: 295897
A185: Woolwich/Guelph Townline - Victoria St to Chilligo Rd | H185: 199335
A186: Nafziger Rd - Gerber Rd to Queen's Bush Rd | H186: 268740
A187: Chilligo Rd - Kossuth Rd to Woolwich/Guelph Townline | H187: 692257
A188: Scotch Line, New Jerusalem Rd to Arthur St | H188: 385294
A189: Overhead Line Renewal (4kV) - 5
A190: 2011 Overhead 4kV Conversions | B190: 465919.483
A191: HS New 13.8 kV Feeder 3. - Parkside, Weber - Bearinger | B191: 330415.7941
A192: HS New 13.8 kV Feeder 4 - Quiet Pl., Parkside to Albert | B192: 314625.3081
A193: HS New 13.8 kV Feeder 5 - Albert, Quiet Pl to Columbia | B193: 261845.3333
A194: Phillip Street, Albert St to Columbia St | C194: 413113.19
A195: Bluevale Street North, Lincoln Rd to 291 Bluevale St | C195: 176916.48
A196: Quiet Place, Waterloo | C196: 202927.23
A197: Albert Street - Quiet Pl to University Ave | C197: 701114.27
A198: Keats Way - F-H Rd to University Ave | D198: 584623.56
A199: Barnswallow, Elmira | D199: 292942.08
A200: Bluevale St. / Erb St. E. / Goldbeck St | D200: 271020.45
A201: University Ave - Regina to Albert St | E201: 255841.66
A202: Phillip Street, Columbia St to University Ave | E202: 180286.72
A203: Lodge Street, Regina St to Weber St | E203: 280024.04
A204: Oriole - Arthur to Meadowlark, Bobolink & Goldfinch | E204: 203616.5
... 91 more rows

Sheet App.2-AB_Capital Expenditures
S1: File Number: | U1: =EBNUMBER -> EB-2015-0108
S2: Exhibit: | U2: 2
S3: Tab:
S4: Schedule: | U4: Table 2-31
S5: Page: | U5: 59
S7: Date: | U7: 2015-05-01
A9: Appendix 2-AB
A10: Table 2 - Capital Expenditure Summary from Chapter 5 Consolidated Distribution System Plan Filing Requirements
A12: First year of Forecast Period: | B12: =TestYear -> 2016
A13: CATEGORY | B13: Historical Period (previous plan1 & actual) | Q13: Forecast Period (planned)
B14: =E14-1 -> 2011 | E14: =H14-1 -> 2012 | H14: =K14-1 -> 2013 | K14: =N14-1 -> 2014 | N14: =Q14-1 -> 2015 | Q14: =B12 -> 2016 | R14: =Q14+1 -> 2017 | S14: =R14+1 -> 2018 | T14: 2019 | U14: 2020
B15: Plan | C15: Actual | D15: Var | E15: Plan | F15: Actual | G15: Var | H15: Plan | I15: Actual | J15: Var | K15: Plan | L15: Actual | M15: Var | N15: Plan | O15: Actual2 | P15: Var
B16: $ '000 | D16: % | E16: $ '000 | G16: % | H16: $ '000 | J16: % | K16: $ '000 | M16: % | N16: $ '000 | P16: % | Q16: $ '000
A17: System Access | C17: 5616457.558 | D17: =IF(ISERROR((C17-B17)/B17),"--",(C17-B17)/B17) -> -- | F17: 7835846.742 | G17: =IF(ISERROR((F17-E17)/E17),"--",(F17-E17)/E17) -> -- | I17: 8667884.623 | J17: =IF(ISERROR((I17-H17)/H17),"--",(I17-H17)/H17) -> -- | L17: 5625933.101 | M17: =IF(ISERROR((L17-K17)/K17),"--",(L17-K17)/K17) -> -- | O17: 11084508 | P17: =IF(ISERROR((O17-N17)/N17),"--",(O17-N17)/N17) -> -- | Q17: 6622858 | R17: 5892104.12 | S17: 6020046.202 | T17: 5946859.126 | U17: 6085795.869
A18: System Renewal | C18: 9731967.112 | D18: =IF(ISERROR((C18-B18)/B18),"--",(C18-B18)/B18) -> -- | F18: 9253543.628 | G18: =IF(ISERROR((F18-E18)/E18),"--",(F18-E18)/E18) -> -- | I18: 7569002.042 | J18: =IF(ISERROR((I18-H18)/H18),"--",(I18-H18)/H18) -> -- | L18: 9711737.075 | M18: =IF(ISERROR((L18-K18)/K18),"--",(L18-K18)/K18) -> -- | O18: 6465106 | P18: =IF(ISERROR((O18-N18)/N18),"--",(O18-N18)/N18) -> -- | Q18: 8181031 | R18: 8545000 | S18: 9438200 | T18: 8800764 | U18: 8975779.28
A19: System Service | C19: 1832799.48 | D19: -- | F19: 1649794.42 | G19: -- | I19: 1573867.59 | J19: -- | L19: 2311675.984 | M19: -- | O19: 1526548 | P19: -- | Q19: 2405950 | R19: 1680000 | S19: 1725200 | T19: 1175404 | U19: 1175612.08
A20: General Plant | C20: 29572430.23 | D20: -- | F20: 3380267.51 | G20: -- | I20: 2140562.18 | J20: -- | L20: 2044659.74 | M20: -- | O20: 2232450 | P20: -- | Q20: 1869078 | R20: 2813765.16 | S20: 1661175.623 | T20: 1670309.136 | U20: 1649525.318
A21: TOTAL EXPENDITURE | B21: =SUM(B17:B20) -> 0 | C21: =SUM(C17:C20) -> 46753654.38 | D21: -- | E21: 0 | F21: 22119452.3 | G21: -- | H21: 0 | I21: 19951316.43 | J21: -- | K21: 0 | L21: 19694005.9 | M21: -- | N21: 0 | O21: 21308612 | P21: -- | Q21: 19078917 | R21: 18930869.28 | S21: 18844621.83 | T21: 17593336.26 | U21: =SUM(U17:U20) -> 17886712.55
A22: System O&M | C22: 4855570 | D22: -- | F22: 5730973 | G22: -- | I22: 7406564 | J22: -- | L22: 8092236 | M22: -- | O22: 7625441 | P22: -- | Q22: 7547972
A23: (1) This is Waterloo North Hydro's first Distribution System Plan and as such planned expenditures are not provided.
A24: Notes to the Table:
A25: 1. Historical “previous plan” data is not required unless a plan has previously been filed
A26: 2. Indicate the number of months of 'actual' data included in the last year of the Historical Period (normally a 'bridge' year):
A28: Explanatory Notes on Variances (complete only if applicable)
A29: Notes on shifts in forecast vs. historical budgets by category
A32: Notes on year over year Plan vs. Actual variances for Total Expenditures
A35: Notes on Plan vs. Actual variance trends for individual expenditure categories

Sheet App. 2-AC_Customer Engagement
B1: File Number: | C1: =EBNUMBER -> EB-2015-0108
B2: Exhibit: | C2: 1
B3: Tab:
B4: Schedule: | C4: Attachment 1-6
B5: Page: | C5: 137
B7: Date: | C7: 2015-05-01
A9: Appendix 2-AC
A10: Customer Engagement Activities Summary
A12: Provide a list of customer engagement activities | B12: Provide a list of customer needs and preferences identified through each engagement activity | C12: Actions taken to respond to identified needs and preferences. If no action was taken, explain why.
A13: Approximately 5,000-10,000 customer walk ins per year to office for service | B13: Need to explain the bill, need to make payment arrangements, account balances, billing inquiries, services such as e-Billing, TOU rates, outages, conservation programs, bill components | C13: Maintain this service option including an ability to make payment in-person. Trained all front office staff to handle majority of issues
A14: 42,782 Inbound phone calls to WNH in 2014 | B14: Need to explain the bill, need to make payment arrangements, account balances, billing inquiries, services such as e-Billing, TOU rates, outages, conservation programs, bill components | C14: Trained all front office staff to handle inquiries
A15: 2,512 inbound written enquires were responded to by WNH in 2014 | B15: Need to explain the bill, need to make payment arrangements, account balances, billing inquiries, services such as e-Billing, TOU rates, outages, conservation programs, bill components | C15: Trained all front office staff to handle inquiries
A16: Annual vegetation control program | B16: Need to confirm scope of work on each property to safely establish right of way | C16: Notices of Annual Tree Trimming to all customers in the area with an explanation as to why this work is necessary. If customers have further inquiries they are directed to call the operations department at WNH
A17: Approximately 100 Forestry Customer Calls in 2014 | B17: Requests to cut back trees interfering with power lines | C17: Customers required to sign off on work consent before work begins. WNH will continue to investigate all customer requests.
A18: Locating electrical infrastructure, approximately 10,000 requests per year | B18: Need to build new infrastructure requires electrical plant to be safely located so construction can proceed | C18: Locates are all now scheduled through On1Call as mandated by the Government of Ontario. On1Call then contacts WNH to set up appointment
A19: Approximately 5,000 power outaged routed calls and service calls to the control room in 2014 | B19: Customer request for information on power outages | C19: Developing and utilizing Outage Management Software as well as increase usage of social media updates
A20: Electrical Safety Awareness training - 81 Elementary school presentations in 2014 | B20: Need for elementary students to understand and respect electrical system hazards as well as need for future electricity consumers to understand Ontario's electrical system | C20: Offer an in-classroom program for elementary school students in the Region of Waterloo
A21: Construction Projects Including: Line Rebuilds, Area Plan Development, and Line Relocations | B21: Need for coordinated, multi utility infrastructure development according to customer schedule and budgets | C21: WNH solicits information about plans and requests input and/or concerns from customers. Depending on the project various notifications are done - see details in exhibit 1. Pre-Construction notices are sent describing timelines and details.
A22: High Consumption Energy Users | B22: Need to control electricity consumption, need to understand the bill, need to reduce electricity costs | C22: Business customer breakfast sessions, meetings through Chamber of Commerce, individual customer meetings, provide expert advise on metering, supply and power quality issues
A23: Municipal Government Consultations | B23: Need for shared information on planning and development | C23: Plans need to be communicated in order to ensure appropriate design or construction decisions and system planning
A24: Customer Demand Work | B24: Customer require new services, service upgrades, increased transformation, sevice new developments including subdivisions | C24: Requets are managed through a customer que with appropriate prioritzation
A25: Trouble call response | B25: Customer need for power restoration | C25: 24/7 coverage with ability to call in necessary resources to respond to most contingency situations
A26: Participation in conservation programs - Businesses | B26: Since 2011 WNH has helped 350 business customers reduce consumption by replacing building systems and infrastructure resulting in savings of $3.8 Million to their bottom line, with incentives of $3.5 Million | C26: Continue to promote CDM programs and encourage the use of incentive programs for local businesses
A27: Participation in conservation programs - Residents | B27: Bill inserts, brochure handouts and traditional marketing channels were utilized about topics of interest and relevance to customers | C27: Provide all OPA programs in demand with local resources
A28: Roving Energy Managers | B28: Need for technical expertise to identify and implement complex industrial conservation projects | C28: Continued utilization of roving energy manager and energy advisors to support retrofit projects
A29: UtilityPulse Customer Satisfaction Survey 2014 | B29: Customers want low price and high value, customer service, company leadership, the business to be a good corporate steward, operational effectiveness and power quality/reliability. Customers require various communication channels to be kept informed | C29: Working on a communication plan as to how we can better inform our customers on information that is important to them. i.e. current usage, energy savings, and outage information
A30: Innovative Research - Customer Consultation Winter 2015 | B30: Customers want continued delivery of high quality services, reliability of service, affordable electricity costs, assistance to reduce consumption and thereby costs, as well as better information when outages occur. | C30: Refer to Exhibit 1 - WNH's Response to Customer Preferences
A31: Conducts Open House meetings | B31: Customers are informed of engineering design changes planned in their community and how they will be impacted. | C31: WNH takes customer feedback into account when finalizing designs if practical.
A32: Chamber of Commerce events | B32: WNH actively participates in its local Chamber of Commerce both on the Board of Directors and at events to interact with local business persons | C32: WNH staff are able to hear their electricity concerns, provide industry education and assistance where needed.
A33: Sustainable Waterloo Region | B33: WNH was a founding member of a local carbon reduction and energy conservation organization, Sustainable Waterloo Region. WNH is committed to conservation for its customers and organizations. | C33: WNH continues to demonstrate its role as a leader in environmental stewardship by committing to reduce its carbon footprint in the community.
A34: Doors Open Waterloo Event | B34: WNH participated in a local annual event 'Doors Open' in which members of the public tour local area businesses. WNH received much interest and participation from the community, over 300 people toured WNH 's facilities. | C34: Management was on hand to meet with WNH customers and discussed electricity concerns and electricity conservation practices
A35: Shareholder Meetings | B35: WNH regulary meets with its shareholders to discuss WNH's plans, rates and the impact on customers. | C35: WNH takes shareholder feedback and integrates into strategic planning
A37: Note: Use "ALT-ENTER" to go to the next line within a cell

Sheet App.2-B_Acct Instructions
A1: General Instructions to MIFRS Appendices
A2: Types of Schedules to File
A4: The purpose of this tab is to provide general instructions. The specific instructions to each appendix are listed in footnotes of each appendix.
A6: The typical applicant is expected to have made capitalization and depreciation policy changes under CGAAP as permitted by the Board on January 1, 2012 or mandated by the Board by January 1, 2013, and adopts IFRS for reporting purposes on January 1, 2015 (transition date January 1, 2014). In general, applicants under the two scenarios should provide the following information in the appendices:
E9: Accounting Policy Changes in 2012 and Adopts IFRS in 2015 | F9: Accounting Policy Changes in 2013 and Adopts IFRS in 2015
E10: (Date of Transition to IFRS 2014)
A11: Information to be filed in 2015 CoS Application | B11: 2015 | C11: Test | E11: MIFRS | F11: MIFRS
B12: 2014 | C12: Bridge | E12: MIFRS and Revised CGAAP* | F12: MIFRS and Revised CGAAP*
B13: 2013 | C13: Historical | E13: Revised CGAAP | F13: CGAAP and Revised CGAAP
B14: 2012 | C14: Historical | E14: CGAAP and Revised CGAAP | F14: CGAAP
B15: 2011 and Prior | C15: Historical | E15: CGAAP | F15: CGAAP
A17: 1) For the year that the applicant implemented changes to its capitalization and depreciation policies (2012 or 2013), the applicant must file two appendices, one before and one after the policy changes.
A20: 2) For the transition year (2014), the applicant may file two appendices, one under Revised CGAAP and one under MIFRS depending, on the materiality of impacts. See the specific instructions under each appendix below for further details.
A25: Appendix 2-BA - Fixed Asset Schedule
A27: Applicants are to provide Appendix 2-BA in accordance with the years and corresponding accounting standards noted in the above table to provide a year over year continuity in fixed assets.
A28: *For the transition year (2014), the applicant should file two appendices, one under Revised CGAAP and one under MIFRS if the change between Revised CGAAP and MIFRS is material. If the change from the accounting standards is not material, the applicant may choose to only provide one appendix under MIFRS. The applicant must also indicate the fixed asset net book value balance under Revised CGAAP, the total dollar value of the change and explain why it is not material.
A32: Regulatory Gross Assets of Property, Plant and Equipment
A34: For an applicant that is adopting IFRS on January 1, 2015 for financial reporting purposes, the applicant must establish the continuity of historic cost by using the December 31, 2013 regulatory gross assets of property, plant and equipment as the opening January 1, 2014 regulatory gross assets. The applicant must provide schedules (including Appendix 2-BA, Fixed Asset Continuity Schedule) which must identify the following details to substantiate the continuity of historic cost for regulatory purposes:
A37: · December 31, 2013 regulatory gross assets of property, plant and equipment, by asset class; and
A38: · January 1, 2014 regulatory gross assets of property, plant and equipment, by asset class.
A40: Accumulated Depreciation
A42: For an applicant that is adopting IFRS on January 1, 2015 for financial reporting purposes, the applicant must establish the continuity of historic cost by using the December 31, 2013 regulatory accumulated depreciation as the opening January 1, 2014 regulatory accumulated depreciation. The applicant must provide schedules (including Appendix 2-BA, Fixed Asset Continuity Schedule) which must identify the following details to substantiate the continuity of historic cost for regulatory purposes:
A45: · December 31, 2013 regulatory accumulated depreciation, by asset class; and
A46: · January 1, 2014 regulatory accumulated depreciation, by asset class.
A48: Appendix 2-C - Depreciation and Amortization
A50: Applicants are to provide Appendix 2-C starting in the year capitalization and depreciation policy changes were implemented in accordance with the years and corresponding accounting standards listed in the above table.
A51: If an applicant changed capitalization and depreciation policies effective January 1, 2012 and will adopt IFRS for reporting purposes effective January 1, 2015, the applicant must complete Appendix 2-CA to 2-CE (inclusive).
A52: If an applicant changed capitalization and depreciation policies effective January 1, 2013 and will adopt IFRS for reporting purposes effective January 1, 2015, the applicant must complete Appendix 2-CF to 2-CI (inclusive).
A53: *Depreciation accounting policy changes were mandated by the Board by January 1, 2013. These accounting changes should be implemented consistent with the Board’s regulatory accounting policies as set out for MIFRS as contained in the Report of the Board, Transition to International Financial Reporting Standards (EB-2008-0408), the Depreciation Study for Use by Electricity Distributors (EB-2010-0178) and the Revised 2012 Accounting Procedures Handbook for Electricity Distributors. In general, no further changes to an applicant's depreciation policy (i.e. assets' service lives) are expected after the Board mandated changes by January 1, 2013. The set of Appendix CA to CI assumes this to be the case. If the applicant has made any changes to its depreciation policy subsequent to the Board mandated changes, applicants must identify the change, explain the nature of the change, the reason for the change, quantify the impact of the change, and quantify the depreciation expense before and after the change.
A56: Appendix 2-E - Account 1575, IFRS-CGAAP Transitional PP&E Amounts (2-EA), Account 1576, Accounting Changes Under CGAAP (2-EB, 2-EC)
A58: If an applicant changed capitalization and depreciation policies effective January 1, 2012 and will adopt IFRS for reporting purposes effective January 1, 2015, the applicant must complete Appendix 2-EA and 2-EB. If the applicant does not make any further PP&E accounting policy changes beyond the capitalization and depreciation policy changes as permitted by the Board on January 1, 2012 (i.e. no further changes made on transition to IFRS), the applicant must indicate this and does not need to complete Appendix 2-EA.
A60: If an applicant changed capitalization and depreciation policies effective January 1, 2013 and will adopt IFRS for reporting purposes effective January 1, 2015, the applicant must complete Appendix 2-EA and 2-EC. If the applicant does not make any further PP&E accounting policy changes beyond the capitalization and depreciation policy changes as mandated by the Board by January 1, 2013 (i.e. no further changes made on transition to IFRS), the applicant must indicate this and does not need to complete Appendix 2-EA.
A62: Please refer to section 2.12.4 and 2.12.5 of the Filing Requirements for further details.
A64: Appendix 2-YA - Summary of Impacts to Revenue Requirement from Transition to MIFRS
A66: For applicants adopting MIFRS, the applicants must provide a summary of the dollar impacts of MIFRS to each component of the revenue requirement (e.g. rate base, operating costs, etc), including the overall impact on the proposed revenue requirement. Accordingly, the applicants must identify financial differences and resulting revenue requirement impacts arising from the adoption of MIFRS as compared to CGAAP prior to capitalization and depreciation policy changes.

Sheet App.2-BA_Fixed Asset Cont 2011
L1: File Number: | M1: =EBNUMBER -> EB-2015-0108
L2: Exhibit: | M2: 2
L3: Tab:
L4: Schedule: | M4: Table 2-12
L5: Page: | M5: 25
L7: Date: | M7: 2015-05-01
A9: Appendix 2-BA
A10: Fixed Asset Continuity Schedule
E12: Accounting Standard | F12: CGAAP
E13: Year | F13: 2011
D15: Cost | J15: Accumulated Depreciation
A16: CCA Class | B16: OEB | C16: Description | D16: Opening Balance | E16: Additions | F16: Disposals | G16: Closing Balance | I16: Opening Balance | J16: Additions | K16: Disposals | L16: Closing Balance | M16: Net Book Value
A17: 12 | B17: 1611 | C17: Computer Software (Formally known as Account 1925) | D17: 3916790.79 | E17: 658022.54 | G17: =D17+E17+F17 -> 4574813.33 | I17: -3223192.15 | J17: -508935.11 | L17: =I17+J17+K17 -> -3732127.26 | M17: =G17+L17 -> 842686.07
A18: CEC | B18: 1612 | C18: Land Rights (Formally known as Account 1906) | D18: 394606.29 | E18: 31950.14 | G18: =D18+E18+F18 -> 426556.43 | I18: 0 | J18: 0 | L18: =I18+J18+K18 -> 0 | M18: =G18+L18 -> 426556.43
A19: N/A | B19: 1805 | C19: Land | D19: 1577530.41 | E19: 1489660.19 | G19: =D19+E19+F19 -> 3067190.6 | I19: 0 | J19: 0 | L19: =I19+J19+K19 -> 0 | M19: =G19+L19 -> 3067190.6
A20: 47 | B20: 1808 | C20: Buildings | D20: 8465549.77 | E20: 23882978.15 | G20: =D20+E20+F20 -> 32348527.92 | I20: -2555754.39 | J20: -198587.34 | L20: =I20+J20+K20 -> -2754341.73 | M20: =G20+L20 -> 29594186.19
A21: 13 | B21: 1810 | C21: Leasehold Improvements | G21: 0 | I21: 0 | J21: 0 | L21: 0 | M21: 0
A22: 47 | B22: 1815 | C22: Transformer Station Equipment >50 kV | D22: 29442100.54 | E22: 888390.42 | G22: 30330490.96 | I22: -8028692.46 | J22: -709960.76 | L22: -8738653.22 | M22: 21591837.74
A23: 47 | B23: 1820 | C23: Distribution Station Equipment <50 kV | D23: 4657396.22 | E23: 2220.1 | G23: 4659616.32 | I23: -3116991.36 | J23: -79529.36 | L23: -3196520.72 | M23: 1463095.6
A24: 47 | B24: 1825 | C24: Storage Battery Equipment | G24: 0 | I24: 0 | J24: 0 | L24: 0 | M24: 0
A25: 47 | B25: 1830 | C25: Poles, Towers & Fixtures | D25: 45116967.12 | E25: 4930506.41 | G25: 50047473.53 | I25: -19036299.05 | J25: -1852735.71 | L25: -20889034.76 | M25: 29158438.77
A26: 47 | B26: 1835 | C26: Overhead Conductors & Devices | D26: 20981923.79 | E26: 2714041.13 | G26: 23695964.92 | I26: -7388990 | J26: -895887.31 | L26: -8284877.31 | M26: 15411087.61
A27: 47 | B27: 1840 | C27: Underground Conduit | D27: 13839928.32 | E27: 917660.92 | G27: 14757589.24 | I27: -6648605.86 | J27: -541741.89 | L27: -7190347.75 | M27: 7567241.49
A28: 47 | B28: 1845 | C28: Underground Conductors & Devices | D28: 30650623.75 | E28: 2187097.67 | G28: 32837721.42 | I28: -15193535.44 | J28: -1199287.46 | L28: -16392822.9 | M28: 16444898.52
A29: 47 | B29: 1850 | C29: Line Transformers | D29: 41330071.04 | E29: 3155616.19 | G29: 44485687.23 | I29: -17625971.38 | J29: -1700667.36 | L29: -19326638.74 | M29: 25159048.49
A30: 47 | B30: 1855 | C30: Services (Overhead & Underground) | D30: 20424993.96 | E30: 1139152.38 | G30: 21564146.34 | I30: -10227277.59 | J30: -768484.6 | L30: -10995762.19 | M30: 10568384.15
A31: 47 | B31: 1860 | C31: Meters | D31: 9379724.29 | E31: 384911.85 | G31: 9764636.14 | I31: -5696425.17 | J31: -344018.59 | L31: -6040443.76 | M31: 3724192.38
A32: 47 | B32: 1860 | C32: Meters (Smart Meters) | G32: 0 | I32: 0 | J32: 0 | L32: 0 | M32: 0
A33: N/A | B33: 1905 | C33: Land | G33: 0 | I33: 0 | J33: 0 | L33: 0 | M33: 0
A34: 47 | B34: 1908 | C34: Buildings & Fixtures | G34: 0 | I34: 0 | J34: 0 | L34: 0 | M34: 0
A35: 13 | B35: 1910 | C35: Leasehold Improvements | G35: 0 | I35: 0 | J35: 0 | L35: 0 | M35: 0
A36: 8 | B36: 1915 | C36: Office Furniture & Equipment (10 years) | D36: 812409.48 | E36: 674564.37 | F36: -16200 | G36: 1470773.85 | I36: -640402.17 | J36: -105172.52 | K36: 12960 | L36: -732614.69 | M36: 738159.16
A37: 8 | B37: 1915 | C37: Office Furniture & Equipment (5 years) | G37: 0 | I37: 0 | J37: 0 | L37: 0 | M37: 0
A38: 10 | B38: 1920 | C38: Computer Equipment - Hardware | G38: 0 | L38: 0 | M38: 0
A39: 45 | B39: 1920 | C39: Computer Equip.-Hardware(Post Mar. 22/04) | G39: 0 | I39: 0 | J39: 0 | L39: 0 | M39: 0
A40: 45.1 | B40: 1920 | C40: Computer Equip.-Hardware(Post Mar. 19/07) | D40: 3035778.1 | E40: 354468.77 | G40: 3390246.87 | I40: -2792266.96 | J40: -171517.56 | L40: -2963784.52 | M40: 426462.35
A41: 10 | B41: 1930 | C41: Transportation Equipment | D41: 6874923.81 | E41: 851227.32 | F41: -503885.31 | G41: 7222265.82 | I41: -5104875.43 | J41: -546481.34 | K41: 514310.92 | L41: -5137045.85 | M41: 2085219.97
A42: 8 | B42: 1935 | C42: Stores Equipment | D42: 180403.02 | E42: 335734.59 | G42: 516137.61 | I42: -105001.45 | J42: -44715.39 | L42: -149716.84 | M42: 366420.77
A43: 8 | B43: 1940 | C43: Tools, Shop & Garage Equipment | D43: 831341.34 | E43: 204266.05 | G43: 1035607.39 | I43: -550018.99 | J43: -74249.86 | L43: -624268.85 | M43: 411338.54
A44: 8 | B44: 1945 | C44: Measurement & Testing Equipment | D44: 685916.79 | E44: 115101.38 | G44: 801018.17 | I44: -584261.27 | J44: -29809.91 | L44: -614071.18 | M44: 186946.99
A45: 8 | B45: 1950 | C45: Power Operated Equipment | G45: 0 | I45: 0 | J45: 0 | L45: 0 | M45: 0
A46: 8 | B46: 1955 | C46: Communications Equipment | D46: 446090.96 | E46: 418651.64 | G46: 864742.6 | I46: -163197.8 | J46: -81335.4 | L46: -244533.2 | M46: 620209.4
A47: 8 | B47: 1955 | C47: Communication Equipment (Smart Meters) | G47: 0 | I47: 0 | J47: 0 | L47: 0 | M47: 0
A48: 8 | B48: 1960 | C48: Miscellaneous Equipment | D48: 678459.713 | E48: 679367.53 | G48: 1357827.243 | I48: -510912.06 | J48: -94299.93 | L48: -605211.99 | M48: 752615.253
A49: 47 | B49: 1970 | C49: Load Management Controls Customer Premises | G49: 0 | I49: 0 | J49: 0 | L49: 0 | M49: 0
A50: 47 | B50: 1975 | C50: Load Management Controls Utility Premises | G50: 0 | I50: 0 | J50: 0 | L50: 0 | M50: 0
A51: 47 | B51: 1980 | C51: System Supervisor Equipment | D51: 2861400.95 | E51: 738064.64 | G51: 3599465.59 | I51: -1986362.13 | J51: -159330.79 | L51: -2145692.92 | M51: 1453772.67
A52: 47 | B52: 1985 | C52: Miscellaneous Fixed Assets | G52: 0 | I52: 0 | J52: 0 | L52: 0 | M52: 0
A53: 47 | B53: 1990 | C53: Other Tangible Property | G53: 0 | I53: 0 | J53: 0 | L53: 0 | M53: 0
A54: 47 | B54: 1995 | C54: Contributions & Grants | D54: -25788604.07 | E54: -1484110.08 | G54: -27272714.15 | I54: 5928430.83 | J54: 1090908.57 | L54: 7019339.4 | M54: -20253374.75
A55: 47 | B55: 2440 | C55: Deferred Revenue5
G56: 0 | L56: 0 | M56: 0
C57: Sub-Total | D57: =SUM(D17:D56) -> 220796326.4 | E57: =SUM(E17:E56) -> 45269544.3 | F57: =SUM(F17:F56) -> -520085.31 | G57: =SUM(G17:G56) -> 265545785.4 | I57: =SUM(I17:I56) -> -105250602.3 | J57: =SUM(J17:J56) -> -9015839.62 | K57: =SUM(K17:K56) -> 527270.92 | L57: =SUM(L17:L56) -> -113739171 | M57: =SUM(M17:M56) -> 151806614.4
C58: Less Socialized Renewable Energy Generation Investments (input as negative) | G58: =D58+E58+F58 -> 0 | L58: =I58+J58+K58 -> 0 | M58: =G58+L58 -> 0
C59: Less Other Non Rate-Regulated Utility Assets (input as negative) | G59: 0 | L59: 0 | M59: 0
C60: Total PP&E | D60: =SUM(D57:D59) -> 220796326.4 | E60: =SUM(E57:E59) -> 45269544.3 | F60: -520085.31 | G60: 265545785.4 | I60: =SUM(I57:I59) -> -105250602.3 | J60: -9015839.62 | K60: 527270.92 | L60: -113739171 | M60: 151806614.4
C61: Depreciation Expense adj. from gain or loss on the retirement of assets (pool of like assets), if applicable6
C62: Total | J62: =J60+J61 -> -9015839.62
I64: Less: Fully Allocated Depreciation
A65: 10 | C65: Transportation | I65: Transportation | K65: -546481.34
A66: 10 | C66: Truck Tools | I66: Truck Tools | K66: -74249.86
A67: 8 | C67: Stores Equipment | I67: Stores Equipment | K67: -44715.39
A68: 50 | C68: Engineering | I68: Engineering | K68: -140688.28
I69: Net Depreciation | K69: =J62-K65-K66-K67-K68 -> -8209704.75
A71: Notes:
A73: 1 | B73: Tables in the format outlined above covering all fixed asset accounts should be submitted for the Test Year, Bridge Year and all relevant historical years. At a minimum , the applicant must provide data for the earlier of: 1) all historical years back to its last rebasing; or 2) at least three years of historical actuals, in addition to Bridge Year and Test Year forecasts.
A76: 2 | B76: The "CCA Class" for fixed assets should agree with the CCA Class used for tax purposes in Tax Returns. Fixed Assets sub-components may be used where the underlying asset components are classified under multiple CCA Classes for tax purposes. If an applicant uses any different classes from those shown in the table, an explanation should be provided. (also see note 3 below).
A79: 3 | B79: The table may need to be customized for a utility's asset categories or for any new asset accounts announced or authorized by the Board.
A81: 4 | B81: The additions column (E) must not include construction work in progress (CWIP).
A83: 5 | B83: Effective on the date of IFRS adoption, customer contributions will no longer be recorded in Account 1995 Contributions & Grants, but will be recorded in Account 2440, Deferred Revenues.
A85: 6 | B85: Where a distributor for general financial reporting purposes under IFRS has accounted for the amount of gain or loss on the retirement of assets in a pool of like assets as a charge or credit to income, for reporting and rate application filings the distributor shall reclassify such gains and losses as depreciation expense, and disclose the amount separately.

Sheet App.2-BA_FA_2012
L1: File Number: | M1: =EBNUMBER -> EB-2015-0108
L2: Exhibit: | M2: 2
L3: Tab:
L4: Schedule: | M4: Table 2-13
L5: Page: | M5: 26
L7: Date: | M7: 2015-05-01
A9: Appendix 2-BA
A10: Fixed Asset Continuity Schedule
E12: Accounting Standard | F12: CGAAP
E13: Year | F13: 2012
D15: Cost | J15: Accumulated Depreciation
A16: CCA Class | B16: OEB | C16: Description | D16: Opening Balance | E16: Additions | F16: Disposals | G16: Closing Balance | I16: Opening Balance | J16: Additions | K16: Disposals | L16: Closing Balance | M16: Net Book Value
A17: 12 | B17: 1611 | C17: Computer Software (Formally known as Account 1925) | D17: 4574813.33 | E17: 832820.33 | G17: =D17+E17+F17 -> 5407633.66 | I17: -3732127.26 | J17: -537545.93 | L17: =I17+J17+K17 -> -4269673.19 | M17: =G17+L17 -> 1137960.47
A18: CEC | B18: 1612 | C18: Land Rights (Formally known as Account 1906) | D18: 426556.43 | E18: 84139.75 | G18: =D18+E18+F18 -> 510696.18 | I18: 0 | J18: 0 | L18: =I18+J18+K18 -> 0 | M18: =G18+L18 -> 510696.18
A19: N/A | B19: 1805 | C19: Land | D19: 3067190.6 | F19: -743394.14 | G19: =D19+E19+F19 -> 2323796.46 | I19: 0 | J19: 0 | L19: =I19+J19+K19 -> 0 | M19: =G19+L19 -> 2323796.46
A20: 47 | B20: 1808 | C20: Buildings | D20: 32348527.92 | E20: 1257145.42 | F20: -4618011.57 | G20: =D20+E20+F20 -> 28987661.77 | I20: -2754341.73 | J20: -571560.14 | K20: 1838324.34 | L20: =I20+J20+K20 -> -1487577.53 | M20: =G20+L20 -> 27500084.24
A21: 13 | B21: 1810 | C21: Leasehold Improvements | G21: 0 | I21: 0 | J21: 0 | L21: 0 | M21: 0
A22: 47 | B22: 1815 | C22: Transformer Station Equipment >50 kV | D22: 30330490.96 | E22: 899867.91 | G22: 31230358.87 | I22: -8738653.22 | J22: -732197.76 | L22: -9470850.98 | M22: 21759507.89
A23: 47 | B23: 1820 | C23: Distribution Station Equipment <50 kV | D23: 4659616.32 | E23: 152180.36 | G23: 4811796.68 | I23: -3196520.72 | J23: -79527.56 | L23: -3276048.28 | M23: 1535748.4
A24: 47 | B24: 1825 | C24: Storage Battery Equipment | G24: 0 | I24: 0 | J24: 0 | L24: 0 | M24: 0
A25: 47 | B25: 1830 | C25: Poles, Towers & Fixtures | D25: 50047473.53 | E25: 4974752.66 | G25: 55022226.19 | I25: -20889034.76 | J25: -2024925.96 | L25: -22913960.72 | M25: 32108265.47
A26: 47 | B26: 1835 | C26: Overhead Conductors & Devices | D26: 23695964.92 | E26: 3376783.98 | G26: 27072748.9 | I26: -8284877.31 | J26: -1022109.52 | L26: -9306986.83 | M26: 17765762.07
A27: 47 | B27: 1840 | C27: Underground Conduit | D27: 14757589.24 | E27: 753185 | G27: 15510774.24 | I27: -7190347.75 | J27: -544325.68 | L27: -7734673.43 | M27: 7776100.81
A28: 47 | B28: 1845 | C28: Underground Conductors & Devices | D28: 32837721.42 | E28: 2194333.45 | G28: 35032054.87 | I28: -16392822.9 | J28: -1251831.32 | L28: -17644654.22 | M28: 17387400.65
A29: 47 | B29: 1850 | C29: Line Transformers | D29: 44485687.23 | E29: 3566566.04 | G29: 48052253.27 | I29: -19326638.74 | J29: -1790257.47 | L29: -21116896.21 | M29: 26935357.06
A30: 47 | B30: 1855 | C30: Services (Overhead & Underground) | D30: 21564146.34 | E30: 1265434.28 | G30: 22829580.62 | I30: -10995762.19 | J30: -794482.36 | L30: -11790244.55 | M30: 11039336.07
A31: 47 | B31: 1860 | C31: Meters | D31: 9764636.14 | E31: 2389389.94 | G31: 12154026.08 | I31: -6040443.76 | J31: -1884064.86 | L31: -7924508.62 | M31: 4229517.46
A32: 47 | B32: 1860 | C32: Meters (Smart Meters) | E32: 6265880 | G32: 6265880 | I32: 0 | J32: 0 | L32: 0 | M32: 6265880
A33: N/A | B33: 1905 | C33: Land | G33: 0 | I33: 0 | J33: 0 | L33: 0 | M33: 0
A34: 47 | B34: 1908 | C34: Buildings & Fixtures | G34: 0 | I34: 0 | J34: 0 | L34: 0 | M34: 0
A35: 13 | B35: 1910 | C35: Leasehold Improvements | G35: 0 | I35: 0 | J35: 0 | L35: 0 | M35: 0
A36: 8 | B36: 1915 | C36: Office Furniture & Equipment (10 years) | D36: 1470773.85 | E36: 286773.82 | G36: 1757547.67 | I36: -732614.69 | J36: -131770.84 | L36: -864385.53 | M36: 893162.14
A37: 8 | B37: 1915 | C37: Office Furniture & Equipment (5 years) | G37: 0 | I37: 0 | J37: 0 | L37: 0 | M37: 0
A38: 10 | B38: 1920 | C38: Computer Equipment - Hardware | G38: 0 | L38: 0 | M38: 0
A39: 45 | B39: 1920 | C39: Computer Equip.-Hardware(Post Mar. 22/04) | G39: 0 | I39: 0 | J39: 0 | L39: 0 | M39: 0
A40: 45.1 | B40: 1920 | C40: Computer Equip.-Hardware(Post Mar. 19/07) | D40: 3390246.87 | E40: 425135.4 | G40: 3815382.27 | I40: -2963784.52 | J40: -378587.92 | L40: -3342372.44 | M40: 473009.83
A41: 10 | B41: 1930 | C41: Transportation Equipment | D41: 7222265.82 | E41: 885870.54 | F41: -643001.78 | G41: 7465134.58 | I41: -5137045.85 | J41: -608072.18 | K41: 523686.66 | L41: -5221431.37 | M41: 2243703.21
A42: 8 | B42: 1935 | C42: Stores Equipment | D42: 516137.61 | E42: 20398.93 | F42: -2611.87 | G42: 533924.67 | I42: -149716.84 | J42: -46083.6 | K42: 1994.29 | L42: -193806.15 | M42: 340118.52
A43: 8 | B43: 1940 | C43: Tools, Shop & Garage Equipment | D43: 1035607.39 | E43: 160115.93 | F43: -13581 | G43: 1182142.32 | I43: -624268.85 | J43: -78991.09 | K43: 10864.8 | L43: -692395.14 | M43: 489747.18
A44: 8 | B44: 1945 | C44: Measurement & Testing Equipment | D44: 801018.17 | E44: 90262.9 | G44: 891281.07 | I44: -614071.18 | J44: -36837.51 | L44: -650908.69 | M44: 240372.38
A45: 8 | B45: 1950 | C45: Power Operated Equipment | G45: 0 | I45: 0 | J45: 0 | L45: 0 | M45: 0
A46: 8 | B46: 1955 | C46: Communications Equipment | D46: 864742.6 | E46: 37715.55 | G46: 902458.15 | I46: -244533.2 | J46: -85107.48 | L46: -329640.68 | M46: 572817.47
A47: 8 | B47: 1955 | C47: Communication Equipment (Smart Meters) | G47: 0 | I47: 0 | J47: 0 | L47: 0 | M47: 0
A48: 8 | B48: 1960 | C48: Miscellaneous Equipment | D48: 1357827.243 | E48: 1205849.03 | G48: 2563676.273 | I48: -605211.99 | J48: -403777.14 | L48: -1008989.13 | M48: 1554687.143
A49: 47 | B49: 1970 | C49: Load Management Controls Customer Premises | G49: 0 | I49: 0 | J49: 0 | L49: 0 | M49: 0
A50: 47 | B50: 1975 | C50: Load Management Controls Utility Premises | G50: 0 | I50: 0 | J50: 0 | L50: 0 | M50: 0
A51: 47 | B51: 1980 | C51: System Supervisor Equipment | D51: 3599465.59 | E51: 349668.99 | G51: 3949134.58 | I51: -2145692.92 | J51: -165873.48 | L51: -2311566.4 | M51: 1637568.18
A52: 47 | B52: 1985 | C52: Miscellaneous Fixed Assets | G52: 0 | I52: 0 | J52: 0 | L52: 0 | M52: 0
A53: 47 | B53: 1990 | C53: Other Tangible Property | G53: 0 | I53: 0 | J53: 0 | L53: 0 | M53: 0
A54: 47 | B54: 1995 | C54: Contributions & Grants | D54: -27272714.15 | E54: -2886001.12 | G54: -30158715.27 | I54: 7019339.4 | J54: 1206726.61 | L54: 8226066.01 | M54: -21932649.26
A55: 47 | B55: 2440 | C55: Deferred Revenue5
G56: 0 | L56: 0 | M56: 0
C57: Sub-Total | D57: =SUM(D17:D56) -> 265545785.4 | E57: =SUM(E17:E56) -> 28588269.09 | F57: =SUM(F17:F56) -> -6020600.36 | G57: =SUM(G17:G56) -> 288113454.1 | I57: =SUM(I17:I56) -> -113739171 | J57: =SUM(J17:J56) -> -11961203.19 | K57: =SUM(K17:K56) -> 2374870.09 | L57: =SUM(L17:L56) -> -123325504.1 | M57: =SUM(M17:M56) -> 164787950
C58: Less Socialized Renewable Energy Generation Investments (input as negative) | G58: =D58+E58+F58 -> 0 | L58: =I58+J58+K58 -> 0 | M58: =G58+L58 -> 0
C59: Less Other Non Rate-Regulated Utility Assets (input as negative) | G59: 0 | L59: 0 | M59: 0
C60: Total PP&E | D60: =SUM(D57:D59) -> 265545785.4 | E60: =SUM(E57:E59) -> 28588269.09 | F60: -6020600.36 | G60: 288113454.1 | I60: =SUM(I57:I59) -> -113739171 | J60: -11961203.19 | K60: 2374870.09 | L60: -123325504.1 | M60: 164787950
C61: Depreciation Expense adj. from gain or loss on the retirement of assets (pool of like assets), if applicable6
C62: Total | J62: =J60+J61 -> -11961203.19
I64: Less: Fully Allocated Depreciation
A65: 10 | C65: Transportation | I65: Transportation | K65: -608072.18
A66: 10 | C66: Truck Tools | I66: Truck Tools | K66: -78991.09
A67: 8 | C67: Stores Equipment | I67: Stores Equipment | K67: -46083.6
A68: 50 | C68: Engineering | I68: Engineering | K68: -126938.46
I69: Net Depreciation | K69: =J62-K65-K66-K67-K68 -> -11101117.86
A71: 1 | B71: Tables in the format outlined above covering all fixed asset accounts should be submitted for the Test Year, Bridge Year and all relevant historical years. At a minimum , the applicant must provide data for the earlier of: 1) all historical years back to its last rebasing; or 2) at least three years of historical actuals, in addition to Bridge Year and Test Year forecasts.
A74: 2 | B74: The "CCA Class" for fixed assets should agree with the CCA Class used for tax purposes in Tax Returns. Fixed Assets sub-components may be used where the underlying asset components are classified under multiple CCA Classes for tax purposes. If an applicant uses any different classes from those shown in the table, an explanation should be provided. (also see note 3 below).
A77: 3 | B77: The table may need to be customized for a utility's asset categories or for any new asset accounts announced or authorized by the Board.
A79: 4 | B79: The additions column (E) must not include construction work in progress (CWIP).
A81: 5 | B81: Effective on the date of IFRS adoption, customer contributions will no longer be recorded in Account 1995 Contributions & Grants, but will be recorded in Account 2440, Deferred Revenues.
A83: 6 | B83: Where a distributor for general financial reporting purposes under IFRS has accounted for the amount of gain or loss on the retirement of assets in a pool of like assets as a charge or credit to income, for reporting and rate application filings the distributor shall reclassify such gains and losses as depreciation expense, and disclose the amount separately.

Sheet App.2-BA_FA_2013 CGAAP
L1: File Number: | M1: =EBNUMBER -> EB-2015-0108
L2: Exhibit: | M2: 2
L3: Tab:
L4: Schedule: | M4: Table 2-14
L5: Page: | M5: 27
L7: Date: | M7: 2015-05-01
A9: Appendix 2-BA
A10: Fixed Asset Continuity Schedule
E12: Accounting Standard | F12: CGAAP | G12: Comparative Purposes Only
E13: Year | F13: 2013
D15: Cost | J15: Accumulated Depreciation
A16: CCA Class | B16: OEB | C16: Description | D16: Opening Balance | E16: Additions | F16: Disposals | G16: Closing Balance | I16: Opening Balance | J16: Additions | K16: Disposals | L16: Closing Balance | M16: Net Book Value
A17: 12 | B17: 1611 | C17: Computer Software (Formally known as Account 1925) | D17: 5407633.66 | E17: 342714.16 | G17: =D17+E17+F17 -> 5750347.82 | I17: -4269673.19 | J17: -524708.4802 | L17: =I17+J17+K17 -> -4794381.67 | M17: =G17+L17 -> 955966.1498
A18: CEC | B18: 1612 | C18: Land Rights (Formally known as Account 1906) | D18: 510696.18 | E18: 43422.53 | G18: =D18+E18+F18 -> 554118.71 | I18: 0 | J18: 0 | L18: =I18+J18+K18 -> 0 | M18: =G18+L18 -> 554118.71
A19: N/A | B19: 1805 | C19: Land | D19: 2323796.46 | G19: =D19+E19+F19 -> 2323796.46 | I19: 0 | J19: 0 | L19: =I19+J19+K19 -> 0 | M19: =G19+L19 -> 2323796.46
A20: 47 | B20: 1808 | C20: Buildings | D20: 28987661.77 | E20: 589010.59 | G20: =D20+E20+F20 -> 29576672.36 | I20: -1487577.53 | J20: -594767.3821 | L20: =I20+J20+K20 -> -2082344.912 | M20: =G20+L20 -> 27494327.45
A21: 13 | B21: 1810 | C21: Leasehold Improvements | D21: 0 | G21: 0 | I21: 0 | J21: 0 | L21: 0 | M21: 0
A22: 47 | B22: 1815 | C22: Transformer Station Equipment >50 kV | D22: 31230358.87 | E22: 531483.7 | G22: 31761842.57 | I22: -9470850.98 | J22: -772625.53 | L22: -10243476.51 | M22: 21518366.06
A23: 47 | B23: 1820 | C23: Distribution Station Equipment <50 kV | D23: 4811796.68 | E23: 425404 | G23: 5237200.68 | I23: -3276048.28 | J23: -105317.6684 | L23: -3381365.948 | M23: 1855834.732
A24: 47 | B24: 1825 | C24: Storage Battery Equipment | G24: 0 | I24: 0 | J24: 0 | L24: 0 | M24: 0
A25: 47 | B25: 1830 | C25: Poles, Towers & Fixtures | D25: 55022226.19 | E25: 5621082.721 | G25: 60643308.91 | I25: -22913960.72 | J25: -2110312.452 | L25: -25024273.17 | M25: 35619035.74
A26: 47 | B26: 1835 | C26: Overhead Conductors & Devices | D26: 27072748.9 | E26: 3938300.406 | G26: 31011049.31 | I26: -9306986.83 | J26: -1116443.732 | L26: -10423430.56 | M26: 20587618.74
A27: 47 | B27: 1840 | C27: Underground Conduit | D27: 15510774.24 | E27: 1053089.197 | G27: 16563863.44 | I27: -7734673.43 | J27: -564995.1644 | L27: -8299668.594 | M27: 8264194.843
A28: 47 | B28: 1845 | C28: Underground Conductors & Devices | D28: 35032054.87 | E28: 2625458.449 | G28: 37657513.32 | I28: -17644654.22 | J28: -1323624.565 | L28: -18968278.79 | M28: 18689234.53
A29: 47 | B29: 1850 | C29: Line Transformers | D29: 48052253.27 | E29: 3346545.599 | G29: 51398798.87 | I29: -21116896.21 | J29: -1793179.803 | L29: -22910076.01 | M29: 28488722.86
A30: 47 | B30: 1855 | C30: Services (Overhead & Underground) | D30: 22829580.62 | E30: 1453141.289 | G30: 24282721.91 | I30: -11790244.55 | J30: -808932.977 | L30: -12599177.53 | M30: 11683544.38
A31: 47 | B31: 1860 | C31: Meters | D31: 12154026.08 | E31: 809494 | G31: 12963520.08 | I31: -7924508.62 | J31: -535570.22 | L31: -8460078.84 | M31: 4503441.24
A32: 47 | B32: 1860 | C32: Meters (Smart Meters) | D32: 6265880 | G32: 6265880 | I32: 0 | J32: -505136.9868 | L32: -505136.9868 | M32: 5760743.013
A33: N/A | B33: 1905 | C33: Land | G33: 0 | I33: 0 | J33: 0 | L33: 0 | M33: 0
A34: 47 | B34: 1908 | C34: Buildings & Fixtures | G34: 0 | I34: 0 | J34: 0 | L34: 0 | M34: 0
A35: 13 | B35: 1910 | C35: Leasehold Improvements | G35: 0 | I35: 0 | J35: 0 | L35: 0 | M35: 0
A36: 8 | B36: 1915 | C36: Office Furniture & Equipment (10 years) | D36: 1757547.67 | E36: 19536.92 | F36: -231777.3 | G36: 1545307.29 | I36: -864385.53 | J36: -106926.84 | K36: 170499.57 | L36: -800812.8 | M36: 744494.49
A37: 8 | B37: 1915 | C37: Office Furniture & Equipment (5 years) | G37: 0 | I37: 0 | J37: 2499.739933 | L37: 2499.739933 | M37: 2499.739933
A38: 10 | B38: 1920 | C38: Computer Equipment - Hardware | G38: 0 | L38: 0 | M38: 0
A39: 45 | B39: 1920 | C39: Computer Equip.-Hardware(Post Mar. 22/04) | G39: 0 | I39: 0 | J39: 0 | L39: 0 | M39: 0
A40: 45.1 | B40: 1920 | C40: Computer Equip.-Hardware(Post Mar. 19/07) | D40: 3815382.27 | E40: 112736.19 | G40: 3928118.46 | I40: -3342372.44 | J40: -229633.7733 | L40: -3572006.213 | M40: 356112.2467
A41: 10 | B41: 1930 | C41: Transportation Equipment | D41: 7465134.58 | E41: 911990.56 | F41: -107382.87 | G41: 8269742.27 | I41: -5221431.37 | J41: -639163.9961 | K41: 107382.87 | L41: -5753212.496 | M41: 2516529.774
A42: 8 | B42: 1935 | C42: Stores Equipment | D42: 533924.67 | E42: 8581.15 | G42: 542505.82 | I42: -193806.15 | J42: -46941.72 | L42: -240747.87 | M42: 301757.95
A43: 8 | B43: 1940 | C43: Tools, Shop & Garage Equipment | D43: 1182142.32 | E43: 81737.16 | F43: -36179.72 | G43: 1227699.76 | I43: -692395.14 | J43: -145992.3345 | K43: 19112.52 | L43: -819274.9545 | M43: 408424.8055
A44: 8 | B44: 1945 | C44: Measurement & Testing Equipment | D44: 891281.07 | E44: 4725.99 | G44: 896007.06 | I44: -650908.69 | J44: -52996.856 | L44: -703905.546 | M44: 192101.514
A45: 8 | B45: 1950 | C45: Power Operated Equipment | G45: 0 | I45: 0 | J45: 0 | L45: 0 | M45: 0
A46: 8 | B46: 1955 | C46: Communications Equipment | D46: 902458.15 | E46: 8031.18 | G46: 910489.33 | I46: -329640.68 | J46: -85960.3324 | L46: -415601.0124 | M46: 494888.3176
A47: 8 | B47: 1955 | C47: Communication Equipment (Smart Meters) | G47: 0 | J47: 0 | L47: 0 | M47: 0
A48: 8 | B48: 1960 | C48: Miscellaneous Equipment | D48: 2563676.273 | E48: 17607.76 | F48: -22107.82 | G48: 2559176.213 | I48: -1008989.13 | J48: -211707.0937 | K48: 16787.76 | L48: -1203908.464 | M48: 1355267.749
A49: 47 | B49: 1970 | C49: Load Management Controls Customer Premises | G49: 0 | I49: 0 | J49: 0 | L49: 0 | M49: 0
A50: 47 | B50: 1975 | C50: Load Management Controls Utility Premises | G50: 0 | I50: 0 | J50: 0 | L50: 0 | M50: 0
A51: 47 | B51: 1980 | C51: System Supervisor Equipment | D51: 3949134.58 | E51: 465382.76 | G51: 4414517.34 | I51: -2311566.4 | J51: -204791.418 | L51: -2516357.818 | M51: 1898159.522
A52: 47 | B52: 1985 | C52: Miscellaneous Fixed Assets | G52: 0 | I52: 0 | J52: 0 | L52: 0 | M52: 0
A53: 47 | B53: 1990 | C53: Other Tangible Property | G53: 0 | I53: 0 | J53: 0 | L53: 0 | M53: 0
A54: 47 | B54: 1995 | C54: Contributions & Grants | D54: -30158715.27 | E54: -1672704.93 | G54: -31831420.2 | I54: 8226066.01 | J54: 1273634.808 | L54: 9499700.818 | M54: -22331719.38
A55: 47 | B55: 2440 | C55: Deferred Revenue5
G56: 0 | L56: 0 | M56: 0
C57: Sub-Total | D57: =SUM(D17:D56) -> 288113454.1 | E57: =SUM(E17:E56) -> 20736771.38 | F57: =SUM(F17:F56) -> -397447.71 | G57: =SUM(G17:G56) -> 308452777.8 | I57: =SUM(I17:I56) -> -123325504.1 | J57: =SUM(J17:J56) -> -11203594.78 | K57: =SUM(K17:K56) -> 313782.72 | L57: =SUM(L17:L56) -> -134215316.1 | M57: =SUM(M17:M56) -> 174237461.6
C58: Less Socialized Renewable Energy Generation Investments (input as negative) | G58: =D58+E58+F58 -> 0 | L58: =I58+J58+K58 -> 0 | M58: =G58+L58 -> 0
C59: Less Other Non Rate-Regulated Utility Assets (input as negative) | G59: 0 | L59: 0 | M59: 0
C60: Total PP&E | D60: =SUM(D57:D59) -> 288113454.1 | E60: =SUM(E57:E59) -> 20736771.38 | F60: -397447.71 | G60: 308452777.8 | I60: =SUM(I57:I59) -> -123325504.1 | J60: -11203594.78 | K60: 313782.72 | L60: -134215316.1 | M60: 174237461.6
C61: Depreciation Expense adj. from gain or loss on the retirement of assets (pool of like assets), if applicable6
C62: Total | J62: =J60+J61 -> -11203594.78
I64: Less: Fully Allocated Depreciation
A65: 10 | C65: Transportation | I65: Transportation | K65: -368940.72
A66: 10 | C66: Truck Tools | I66: Truck Tools | K66: -196252.01
A67: 8 | C67: Stores Equipment | I67: Stores Equipment | K67: -46941.72
A68: 50 | C68: Engineering
I69: Net Depreciation | K69: =J62-K65-K66-K67-K68 -> -10591460.33
A71: 1 | B71: Tables in the format outlined above covering all fixed asset accounts should be submitted for the Test Year, Bridge Year and all relevant historical years. At a minimum , the applicant must provide data for the earlier of: 1) all historical years back to its last rebasing; or 2) at least three years of historical actuals, in addition to Bridge Year and Test Year forecasts.
A74: 2 | B74: The "CCA Class" for fixed assets should agree with the CCA Class used for tax purposes in Tax Returns. Fixed Assets sub-components may be used where the underlying asset components are classified under multiple CCA Classes for tax purposes. If an applicant uses any different classes from those shown in the table, an explanation should be provided. (also see note 3 below).
A77: 3 | B77: The table may need to be customized for a utility's asset categories or for any new asset accounts announced or authorized by the Board.
A79: 4 | B79: The additions column (E) must not include construction work in progress (CWIP).
A81: 5 | B81: Effective on the date of IFRS adoption, customer contributions will no longer be recorded in Account 1995 Contributions & Grants, but will be recorded in Account 2440, Deferred Revenues.
A83: 6 | B83: Where a distributor for general financial reporting purposes under IFRS has accounted for the amount of gain or loss on the retirement of assets in a pool of like assets as a charge or credit to income, for reporting and rate application filings the distributor shall reclassify such gains and losses as depreciation expense, and disclose the amount separately.

Sheet App.2-BA_FA_2013 RCGAAP
L1: File Number: | M1: =EBNUMBER -> EB-2015-0108
L2: Exhibit: | M2: 2
L3: Tab:
L4: Schedule: | M4: Table 2-15
L5: Page: | M5: 28
L7: Date: | M7: 2015-05-01
A9: Appendix 2-BA
A10: Fixed Asset Continuity Schedule
E12: Accounting Standard | F12: CGAAP | G12: Revised CGAAP - Accounting Policy Changes in Effect
E13: Year | F13: 2013
D15: Cost | J15: Accumulated Depreciation
A16: CCA Class | B16: OEB | C16: Description | D16: Opening Balance | E16: Additions | F16: Disposals | G16: Closing Balance | I16: Opening Balance | J16: Additions | K16: Disposals | L16: Closing Balance | M16: Net Book Value
A17: 12 | B17: 1611 | C17: Computer Software (Formally known as Account 1925) | D17: 5407633.66 | E17: 342714.16 | G17: =D17+E17+F17 -> 5750347.82 | I17: -4269673.19 | J17: -535469.38 | L17: =I17+J17+K17 -> -4805142.57 | M17: =G17+L17 -> 945205.25
A18: CEC | B18: 1612 | C18: Land Rights (Formally known as Account 1906) | D18: 510696.18 | E18: 43422.53 | G18: =D18+E18+F18 -> 554118.71 | I18: 0 | J18: 0 | L18: =I18+J18+K18 -> 0 | M18: =G18+L18 -> 554118.71
A19: N/A | B19: 1805 | C19: Land | D19: 2323796.46 | G19: =D19+E19+F19 -> 2323796.46 | I19: 0 | J19: 0 | L19: =I19+J19+K19 -> 0 | M19: =G19+L19 -> 2323796.46
A20: 47 | B20: 1808 | C20: Buildings | D20: 28987661.77 | E20: 589010.59 | G20: =D20+E20+F20 -> 29576672.36 | I20: -1487577.53 | J20: -819730.2 | L20: =I20+J20+K20 -> -2307307.73 | M20: =G20+L20 -> 27269364.63
A21: 13 | B21: 1810 | C21: Leasehold Improvements | D21: 0 | G21: 0 | I21: 0 | J21: 0 | L21: 0 | M21: 0
A22: 47 | B22: 1815 | C22: Transformer Station Equipment >50 kV | D22: 31230358.87 | E22: 531483.7 | G22: 31761842.57 | I22: -9470850.98 | J22: -1307487.63 | L22: -10778338.61 | M22: 20983503.96
A23: 47 | B23: 1820 | C23: Distribution Station Equipment <50 kV | D23: 4811796.68 | E23: 425404 | G23: 5237200.68 | I23: -3276048.28 | J23: -132756.64 | L23: -3408804.92 | M23: 1828395.76
A24: 47 | B24: 1825 | C24: Storage Battery Equipment | G24: 0 | I24: 0 | J24: 0 | L24: 0 | M24: 0
A25: 47 | B25: 1830 | C25: Poles, Towers & Fixtures | D25: 55022226.19 | E25: 4855043.642 | G25: 59877269.83 | I25: -22913960.72 | J25: -946536 | L25: -23860496.72 | M25: 36016773.11
A26: 47 | B26: 1835 | C26: Overhead Conductors & Devices | D26: 27072748.9 | E26: 3401590.28 | G26: 30474339.18 | I26: -9306986.83 | J26: -579777.84 | L26: -9886764.67 | M26: 20587574.51
A27: 47 | B27: 1840 | C27: Underground Conduit | D27: 15510774.24 | E27: 909574.59 | G27: 16420348.83 | I27: -7734673.43 | J27: -205571.64 | L27: -7940245.07 | M27: 8480103.76
A28: 47 | B28: 1845 | C28: Underground Conductors & Devices | D28: 35032054.87 | E28: 2267661.94 | G28: 37299716.81 | I28: -17644654.22 | J28: -798336.05 | L28: -18442990.27 | M28: 18856726.54
A29: 47 | B29: 1850 | C29: Line Transformers | D29: 48052253.27 | E29: 2890479.6 | G29: 50942732.87 | I29: -21116896.21 | J29: -897219.86 | L29: -22014116.07 | M29: 28928616.8
A30: 47 | B30: 1855 | C30: Services (Overhead & Underground) | D30: 22829580.62 | E30: 1255107.73 | G30: 24084688.35 | I30: -11790244.55 | J30: -304826.16 | L30: -12095070.71 | M30: 11989617.64
A31: 47 | B31: 1860 | C31: Meters | D31: 12154026.08 | E31: 809494 | G31: 12963520.08 | I31: -7924508.62 | J31: -535570.22 | L31: -8460078.84 | M31: 4503441.24
A32: 47 | B32: 1860 | C32: Meters (Smart Meters) | D32: 6265880 | G32: 6265880 | I32: 0 | J32: -541656.2932 | L32: -541656.2932 | M32: 5724223.707
A33: N/A | B33: 1905 | C33: Land | G33: 0 | I33: 0 | J33: 0 | L33: 0 | M33: 0
A34: 47 | B34: 1908 | C34: Buildings & Fixtures | G34: 0 | I34: 0 | J34: 0 | L34: 0 | M34: 0
A35: 13 | B35: 1910 | C35: Leasehold Improvements | G35: 0 | I35: 0 | J35: 0 | L35: 0 | M35: 0
A36: 8 | B36: 1915 | C36: Office Furniture & Equipment (10 years) | D36: 1757547.67 | E36: 19536.92 | F36: -231777.3 | G36: 1545307.29 | I36: -864385.53 | J36: -106926.84 | K36: 170499.57 | L36: -800812.8 | M36: 744494.49
A37: 8 | B37: 1915 | C37: Office Furniture & Equipment (5 years) | G37: 0 | I37: 0 | J37: 0 | L37: 0 | M37: 0
A38: 10 | B38: 1920 | C38: Computer Equipment - Hardware | G38: 0 | L38: 0 | M38: 0
A39: 45 | B39: 1920 | C39: Computer Equip.-Hardware(Post Mar. 22/04) | G39: 0 | I39: 0 | J39: 0 | L39: 0 | M39: 0
A40: 45.1 | B40: 1920 | C40: Computer Equip.-Hardware(Post Mar. 19/07) | D40: 3815382.27 | E40: 112736.19 | G40: 3928118.46 | I40: -3342372.44 | J40: -200839.38 | L40: -3543211.82 | M40: 384906.64
A41: 10 | B41: 1930 | C41: Transportation Equipment | D41: 7465134.58 | E41: 911990.56 | F41: -107382.87 | G41: 8269742.27 | I41: -5221431.37 | J41: -368940.72 | K41: 107382.87 | L41: -5482989.22 | M41: 2786753.05
A42: 8 | B42: 1935 | C42: Stores Equipment | D42: 533924.67 | E42: 8581.15 | G42: 542505.82 | I42: -193806.15 | J42: -46941.72 | L42: -240747.87 | M42: 301757.95
A43: 8 | B43: 1940 | C43: Tools, Shop & Garage Equipment | D43: 1182142.32 | E43: 81737.16 | F43: -36179.72 | G43: 1227699.76 | I43: -692395.14 | J43: -196252.01 | K43: 19112.52 | L43: -869534.63 | M43: 358165.13
A44: 8 | B44: 1945 | C44: Measurement & Testing Equipment | D44: 891281.07 | E44: 4725.99 | G44: 896007.06 | I44: -650908.69 | J44: -68859.18 | L44: -719767.87 | M44: 176239.19
A45: 8 | B45: 1950 | C45: Power Operated Equipment | G45: 0 | I45: 0 | J45: 0 | L45: 0 | M45: 0
A46: 8 | B46: 1955 | C46: Communications Equipment | D46: 902458.15 | E46: 8031.18 | G46: 910489.33 | I46: -329640.68 | J46: -93971.5 | L46: -423612.18 | M46: 486877.15
A47: 8 | B47: 1955 | C47: Communication Equipment (Smart Meters) | G47: 0 | L47: 0 | M47: 0
A48: 8 | B48: 1960 | C48: Miscellaneous Equipment | D48: 2563676.273 | E48: 17607.76 | F48: -22107.82 | G48: 2559176.213 | I48: -1008989.13 | J48: -238202.09 | K48: 16787.76 | L48: -1230403.46 | M48: 1328772.753
A49: 47 | B49: 1970 | C49: Load Management Controls Customer Premises | G49: 0 | I49: 0 | J49: 0 | L49: 0 | M49: 0
A50: 47 | B50: 1975 | C50: Load Management Controls Utility Premises | G50: 0 | I50: 0 | J50: 0 | L50: 0 | M50: 0
A51: 47 | B51: 1980 | C51: System Supervisor Equipment | D51: 3949134.58 | E51: 465382.76 | G51: 4414517.34 | I51: -2311566.4 | J51: -207899.17 | L51: -2519465.57 | M51: 1895051.77
A52: 47 | B52: 1985 | C52: Miscellaneous Fixed Assets | G52: 0 | I52: 0 | J52: 0 | L52: 0 | M52: 0
A53: 47 | B53: 1990 | C53: Other Tangible Property | G53: 0 | I53: 0 | J53: 0 | L53: 0 | M53: 0
A54: 47 | B54: 1995 | C54: Contributions & Grants | D54: -30158715.27 | E54: -1672704.93 | G54: -31831420.2 | I54: 8226066.01 | J54: 741216.28 | L54: 8967282.29 | M54: -22864137.91
A55: 47 | B55: 2440 | C55: Deferred Revenue5
G56: 0 | L56: 0 | M56: 0
C57: Sub-Total | D57: =SUM(D17:D56) -> 288113454.1 | E57: =SUM(E17:E56) -> 18278611.5 | F57: =SUM(F17:F56) -> -397447.71 | G57: =SUM(G17:G56) -> 305994617.9 | I57: =SUM(I17:I56) -> -123325504.1 | J57: =SUM(J17:J56) -> -8392554.243 | K57: =SUM(K17:K56) -> 313782.72 | L57: =SUM(L17:L56) -> -131404275.6 | M57: =SUM(M17:M56) -> 174590342.3
C58: Less Socialized Renewable Energy Generation Investments (input as negative) | G58: =D58+E58+F58 -> 0 | L58: =I58+J58+K58 -> 0 | M58: =G58+L58 -> 0
C59: Less Other Non Rate-Regulated Utility Assets (input as negative) | G59: 0 | L59: 0 | M59: 0
C60: Total PP&E | D60: =SUM(D57:D59) -> 288113454.1 | E60: =SUM(E57:E59) -> 18278611.5 | F60: -397447.71 | G60: 305994617.9 | I60: =SUM(I57:I59) -> -123325504.1 | J60: -8392554.243 | K60: 313782.72 | L60: -131404275.6 | M60: 174590342.3
C61: Depreciation Expense adj. from gain or loss on the retirement of assets (pool of like assets), if applicable6
C62: Total | J62: =J60+J61 -> -8392554.243
I64: Less: Fully Allocated Depreciation
A65: 10 | C65: Transportation | I65: Transportation | K65: -368940.72
A66: 10 | C66: Truck Tools | I66: Truck Tools | K66: -196252.01
A67: 8 | C67: Stores Equipment | I67: Stores Equipment | K67: -46941.72
A68: 50 | C68: Engineering
I69: Net Depreciation | K69: =J62-K65-K66-K67-K68 -> -7780419.793
A71: 1 | B71: Tables in the format outlined above covering all fixed asset accounts should be submitted for the Test Year, Bridge Year and all relevant historical years. At a minimum , the applicant must provide data for the earlier of: 1) all historical years back to its last rebasing; or 2) at least three years of historical actuals, in addition to Bridge Year and Test Year forecasts.
A74: 2 | B74: The "CCA Class" for fixed assets should agree with the CCA Class used for tax purposes in Tax Returns. Fixed Assets sub-components may be used where the underlying asset components are classified under multiple CCA Classes for tax purposes. If an applicant uses any different classes from those shown in the table, an explanation should be provided. (also see note 3 below).
A77: 3 | B77: The table may need to be customized for a utility's asset categories or for any new asset accounts announced or authorized by the Board.
A79: 4 | B79: The additions column (E) must not include construction work in progress (CWIP).
A81: 5 | B81: Effective on the date of IFRS adoption, customer contributions will no longer be recorded in Account 1995 Contributions & Grants, but will be recorded in Account 2440, Deferred Revenues.
A83: 6 | B83: Where a distributor for general financial reporting purposes under IFRS has accounted for the amount of gain or loss on the retirement of assets in a pool of like assets as a charge or credit to income, for reporting and rate application filings the distributor shall reclassify such gains and losses as depreciation expense, and disclose the amount separately.

Sheet App.2-BA_FA_2014 MIFRS
L1: File Number: | M1: =EBNUMBER -> EB-2015-0108
L2: Exhibit: | M2: 2
L3: Tab:
L4: Schedule: | M4: Table 2-13
L5: Page: | M5: 29
L7: Date: | M7: 2015-05-01
A9: Appendix 2-BA
A10: Fixed Asset Continuity Schedule
E12: Accounting Standard | F12: MIFRS
E13: Year | F13: 2014
D15: Cost | J15: Accumulated Depreciation
A16: CCA Class | B16: OEB | C16: Description | D16: Opening Balance | E16: Additions | F16: Disposals | G16: Closing Balance | I16: Opening Balance | J16: Additions | K16: Disposals | L16: Closing Balance | M16: Net Book Value
A17: 12 | B17: 1611 | C17: Computer Software (Formally known as Account 1925) | D17: 5750347.82 | E17: 362001.57 | G17: =D17+E17+F17 -> 6112349.39 | I17: -4805142.57 | J17: -479831.354 | K17: 0 | L17: =I17+J17+K17 -> -5284973.924 | M17: =G17+L17 -> 827375.466
A18: CEC | B18: 1612 | C18: Land Rights (Formally known as Account 1906) | D18: 554118.71 | E18: 99901.84 | G18: =D18+E18+F18 -> 654020.55 | I18: 0 | J18: 0 | K18: 0 | L18: =I18+J18+K18 -> 0 | M18: =G18+L18 -> 654020.55
A19: N/A | B19: 1805 | C19: Land | D19: 2323796.46 | G19: =D19+E19+F19 -> 2323796.46 | I19: 0 | J19: 0 | K19: 0 | L19: =I19+J19+K19 -> 0 | M19: =G19+L19 -> 2323796.46
A20: 47 | B20: 1808 | C20: Buildings | D20: 29576671.99 | E20: 726501.78 | G20: =D20+E20+F20 -> 30303173.77 | I20: -2307307.73 | J20: -834771.5971 | K20: 0 | L20: =I20+J20+K20 -> -3142079.327 | M20: =G20+L20 -> 27161094.44
A21: 13 | B21: 1810 | C21: Leasehold Improvements | D21: 0 | G21: 0 | I21: 0 | J21: 0 | K21: 0 | L21: 0 | M21: 0
A22: 47 | B22: 1815 | C22: Transformer Station Equipment >50 kV | D22: 31761842.57 | E22: 194307.69 | G22: 31956150.26 | I22: -10778338.61 | J22: -1298964.696 | K22: 0 | L22: -12077303.31 | M22: 19878846.95
A23: 47 | B23: 1820 | C23: Distribution Station Equipment <50 kV | D23: 5237200.68 | E23: 160849.64 | G23: 5398050.32 | I23: -3408804.92 | J23: -165694.36 | K23: 0 | L23: -3574499.28 | M23: 1823551.04
A24: 47 | B24: 1825 | C24: Storage Battery Equipment | D24: 0 | G24: 0 | I24: 0 | J24: 0 | K24: 0 | L24: 0 | M24: 0
A25: 47 | B25: 1830 | C25: Poles, Towers & Fixtures | D25: 59877269.83 | E25: 4965069.21 | G25: 64842339.04 | I25: -23860496.72 | J25: -1056871.111 | K25: 0 | L25: -24917367.83 | M25: 39924971.21
A26: 47 | B26: 1835 | C26: Overhead Conductors & Devices | D26: 30474339.18 | E26: 4052486.39 | G26: 34526825.57 | I26: -9886764.67 | J26: -711784.3621 | K26: 0 | L26: -10598549.03 | M26: 23928276.54
A27: 47 | B27: 1840 | C27: Underground Conduit | D27: 16420348.83 | E27: 949493.25 | G27: 17369842.08 | I27: -7940245.07 | J27: -224523.835 | K27: 0 | L27: -8164768.905 | M27: 9205073.175
A28: 47 | B28: 1845 | C28: Underground Conductors & Devices | D28: 37299716.81 | E28: 1715848.97 | G28: 39015565.78 | I28: -18442990.27 | J28: -809521.9363 | K28: 0 | L28: -19252512.21 | M28: 19763053.57
A29: 47 | B29: 1850 | C29: Line Transformers | D29: 50942732.87 | E29: 2960653.38 | G29: 53903386.25 | I29: -22014116.07 | J29: -1005298.084 | K29: 0 | L29: -23019414.15 | M29: 30883972.1
A30: 47 | B30: 1855 | C30: Services (Overhead & Underground) | D30: 24084688.35 | E30: 1286256.44 | G30: 25370944.79 | I30: -12095070.71 | J30: -331589.1596 | K30: 0 | L30: -12426659.87 | M30: 12944284.92
A31: 47 | B31: 1860 | C31: Meters | D31: 12963520.08 | E31: 569727.62 | F31: -6652976.72 | G31: 6880270.98 | I31: -8460078.84 | J31: -77384.07061 | K31: 5287642 | L31: -3249820.911 | M31: 3630450.069
A32: 47 | B32: 1860 | C32: Meters (Smart Meters) | D32: 6265880 | G32: 6265880 | I32: -541656.2932 | J32: -541562.6621 | K32: 0 | L32: -1083218.955 | M32: 5182661.045
A33: N/A | B33: 1905 | C33: Land | D33: 0 | G33: 0 | I33: 0 | J33: 0 | K33: 0 | L33: 0 | M33: 0
A34: 47 | B34: 1908 | C34: Buildings & Fixtures | D34: 0 | G34: 0 | I34: 0 | J34: 0 | K34: 0 | L34: 0 | M34: 0
A35: 13 | B35: 1910 | C35: Leasehold Improvements | D35: 0 | G35: 0 | I35: 0 | J35: 0 | K35: 0 | L35: 0 | M35: 0
A36: 8 | B36: 1915 | C36: Office Furniture & Equipment (10 years) | D36: 1545307.29 | E36: 22322.39 | G36: 1567629.68 | I36: -800812.8 | J36: -109159.709 | K36: 0 | L36: -909972.509 | M36: 657657.171
A37: 8 | B37: 1915 | C37: Office Furniture & Equipment (5 years) | D37: 0 | G37: 0 | I37: 0 | J37: 0 | K37: 0 | L37: 0 | M37: 0
A38: 10 | B38: 1920 | C38: Computer Equipment - Hardware | G38: 0 | K38: 0 | L38: 0 | M38: 0
A39: 45 | B39: 1920 | C39: Computer Equip.-Hardware(Post Mar. 22/04) | D39: 0 | G39: 0 | I39: 0 | J39: 0 | K39: 0 | L39: 0 | M39: 0
A40: 45.1 | B40: 1920 | C40: Computer Equip.-Hardware(Post Mar. 19/07) | D40: 3928118.46 | E40: 127190.92 | G40: 4055309.38 | I40: -3543211.82 | J40: -178627.424 | K40: 0 | L40: -3721839.244 | M40: 333470.136
A41: 10 | B41: 1930 | C41: Transportation Equipment | D41: 8269742.27 | E41: 1032897.31 | F41: -446378.11 | G41: 8856261.47 | I41: -5482989.22 | J41: -484213.24 | K41: 439069 | L41: -5528133.46 | M41: 3328128.01
A42: 8 | B42: 1935 | C42: Stores Equipment | D42: 542505.82 | E42: 0 | G42: 542505.82 | I42: -240747.87 | J42: -46941.72 | K42: 0 | L42: -287689.59 | M42: 254816.23
A43: 8 | B43: 1940 | C43: Tools, Shop & Garage Equipment | D43: 1227699.76 | E43: 116661.44 | G43: 1344361.2 | I43: -869534.63 | J43: -143889.8268 | K43: 0 | L43: -1013424.457 | M43: 330936.7432
A44: 8 | B44: 1945 | C44: Measurement & Testing Equipment | D44: 896007.06 | E44: 36196.96 | G44: 932204.02 | I44: -719767.87 | J44: -52571.17429 | K44: 0 | L44: -772339.0443 | M44: 159864.9757
A45: 8 | B45: 1950 | C45: Power Operated Equipment | D45: 0 | G45: 0 | I45: 0 | J45: 0 | K45: 0 | L45: 0 | M45: 0
A46: 8 | B46: 1955 | C46: Communications Equipment | D46: 910489.33 | E46: 19273.64 | G46: 929762.97 | I46: -423612.18 | J46: -91386.404 | K46: 0 | L46: -514998.584 | M46: 414764.386
A47: 8 | B47: 1955 | C47: Communication Equipment (Smart Meters) | G47: 0 | K47: 0 | L47: 0 | M47: 0
A48: 8 | B48: 1960 | C48: Miscellaneous Equipment | D48: 2559176.213 | E48: 35224.04 | G48: 2594400.253 | I48: -1230403.46 | J48: -241511.394 | K48: 0 | L48: -1471914.854 | M48: 1122485.399
A49: 47 | B49: 1970 | C49: Load Management Controls Customer Premises | D49: 0 | G49: 0 | I49: 0 | J49: 0 | K49: 0 | L49: 0 | M49: 0
A50: 47 | B50: 1975 | C50: Load Management Controls Utility Premises | D50: 0 | G50: 0 | I50: 0 | J50: 0 | K50: 0 | L50: 0 | M50: 0
A51: 47 | B51: 1980 | C51: System Supervisor Equipment | D51: 4414517.34 | E51: 261141.42 | G51: 4675658.76 | I51: -2519465.57 | J51: -192294.798 | K51: 0 | L51: -2711760.368 | M51: 1963898.392
A52: 47 | B52: 1985 | C52: Miscellaneous Fixed Assets | D52: 0 | G52: 0 | I52: 0 | J52: 0 | K52: 0 | L52: 0 | M52: 0
A53: 47 | B53: 1990 | C53: Other Tangible Property | D53: 0 | G53: 0 | I53: 0 | J53: 0 | K53: 0 | L53: 0 | M53: 0
A54: 47 | B54: 1995 | C54: Contributions & Grants | D54: -31831420.2 | E54: -1593243.81 | G54: -33424664.01 | I54: 8967282.29 | J54: 780539.37 | K54: 0 | L54: 9747821.66 | M54: -23676842.35
A55: 47 | B55: 2440 | C55: Deferred Revenue5
G56: 0 | L56: 0 | M56: 0
C57: Sub-Total | D57: =SUM(D17:D56) -> 305994617.5 | E57: =SUM(E17:E56) -> 18100762.09 | F57: =SUM(F17:F56) -> -7099354.83 | G57: =SUM(G17:G56) -> 316996024.8 | I57: =SUM(I17:I56) -> -131404275.6 | J57: =SUM(J17:J56) -> -8297853.548 | K57: =SUM(K17:K56) -> 5726711 | L57: =SUM(L17:L56) -> -133975418.2 | M57: =SUM(M17:M56) -> 183020606.6
C58: Less Socialized Renewable Energy Generation Investments (input as negative) | G58: =D58+E58+F58 -> 0 | L58: =I58+J58+K58 -> 0 | M58: =G58+L58 -> 0
C59: Less Other Non Rate-Regulated Utility Assets (input as negative) | G59: 0 | L59: 0 | M59: 0
C60: Total PP&E | D60: =SUM(D57:D59) -> 305994617.5 | E60: =SUM(E57:E59) -> 18100762.09 | F60: -7099354.83 | G60: 316996024.8 | I60: =SUM(I57:I59) -> -131404275.6 | J60: -8297853.548 | K60: 5726711 | L60: -133975418.2 | M60: 183020606.6
C61: Depreciation Expense adj. from gain or loss on the retirement of assets (pool of like assets), if applicable6
C62: Total | J62: =J60+J61 -> -8297853.548
I64: Less: Fully Allocated Depreciation
A65: 10 | C65: Transportation | I65: Transportation | K65: -484213.24
A66: 10 | C66: Truck Tools | I66: Truck Tools | K66: -143889.8268
A67: 8 | C67: Stores Equipment | I67: Stores Equipment | K67: -46941.72
A68: 50 | C68: Engineering
I69: Net Depreciation | K69: =J62-K65-K66-K67-K68 -> -7622808.761
A71: 1 | B71: Tables in the format outlined above covering all fixed asset accounts should be submitted for the Test Year, Bridge Year and all relevant historical years. At a minimum , the applicant must provide data for the earlier of: 1) all historical years back to its last rebasing; or 2) at least three years of historical actuals, in addition to Bridge Year and Test Year forecasts.
A74: 2 | B74: The "CCA Class" for fixed assets should agree with the CCA Class used for tax purposes in Tax Returns. Fixed Assets sub-components may be used where the underlying asset components are classified under multiple CCA Classes for tax purposes. If an applicant uses any different classes from those shown in the table, an explanation should be provided. (also see note 3 below).
A77: 3 | B77: The table may need to be customized for a utility's asset categories or for any new asset accounts announced or authorized by the Board.
A79: 4 | B79: The additions column (E) must not include construction work in progress (CWIP).
A81: 5 | B81: Effective on the date of IFRS adoption, customer contributions will no longer be recorded in Account 1995 Contributions & Grants, but will be recorded in Account 2440, Deferred Revenues.
A83: 6 | B83: Where a distributor for general financial reporting purposes under IFRS has accounted for the amount of gain or loss on the retirement of assets in a pool of like assets as a charge or credit to income, for reporting and rate application filings the distributor shall reclassify such gains and losses as depreciation expense, and disclose the amount separately.

Sheet App.2-BA_FA_2015_MIFRS
L1: File Number: | M1: =EBNUMBER -> EB-2015-0108
L2: Exhibit: | M2: 2
L3: Tab:
L4: Schedule: | M4: Table 2-17
L5: Page: | M5: 30
L7: Date: | M7: 2015-05-01
A9: Appendix 2-BA
A10: Fixed Asset Continuity Schedule
E12: Accounting Standard | F12: MIFRS
E13: Year | F13: 2015
D15: Cost | J15: Accumulated Depreciation
A16: CCA Class | B16: OEB | C16: Description | D16: Opening Balance | E16: Additions | F16: Disposals | G16: Closing Balance | I16: Opening Balance | J16: Additions | K16: Disposals | L16: Closing Balance | M16: Net Book Value
A17: 12 | B17: 1611 | C17: Computer Software (Formally known as Account 1925) | D17: 6112349.39 | E17: 711366 | G17: =D17+E17+F17 -> 6823715.39 | I17: -5284973.924 | J17: -508875.144 | L17: =I17+J17+K17 -> -5793849.068 | M17: =G17+L17 -> 1029866.322
A18: CEC | B18: 1612 | C18: Land Rights (Formally known as Account 1906) | D18: 654020.55 | E18: 43159 | G18: =D18+E18+F18 -> 697179.55 | I18: 0 | J18: 0 | L18: =I18+J18+K18 -> 0 | M18: =G18+L18 -> 697179.55
A19: N/A | B19: 1805 | C19: Land | D19: 2323796.46 | G19: =D19+E19+F19 -> 2323796.46 | I19: 0 | J19: 0 | L19: =I19+J19+K19 -> 0 | M19: =G19+L19 -> 2323796.46
A20: 47 | B20: 1808 | C20: Buildings | D20: 30303173.77 | E20: 154039 | G20: =D20+E20+F20 -> 30457212.77 | I20: -3142079.327 | J20: -841279.7571 | L20: =I20+J20+K20 -> -3983359.084 | M20: =G20+L20 -> 26473853.69
A21: 13 | B21: 1810 | C21: Leasehold Improvements | D21: 0 | G21: 0 | I21: 0 | J21: 0 | L21: 0 | M21: 0
A22: 47 | B22: 1815 | C22: Transformer Station Equipment >50 kV | D22: 31956150.26 | E22: 703597.56 | G22: 32659747.82 | I22: -12077303.31 | J22: -1319242.986 | L22: -13396546.29 | M22: 19263201.53
A23: 47 | B23: 1820 | C23: Distribution Station Equipment <50 kV | D23: 5597083.32 | G23: 5597083.32 | I23: -3574499.28 | J23: -135822.8663 | L23: -3710322.146 | M23: 1886761.174
A24: 47 | B24: 1825 | C24: Storage Battery Equipment | D24: 0 | G24: 0 | I24: 0 | J24: 0 | L24: 0 | M24: 0
A25: 47 | B25: 1830 | C25: Poles, Towers & Fixtures | D25: 64842339.04 | E25: 3813057.338 | G25: 68655396.38 | I25: -24917367.83 | J25: -1141605.479 | L25: -26058973.31 | M25: 42596423.07
A26: 47 | B26: 1835 | C26: Overhead Conductors & Devices | D26: 34526825.57 | E26: 3582646.301 | G26: 38109471.87 | I26: -10598549.03 | J26: -843465.9121 | L26: -11442014.94 | M26: 26667456.93
A27: 47 | B27: 1840 | C27: Underground Conduit | D27: 17369842.08 | E27: 1418703.254 | G27: 18788545.33 | I27: -8164768.905 | J27: -252897.9001 | L27: -8417666.805 | M27: 10370878.53
A28: 47 | B28: 1845 | C28: Underground Conductors & Devices | D28: 39015565.78 | E28: 3989900.358 | G28: 43005466.14 | I28: -19252512.21 | J28: -913797.1394 | L28: -20166309.35 | M28: 22839156.79
A29: 47 | B29: 1850 | C29: Line Transformers | D29: 53903386.25 | E29: 3696020.629 | G29: 57599406.88 | I29: -23019414.15 | J29: -1097078.18 | L29: -24116492.33 | M29: 33482914.55
A30: 47 | B30: 1855 | C30: Services (Overhead & Underground) | D30: 25370944.79 | E30: 1038588.049 | G30: 26409532.84 | I30: -12426659.87 | J30: -353255.569 | L30: -12779915.44 | M30: 13629617.4
A31: 47 | B31: 1860 | C31: Meters | D31: 6681237.98 | E31: 662062 | G31: 7343299.98 | I31: -3249820.911 | J31: -293458.8327 | L31: -3543279.743 | M31: 3800020.237
A32: 47 | B32: 1860 | C32: Meters (Smart Meters) | D32: 6265880 | G32: 6265880 | I32: -1083218.955 | J32: -541562.6621 | L32: -1624781.617 | M32: 4641098.383
A33: N/A | B33: 1905 | C33: Land | D33: 0 | G33: 0 | I33: 0 | J33: 0 | L33: 0 | M33: 0
A34: 47 | B34: 1908 | C34: Buildings & Fixtures | D34: 0 | G34: 0 | I34: 0 | J34: 0 | L34: 0 | M34: 0
A35: 13 | B35: 1910 | C35: Leasehold Improvements | D35: 0 | G35: 0 | I35: 0 | J35: 0 | L35: 0 | M35: 0
A36: 8 | B36: 1915 | C36: Office Furniture & Equipment (10 years) | D36: 1567629.68 | E36: 9500 | G36: 1577129.68 | I36: -909972.509 | J36: -106607.239 | L36: -1016579.748 | M36: 560549.932
A37: 8 | B37: 1915 | C37: Office Furniture & Equipment (5 years) | D37: 0 | G37: 0 | I37: 0 | J37: 0 | L37: 0 | M37: 0
A38: 10 | B38: 1920 | C38: Computer Equipment - Hardware | G38: 0 | L38: 0 | M38: 0
A39: 45 | B39: 1920 | C39: Computer Equip.-Hardware(Post Mar. 22/04) | D39: 0 | G39: 0 | I39: 0 | J39: 0 | L39: 0 | M39: 0
A40: 45.1 | B40: 1920 | C40: Computer Equip.-Hardware(Post Mar. 19/07) | D40: 4055309.38 | E40: 179480 | G40: 4234789.38 | I40: -3721839.244 | J40: -195521.894 | L40: -3917361.138 | M40: 317428.242
A41: 10 | B41: 1930 | C41: Transportation Equipment | D41: 8856261.47 | E41: 912044 | F41: -642135 | G41: 9126170.47 | I41: -5528133.46 | J41: -568908.9691 | K41: 624772 | L41: -5472270.429 | M41: 3653900.041
A42: 8 | B42: 1935 | C42: Stores Equipment | D42: 542505.82 | G42: 542505.82 | I42: -287689.59 | J42: -46941.72 | L42: -334631.31 | M42: 207874.51
A43: 8 | B43: 1940 | C43: Tools, Shop & Garage Equipment | D43: 1344361.2 | E43: 103000 | G43: 1447361.2 | I43: -1013424.457 | J43: -117946.7048 | L43: -1131371.161 | M43: 315990.0385
A44: 8 | B44: 1945 | C44: Measurement & Testing Equipment | D44: 932204.02 | E44: 14000 | G44: 946204.02 | I44: -772339.0443 | J44: -51054.81429 | L44: -823393.8586 | M44: 122810.1614
A45: 8 | B45: 1950 | C45: Power Operated Equipment | D45: 0 | G45: 0 | I45: 0 | J45: 0 | L45: 0 | M45: 0
A46: 8 | B46: 1955 | C46: Communications Equipment | D46: 929762.97 | E46: 14500 | G46: 944262.97 | I46: -514998.584 | J46: -92836.524 | L46: -607835.108 | M46: 336427.862
A47: 8 | B47: 1955 | C47: Communication Equipment (Smart Meters) | D47: 0 | G47: 0 | I47: 0 | J47: 0 | L47: 0 | M47: 0
A48: 8 | B48: 1960 | C48: Miscellaneous Equipment | D48: 2594400.253 | E48: 31500 | G48: 2625900.253 | I48: -1471914.854 | J48: -241909.604 | L48: -1713824.458 | M48: 912075.795
A49: 47 | B49: 1970 | C49: Load Management Controls Customer Premises | D49: 0 | G49: 0 | I49: 0 | J49: 0 | L49: 0 | M49: 0
A50: 47 | B50: 1975 | C50: Load Management Controls Utility Premises | D50: 0 | G50: 0 | I50: 0 | J50: 0 | L50: 0 | M50: 0
A51: 47 | B51: 1980 | C51: System Supervisor Equipment | D51: 4675658.76 | E51: 231447.85 | G51: 4907106.61 | I51: -2711760.368 | J51: -207645.6347 | L51: -2919406.003 | M51: 1987700.607
A52: 47 | B52: 1985 | C52: Miscellaneous Fixed Assets | D52: 0 | G52: 0 | I52: 0 | L52: 0 | M52: 0
A53: 47 | B53: 1990 | C53: Other Tangible Property | D53: 0 | G53: 0 | I53: 0 | L53: 0 | M53: 0
A54: 47 | B54: 1995 | C54: Contributions & Grants | D54: -33424664.01 | G54: -33424664.01 | I54: 9747821.66 | J54: 779728.4783 | L54: 10527550.14 | M54: -22897113.87
A55: 47 | B55: 2440 | C55: Deferred Revenue5 | E55: -4914818 | G55: -4914818 | J55: 125576.5406 | L55: =I55+J55+K55 -> 125576.5406 | M55: =G55+L55 -> -4789241.459
G56: 0 | L56: 0 | M56: 0
C57: Sub-Total | D57: =SUM(D17:D56) -> 316996024.8 | E57: =SUM(E17:E56) -> 16393793.34 | F57: =SUM(F17:F56) -> -642135 | G57: =SUM(G17:G56) -> 332747683.1 | I57: =SUM(I17:I56) -> -133975418.2 | J57: =SUM(J17:J56) -> -8966410.513 | K57: =SUM(K17:K56) -> 624772 | L57: =SUM(L17:L56) -> -142317056.7 | M57: =SUM(M17:M56) -> 190430626.5
C58: Less Socialized Renewable Energy Generation Investments (input as negative) | G58: =D58+E58+F58 -> 0 | L58: =I58+J58+K58 -> 0 | M58: =G58+L58 -> 0
C59: Less Other Non Rate-Regulated Utility Assets (input as negative) | G59: 0 | L59: 0 | M59: 0
C60: Total PP&E | D60: =SUM(D57:D59) -> 316996024.8 | E60: =SUM(E57:E59) -> 16393793.34 | F60: -642135 | G60: 332747683.1 | I60: =SUM(I57:I59) -> -133975418.2 | J60: -8966410.513 | K60: 624772 | L60: -142317056.7 | M60: 190430626.5
C61: Depreciation Expense adj. from gain or loss on the retirement of assets (pool of like assets), if applicable6
C62: Total | J62: =J60+J61 -> -8966410.513
I64: Less: Fully Allocated Depreciation
A65: 10 | C65: Transportation | I65: Transportation | K65: -568908.9691
A66: 10 | C66: Truck Tools | I66: Truck Tools | K66: -117946.7048
A67: 8 | C67: Stores Equipment | I67: Stores Equipment | K67: -46941.72
A68: 50 | C68: Engineering
I69: Net Depreciation | K69: =J62-K65-K66-K67-K68 -> -8232613.119
A71: 1 | B71: Tables in the format outlined above covering all fixed asset accounts should be submitted for the Test Year, Bridge Year and all relevant historical years. At a minimum , the applicant must provide data for the earlier of: 1) all historical years back to its last rebasing; or 2) at least three years of historical actuals, in addition to Bridge Year and Test Year forecasts.
A74: 2 | B74: The "CCA Class" for fixed assets should agree with the CCA Class used for tax purposes in Tax Returns. Fixed Assets sub-components may be used where the underlying asset components are classified under multiple CCA Classes for tax purposes. If an applicant uses any different classes from those shown in the table, an explanation should be provided. (also see note 3 below).
A77: 3 | B77: The table may need to be customized for a utility's asset categories or for any new asset accounts announced or authorized by the Board.
A79: 4 | B79: The additions column (E) must not include construction work in progress (CWIP).
A81: 5 | B81: Effective on the date of IFRS adoption, customer contributions will no longer be recorded in Account 1995 Contributions & Grants, but will be recorded in Account 2440, Deferred Revenues.
A83: 6 | B83: Where a distributor for general financial reporting purposes under IFRS has accounted for the amount of gain or loss on the retirement of assets in a pool of like assets as a charge or credit to income, for reporting and rate application filings the distributor shall reclassify such gains and losses as depreciation expense, and disclose the amount separately.

Sheet App.2-BA_FA_2016 MIFRS
L1: File Number: | M1: =EBNUMBER -> EB-2015-0108
L2: Exhibit: | M2: 2
L3: Tab:
L4: Schedule: | M4: Table 2-18
L5: Page: | M5: 31
L7: Date: | M7: 2015-05-01
A9: Appendix 2-BA
A10: Fixed Asset Continuity Schedule
E12: Accounting Standard | F12: MIFRS
E13: Year | F13: 2016
D15: Cost | J15: Accumulated Depreciation
A16: CCA Class | B16: OEB | C16: Description | D16: Opening Balance | E16: Additions | F16: Disposals | G16: Closing Balance | I16: Opening Balance | J16: Additions | K16: Disposals | L16: Closing Balance | M16: Net Book Value
A17: 12 | B17: 1611 | C17: Computer Software (Formally known as Account 1925) | D17: 6823715.39 | E17: 871760 | G17: =D17+E17+F17 -> 7695475.39 | I17: -5793849.068 | J17: -476948.114 | L17: =I17+J17+K17 -> -6270797.182 | M17: =G17+L17 -> 1424678.208
A18: CEC | B18: 1612 | C18: Land Rights (Formally known as Account 1906) | D18: 697179.55 | E18: 43259 | G18: =D18+E18+F18 -> 740438.55 | I18: 0 | J18: 0 | L18: =I18+J18+K18 -> 0 | M18: =G18+L18 -> 740438.55
A19: N/A | B19: 1805 | C19: Land | D19: 2323796.46 | G19: =D19+E19+F19 -> 2323796.46 | I19: 0 | J19: 0 | L19: =I19+J19+K19 -> 0 | M19: =G19+L19 -> 2323796.46
A20: 47 | B20: 1808 | C20: Buildings | D20: 30457213.14 | E20: 128050 | G20: =D20+E20+F20 -> 30585263.14 | I20: -3983359.084 | J20: -844031.4238 | L20: =I20+J20+K20 -> -4827390.508 | M20: =G20+L20 -> 25757872.63
A21: 13 | B21: 1810 | C21: Leasehold Improvements | G21: 0 | I21: 0 | J21: 0 | L21: 0 | M21: 0
A22: 47 | B22: 1815 | C22: Transformer Station Equipment >50 kV | D22: 32659747.82 | E22: 516518 | G22: 33176265.82 | I22: -13396546.29 | J22: -1138051.403 | L22: -14534597.7 | M22: 18641668.13
A23: 47 | B23: 1820 | C23: Distribution Station Equipment <50 kV | D23: 5597083.32 | E23: 94587 | G23: 5691670.32 | I23: -3710322.146 | J23: -137509.8463 | L23: -3847831.993 | M23: 1843838.327
A24: 47 | B24: 1825 | C24: Storage Battery Equipment | G24: 0 | I24: 0 | J24: 0 | L24: 0 | M24: 0
A25: 47 | B25: 1830 | C25: Poles, Towers & Fixtures | D25: 68655396.38 | E25: 3732213.05 | G25: 72387609.43 | I25: -26058973.31 | J25: -1183074.513 | L25: -27242047.82 | M25: 45145561.61
A26: 47 | B26: 1835 | C26: Overhead Conductors & Devices | D26: 38109471.87 | E26: 3640322.73 | G26: 41749794.6 | I26: -11442014.94 | J26: -908507.6814 | L26: -12350522.63 | M26: 29399271.98
A27: 47 | B27: 1840 | C27: Underground Conduit | D27: 18788545.33 | E27: 905771.88 | G27: 19694317.21 | I27: -8417666.805 | J27: -261955.6189 | L27: -8679622.424 | M27: 11014694.79
A28: 47 | B28: 1845 | C28: Underground Conductors & Devices | D28: 43005466.14 | E28: 2460395.33 | G28: 45465861.47 | I28: -20166309.35 | J28: -942674.8041 | L28: -21108984.15 | M28: 24356877.32
A29: 47 | B29: 1850 | C29: Line Transformers | D29: 57599406.88 | E29: 3872424.95 | G29: 61471831.83 | I29: -24116492.33 | J29: -1145178.57 | L29: -25261670.9 | M29: 36210160.92
A30: 47 | B30: 1855 | C30: Services (Overhead & Underground) | D30: 26409532.84 | E30: 1044553.46 | G30: 27454086.3 | I30: -12779915.44 | J30: -364147.096 | L30: -13144062.53 | M30: 14310023.76
A31: 47 | B31: 1860 | C31: Meters | D31: 7343299.98 | E31: 644366.6 | G31: 7987666.58 | I31: -3543279.743 | J31: -314831.7193 | L31: -3858111.463 | M31: 4129555.117
A32: 47 | B32: 1860 | C32: Meters (Smart Meters) | D32: 6265880 | G32: 6265880 | I32: -1624781.617 | J32: -541668.84 | L32: -2166450.457 | M32: 4099429.543
A33: N/A | B33: 1905 | C33: Land | G33: 0 | I33: 0 | J33: 0 | L33: 0 | M33: 0
A34: 47 | B34: 1908 | C34: Buildings & Fixtures | G34: 0 | I34: 0 | J34: 0 | L34: 0 | M34: 0
A35: 13 | B35: 1910 | C35: Leasehold Improvements | G35: 0 | I35: 0 | J35: 0 | L35: 0 | M35: 0
A36: 8 | B36: 1915 | C36: Office Furniture & Equipment (10 years) | D36: 1577129.68 | E36: 7000 | G36: 1584129.68 | I36: -1016579.748 | J36: -106956.679 | L36: -1123536.427 | M36: 460593.253
A37: 8 | B37: 1915 | C37: Office Furniture & Equipment (5 years) | G37: 0 | I37: 0 | J37: 0 | L37: 0 | M37: 0
A38: 10 | B38: 1920 | C38: Computer Equipment - Hardware | G38: 0 | L38: 0 | M38: 0
A39: 45 | B39: 1920 | C39: Computer Equip.-Hardware(Post Mar. 22/04) | G39: 0 | I39: 0 | J39: 0 | L39: 0 | M39: 0
A40: 45.1 | B40: 1920 | C40: Computer Equip.-Hardware(Post Mar. 19/07) | D40: 4234789.38 | E40: 108650 | G40: 4343439.38 | I40: -3917361.138 | J40: -132135.574 | L40: -4049496.712 | M40: 293942.668
A41: 10 | B41: 1930 | C41: Transportation Equipment | D41: 9126170.47 | E41: 619409 | F41: -316071 | G41: 9429508.47 | I41: -5472270.429 | J41: -589153.5208 | K41: 305084 | L41: -5756339.95 | M41: 3673168.52
A42: 8 | B42: 1935 | C42: Stores Equipment | D42: 542505.82 | G42: 542505.82 | I42: -334631.31 | J42: -46941.72 | L42: -381573.03 | M42: 160932.79
A43: 8 | B43: 1940 | C43: Tools, Shop & Garage Equipment | D43: 1447361.2 | E43: 77000 | G43: 1524361.2 | I43: -1131371.161 | J43: -117918.5267 | L43: -1249289.688 | M43: 275071.5117
A44: 8 | B44: 1945 | C44: Measurement & Testing Equipment | D44: 946204.02 | E44: 15000 | G44: 961204.02 | I44: -823393.8586 | J44: -45677.16286 | L44: -869071.0214 | M44: 92132.99857
A45: 8 | B45: 1950 | C45: Power Operated Equipment | G45: 0 | I45: 0 | J45: 0 | L45: 0 | M45: 0
A46: 8 | B46: 1955 | C46: Communications Equipment | D46: 944262.97 | G46: 944262.97 | I46: -607835.108 | J46: -92367.824 | L46: -700202.932 | M46: 244060.038
A47: 8 | B47: 1955 | C47: Communication Equipment (Smart Meters) | G47: 0 | I47: 0 | J47: 0 | L47: 0 | M47: 0
A48: 8 | B48: 1960 | C48: Miscellaneous Equipment | D48: 2625900.253 | E48: 32000 | G48: 2657900.253 | I48: -1713824.458 | J48: -243392.504 | L48: -1957216.962 | M48: 700683.291
A49: 47 | B49: 1970 | C49: Load Management Controls Customer Premises | G49: 0 | I49: 0 | J49: 0 | L49: 0 | M49: 0
A50: 47 | B50: 1975 | C50: Load Management Controls Utility Premises | G50: 0 | I50: 0 | J50: 0 | L50: 0 | M50: 0
A51: 47 | B51: 1980 | C51: System Supervisor Equipment | D51: 4907106.61 | E51: 265636 | G51: 5172742.61 | I51: -2919406.003 | J51: -206446.508 | L51: -3125852.511 | M51: 2046890.099
A52: 47 | B52: 1985 | C52: Miscellaneous Fixed Assets | G52: 0 | I52: 0 | J52: 0 | L52: 0 | M52: 0
A53: 47 | B53: 1990 | C53: Other Tangible Property | G53: 0 | I53: 0 | J53: 0 | L53: 0 | M53: 0
A54: 47 | B54: 1995 | C54: Contributions & Grants | D54: -33424664.01 | G54: -33424664.01 | I54: 10527550.14 | J54: 778853.0606 | L54: 11306403.2 | M54: -22118260.81
A55: 47 | B55: 2440 | C55: Deferred Revenue5 | D55: -4914818 | E55: -2289738 | G55: -7204556 | I55: 125576.5406 | J55: 155030.7832 | L55: =I55+J55+K55 -> 280607.3238 | M55: =G55+L55 -> -6923948.676
G56: 0 | L56: 0 | M56: 0
C57: Sub-Total | D57: =SUM(D17:D56) -> 332747683.5 | E57: =SUM(E17:E56) -> 16789179 | F57: =SUM(F17:F56) -> -316071 | G57: =SUM(G17:G56) -> 349220791.5 | I57: =SUM(I17:I56) -> -142317056.7 | J57: =SUM(J17:J56) -> -8905685.805 | K57: =SUM(K17:K56) -> 305084 | L57: =SUM(L17:L56) -> -150917658.5 | M57: =SUM(M17:M56) -> 198303133
C58: Less Socialized Renewable Energy Generation Investments (input as negative) | G58: =D58+E58+F58 -> 0 | L58: =I58+J58+K58 -> 0 | M58: =G58+L58 -> 0
C59: Less Other Non Rate-Regulated Utility Assets (input as negative) | G59: 0 | L59: 0 | M59: 0
C60: Total PP&E | D60: =SUM(D57:D59) -> 332747683.5 | E60: =SUM(E57:E59) -> 16789179 | F60: -316071 | G60: 349220791.5 | I60: =SUM(I57:I59) -> -142317056.7 | J60: -8905685.805 | K60: 305084 | L60: -150917658.5 | M60: 198303133
C61: Depreciation Expense adj. from gain or loss on the retirement of assets (pool of like assets), if applicable6
C62: Total | J62: =J60+J61 -> -8905685.805
I64: Less: Fully Allocated Depreciation
A65: 10 | C65: Transportation | I65: Transportation | K65: -589153.5208
A66: 10 | C66: Truck Tools | I66: Truck Tools | K66: -117918.5268
A67: 8 | C67: Stores Equipment | I67: Stores Equipment | K67: -46941.72
A68: 50 | C68: Engineering
I69: Net Depreciation | K69: =J62-K65-K66-K67-K68 -> -8151672.038
A71: 1 | B71: Tables in the format outlined above covering all fixed asset accounts should be submitted for the Test Year, Bridge Year and all relevant historical years. At a minimum , the applicant must provide data for the earlier of: 1) all historical years back to its last rebasing; or 2) at least three years of historical actuals, in addition to Bridge Year and Test Year forecasts.
A74: 2 | B74: The "CCA Class" for fixed assets should agree with the CCA Class used for tax purposes in Tax Returns. Fixed Assets sub-components may be used where the underlying asset components are classified under multiple CCA Classes for tax purposes. If an applicant uses any different classes from those shown in the table, an explanation should be provided. (also see note 3 below).
A77: 3 | B77: The table may need to be customized for a utility's asset categories or for any new asset accounts announced or authorized by the Board.
A79: 4 | B79: The additions column (E) must not include construction work in progress (CWIP).
A81: 5 | B81: Effective on the date of IFRS adoption, customer contributions will no longer be recorded in Account 1995 Contributions & Grants, but will be recorded in Account 2440, Deferred Revenues.
A83: 6 | B83: Where a distributor for general financial reporting purposes under IFRS has accounted for the amount of gain or loss on the retirement of assets in a pool of like assets as a charge or credit to income, for reporting and rate application filings the distributor shall reclassify such gains and losses as depreciation expense, and disclose the amount separately.

Sheet Appendix 2-BB Service Life
M1: File Number: | O1: EB-2015-0108
M2: Exhibit: | O2: 4
M3: Tab:
M4: Schedule: | O4: Table 4-46
M5: Page: | O5: 91/92
M7: Date: | O7: 2015-05-01
A9: Appendix 2-BB
A10: Service Life Comparison
A12: Table F-1 from Kinetrics Report1
C13: Asset Details | F13: Useful Life | J13: USoA Account Number | K13: USoA Account Description | L13: Current | N13: Proposed | P13: Outside Range of Min, Max TUL?
A14: Parent* | B14: # | C14: Category| Component | Type | F14: MIN UL | G14: TUL | H14: MAX UL | L14: Years | M14: Rate | N14: Years | O14: Rate | P14: Below Min TUL | Q14: Above Max TUL
A15: OH | B15: 1 | C15: Fully Dressed Wood Poles | D15: Overall | F15: 35 | G15: 45 | H15: 75 | J15: 1830 | K15: Poles, Towers and Fixtures | L15: 45 | M15: 0.02222222222 | N15: 45 | O15: 0.02222222222 | P15: No | Q15: No
D16: Cross Arm | E16: Wood | F16: 20 | G16: 40 | H16: 55
E17: Steel | F17: 30 | G17: 70 | H17: 95
B18: 2 | C18: Fully Dressed Concrete Poles | D18: Overall | F18: 50 | G18: 60 | H18: 80
D19: Cross Arm | E19: Wood | F19: 20 | G19: 40 | H19: 55
E20: Steel | F20: 30 | G20: 70 | H20: 95
B21: 3 | C21: Fully Dressed Steel Poles | D21: Overall | F21: 60 | G21: 60 | H21: 80
D22: Cross Arm | E22: Wood | F22: 20 | G22: 40 | H22: 55
E23: Steel | F23: 30 | G23: 70 | H23: 95
B24: 4 | C24: OH Line Switch | F24: 30 | G24: 45 | H24: 55 | J24: 1835 | K24: OH Conductor & Devices | L24: 30 | M24: 0.03333333333 | N24: 30 | O24: 0.03333333333 | P24: No | Q24: No
B25: 5 | C25: OH Line Switch Motor | F25: 15 | G25: 25 | H25: 25
B26: 6 | C26: OH Line Switch RTU | F26: 15 | G26: 20 | H26: 20 | J26: 1835 | K26: OH Conductor & Devices | L26: 15 | M26: 0.06666666667 | N26: 15 | O26: 0.06666666667 | P26: No | Q26: No
B27: 7 | C27: OH Integral Switches | F27: 35 | G27: 45 | H27: 60
B28: 8 | C28: OH Conductors | F28: 50 | G28: 60 | H28: 75 | J28: 1835 | K28: OH Conductor & Devices | L28: 45 | M28: 0.02222222222 | N28: 45 | O28: 0.02222222222 | P28: Yes | Q28: No
B29: 9 | C29: OH Transformers & Voltage Regulators | F29: 30 | G29: 40 | H29: 60 | J29: 1850 | K29: Line Transformers | L29: 45 | M29: 0.02222222222 | N29: 45 | O29: 0.02222222222 | P29: No | Q29: No
B30: 10 | C30: OH Shunt Capacitor Banks | F30: 25 | G30: 30 | H30: 40 | J30: 1830 | K30: Poles, Towers and Fixtures | L30: 25 | M30: 0.04 | N30: 25 | O30: 0.04 | P30: No | Q30: No
C31: OH Services | F31: no guideline | J31: 1855 | K31: Services | L31: 45 | M31: 0.02222222222 | N31: 45 | O31: 0.02222222222 | P31: no guideline
B32: 11 | C32: Reclosers | F32: 25 | G32: 40 | H32: 55
A33: TS & MS | B33: 12 | C33: Power Transformers | D33: Overall | F33: 30 | G33: 45 | H33: 60 | J33: 1815 | K33: Transformer Station Equipment | L33: 50 | M33: 0.02 | N33: 50 | O33: 0.02 | P33: No | Q33: No
D34: Bushing | F34: 10 | G34: 20 | H34: 30
D35: Tap Changer | F35: 20 | G35: 30 | H35: 60
B36: 13 | C36: Station Service Transformer | F36: 30 | G36: 45 | H36: 55
B37: 14 | C37: Station Grounding Transformer | F37: 30 | G37: 40 | H37: 40
B38: 15 | C38: Station DC System | D38: Overall | F38: 10 | G38: 20 | H38: 30
D39: Battery Bank | F39: 10 | G39: 15 | H39: 15
D40: Charger | F40: 20 | G40: 20 | H40: 30
C41: MS / DS Equipment | F41: 30 | G41: 40 | H41: 60 | J41: 1820 | K41: Distribution Station Equipment | L41: 30 | M41: 0.03333333333 | N41: 30 | O41: 0.03333333333 | P41: No | Q41: No
B42: 16 | C42: Station Metal Clad Switchgear | D42: Overall | F42: 30 | G42: 40 | H42: 60
D43: Removable Breaker | F43: 25 | G43: 40 | H43: 60
B44: 17 | C44: Station Independent Breakers | F44: 35 | G44: 45 | H44: 65
C45: Auxiliary Equipment | F45: 30 | G45: 50 | H45: 60 | J45: 1815 | K45: Transformer Station Equipment | L45: 30 | M45: 0.03333333333 | N45: 30 | O45: 0.03333333333 | P45: No | Q45: No
B46: 19 | C46: Electromechanical Relays | F46: 25 | G46: 35 | H46: 50
B47: 20 | C47: Solid State Relays | F47: 10 | G47: 30 | H47: 45
C48: P&C Equipment - Electronic | F48: 15 | G48: 20 | H48: 20 | J48: 1815 | K48: Transformer Station Equipment | L48: 15 | M48: 0.06666666667 | N48: 15 | O48: 0.06666666667 | P48: No | Q48: No
B49: 22 | C49: Rigid Busbars | F49: 30 | G49: 55 | H49: 60
B50: 23 | C50: Steel Structure | F50: 35 | G50: 50 | H50: 90
A51: UG | B51: 24 | C51: Primary Paper Insulated Lead Covered (PILC) Cables | F51: 60 | G51: 65 | H51: 75
B52: 25 | C52: Primary Ethylene-Propylene Rubber (EPR) Cables | F52: 20 | G52: 25 | H52: 25
B53: 26 | C53: Primary Non-Tree Retardant (TR) Cross Linked Polyethylene (XLPE) Cables Direct Buried | F53: 20 | G53: 25 | H53: 30
B54: 27 | C54: Primary Non-TR XLPE Cables in Duct | F54: 20 | G54: 25 | H54: 30
B55: 29 | C55: Primary TR XLPE Cables in Duct | F55: 35 | G55: 40 | H55: 55 | J55: 1845 | K55: Underground Conductor & Devices | L55: 35 | M55: 0.02857142857 | N55: 35 | O55: 0.02857142857 | P55: No | Q55: No
B56: 30 | C56: Secondary PILC Cables | F56: 70 | G56: 75 | H56: 80
B57: 31 | C57: Secondary Cables Direct Buried | F57: 25 | G57: 35 | H57: 40
B58: 32 | C58: Secondary Cables in Duct | F58: 35 | G58: 40 | H58: 60 | J58: 1855 | K58: Services | L58: 50 | M58: 0.02 | N58: 50 | O58: 0.02 | P58: No | Q58: No
B59: 33 | C59: Network Tranformers | D59: Overall | F59: 20 | G59: 35 | H59: 50
D60: Protector | F60: 20 | G60: 35 | H60: 40
B61: 34 | C61: Pad-Mounted Transformers | F61: 25 | G61: 40 | H61: 45 | J61: 1850 | K61: Line Transformers | L61: 35 | M61: 0.02857142857 | N61: 35 | O61: 0.02857142857 | P61: No | Q61: No
B62: 35 | C62: Submersible/Vault Transformers | F62: 25 | G62: 35 | H62: 45 | J62: 1850 | K62: Line Transformers | L62: 35 | M62: 0.02857142857 | N62: 35 | O62: 0.02857142857 | P62: No | Q62: No
B63: 36 | C63: UG Foundation | F63: 35 | G63: 55 | H63: 70
B64: 37 | C64: UG Vaults | D64: Overall | F64: 40 | G64: 60 | H64: 80
D65: Roof | F65: 20 | G65: 30 | H65: 45
B66: 38 | C66: UG Vault Switches | F66: 20 | G66: 35 | H66: 50
B67: 39 | C67: Pad-Mounted Switchgear | F67: 20 | G67: 30 | H67: 45
B68: 40 | C68: Ducts | F68: 30 | G68: 50 | H68: 85 | J68: 1840 | K68: Underground Conduit | L68: 50 | M68: 0.02 | N68: 50 | O68: 0.02 | P68: No | Q68: No
B69: 41 | C69: Concrete Encased Duct Banks | F69: 35 | G69: 55 | H69: 80
B70: 42 | C70: Cable Chambers | F70: 50 | G70: 60 | H70: 80
A71: S | B71: 43 | C71: Remote SCADA | F71: 15 | G71: 20 | H71: 30 | J71: 1980 | K71: System Supervisory Equipment | L71: 15 | M71: 0.06666666667 | N71: 15 | O71: 0.06666666667 | P71: No | Q71: No
A74: Table F-2 from Kinetrics Report1
C75: Asset Details | F75: Useful Life Range | J75: USoA Account Number | K75: USoA Account Description | L75: Current | N75: Proposed | P75: Outside Range of Min, Max TUL?
B76: # | C76: Category| Component | Type | L76: Years | M76: Rate | N76: Years | O76: Rate | P76: Below Min Range | Q76: Above Max Range
B77: 1 | C77: Office Equipment | F77: 5 | G77: 15 | J77: 1915 | K77: Office Furniture and Equipment | L77: 5 | M77: 0.2 | N77: 5 | O77: 0.2 | P77: No | Q77: No
C78: Office Furniture | F78: 5 | G78: 15 | J78: 1915 | K78: Office Furniture and Equipment | L78: 10 | M78: 0.1 | N78: 10 | O78: 0.1 | P78: No | Q78: No
B79: 2 | C79: Vehicles | D79: Trucks & Buckets | F79: 5 | G79: 15 | J79: 1930 | K79: Transportation Equipment | L79: 12 | M79: 0.08333333333 | N79: 12 | O79: 0.08333333333 | P79: No | Q79: No
D80: Hybrid Battery Packs | F80: no guideline | J80: 1930 | K80: Transportation Equipment | L80: 5 | M80: 0.2 | N80: 5 | O80: 0.2 | P80: no guideline
D81: Cars | F81: 5 | G81: 10 | J81: 1930 | K81: Transportation Equipment | L81: 5 | M81: 0.2 | N81: 5 | O81: 0.2 | P81: No | Q81: No
D82: Trailers | F82: 5 | G82: 20 | J82: 1930 | K82: Transportation Equipment | L82: 15 | M82: 0.06666666667 | N82: 15 | O82: 0.06666666667 | P82: No | Q82: No
D83: Small Trucks / Vans | F83: 5 | G83: 10 | J83: 1930 | K83: Transportation Equipment | L83: 8 | M83: 0.125 | N83: 8 | O83: 0.125 | P83: No | Q83: No
B84: 3 | C84: Administrative Buildings | D84: Building | F84: 50 | G84: 75 | J84: 1808 | K84: Buildings and Fixtures | L84: 50 | M84: 0.02 | N84: 50 | O84: 0.02 | P84: No | Q84: No
D85: Fence | F85: 25 | G85: 60 | J85: 1808 | K85: Buildings and Fixtures | L85: 25 | M85: 0.04 | N85: 25 | O85: 0.04 | P85: No | Q85: No
D86: Parking | F86: 25 | G86: 30 | J86: 1808 | K86: Buildings and Fixtures | L86: 25 | M86: 0.04 | N86: 25 | O86: 0.04 | P86: No | Q86: No
D87: Roof | F87: 20 | G87: 30 | J87: 1808 | K87: Buildings and Fixtures | L87: 20 | M87: 0.05 | N87: 20 | O87: 0.05 | P87: No | Q87: No
D88: Controls and Automation / HVAC | F88: no guideline | J88: 1808 | K88: Buildings and Fixtures | L88: 15 | M88: 0.06666666667 | N88: 15 | O88: 0.06666666667 | P88: no guideline
B89: 4 | C89: Leasehold Improvements | F89: Lease dependent
B90: 5 | C90: Station Buildings | D90: MS / DS Station Buildings | F90: 50 | G90: 75 | J90: 1808 | K90: Buildings and Fixtures | L90: 50 | M90: 0.02 | N90: 50 | O90: 0.02 | P90: No | Q90: No
D91: TS Station Buildings | F91: 50 | G91: 75 | J91: 1808 | K91: Buildings and Fixtures | L91: 60 | M91: 0.01666666667 | N91: 60 | O91: 0.01666666667 | P91: No | Q91: No
D92: Parking | F92: 25 | G92: 30
D93: Fence | F93: 25 | G93: 60
D94: Roof | F94: 20 | G94: 30
B95: 6 | C95: Computer Equipment | D95: Hardware | F95: 3 | G95: 5 | J95: 1920 | K95: Computer Equipment - Hardware | L95: 5 | M95: 0.2 | N95: 5 | O95: 0.2 | P95: No | Q95: No
D96: Software | F96: 2 | G96: 5 | J96: 1925 | K96: Computer Software | L96: 5 | M96: 0.2 | N96: 5 | O96: 0.2 | P96: No | Q96: No
B97: 7 | C97: Equipment | D97: Miscellaneous Equipment | F97: 5 | G97: 10 | J97: 1960 | K97: Miscellaneous Equipment | L97: 10 | M97: 0.1 | N97: 10 | O97: 0.1 | P97: No | Q97: No
D98: Stores | F98: 5 | G98: 10 | J98: 1935 | K98: Stores Equipment | L98: 10 | M98: 0.1 | N98: 10 | O98: 0.1 | P98: No | Q98: No
D99: Tools, Shop, Garage Equipment | F99: 5 | G99: 10 | J99: 1940 | K99: Tools, Shop and Garage Equipment | L99: 8 | M99: 0.125 | N99: 8 | O99: 0.125 | P99: No | Q99: No
D100: Truck Tools | F100: 5 | G100: 10 | J100: 1940 | K100: Tools, Shop and Garage Equipment | L100: 5 | M100: 0.2 | N100: 5 | O100: 0.2 | P100: No | Q100: No
D101: Measurement & Testing Equipment | F101: 5 | G101: 10 | J101: 1945 | K101: Measurement and Testing Equipment | L101: 7 | M101: 0.1428571429 | N101: 7 | O101: 0.1428571429 | P101: No | Q101: No
B102: 8 | C102: Communication | D102: Towers | F102: 60 | G102: 70 | J102: 1955 | K102: Communication Equipment | L102: 50 | M102: 0.02 | N102: 50 | O102: 0.02 | P102: Yes | Q102: No
D103: Wireless | F103: 2 | G103: 10 | J103: 1955 | K103: Communication Equipment | L103: 8 | M103: 0.125 | N103: 8 | O103: 0.125 | P103: No | Q103: No
D104: Telephone System / Radio Station Equipment | F104: no guideline | J104: 1955 | K104: Communication Equipment | L104: 10 | M104: 0.1 | N104: 10 | O104: 0.1 | P104: no guideline
B105: 9 | C105: Residential Energy Meters | F105: 25 | G105: 35 | J105: 1860 | K105: Meters | L105: 25 | M105: 0.04 | N105: 25 | O105: 0.04 | P105: No | Q105: No
B106: 10 | C106: Industrial/Commercial Energy Meters | F106: 25 | G106: 35 | J106: 1860 | K106: Meters | L106: 25 | M106: 0.04 | N106: 25 | O106: 0.04 | P106: No | Q106: No
B107: 11 | C107: Wholesale Energy Meters | F107: 15 | G107: 30 | J107: 1820 | K107: Distribution Station Equipment | L107: 15 | M107: 0.06666666667 | N107: 15 | O107: 0.06666666667 | P107: No | Q107: No
B108: 12 | C108: Current & Potential Transformer (CT & PT) | F108: 35 | G108: 50
B109: 13 | C109: Smart Meters | F109: 5 | G109: 15 | J109: 1860 | K109: Meters | L109: 15 | M109: 0.06666666667 | N109: 15 | O109: 0.06666666667 | P109: No | Q109: No
B110: 14 | C110: Repeaters - Smart Metering | F110: 10 | G110: 15
B111: 15 | C111: Data Collectors - Smart Metering | F111: 15 | G111: 20
A114: * TS & MS = Transformer and Municipal Stations UG = Underground Systems S = Monitoring and Control Systems
A116: Note 1: | B116: Tables F-1 and F-2 above are to be used as a reference in order to complete columns J, K, L and N.
B117: See pages 17-19 of Kinetrics Report

Sheet App.2-CA_OldCGAAP_DepExp_2012
K1: File Number: | L1: =EBNUMBER -> EB-2015-0108
K2: Exhibit:
K3: Tab:
K4: Schedule:
K5: Page:
K7: Date:
A9: Appendix 2-CA
A10: Depreciation and Amortization Expense
B11: Assumes the applicant made capitalization and depreciation expense accounting policy changes under CGAAP effective January 1, 2012 and will adopt IFRS for financial reporting purposes effective January 1, 2015.
B12: N/A
C13: Year | D13: 2012 | E13: Former CGAAP
A15: Account | B15: Description | C15: Opening Regulatory Gross PP&E as at Jan 1, 2012 | D15: Less Fully Depreciated | E15: Net for Depreciation | F15: Additions | G15: Total for Depreciation | H15: Years | I15: Depreciation Rate | J15: Depreciation Expense | K15: 2012 Depreciation Expense per Appendix 2-BA Fixed Assets, Column J (l) | L15: Variance 2
C16: (a) | D16: (b) | E16: (c) | F16: (d) | G16: (e) = (c) + ½ x (d) 1 | H16: (f) | I16: (g) = 1 / (f) | J16: (h) = (e) / (f) | L16: (m) = (h) - (l)
A17: 1611 | B17: Computer Software (Formally known as Account 1925) | E17: =C17-D17 -> 0 | G17: =E17+0.5*F17 -> 0 | I17: =IF(H17=0,0,1/H17) -> 0 | J17: =IF(H17=0,0,G17/H17) -> 0 | L17: =IF(ISERROR(+J17-K17), 0, +J17-K17) -> 0
A18: 1612 | B18: Land Rights (Formally known as Account 1906) | E18: =C18-D18 -> 0 | G18: =E18+0.5*F18 -> 0 | I18: 0 | J18: 0 | L18: 0
A19: 1805 | B19: Land | E19: 0 | G19: 0 | I19: 0 | J19: 0 | L19: 0
A20: 1808 | B20: Buildings | E20: 0 | G20: 0 | I20: 0 | J20: 0 | L20: 0
A21: 1810 | B21: Leasehold Improvements | E21: 0 | G21: 0 | I21: 0 | J21: 0 | L21: 0
A22: 1815 | B22: Transformer Station Equipment >50 kV | E22: 0 | G22: 0 | I22: 0 | J22: 0 | L22: 0
A23: 1820 | B23: Distribution Station Equipment <50 kV | E23: 0 | G23: 0 | I23: 0 | J23: 0 | L23: 0
A24: 1825 | B24: Storage Battery Equipment | E24: 0 | G24: 0 | I24: 0 | J24: 0 | L24: 0
A25: 1830 | B25: Poles, Towers & Fixtures | E25: 0 | G25: 0 | I25: 0 | J25: 0 | L25: 0
A26: 1835 | B26: Overhead Conductors & Devices | E26: 0 | G26: 0 | I26: 0 | J26: 0 | L26: 0
A27: 1840 | B27: Underground Conduit | E27: 0 | G27: 0 | I27: 0 | J27: 0 | L27: 0
A28: 1845 | B28: Underground Conductors & Devices | E28: 0 | G28: 0 | I28: 0 | J28: 0 | L28: 0
A29: 1850 | B29: Line Transformers | E29: 0 | G29: 0 | I29: 0 | J29: 0 | L29: 0
A30: 1855 | B30: Services (Overhead & Underground) | E30: 0 | G30: 0 | I30: 0 | J30: 0 | L30: 0
A31: 1860 | B31: Meters | E31: 0 | G31: 0 | I31: 0 | J31: 0 | L31: 0
A32: 1860 | B32: Meters (Smart Meters) | E32: 0 | G32: 0 | I32: 0 | J32: 0 | L32: 0
A33: 1905 | B33: Land | E33: 0 | G33: 0 | I33: 0 | J33: 0 | L33: 0
A34: 1908 | B34: Buildings & Fixtures | E34: 0 | G34: 0 | I34: 0 | J34: 0 | L34: 0
A35: 1910 | B35: Leasehold Improvements | E35: 0 | G35: 0 | I35: 0 | J35: 0 | L35: 0
A36: 1915 | B36: Office Furniture & Equipment (10 years) | E36: 0 | G36: 0 | I36: 0 | J36: 0 | L36: 0
A37: 1915 | B37: Office Furniture & Equipment (5 years) | E37: 0 | G37: 0 | I37: 0 | J37: 0 | L37: 0
A38: 1920 | B38: Computer Equipment - Hardware | E38: 0 | G38: 0 | I38: 0 | J38: 0 | L38: 0
A39: 1920 | B39: Computer Equip.-Hardware(Post Mar. 22/04) | E39: 0 | G39: 0 | I39: 0 | J39: 0 | L39: 0
A40: 1920 | B40: Computer Equip.-Hardware(Post Mar. 19/07) | E40: 0 | G40: 0 | I40: 0 | J40: 0 | L40: 0
A41: 1930 | B41: Transportation Equipment | E41: 0 | G41: 0 | I41: 0 | J41: 0 | L41: 0
A42: 1935 | B42: Stores Equipment | E42: 0 | G42: 0 | I42: 0 | J42: 0 | L42: 0
A43: 1940 | B43: Tools, Shop & Garage Equipment | E43: 0 | G43: 0 | I43: 0 | J43: 0 | L43: 0
A44: 1945 | B44: Measurement & Testing Equipment | E44: 0 | G44: 0 | I44: 0 | J44: 0 | L44: 0
A45: 1950 | B45: Power Operated Equipment | E45: 0 | G45: 0 | I45: 0 | J45: 0 | L45: 0
A46: 1955 | B46: Communications Equipment | E46: 0 | G46: 0 | I46: 0 | J46: 0 | L46: 0
A47: 1955 | B47: Communication Equipment (Smart Meters) | E47: 0 | G47: 0 | I47: 0 | J47: 0 | L47: 0
A48: 1960 | B48: Miscellaneous Equipment | E48: 0 | G48: 0 | I48: 0 | J48: 0 | L48: 0
A49: 1970 | B49: Load Management Controls Customer Premises | E49: 0 | G49: 0 | I49: 0 | J49: 0 | L49: 0
A50: 1975 | B50: Load Management Controls Utility Premises | E50: 0 | G50: 0 | I50: 0 | J50: 0 | L50: 0
A51: 1980 | B51: System Supervisor Equipment | E51: 0 | G51: 0 | I51: 0 | J51: 0 | L51: 0
A52: 1985 | B52: Miscellaneous Fixed Assets | E52: 0 | G52: 0 | I52: 0 | J52: 0 | L52: 0
A53: 1990 | B53: Other Tangible Property | E53: 0 | G53: 0 | I53: 0 | J53: 0 | L53: 0
A54: 1995 | B54: Contributions & Grants | E54: 0 | G54: 0 | I54: 0 | J54: 0 | L54: 0
B55: Total | C55: =SUM(C17:C54) -> 0 | D55: =SUM(D17:D54) -> 0 | E55: =SUM(E17:E54) -> 0 | F55: =SUM(F17:F54) -> 0 | G55: =SUM(G17:G54) -> 0 | J55: =SUM(J17:J54) -> 0 | K55: =SUM(K17:K54) -> 0 | L55: =SUM(L17:L54) -> 0
A57: Notes:
A59: 1 | B59: Board policy of the "half-year" rule - the applicant must ensure that additions in the year attract a half-year depreciation expense in the first year. Deviations from this standard practice must be supported in the application.
A60: 2 | B60: The applicant must provide an explanation of material variances in evidence.
A62: General | B62: Applicants must provide a breakdown of depreciation and amortization expense in the above format for all relevant accounts. Asset Retirement Obligations (AROs), depreciation and accretion expense should be disclosed separately consistent with the Notes of historical Audited Financial Statements.

Sheet App.2-CB_NewCGAAP_DepExp_2012
N1: File Number: | O1: =EBNUMBER -> EB-2015-0108
N2: Exhibit:
N3: Tab:
N4: Schedule:
N5: Page:
N7: Date:
A9: Appendix 2-CB
A10: Depreciation and Amortization Expense
A11: Assumes the applicant made capitalization and depreciation expense accounting policy changes under CGAAP effective January 1, 2012 and will adopt IFRS for financial reporting purposes effective January 1, 2015.
B12: N/A
C13: Year | D13: 2012 | E13: Revised CGAAP
A15: Account | B15: Description | C15: Opening NBV as at Jan 1, 2012 5 | D15: Additions | E15: Average Remaining Life of Opening NBV 4 | F15: Years (new additions only) 3 | G15: Depreciation Rate on New Additions | H15: Depreciation Expense on Opening NBV | I15: Depreciation Expense on Additions 1 | J15: 2012 Depreciation Expense | K15: 2012 Depreciation Expense per Appendix 2-BA Fixed Assets, Column J (l) | L15: Variance 2 | M15: Depreciation Expense on 2012 Full Year Additions | N15: Less Depreciation Expense on Assets Fully Depreciated during the year (o) | O15: 2012 Full Year Depreciation 6
C16: (a) | D16: (d) | E16: (i) | F16: (f) | G16: (g) = 1 / (f) | H16: (j) = (a) / (i) | I16: (h)=((d)*0.5)/(f) | J16: (k) = (j) + (h) | L16: (m) = (k) - (l) | M16: (n) = (d)/(f) | O16: (p) = (j) + (n) - (o)
A17: 1611 | B17: Computer Software (Formally known as Account 1925) | G17: =IF(F17=0,0,1/F17) -> 0 | H17: =IF(E17=0,0,+C17/E17) -> 0 | I17: =IF(F17=0,0,+(D17*0.5)/F17) -> 0 | J17: =IF(ISERROR(+H17+I17), 0, +H17+I17) -> 0 | L17: =IF(ISERROR(+J17-K17), 0, +J17-K17) -> 0 | M17: =IF(F17=0,0,+(D17)/F17) -> 0 | O17: =IF(ISERROR(+M17+H17-N17), 0, +M17+H17-N17) -> 0
A18: 1612 | B18: Land Rights (Formally known as Account 1906) | G18: 0 | H18: 0 | I18: 0 | J18: 0 | L18: 0 | M18: 0 | O18: =IF(ISERROR(+M18+H18-N18), 0, +M18+H18-N18) -> 0
A19: 1805 | B19: Land | G19: 0 | H19: 0 | I19: 0 | J19: 0 | L19: 0 | M19: 0 | O19: 0
A20: 1808 | B20: Buildings | G20: 0 | H20: 0 | I20: 0 | J20: 0 | L20: 0 | M20: 0 | O20: 0
A21: 1810 | B21: Leasehold Improvements | G21: 0 | H21: 0 | I21: 0 | J21: 0 | L21: 0 | M21: 0 | O21: 0
A22: 1815 | B22: Transformer Station Equipment >50 kV | G22: 0 | H22: 0 | I22: 0 | J22: 0 | L22: 0 | M22: 0 | O22: 0
A23: 1820 | B23: Distribution Station Equipment <50 kV | G23: 0 | H23: 0 | I23: 0 | J23: 0 | L23: 0 | M23: 0 | O23: 0
A24: 1825 | B24: Storage Battery Equipment | G24: 0 | H24: 0 | I24: 0 | J24: 0 | L24: 0 | M24: 0 | O24: 0
A25: 1830 | B25: Poles, Towers & Fixtures | G25: 0 | H25: 0 | I25: 0 | J25: 0 | L25: 0 | M25: 0 | O25: 0
A26: 1835 | B26: Overhead Conductors & Devices | G26: 0 | H26: 0 | I26: 0 | J26: 0 | L26: 0 | M26: 0 | O26: 0
A27: 1840 | B27: Underground Conduit | G27: 0 | H27: 0 | I27: 0 | J27: 0 | L27: 0 | M27: 0 | O27: 0
A28: 1845 | B28: Underground Conductors & Devices | G28: 0 | H28: 0 | I28: 0 | J28: 0 | L28: 0 | M28: 0 | O28: 0
A29: 1850 | B29: Line Transformers | G29: 0 | H29: 0 | I29: 0 | J29: 0 | L29: 0 | M29: 0 | O29: 0
A30: 1855 | B30: Services (Overhead & Underground) | G30: 0 | H30: 0 | I30: 0 | J30: 0 | L30: 0 | M30: 0 | O30: 0
A31: 1860 | B31: Meters | G31: 0 | H31: 0 | I31: 0 | J31: 0 | L31: 0 | M31: 0 | O31: 0
A32: 1860 | B32: Meters (Smart Meters) | G32: 0 | H32: 0 | I32: 0 | J32: 0 | L32: 0 | M32: 0 | O32: 0
A33: 1905 | B33: Land | G33: 0 | H33: 0 | I33: 0 | J33: 0 | L33: 0 | M33: 0 | O33: 0
A34: 1908 | B34: Buildings & Fixtures | G34: 0 | H34: 0 | I34: 0 | J34: 0 | L34: 0 | M34: 0 | O34: 0
A35: 1910 | B35: Leasehold Improvements | G35: 0 | H35: 0 | I35: 0 | J35: 0 | L35: 0 | M35: 0 | O35: 0
A36: 1915 | B36: Office Furniture & Equipment (10 years) | G36: 0 | H36: 0 | I36: 0 | J36: 0 | L36: 0 | M36: 0 | O36: 0
A37: 1915 | B37: Office Furniture & Equipment (5 years) | G37: 0 | H37: 0 | I37: 0 | J37: 0 | L37: 0 | M37: 0 | O37: 0
A38: 1920 | B38: Computer Equipment - Hardware | G38: 0 | H38: 0 | I38: 0 | J38: 0 | L38: 0 | M38: 0 | O38: 0
A39: 1920 | B39: Computer Equip.-Hardware(Post Mar. 22/04) | G39: 0 | H39: 0 | I39: 0 | J39: 0 | L39: 0 | M39: 0 | O39: 0
A40: 1920 | B40: Computer Equip.-Hardware(Post Mar. 19/07) | G40: 0 | H40: 0 | I40: 0 | J40: 0 | L40: 0 | M40: 0 | O40: 0
A41: 1930 | B41: Transportation Equipment | G41: 0 | H41: 0 | I41: 0 | J41: 0 | L41: 0 | M41: 0 | O41: 0
A42: 1935 | B42: Stores Equipment | G42: 0 | H42: 0 | I42: 0 | J42: 0 | L42: 0 | M42: 0 | O42: 0
A43: 1940 | B43: Tools, Shop & Garage Equipment | G43: 0 | H43: 0 | I43: 0 | J43: 0 | L43: 0 | M43: 0 | O43: 0
A44: 1945 | B44: Measurement & Testing Equipment | G44: 0 | H44: 0 | I44: 0 | J44: 0 | L44: 0 | M44: 0 | O44: 0
A45: 1950 | B45: Power Operated Equipment | G45: 0 | H45: 0 | I45: 0 | J45: 0 | L45: 0 | M45: 0 | O45: 0
A46: 1955 | B46: Communications Equipment | G46: 0 | H46: 0 | I46: 0 | J46: 0 | L46: 0 | M46: 0 | O46: 0
A47: 1955 | B47: Communication Equipment (Smart Meters) | G47: 0 | H47: 0 | I47: 0 | J47: 0 | L47: 0 | M47: 0 | O47: 0
A48: 1960 | B48: Miscellaneous Equipment | G48: 0 | H48: 0 | I48: 0 | J48: 0 | L48: 0 | M48: 0 | O48: 0
A49: 1970 | B49: Load Management Controls Customer Premises | G49: 0 | H49: 0 | I49: 0 | J49: 0 | L49: 0 | M49: 0 | O49: 0
A50: 1975 | B50: Load Management Controls Utility Premises | G50: 0 | H50: 0 | I50: 0 | J50: 0 | L50: 0 | M50: 0 | O50: 0
A51: 1980 | B51: System Supervisor Equipment | G51: 0 | H51: 0 | I51: 0 | J51: 0 | L51: 0 | M51: 0 | O51: 0
A52: 1985 | B52: Miscellaneous Fixed Assets | G52: 0 | H52: 0 | I52: 0 | J52: 0 | L52: 0 | M52: 0 | O52: 0
A53: 1990 | B53: Other Tangible Property | G53: 0 | H53: 0 | I53: 0 | J53: 0 | L53: 0 | M53: 0 | O53: 0
A54: 1995 | B54: Contributions & Grants | G54: 0 | H54: 0 | I54: 0 | J54: 0 | L54: 0 | M54: 0 | O54: 0
B55: Total | C55: =SUM(C17:C54) -> 0 | D55: =SUM(D17:D54) -> 0 | H55: =SUM(H17:H54) -> 0 | I55: 0 | J55: 0 | K55: 0 | L55: 0 | M55: 0 | N55: 0 | O55: 0
A57: Notes:
A59: 1 | B59: Board policy of the "half-year" rule - the applicant must ensure that additions in the year attract a half-year depreciation expense in the first year. Deviations from this standard practice must be supported in the application.
A60: 2 | B60: The applicant must provide an explanation of material variances in evidence.
A61: 3 | B61: The applicant should ensure that the years for new additions of assets are the asset useful lives determined by management in accordance with the Board's regulatory accounting policies. The capitalization and depreciation expense accounting changes should be implemented consistent with the Board’s regulatory accounting policies as set out for modified IFRS as contained in the Report of the Board, Transition to International Financial Reporting Standards, EB-2008-0408, the Kinectrics Report, and the Revised 2012 Accounting Procedures Handbook for Electricity Distributors (“APH”).
A62: 4 | B62: A recalculation should be performed to determine the average remaining life of opening balance of assets (i.e. excluding 2012 additions) under the change in policies under CGAAP. For example, Asset A had a useful life of 20 years under CGAAP without the change in policies. On January 1, 2012, the effective date of the changes in policies, Asset A was 3 years depreciated. As a result, Asset A would have a remaining service life of 17 years (20 years less 3 years) as of January 1, 2012. Due to making the change in policies under CGAAP, management re-assessed the asset useful lives and concluded that the revised useful life of Asset A is now 30 years. Therefore, the average remaining useful life of the opening balance of Asset A is determined to be 27 years (30 years less 3 years) under the revised CGAAP as of January 1, 2012.
A63: 5 | B63: NBV must exclude assets still on the books but which have been fully amortized or depreciated.
A64: 6 | B64: This column refers to the calculated full year depreciation but excludes the depreciation expense on assets fully depreciated during the year. This column is used for the purpose of calculating depreciation expense in the following year on the next worksheet.
A66: General: | B66: Applicants must provide a breakdown of depreciation and amortization expense in the above format for all relevant accounts. Asset Retirement Obligations (AROs), depreciation and accretion expense should be disclosed separately consistent with the Notes of historical Audited Financial Statements.

Sheet App.2-CC_NewCGAAP_DepExp_2013
J1: File Number: | K1: =EBNUMBER -> EB-2015-0108
J2: Exhibit:
J3: Tab:
J4: Schedule:
J5: Page:
J7: Date:
A9: Appendix 2-CC
A10: Depreciation and Amortization Expense
A11: Assumes the applicant made capitalization and depreciation expense accounting policy changes under CGAAP effective January 1, 2012 and will adopt IFRS for financial reporting purposes effective January 1, 2015.
B12: N/A
C13: 2013 | D13: Revised CGAAP
A15: Account | B15: Description | C15: Additions | D15: Years (new additions only) | E15: Depreciation Rate on New Additions | F15: 2013 Depreciation Expense 1 | G15: 2013 Depreciation Expense per Apppendix 2-BA Fixed Assets, Column J (l) | H15: Variance 2 | I15: Depreciation Expense on 2013 Full Year Additions | J15: Less Depreciation Expense on Assets Fully Depreciated during the year (o) | K15: 2013 Full Year Depreciation 3
C16: (d) | D16: (f) | E16: (g) = 1 / (f) | F16: (h)=2012 Full Year Deprecation + ((d)*0.5)/(f) | H16: (m) = (h) - (l) | I16: (n)=((d))/(f) | K16: (p) = 2012 Full Year Depreciation + (n) - (o)
A17: 1611 | B17: Computer Software (Formally known as Account 1925) | E17: =IF(D17=0,0,1/D17) -> 0 | F17: =IF(D17=0,+'App.2-CB_NewCGAAP_DepExp_2012'!O17,+'App.2-CB_NewCGAAP_DepExp_2012'!O17+((C17*0.5)/D17)) -> 0 | H17: =IF(ISERROR(+F17-G17), 0, +F17-G17) -> 0 | I17: =IF(D17=0,0,+(C17)/D17) -> 0 | K17: =IF(ISERROR(+I17+'App.2-CB_NewCGAAP_DepExp_2012'!O17-J17), 0, +I17+'App.2-CB_NewCGAAP_DepExp_2012'!O17-J17) -> 0
A18: 1612 | B18: Land Rights (Formally known as Account 1906) | E18: 0 | F18: =IF(D18=0,+'App.2-CB_NewCGAAP_DepExp_2012'!O18,+'App.2-CB_NewCGAAP_DepExp_2012'!O18+((C18*0.5)/D18)) -> 0 | H18: 0 | I18: 0 | K18: =IF(ISERROR(+I18+'App.2-CB_NewCGAAP_DepExp_2012'!O18-J18), 0, +I18+'App.2-CB_NewCGAAP_DepExp_2012'!O18-J18) -> 0
A19: 1805 | B19: Land | E19: 0 | F19: =IF(D19=0,+'App.2-CB_NewCGAAP_DepExp_2012'!O19,+'App.2-CB_NewCGAAP_DepExp_2012'!O19+((C19*0.5)/D19)) -> 0 | H19: 0 | I19: 0 | K19: =IF(ISERROR(+I19+'App.2-CB_NewCGAAP_DepExp_2012'!O19-J19), 0, +I19+'App.2-CB_NewCGAAP_DepExp_2012'!O19-J19) -> 0
A20: 1808 | B20: Buildings | E20: 0 | F20: =IF(D20=0,+'App.2-CB_NewCGAAP_DepExp_2012'!O20,+'App.2-CB_NewCGAAP_DepExp_2012'!O20+((C20*0.5)/D20)) -> 0 | H20: 0 | I20: 0 | K20: =IF(ISERROR(+I20+'App.2-CB_NewCGAAP_DepExp_2012'!O20-J20), 0, +I20+'App.2-CB_NewCGAAP_DepExp_2012'!O20-J20) -> 0
A21: 1810 | B21: Leasehold Improvements | E21: 0 | F21: =IF(D21=0,+'App.2-CB_NewCGAAP_DepExp_2012'!O21,+'App.2-CB_NewCGAAP_DepExp_2012'!O21+((C21*0.5)/D21)) -> 0 | H21: 0 | I21: 0 | K21: =IF(ISERROR(+I21+'App.2-CB_NewCGAAP_DepExp_2012'!O21-J21), 0, +I21+'App.2-CB_NewCGAAP_DepExp_2012'!O21-J21) -> 0
A22: 1815 | B22: Transformer Station Equipment >50 kV | E22: 0 | F22: =IF(D22=0,+'App.2-CB_NewCGAAP_DepExp_2012'!O22,+'App.2-CB_NewCGAAP_DepExp_2012'!O22+((C22*0.5)/D22)) -> 0 | H22: 0 | I22: 0 | K22: =IF(ISERROR(+I22+'App.2-CB_NewCGAAP_DepExp_2012'!O22-J22), 0, +I22+'App.2-CB_NewCGAAP_DepExp_2012'!O22-J22) -> 0
A23: 1820 | B23: Distribution Station Equipment <50 kV | E23: 0 | F23: =IF(D23=0,+'App.2-CB_NewCGAAP_DepExp_2012'!O23,+'App.2-CB_NewCGAAP_DepExp_2012'!O23+((C23*0.5)/D23)) -> 0 | H23: 0 | I23: 0 | K23: =IF(ISERROR(+I23+'App.2-CB_NewCGAAP_DepExp_2012'!O23-J23), 0, +I23+'App.2-CB_NewCGAAP_DepExp_2012'!O23-J23) -> 0
A24: 1825 | B24: Storage Battery Equipment | E24: 0 | F24: =IF(D24=0,+'App.2-CB_NewCGAAP_DepExp_2012'!O24,+'App.2-CB_NewCGAAP_DepExp_2012'!O24+((C24*0.5)/D24)) -> 0 | H24: 0 | I24: 0 | K24: =IF(ISERROR(+I24+'App.2-CB_NewCGAAP_DepExp_2012'!O24-J24), 0, +I24+'App.2-CB_NewCGAAP_DepExp_2012'!O24-J24) -> 0
A25: 1830 | B25: Poles, Towers & Fixtures | E25: 0 | F25: =IF(D25=0,+'App.2-CB_NewCGAAP_DepExp_2012'!O25,+'App.2-CB_NewCGAAP_DepExp_2012'!O25+((C25*0.5)/D25)) -> 0 | H25: 0 | I25: 0 | K25: =IF(ISERROR(+I25+'App.2-CB_NewCGAAP_DepExp_2012'!O25-J25), 0, +I25+'App.2-CB_NewCGAAP_DepExp_2012'!O25-J25) -> 0
A26: 1835 | B26: Overhead Conductors & Devices | E26: 0 | F26: =IF(D26=0,+'App.2-CB_NewCGAAP_DepExp_2012'!O26,+'App.2-CB_NewCGAAP_DepExp_2012'!O26+((C26*0.5)/D26)) -> 0 | H26: 0 | I26: 0 | K26: =IF(ISERROR(+I26+'App.2-CB_NewCGAAP_DepExp_2012'!O26-J26), 0, +I26+'App.2-CB_NewCGAAP_DepExp_2012'!O26-J26) -> 0
A27: 1840 | B27: Underground Conduit | E27: 0 | F27: =IF(D27=0,+'App.2-CB_NewCGAAP_DepExp_2012'!O27,+'App.2-CB_NewCGAAP_DepExp_2012'!O27+((C27*0.5)/D27)) -> 0 | H27: 0 | I27: 0 | K27: =IF(ISERROR(+I27+'App.2-CB_NewCGAAP_DepExp_2012'!O27-J27), 0, +I27+'App.2-CB_NewCGAAP_DepExp_2012'!O27-J27) -> 0
A28: 1845 | B28: Underground Conductors & Devices | E28: 0 | F28: =IF(D28=0,+'App.2-CB_NewCGAAP_DepExp_2012'!O28,+'App.2-CB_NewCGAAP_DepExp_2012'!O28+((C28*0.5)/D28)) -> 0 | H28: 0 | I28: 0 | K28: =IF(ISERROR(+I28+'App.2-CB_NewCGAAP_DepExp_2012'!O28-J28), 0, +I28+'App.2-CB_NewCGAAP_DepExp_2012'!O28-J28) -> 0
A29: 1850 | B29: Line Transformers | E29: 0 | F29: =IF(D29=0,+'App.2-CB_NewCGAAP_DepExp_2012'!O29,+'App.2-CB_NewCGAAP_DepExp_2012'!O29+((C29*0.5)/D29)) -> 0 | H29: 0 | I29: 0 | K29: =IF(ISERROR(+I29+'App.2-CB_NewCGAAP_DepExp_2012'!O29-J29), 0, +I29+'App.2-CB_NewCGAAP_DepExp_2012'!O29-J29) -> 0
A30: 1855 | B30: Services (Overhead & Underground) | E30: 0 | F30: =IF(D30=0,+'App.2-CB_NewCGAAP_DepExp_2012'!O30,+'App.2-CB_NewCGAAP_DepExp_2012'!O30+((C30*0.5)/D30)) -> 0 | H30: 0 | I30: 0 | K30: =IF(ISERROR(+I30+'App.2-CB_NewCGAAP_DepExp_2012'!O30-J30), 0, +I30+'App.2-CB_NewCGAAP_DepExp_2012'!O30-J30) -> 0
A31: 1860 | B31: Meters | E31: 0 | F31: =IF(D31=0,+'App.2-CB_NewCGAAP_DepExp_2012'!O31,+'App.2-CB_NewCGAAP_DepExp_2012'!O31+((C31*0.5)/D31)) -> 0 | H31: 0 | I31: 0 | K31: =IF(ISERROR(+I31+'App.2-CB_NewCGAAP_DepExp_2012'!O31-J31), 0, +I31+'App.2-CB_NewCGAAP_DepExp_2012'!O31-J31) -> 0
A32: 1860 | B32: Meters (Smart Meters) | E32: 0 | F32: =IF(D32=0,+'App.2-CB_NewCGAAP_DepExp_2012'!O32,+'App.2-CB_NewCGAAP_DepExp_2012'!O32+((C32*0.5)/D32)) -> 0 | H32: 0 | I32: 0 | K32: =IF(ISERROR(+I32+'App.2-CB_NewCGAAP_DepExp_2012'!O32-J32), 0, +I32+'App.2-CB_NewCGAAP_DepExp_2012'!O32-J32) -> 0
A33: 1905 | B33: Land | E33: 0 | F33: =IF(D33=0,+'App.2-CB_NewCGAAP_DepExp_2012'!O33,+'App.2-CB_NewCGAAP_DepExp_2012'!O33+((C33*0.5)/D33)) -> 0 | H33: 0 | I33: 0 | K33: =IF(ISERROR(+I33+'App.2-CB_NewCGAAP_DepExp_2012'!O33-J33), 0, +I33+'App.2-CB_NewCGAAP_DepExp_2012'!O33-J33) -> 0
A34: 1908 | B34: Buildings & Fixtures | E34: 0 | F34: =IF(D34=0,+'App.2-CB_NewCGAAP_DepExp_2012'!O34,+'App.2-CB_NewCGAAP_DepExp_2012'!O34+((C34*0.5)/D34)) -> 0 | H34: 0 | I34: 0 | K34: =IF(ISERROR(+I34+'App.2-CB_NewCGAAP_DepExp_2012'!O34-J34), 0, +I34+'App.2-CB_NewCGAAP_DepExp_2012'!O34-J34) -> 0
A35: 1910 | B35: Leasehold Improvements | E35: 0 | F35: =IF(D35=0,+'App.2-CB_NewCGAAP_DepExp_2012'!O35,+'App.2-CB_NewCGAAP_DepExp_2012'!O35+((C35*0.5)/D35)) -> 0 | H35: 0 | I35: 0 | K35: =IF(ISERROR(+I35+'App.2-CB_NewCGAAP_DepExp_2012'!O35-J35), 0, +I35+'App.2-CB_NewCGAAP_DepExp_2012'!O35-J35) -> 0
A36: 1915 | B36: Office Furniture & Equipment (10 years) | E36: 0 | F36: =IF(D36=0,+'App.2-CB_NewCGAAP_DepExp_2012'!O36,+'App.2-CB_NewCGAAP_DepExp_2012'!O36+((C36*0.5)/D36)) -> 0 | H36: 0 | I36: 0 | K36: =IF(ISERROR(+I36+'App.2-CB_NewCGAAP_DepExp_2012'!O36-J36), 0, +I36+'App.2-CB_NewCGAAP_DepExp_2012'!O36-J36) -> 0
A37: 1915 | B37: Office Furniture & Equipment (5 years) | E37: 0 | F37: =IF(D37=0,+'App.2-CB_NewCGAAP_DepExp_2012'!O37,+'App.2-CB_NewCGAAP_DepExp_2012'!O37+((C37*0.5)/D37)) -> 0 | H37: 0 | I37: 0 | K37: =IF(ISERROR(+I37+'App.2-CB_NewCGAAP_DepExp_2012'!O37-J37), 0, +I37+'App.2-CB_NewCGAAP_DepExp_2012'!O37-J37) -> 0
A38: 1920 | B38: Computer Equipment - Hardware | E38: 0 | F38: =IF(D38=0,+'App.2-CB_NewCGAAP_DepExp_2012'!O38,+'App.2-CB_NewCGAAP_DepExp_2012'!O38+((C38*0.5)/D38)) -> 0 | H38: 0 | I38: 0 | K38: =IF(ISERROR(+I38+'App.2-CB_NewCGAAP_DepExp_2012'!O38-J38), 0, +I38+'App.2-CB_NewCGAAP_DepExp_2012'!O38-J38) -> 0
A39: 1920 | B39: Computer Equip.-Hardware(Post Mar. 22/04) | E39: 0 | F39: =IF(D39=0,+'App.2-CB_NewCGAAP_DepExp_2012'!O39,+'App.2-CB_NewCGAAP_DepExp_2012'!O39+((C39*0.5)/D39)) -> 0 | H39: 0 | I39: 0 | K39: =IF(ISERROR(+I39+'App.2-CB_NewCGAAP_DepExp_2012'!O39-J39), 0, +I39+'App.2-CB_NewCGAAP_DepExp_2012'!O39-J39) -> 0
A40: 1920 | B40: Computer Equip.-Hardware(Post Mar. 19/07) | E40: 0 | F40: =IF(D40=0,+'App.2-CB_NewCGAAP_DepExp_2012'!O40,+'App.2-CB_NewCGAAP_DepExp_2012'!O40+((C40*0.5)/D40)) -> 0 | H40: 0 | I40: 0 | K40: =IF(ISERROR(+I40+'App.2-CB_NewCGAAP_DepExp_2012'!O40-J40), 0, +I40+'App.2-CB_NewCGAAP_DepExp_2012'!O40-J40) -> 0
A41: 1930 | B41: Transportation Equipment | E41: 0 | F41: =IF(D41=0,+'App.2-CB_NewCGAAP_DepExp_2012'!O41,+'App.2-CB_NewCGAAP_DepExp_2012'!O41+((C41*0.5)/D41)) -> 0 | H41: 0 | I41: 0 | K41: =IF(ISERROR(+I41+'App.2-CB_NewCGAAP_DepExp_2012'!O41-J41), 0, +I41+'App.2-CB_NewCGAAP_DepExp_2012'!O41-J41) -> 0
A42: 1935 | B42: Stores Equipment | E42: 0 | F42: =IF(D42=0,+'App.2-CB_NewCGAAP_DepExp_2012'!O42,+'App.2-CB_NewCGAAP_DepExp_2012'!O42+((C42*0.5)/D42)) -> 0 | H42: 0 | I42: 0 | K42: =IF(ISERROR(+I42+'App.2-CB_NewCGAAP_DepExp_2012'!O42-J42), 0, +I42+'App.2-CB_NewCGAAP_DepExp_2012'!O42-J42) -> 0
A43: 1940 | B43: Tools, Shop & Garage Equipment | E43: 0 | F43: =IF(D43=0,+'App.2-CB_NewCGAAP_DepExp_2012'!O43,+'App.2-CB_NewCGAAP_DepExp_2012'!O43+((C43*0.5)/D43)) -> 0 | H43: 0 | I43: 0 | K43: =IF(ISERROR(+I43+'App.2-CB_NewCGAAP_DepExp_2012'!O43-J43), 0, +I43+'App.2-CB_NewCGAAP_DepExp_2012'!O43-J43) -> 0
A44: 1945 | B44: Measurement & Testing Equipment | E44: 0 | F44: =IF(D44=0,+'App.2-CB_NewCGAAP_DepExp_2012'!O44,+'App.2-CB_NewCGAAP_DepExp_2012'!O44+((C44*0.5)/D44)) -> 0 | H44: 0 | I44: 0 | K44: =IF(ISERROR(+I44+'App.2-CB_NewCGAAP_DepExp_2012'!O44-J44), 0, +I44+'App.2-CB_NewCGAAP_DepExp_2012'!O44-J44) -> 0
A45: 1950 | B45: Power Operated Equipment | E45: 0 | F45: =IF(D45=0,+'App.2-CB_NewCGAAP_DepExp_2012'!O45,+'App.2-CB_NewCGAAP_DepExp_2012'!O45+((C45*0.5)/D45)) -> 0 | H45: 0 | I45: 0 | K45: =IF(ISERROR(+I45+'App.2-CB_NewCGAAP_DepExp_2012'!O45-J45), 0, +I45+'App.2-CB_NewCGAAP_DepExp_2012'!O45-J45) -> 0
A46: 1955 | B46: Communications Equipment | E46: 0 | F46: =IF(D46=0,+'App.2-CB_NewCGAAP_DepExp_2012'!O46,+'App.2-CB_NewCGAAP_DepExp_2012'!O46+((C46*0.5)/D46)) -> 0 | H46: 0 | I46: 0 | K46: =IF(ISERROR(+I46+'App.2-CB_NewCGAAP_DepExp_2012'!O46-J46), 0, +I46+'App.2-CB_NewCGAAP_DepExp_2012'!O46-J46) -> 0
A47: 1955 | B47: Communication Equipment (Smart Meters) | E47: 0 | F47: =IF(D47=0,+'App.2-CB_NewCGAAP_DepExp_2012'!O47,+'App.2-CB_NewCGAAP_DepExp_2012'!O47+((C47*0.5)/D47)) -> 0 | H47: 0 | I47: 0 | K47: =IF(ISERROR(+I47+'App.2-CB_NewCGAAP_DepExp_2012'!O47-J47), 0, +I47+'App.2-CB_NewCGAAP_DepExp_2012'!O47-J47) -> 0
A48: 1960 | B48: Miscellaneous Equipment | E48: 0 | F48: =IF(D48=0,+'App.2-CB_NewCGAAP_DepExp_2012'!O48,+'App.2-CB_NewCGAAP_DepExp_2012'!O48+((C48*0.5)/D48)) -> 0 | H48: 0 | I48: 0 | K48: =IF(ISERROR(+I48+'App.2-CB_NewCGAAP_DepExp_2012'!O48-J48), 0, +I48+'App.2-CB_NewCGAAP_DepExp_2012'!O48-J48) -> 0
A49: 1970 | B49: Load Management Controls Customer Premises | E49: 0 | F49: =IF(D49=0,+'App.2-CB_NewCGAAP_DepExp_2012'!O49,+'App.2-CB_NewCGAAP_DepExp_2012'!O49+((C49*0.5)/D49)) -> 0 | H49: 0 | I49: 0 | K49: =IF(ISERROR(+I49+'App.2-CB_NewCGAAP_DepExp_2012'!O49-J49), 0, +I49+'App.2-CB_NewCGAAP_DepExp_2012'!O49-J49) -> 0
A50: 1975 | B50: Load Management Controls Utility Premises | E50: 0 | F50: =IF(D50=0,+'App.2-CB_NewCGAAP_DepExp_2012'!O50,+'App.2-CB_NewCGAAP_DepExp_2012'!O50+((C50*0.5)/D50)) -> 0 | H50: 0 | I50: 0 | K50: =IF(ISERROR(+I50+'App.2-CB_NewCGAAP_DepExp_2012'!O50-J50), 0, +I50+'App.2-CB_NewCGAAP_DepExp_2012'!O50-J50) -> 0
A51: 1980 | B51: System Supervisor Equipment | E51: 0 | F51: =IF(D51=0,+'App.2-CB_NewCGAAP_DepExp_2012'!O51,+'App.2-CB_NewCGAAP_DepExp_2012'!O51+((C51*0.5)/D51)) -> 0 | H51: 0 | I51: 0 | K51: =IF(ISERROR(+I51+'App.2-CB_NewCGAAP_DepExp_2012'!O51-J51), 0, +I51+'App.2-CB_NewCGAAP_DepExp_2012'!O51-J51) -> 0
A52: 1985 | B52: Miscellaneous Fixed Assets | E52: 0 | F52: =IF(D52=0,+'App.2-CB_NewCGAAP_DepExp_2012'!O52,+'App.2-CB_NewCGAAP_DepExp_2012'!O52+((C52*0.5)/D52)) -> 0 | H52: 0 | I52: 0 | K52: =IF(ISERROR(+I52+'App.2-CB_NewCGAAP_DepExp_2012'!O52-J52), 0, +I52+'App.2-CB_NewCGAAP_DepExp_2012'!O52-J52) -> 0
A53: 1990 | B53: Other Tangible Property | E53: 0 | F53: =IF(D53=0,+'App.2-CB_NewCGAAP_DepExp_2012'!O53,+'App.2-CB_NewCGAAP_DepExp_2012'!O53+((C53*0.5)/D53)) -> 0 | H53: 0 | I53: 0 | K53: =IF(ISERROR(+I53+'App.2-CB_NewCGAAP_DepExp_2012'!O53-J53), 0, +I53+'App.2-CB_NewCGAAP_DepExp_2012'!O53-J53) -> 0
A54: 1995 | B54: Contributions & Grants | E54: 0 | F54: =IF(D54=0,+'App.2-CB_NewCGAAP_DepExp_2012'!O54,+'App.2-CB_NewCGAAP_DepExp_2012'!O54+((C54*0.5)/D54)) -> 0 | H54: 0 | I54: 0 | K54: =IF(ISERROR(+I54+'App.2-CB_NewCGAAP_DepExp_2012'!O54-J54), 0, +I54+'App.2-CB_NewCGAAP_DepExp_2012'!O54-J54) -> 0
B55: Total | C55: =SUM(C17:C54) -> 0 | F55: =SUM(F17:F54) -> 0 | G55: 0 | H55: 0 | I55: 0 | J55: 0 | K55: 0
A57: Notes:
A58: 1 | B58: Board policy of the "half-year" rule - the applicant must ensure that additions in the year attract a half-year depreciation expense in the first year. Deviations from this standard practice must be supported in the application.
A59: 2 | B59: The applicant must provide an explanation of material variances in evidence.
A60: 3 | B60: This column refers to the calculated full year depreciation but excludes the depreciation expense on assets fully depreciated during the year. This column is used for the purpose of calculating depreciation expense in the following year on the next worksheet.
A62: General: | B62: Applicants must provide a breakdown of depreciation and amortization expense in the above format for all relevant accounts. Asset Retirement Obligations (AROs), depreciation and accretion expense should be disclosed separately consistent with the Notes of historical Audited Financial Statements.

Sheet App.2-CD_MIFRS_DepExp_2014
J1: File Number: | K1: =EBNUMBER -> EB-2015-0108
J2: Exhibit:
J3: Tab:
J4: Schedule:
J5: Page:
J7: Date:
A9: Appendix 2-CD
A10: Depreciation and Amortization Expense
A11: Assumes the applicant made capitalization and depreciation expense accounting policy changes under CGAAP effective January 1, 2012 and will adopt IFRS for financial reporting purposes effective January 1, 2015.
B12: N/A
E13: 2014 | F13: MIFRS
A15: Account | B15: Description | C15: Additions | D15: Years (new additions only) | E15: Depreciation Rate on New Additions | F15: 2014 Depreciation Expense 1 | G15: 2014 Depreciation Expense per Apppendix 2-BA Fixed Assets, Column J (l) | H15: Variance 2 | I15: Depreciation Expense on 2014 Full Year Additions | J15: Less Depreciation Expense on Assets Fully Depreciated during the year (o) | K15: 2014 Full Year Depreciation 3
C16: (d) | D16: (f) | E16: (g) = 1 / (f) | F16: (h)=2013 Full Year Deprecation + ((d)*0.5)/(f) | H16: (m) = (h) - (l) | I16: (n)=((d))/(f) | K16: (p) = 2013 Full Year Depreciation + (n) - (o)
A17: 1611 | B17: Computer Software (Formally known as Account 1925) | E17: =IF(D17=0,0,1/D17) -> 0 | F17: =IF(D17=0,+'App.2-CC_NewCGAAP_DepExp_2013'!K17,+'App.2-CC_NewCGAAP_DepExp_2013'!K17+((C17*0.5)/D17)) -> 0 | H17: =IF(ISERROR(+F17-G17), 0, +F17-G17) -> 0 | I17: =IF(D17=0,0,+(C17)/D17) -> 0 | K17: =IF(ISERROR(+I17+'App.2-CC_NewCGAAP_DepExp_2013'!K17-J17), 0, +I17+'App.2-CC_NewCGAAP_DepExp_2013'!K17-J17) -> 0
A18: 1612 | B18: Land Rights (Formally known as Account 1906) | E18: 0 | F18: =IF(D18=0,+'App.2-CC_NewCGAAP_DepExp_2013'!K18,+'App.2-CC_NewCGAAP_DepExp_2013'!K18+((C18*0.5)/D18)) -> 0 | H18: 0 | I18: 0 | K18: =IF(ISERROR(+I18+'App.2-CC_NewCGAAP_DepExp_2013'!K18-J18), 0, +I18+'App.2-CC_NewCGAAP_DepExp_2013'!K18-J18) -> 0
A19: 1805 | B19: Land | E19: 0 | F19: =IF(D19=0,+'App.2-CC_NewCGAAP_DepExp_2013'!K19,+'App.2-CC_NewCGAAP_DepExp_2013'!K19+((C19*0.5)/D19)) -> 0 | H19: 0 | I19: 0 | K19: =IF(ISERROR(+I19+'App.2-CC_NewCGAAP_DepExp_2013'!K19-J19), 0, +I19+'App.2-CC_NewCGAAP_DepExp_2013'!K19-J19) -> 0
A20: 1808 | B20: Buildings | E20: 0 | F20: =IF(D20=0,+'App.2-CC_NewCGAAP_DepExp_2013'!K20,+'App.2-CC_NewCGAAP_DepExp_2013'!K20+((C20*0.5)/D20)) -> 0 | H20: 0 | I20: 0 | K20: =IF(ISERROR(+I20+'App.2-CC_NewCGAAP_DepExp_2013'!K20-J20), 0, +I20+'App.2-CC_NewCGAAP_DepExp_2013'!K20-J20) -> 0
A21: 1810 | B21: Leasehold Improvements | E21: 0 | F21: =IF(D21=0,+'App.2-CC_NewCGAAP_DepExp_2013'!K21,+'App.2-CC_NewCGAAP_DepExp_2013'!K21+((C21*0.5)/D21)) -> 0 | H21: 0 | I21: 0 | K21: =IF(ISERROR(+I21+'App.2-CC_NewCGAAP_DepExp_2013'!K21-J21), 0, +I21+'App.2-CC_NewCGAAP_DepExp_2013'!K21-J21) -> 0
A22: 1815 | B22: Transformer Station Equipment >50 kV | E22: 0 | F22: =IF(D22=0,+'App.2-CC_NewCGAAP_DepExp_2013'!K22,+'App.2-CC_NewCGAAP_DepExp_2013'!K22+((C22*0.5)/D22)) -> 0 | H22: 0 | I22: 0 | K22: =IF(ISERROR(+I22+'App.2-CC_NewCGAAP_DepExp_2013'!K22-J22), 0, +I22+'App.2-CC_NewCGAAP_DepExp_2013'!K22-J22) -> 0
A23: 1820 | B23: Distribution Station Equipment <50 kV | E23: 0 | F23: =IF(D23=0,+'App.2-CC_NewCGAAP_DepExp_2013'!K23,+'App.2-CC_NewCGAAP_DepExp_2013'!K23+((C23*0.5)/D23)) -> 0 | H23: 0 | I23: 0 | K23: =IF(ISERROR(+I23+'App.2-CC_NewCGAAP_DepExp_2013'!K23-J23), 0, +I23+'App.2-CC_NewCGAAP_DepExp_2013'!K23-J23) -> 0
A24: 1825 | B24: Storage Battery Equipment | E24: 0 | F24: =IF(D24=0,+'App.2-CC_NewCGAAP_DepExp_2013'!K24,+'App.2-CC_NewCGAAP_DepExp_2013'!K24+((C24*0.5)/D24)) -> 0 | H24: 0 | I24: 0 | K24: =IF(ISERROR(+I24+'App.2-CC_NewCGAAP_DepExp_2013'!K24-J24), 0, +I24+'App.2-CC_NewCGAAP_DepExp_2013'!K24-J24) -> 0
A25: 1830 | B25: Poles, Towers & Fixtures | E25: 0 | F25: =IF(D25=0,+'App.2-CC_NewCGAAP_DepExp_2013'!K25,+'App.2-CC_NewCGAAP_DepExp_2013'!K25+((C25*0.5)/D25)) -> 0 | H25: 0 | I25: 0 | K25: =IF(ISERROR(+I25+'App.2-CC_NewCGAAP_DepExp_2013'!K25-J25), 0, +I25+'App.2-CC_NewCGAAP_DepExp_2013'!K25-J25) -> 0
A26: 1835 | B26: Overhead Conductors & Devices | E26: 0 | F26: =IF(D26=0,+'App.2-CC_NewCGAAP_DepExp_2013'!K26,+'App.2-CC_NewCGAAP_DepExp_2013'!K26+((C26*0.5)/D26)) -> 0 | H26: 0 | I26: 0 | K26: =IF(ISERROR(+I26+'App.2-CC_NewCGAAP_DepExp_2013'!K26-J26), 0, +I26+'App.2-CC_NewCGAAP_DepExp_2013'!K26-J26) -> 0
A27: 1840 | B27: Underground Conduit | E27: 0 | F27: =IF(D27=0,+'App.2-CC_NewCGAAP_DepExp_2013'!K27,+'App.2-CC_NewCGAAP_DepExp_2013'!K27+((C27*0.5)/D27)) -> 0 | H27: 0 | I27: 0 | K27: =IF(ISERROR(+I27+'App.2-CC_NewCGAAP_DepExp_2013'!K27-J27), 0, +I27+'App.2-CC_NewCGAAP_DepExp_2013'!K27-J27) -> 0
A28: 1845 | B28: Underground Conductors & Devices | E28: 0 | F28: =IF(D28=0,+'App.2-CC_NewCGAAP_DepExp_2013'!K28,+'App.2-CC_NewCGAAP_DepExp_2013'!K28+((C28*0.5)/D28)) -> 0 | H28: 0 | I28: 0 | K28: =IF(ISERROR(+I28+'App.2-CC_NewCGAAP_DepExp_2013'!K28-J28), 0, +I28+'App.2-CC_NewCGAAP_DepExp_2013'!K28-J28) -> 0
A29: 1850 | B29: Line Transformers | E29: 0 | F29: =IF(D29=0,+'App.2-CC_NewCGAAP_DepExp_2013'!K29,+'App.2-CC_NewCGAAP_DepExp_2013'!K29+((C29*0.5)/D29)) -> 0 | H29: 0 | I29: 0 | K29: =IF(ISERROR(+I29+'App.2-CC_NewCGAAP_DepExp_2013'!K29-J29), 0, +I29+'App.2-CC_NewCGAAP_DepExp_2013'!K29-J29) -> 0
A30: 1855 | B30: Services (Overhead & Underground) | E30: 0 | F30: =IF(D30=0,+'App.2-CC_NewCGAAP_DepExp_2013'!K30,+'App.2-CC_NewCGAAP_DepExp_2013'!K30+((C30*0.5)/D30)) -> 0 | H30: 0 | I30: 0 | K30: =IF(ISERROR(+I30+'App.2-CC_NewCGAAP_DepExp_2013'!K30-J30), 0, +I30+'App.2-CC_NewCGAAP_DepExp_2013'!K30-J30) -> 0
A31: 1860 | B31: Meters | E31: 0 | F31: =IF(D31=0,+'App.2-CC_NewCGAAP_DepExp_2013'!K31,+'App.2-CC_NewCGAAP_DepExp_2013'!K31+((C31*0.5)/D31)) -> 0 | H31: 0 | I31: 0 | K31: =IF(ISERROR(+I31+'App.2-CC_NewCGAAP_DepExp_2013'!K31-J31), 0, +I31+'App.2-CC_NewCGAAP_DepExp_2013'!K31-J31) -> 0
A32: 1860 | B32: Meters (Smart Meters) | E32: 0 | F32: =IF(D32=0,+'App.2-CC_NewCGAAP_DepExp_2013'!K32,+'App.2-CC_NewCGAAP_DepExp_2013'!K32+((C32*0.5)/D32)) -> 0 | H32: 0 | I32: 0 | K32: =IF(ISERROR(+I32+'App.2-CC_NewCGAAP_DepExp_2013'!K32-J32), 0, +I32+'App.2-CC_NewCGAAP_DepExp_2013'!K32-J32) -> 0
A33: 1905 | B33: Land | E33: 0 | F33: =IF(D33=0,+'App.2-CC_NewCGAAP_DepExp_2013'!K33,+'App.2-CC_NewCGAAP_DepExp_2013'!K33+((C33*0.5)/D33)) -> 0 | H33: 0 | I33: 0 | K33: =IF(ISERROR(+I33+'App.2-CC_NewCGAAP_DepExp_2013'!K33-J33), 0, +I33+'App.2-CC_NewCGAAP_DepExp_2013'!K33-J33) -> 0
A34: 1908 | B34: Buildings & Fixtures | E34: 0 | F34: =IF(D34=0,+'App.2-CC_NewCGAAP_DepExp_2013'!K34,+'App.2-CC_NewCGAAP_DepExp_2013'!K34+((C34*0.5)/D34)) -> 0 | H34: 0 | I34: 0 | K34: =IF(ISERROR(+I34+'App.2-CC_NewCGAAP_DepExp_2013'!K34-J34), 0, +I34+'App.2-CC_NewCGAAP_DepExp_2013'!K34-J34) -> 0
A35: 1910 | B35: Leasehold Improvements | E35: 0 | F35: =IF(D35=0,+'App.2-CC_NewCGAAP_DepExp_2013'!K35,+'App.2-CC_NewCGAAP_DepExp_2013'!K35+((C35*0.5)/D35)) -> 0 | H35: 0 | I35: 0 | K35: =IF(ISERROR(+I35+'App.2-CC_NewCGAAP_DepExp_2013'!K35-J35), 0, +I35+'App.2-CC_NewCGAAP_DepExp_2013'!K35-J35) -> 0
A36: 1915 | B36: Office Furniture & Equipment (10 years) | E36: 0 | F36: =IF(D36=0,+'App.2-CC_NewCGAAP_DepExp_2013'!K36,+'App.2-CC_NewCGAAP_DepExp_2013'!K36+((C36*0.5)/D36)) -> 0 | H36: 0 | I36: 0 | K36: =IF(ISERROR(+I36+'App.2-CC_NewCGAAP_DepExp_2013'!K36-J36), 0, +I36+'App.2-CC_NewCGAAP_DepExp_2013'!K36-J36) -> 0
A37: 1915 | B37: Office Furniture & Equipment (5 years) | E37: 0 | F37: =IF(D37=0,+'App.2-CC_NewCGAAP_DepExp_2013'!K37,+'App.2-CC_NewCGAAP_DepExp_2013'!K37+((C37*0.5)/D37)) -> 0 | H37: 0 | I37: 0 | K37: =IF(ISERROR(+I37+'App.2-CC_NewCGAAP_DepExp_2013'!K37-J37), 0, +I37+'App.2-CC_NewCGAAP_DepExp_2013'!K37-J37) -> 0
A38: 1920 | B38: Computer Equipment - Hardware | E38: 0 | F38: =IF(D38=0,+'App.2-CC_NewCGAAP_DepExp_2013'!K38,+'App.2-CC_NewCGAAP_DepExp_2013'!K38+((C38*0.5)/D38)) -> 0 | H38: 0 | I38: 0 | K38: =IF(ISERROR(+I38+'App.2-CC_NewCGAAP_DepExp_2013'!K38-J38), 0, +I38+'App.2-CC_NewCGAAP_DepExp_2013'!K38-J38) -> 0
A39: 1920 | B39: Computer Equip.-Hardware(Post Mar. 22/04) | E39: 0 | F39: =IF(D39=0,+'App.2-CC_NewCGAAP_DepExp_2013'!K39,+'App.2-CC_NewCGAAP_DepExp_2013'!K39+((C39*0.5)/D39)) -> 0 | H39: 0 | I39: 0 | K39: =IF(ISERROR(+I39+'App.2-CC_NewCGAAP_DepExp_2013'!K39-J39), 0, +I39+'App.2-CC_NewCGAAP_DepExp_2013'!K39-J39) -> 0
A40: 1920 | B40: Computer Equip.-Hardware(Post Mar. 19/07) | E40: 0 | F40: =IF(D40=0,+'App.2-CC_NewCGAAP_DepExp_2013'!K40,+'App.2-CC_NewCGAAP_DepExp_2013'!K40+((C40*0.5)/D40)) -> 0 | H40: 0 | I40: 0 | K40: =IF(ISERROR(+I40+'App.2-CC_NewCGAAP_DepExp_2013'!K40-J40), 0, +I40+'App.2-CC_NewCGAAP_DepExp_2013'!K40-J40) -> 0
A41: 1930 | B41: Transportation Equipment | E41: 0 | F41: =IF(D41=0,+'App.2-CC_NewCGAAP_DepExp_2013'!K41,+'App.2-CC_NewCGAAP_DepExp_2013'!K41+((C41*0.5)/D41)) -> 0 | H41: 0 | I41: 0 | K41: =IF(ISERROR(+I41+'App.2-CC_NewCGAAP_DepExp_2013'!K41-J41), 0, +I41+'App.2-CC_NewCGAAP_DepExp_2013'!K41-J41) -> 0
A42: 1935 | B42: Stores Equipment | E42: 0 | F42: =IF(D42=0,+'App.2-CC_NewCGAAP_DepExp_2013'!K42,+'App.2-CC_NewCGAAP_DepExp_2013'!K42+((C42*0.5)/D42)) -> 0 | H42: 0 | I42: 0 | K42: =IF(ISERROR(+I42+'App.2-CC_NewCGAAP_DepExp_2013'!K42-J42), 0, +I42+'App.2-CC_NewCGAAP_DepExp_2013'!K42-J42) -> 0
A43: 1940 | B43: Tools, Shop & Garage Equipment | E43: 0 | F43: =IF(D43=0,+'App.2-CC_NewCGAAP_DepExp_2013'!K43,+'App.2-CC_NewCGAAP_DepExp_2013'!K43+((C43*0.5)/D43)) -> 0 | H43: 0 | I43: 0 | K43: =IF(ISERROR(+I43+'App.2-CC_NewCGAAP_DepExp_2013'!K43-J43), 0, +I43+'App.2-CC_NewCGAAP_DepExp_2013'!K43-J43) -> 0
A44: 1945 | B44: Measurement & Testing Equipment | E44: 0 | F44: =IF(D44=0,+'App.2-CC_NewCGAAP_DepExp_2013'!K44,+'App.2-CC_NewCGAAP_DepExp_2013'!K44+((C44*0.5)/D44)) -> 0 | H44: 0 | I44: 0 | K44: =IF(ISERROR(+I44+'App.2-CC_NewCGAAP_DepExp_2013'!K44-J44), 0, +I44+'App.2-CC_NewCGAAP_DepExp_2013'!K44-J44) -> 0
A45: 1950 | B45: Power Operated Equipment | E45: 0 | F45: =IF(D45=0,+'App.2-CC_NewCGAAP_DepExp_2013'!K45,+'App.2-CC_NewCGAAP_DepExp_2013'!K45+((C45*0.5)/D45)) -> 0 | H45: 0 | I45: 0 | K45: =IF(ISERROR(+I45+'App.2-CC_NewCGAAP_DepExp_2013'!K45-J45), 0, +I45+'App.2-CC_NewCGAAP_DepExp_2013'!K45-J45) -> 0
A46: 1955 | B46: Communications Equipment | E46: 0 | F46: =IF(D46=0,+'App.2-CC_NewCGAAP_DepExp_2013'!K46,+'App.2-CC_NewCGAAP_DepExp_2013'!K46+((C46*0.5)/D46)) -> 0 | H46: 0 | I46: 0 | K46: =IF(ISERROR(+I46+'App.2-CC_NewCGAAP_DepExp_2013'!K46-J46), 0, +I46+'App.2-CC_NewCGAAP_DepExp_2013'!K46-J46) -> 0
A47: 1955 | B47: Communication Equipment (Smart Meters) | E47: 0 | F47: =IF(D47=0,+'App.2-CC_NewCGAAP_DepExp_2013'!K47,+'App.2-CC_NewCGAAP_DepExp_2013'!K47+((C47*0.5)/D47)) -> 0 | H47: 0 | I47: 0 | K47: =IF(ISERROR(+I47+'App.2-CC_NewCGAAP_DepExp_2013'!K47-J47), 0, +I47+'App.2-CC_NewCGAAP_DepExp_2013'!K47-J47) -> 0
A48: 1960 | B48: Miscellaneous Equipment | E48: 0 | F48: =IF(D48=0,+'App.2-CC_NewCGAAP_DepExp_2013'!K48,+'App.2-CC_NewCGAAP_DepExp_2013'!K48+((C48*0.5)/D48)) -> 0 | H48: 0 | I48: 0 | K48: =IF(ISERROR(+I48+'App.2-CC_NewCGAAP_DepExp_2013'!K48-J48), 0, +I48+'App.2-CC_NewCGAAP_DepExp_2013'!K48-J48) -> 0
A49: 1970 | B49: Load Management Controls Customer Premises | E49: 0 | F49: =IF(D49=0,+'App.2-CC_NewCGAAP_DepExp_2013'!K49,+'App.2-CC_NewCGAAP_DepExp_2013'!K49+((C49*0.5)/D49)) -> 0 | H49: 0 | I49: 0 | K49: =IF(ISERROR(+I49+'App.2-CC_NewCGAAP_DepExp_2013'!K49-J49), 0, +I49+'App.2-CC_NewCGAAP_DepExp_2013'!K49-J49) -> 0
A50: 1975 | B50: Load Management Controls Utility Premises | E50: 0 | F50: =IF(D50=0,+'App.2-CC_NewCGAAP_DepExp_2013'!K50,+'App.2-CC_NewCGAAP_DepExp_2013'!K50+((C50*0.5)/D50)) -> 0 | H50: 0 | I50: 0 | K50: =IF(ISERROR(+I50+'App.2-CC_NewCGAAP_DepExp_2013'!K50-J50), 0, +I50+'App.2-CC_NewCGAAP_DepExp_2013'!K50-J50) -> 0
A51: 1980 | B51: System Supervisor Equipment | E51: 0 | F51: =IF(D51=0,+'App.2-CC_NewCGAAP_DepExp_2013'!K51,+'App.2-CC_NewCGAAP_DepExp_2013'!K51+((C51*0.5)/D51)) -> 0 | H51: 0 | I51: 0 | K51: =IF(ISERROR(+I51+'App.2-CC_NewCGAAP_DepExp_2013'!K51-J51), 0, +I51+'App.2-CC_NewCGAAP_DepExp_2013'!K51-J51) -> 0
A52: 1985 | B52: Miscellaneous Fixed Assets | E52: 0 | F52: =IF(D52=0,+'App.2-CC_NewCGAAP_DepExp_2013'!K52,+'App.2-CC_NewCGAAP_DepExp_2013'!K52+((C52*0.5)/D52)) -> 0 | H52: 0 | I52: 0 | K52: =IF(ISERROR(+I52+'App.2-CC_NewCGAAP_DepExp_2013'!K52-J52), 0, +I52+'App.2-CC_NewCGAAP_DepExp_2013'!K52-J52) -> 0
A53: 1990 | B53: Other Tangible Property | E53: 0 | F53: =IF(D53=0,+'App.2-CC_NewCGAAP_DepExp_2013'!K53,+'App.2-CC_NewCGAAP_DepExp_2013'!K53+((C53*0.5)/D53)) -> 0 | H53: 0 | I53: 0 | K53: =IF(ISERROR(+I53+'App.2-CC_NewCGAAP_DepExp_2013'!K53-J53), 0, +I53+'App.2-CC_NewCGAAP_DepExp_2013'!K53-J53) -> 0
E54: 0 | F54: =IF(D54=0,+'App.2-CC_NewCGAAP_DepExp_2013'!K54,+'App.2-CC_NewCGAAP_DepExp_2013'!K54+((C54*0.5)/D54)) -> 0 | H54: 0 | I54: 0 | K54: =IF(ISERROR(+I54+'App.2-CC_NewCGAAP_DepExp_2013'!K54-J54), 0, +I54+'App.2-CC_NewCGAAP_DepExp_2013'!K54-J54) -> 0
B55: Total | C55: =SUM(C17:C54) -> 0 | F55: =SUM(F17:F54) -> 0 | G55: 0 | H55: 0 | I55: 0 | J55: 0 | K55: 0
B56: Depreciation exp. adj. from gain or loss on the retirement of assets (pool of like assets) | F56: 0
B57: Total Depreciation Expense | F57: =+F56+F55 -> 0
A59: Notes:
A60: 1 | B60: Board policy of the "half-year" rule - the applicant must ensure that additions in the year attract a half-year depreciation expense in the first year. Deviations from this standard practice must be supported in the application.
A61: 2 | B61: The applicant must provide an explanation of material variances in evidence.
A62: 3 | B62: This column refers to the calculated full year depreciation but excludes the depreciation expense on assets fully depreciated during the year. This column is used for the purpose of calculating depreciation expense in the following year on the next worksheet.
A64: General: | B64: Applicants must provide a breakdown of depreciation and amortization expense in the above format for all relevant accounts. Asset Retirement Obligations (AROs), depreciation and accretion expense should be disclosed separately consistent with the Notes of historical Audited Financial Statements.

Sheet App.2-CE_MIFRS_DepExp_2015
G1: File Number: | H1: =EBNUMBER -> EB-2015-0108
G2: Exhibit:
G3: Tab:
G4: Schedule:
G5: Page:
G7: Date:
A9: Appendix 2-CE
A10: Depreciation and Amortization Expense
A11: Assumes the applicant made capitalization and depreciation expense accounting policy changes under CGAAP effective January 1, 2012 and will adopt IFRS for financial reporting purposes effective January 1, 2015.
B12: N/A
C13: 2015 | D13: MIFRS
A15: Account | B15: Description | C15: Additions | D15: Years (new additions only) | E15: Depreciation Rate on New Additions | F15: 2015 Depreciation Expense 1 | G15: 2015 Depreciation Expense per Appendix 2-BA Fixed Assets, Column J (l) | H15: Variance 2
C16: (d) | D16: (f) | E16: (g) = 1 / (f) | F16: (h)=2014 Full Year Depreciation + ((d)*0.5)/(f) | H16: (m) = (h) - (l)
A17: 1611 | B17: Computer Software (Formally known as Account 1925) | E17: =IF(D17=0,0,1/D17) -> 0 | F17: =IF(D17=0,'App.2-CD_MIFRS_DepExp_2014'!K17,+'App.2-CD_MIFRS_DepExp_2014'!K17+((C17*0.5)/D17)) -> 0 | H17: =IF(ISERROR(+F17-G17), 0, +F17-G17) -> 0
A18: 1612 | B18: Land Rights (Formally known as Account 1906) | E18: 0 | F18: =IF(D18=0,'App.2-CD_MIFRS_DepExp_2014'!K18,+'App.2-CD_MIFRS_DepExp_2014'!K18+((C18*0.5)/D18)) -> 0 | H18: 0
A19: 1805 | B19: Land | E19: 0 | F19: =IF(D19=0,'App.2-CD_MIFRS_DepExp_2014'!K19,+'App.2-CD_MIFRS_DepExp_2014'!K19+((C19*0.5)/D19)) -> 0 | H19: 0
A20: 1808 | B20: Buildings | E20: 0 | F20: =IF(D20=0,'App.2-CD_MIFRS_DepExp_2014'!K20,+'App.2-CD_MIFRS_DepExp_2014'!K20+((C20*0.5)/D20)) -> 0 | H20: 0
A21: 1810 | B21: Leasehold Improvements | E21: 0 | F21: =IF(D21=0,'App.2-CD_MIFRS_DepExp_2014'!K21,+'App.2-CD_MIFRS_DepExp_2014'!K21+((C21*0.5)/D21)) -> 0 | H21: 0
A22: 1815 | B22: Transformer Station Equipment >50 kV | E22: 0 | F22: =IF(D22=0,'App.2-CD_MIFRS_DepExp_2014'!K22,+'App.2-CD_MIFRS_DepExp_2014'!K22+((C22*0.5)/D22)) -> 0 | H22: 0
A23: 1820 | B23: Distribution Station Equipment <50 kV | E23: 0 | F23: =IF(D23=0,'App.2-CD_MIFRS_DepExp_2014'!K23,+'App.2-CD_MIFRS_DepExp_2014'!K23+((C23*0.5)/D23)) -> 0 | H23: 0
A24: 1825 | B24: Storage Battery Equipment | E24: 0 | F24: =IF(D24=0,'App.2-CD_MIFRS_DepExp_2014'!K24,+'App.2-CD_MIFRS_DepExp_2014'!K24+((C24*0.5)/D24)) -> 0 | H24: 0
A25: 1830 | B25: Poles, Towers & Fixtures | E25: 0 | F25: =IF(D25=0,'App.2-CD_MIFRS_DepExp_2014'!K25,+'App.2-CD_MIFRS_DepExp_2014'!K25+((C25*0.5)/D25)) -> 0 | H25: 0
A26: 1835 | B26: Overhead Conductors & Devices | E26: 0 | F26: =IF(D26=0,'App.2-CD_MIFRS_DepExp_2014'!K26,+'App.2-CD_MIFRS_DepExp_2014'!K26+((C26*0.5)/D26)) -> 0 | H26: 0
A27: 1840 | B27: Underground Conduit | E27: 0 | F27: =IF(D27=0,'App.2-CD_MIFRS_DepExp_2014'!K27,+'App.2-CD_MIFRS_DepExp_2014'!K27+((C27*0.5)/D27)) -> 0 | H27: 0
A28: 1845 | B28: Underground Conductors & Devices | E28: 0 | F28: =IF(D28=0,'App.2-CD_MIFRS_DepExp_2014'!K28,+'App.2-CD_MIFRS_DepExp_2014'!K28+((C28*0.5)/D28)) -> 0 | H28: 0
A29: 1850 | B29: Line Transformers | E29: 0 | F29: =IF(D29=0,'App.2-CD_MIFRS_DepExp_2014'!K29,+'App.2-CD_MIFRS_DepExp_2014'!K29+((C29*0.5)/D29)) -> 0 | H29: 0
A30: 1855 | B30: Services (Overhead & Underground) | E30: 0 | F30: =IF(D30=0,'App.2-CD_MIFRS_DepExp_2014'!K30,+'App.2-CD_MIFRS_DepExp_2014'!K30+((C30*0.5)/D30)) -> 0 | H30: 0
A31: 1860 | B31: Meters | E31: 0 | F31: =IF(D31=0,'App.2-CD_MIFRS_DepExp_2014'!K31,+'App.2-CD_MIFRS_DepExp_2014'!K31+((C31*0.5)/D31)) -> 0 | H31: 0
A32: 1860 | B32: Meters (Smart Meters) | E32: 0 | F32: =IF(D32=0,'App.2-CD_MIFRS_DepExp_2014'!K32,+'App.2-CD_MIFRS_DepExp_2014'!K32+((C32*0.5)/D32)) -> 0 | H32: 0
A33: 1905 | B33: Land | E33: 0 | F33: =IF(D33=0,'App.2-CD_MIFRS_DepExp_2014'!K33,+'App.2-CD_MIFRS_DepExp_2014'!K33+((C33*0.5)/D33)) -> 0 | H33: 0
A34: 1908 | B34: Buildings & Fixtures | E34: 0 | F34: =IF(D34=0,'App.2-CD_MIFRS_DepExp_2014'!K34,+'App.2-CD_MIFRS_DepExp_2014'!K34+((C34*0.5)/D34)) -> 0 | H34: 0
A35: 1910 | B35: Leasehold Improvements | E35: 0 | F35: =IF(D35=0,'App.2-CD_MIFRS_DepExp_2014'!K35,+'App.2-CD_MIFRS_DepExp_2014'!K35+((C35*0.5)/D35)) -> 0 | H35: 0
A36: 1915 | B36: Office Furniture & Equipment (10 years) | E36: 0 | F36: =IF(D36=0,'App.2-CD_MIFRS_DepExp_2014'!K36,+'App.2-CD_MIFRS_DepExp_2014'!K36+((C36*0.5)/D36)) -> 0 | H36: 0
A37: 1915 | B37: Office Furniture & Equipment (5 years) | E37: 0 | F37: =IF(D37=0,'App.2-CD_MIFRS_DepExp_2014'!K37,+'App.2-CD_MIFRS_DepExp_2014'!K37+((C37*0.5)/D37)) -> 0 | H37: 0
A38: 1920 | B38: Computer Equipment - Hardware | E38: 0 | F38: =IF(D38=0,'App.2-CD_MIFRS_DepExp_2014'!K38,+'App.2-CD_MIFRS_DepExp_2014'!K38+((C38*0.5)/D38)) -> 0 | H38: 0
A39: 1920 | B39: Computer Equip.-Hardware(Post Mar. 22/04) | E39: 0 | F39: =IF(D39=0,'App.2-CD_MIFRS_DepExp_2014'!K39,+'App.2-CD_MIFRS_DepExp_2014'!K39+((C39*0.5)/D39)) -> 0 | H39: 0
A40: 1920 | B40: Computer Equip.-Hardware(Post Mar. 19/07) | E40: 0 | F40: =IF(D40=0,'App.2-CD_MIFRS_DepExp_2014'!K40,+'App.2-CD_MIFRS_DepExp_2014'!K40+((C40*0.5)/D40)) -> 0 | H40: 0
A41: 1930 | B41: Transportation Equipment | E41: 0 | F41: =IF(D41=0,'App.2-CD_MIFRS_DepExp_2014'!K41,+'App.2-CD_MIFRS_DepExp_2014'!K41+((C41*0.5)/D41)) -> 0 | H41: 0
A42: 1935 | B42: Stores Equipment | E42: 0 | F42: =IF(D42=0,'App.2-CD_MIFRS_DepExp_2014'!K42,+'App.2-CD_MIFRS_DepExp_2014'!K42+((C42*0.5)/D42)) -> 0 | H42: 0
A43: 1940 | B43: Tools, Shop & Garage Equipment | E43: 0 | F43: =IF(D43=0,'App.2-CD_MIFRS_DepExp_2014'!K43,+'App.2-CD_MIFRS_DepExp_2014'!K43+((C43*0.5)/D43)) -> 0 | H43: 0
A44: 1945 | B44: Measurement & Testing Equipment | E44: 0 | F44: =IF(D44=0,'App.2-CD_MIFRS_DepExp_2014'!K44,+'App.2-CD_MIFRS_DepExp_2014'!K44+((C44*0.5)/D44)) -> 0 | H44: 0
A45: 1950 | B45: Power Operated Equipment | E45: 0 | F45: =IF(D45=0,'App.2-CD_MIFRS_DepExp_2014'!K45,+'App.2-CD_MIFRS_DepExp_2014'!K45+((C45*0.5)/D45)) -> 0 | H45: 0
A46: 1955 | B46: Communications Equipment | E46: 0 | F46: =IF(D46=0,'App.2-CD_MIFRS_DepExp_2014'!K46,+'App.2-CD_MIFRS_DepExp_2014'!K46+((C46*0.5)/D46)) -> 0 | H46: 0
A47: 1955 | B47: Communication Equipment (Smart Meters) | E47: 0 | F47: =IF(D47=0,'App.2-CD_MIFRS_DepExp_2014'!K47,+'App.2-CD_MIFRS_DepExp_2014'!K47+((C47*0.5)/D47)) -> 0 | H47: 0
A48: 1960 | B48: Miscellaneous Equipment | E48: 0 | F48: =IF(D48=0,'App.2-CD_MIFRS_DepExp_2014'!K48,+'App.2-CD_MIFRS_DepExp_2014'!K48+((C48*0.5)/D48)) -> 0 | H48: 0
A49: 1970 | B49: Load Management Controls Customer Premises | E49: 0 | F49: =IF(D49=0,'App.2-CD_MIFRS_DepExp_2014'!K49,+'App.2-CD_MIFRS_DepExp_2014'!K49+((C49*0.5)/D49)) -> 0 | H49: 0
A50: 1975 | B50: Load Management Controls Utility Premises | E50: 0 | F50: =IF(D50=0,'App.2-CD_MIFRS_DepExp_2014'!K50,+'App.2-CD_MIFRS_DepExp_2014'!K50+((C50*0.5)/D50)) -> 0 | H50: 0
A51: 1980 | B51: System Supervisor Equipment | E51: 0 | F51: =IF(D51=0,'App.2-CD_MIFRS_DepExp_2014'!K51,+'App.2-CD_MIFRS_DepExp_2014'!K51+((C51*0.5)/D51)) -> 0 | H51: 0
A52: 1985 | B52: Miscellaneous Fixed Assets | E52: 0 | F52: =IF(D52=0,'App.2-CD_MIFRS_DepExp_2014'!K52,+'App.2-CD_MIFRS_DepExp_2014'!K52+((C52*0.5)/D52)) -> 0 | H52: 0
A53: 1990 | B53: Other Tangible Property | E53: 0 | F53: =IF(D53=0,'App.2-CD_MIFRS_DepExp_2014'!K53,+'App.2-CD_MIFRS_DepExp_2014'!K53+((C53*0.5)/D53)) -> 0 | H53: 0
E54: 0 | F54: =IF(D54=0,'App.2-CD_MIFRS_DepExp_2014'!K54,+'App.2-CD_MIFRS_DepExp_2014'!K54+((C54*0.5)/D54)) -> 0 | H54: 0
B55: Total | C55: =SUM(C17:C54) -> 0 | F55: =SUM(F17:F54) -> 0 | G55: =SUM(G17:G54) -> 0 | H55: =SUM(H17:H54) -> 0
B56: Depreciation exp. adj. from gain or loss on the retirement of assets (pool of like assets)
B57: Total Depreciation expense to be included in the test year revenue requirement | F57: =SUM(F55:F56) -> 0
A58: Notes:
A59: 1 | B59: Board policy of the "half-year" rule - the applicant must ensure that additions in the year attract a half-year depreciation expense in the first year. Deviations from this standard practice must be supported in the application.
A60: 2 | B60: The applicant must provide an explanation of material variances in evidence.
A63: General: | B63: Applicants must provide a breakdown of depreciation and amortization expense in the above format for all relevant accounts. Asset Retirement Obligations (AROs), depreciation and accretion expense should be disclosed separately consistent with the Notes of historical Audited Financial Statements.

Sheet App.2-CF_OldCGAAP_DepExp_2013
K1: File Number: | L1: =EBNUMBER -> EB-2015-0108
K2: Exhibit: | L2: 4
K3: Tab:
K4: Schedule: | L4: Table 4-48
K5: Page: | L5: 95
K7: Date: | L7: 2015-05-01
A9: Appendix 2-CF
A10: Depreciation and Amortization Expense
B11: Assumes the applicant made capitalization and depreciation expense accounting policy changes under CGAAP effective January 1, 2013 and will adopt IFRS for financial reporting purposes effective January 1, 2015.
C13: Year | D13: 2013 | E13: Former CGAAP
A15: Account | B15: Description | C15: Opening Regulatory Gross PP&E as at Jan 1, 2013 | D15: Less Fully Depreciated | E15: Net for Depreciation | F15: Additions | G15: Total for Depreciation | H15: Years | I15: Depreciation Rate | J15: Depreciation Expense | K15: 2013 Depreciation Expense per Appendix 2-BA Fixed Assets, Column J (l) | L15: Variance 2
C16: (a) | D16: (b) | E16: (c) | F16: (d) | G16: (e) = (c) + 1 x (d) 1 | H16: (f) | I16: (g) = 1 / (f) | J16: (h) = (e) / (f) | L16: (m) = (h) - (l)
A17: 1611 | B17: Computer Software (Formally known as Account 1925) | C17: 5407633.66 | D17: 3121139.3 | E17: =C17-D17 -> 2286494.36 | F17: 342714.16 | G17: =E17+1*F17 -> 2629208.52 | H17: 5 | I17: =IF(H17=0,0,1/H17) -> 0.2 | J17: =IF(H17=0,0,G17/H17) -> 525841.704 | K17: 524708.4802 | L17: =IF(ISERROR(+J17-K17), 0, +J17-K17) -> 1133.223833
A18: 1612 | B18: Land Rights (Formally known as Account 1906) | C18: 510696.18 | E18: =C18-D18 -> 510696.18 | F18: 43422.53 | G18: =E18+1*F18 -> 554118.71 | I18: 0 | J18: 0 | K18: 0 | L18: 0
A19: 1805 | B19: Land | C19: 2323796.46 | E19: 2323796.46 | G19: 2323796.46 | I19: 0 | J19: 0 | K19: 0 | L19: 0
A20: 1808 | B20: Buildings | C20: 28987661.77 | D20: 115138.66 | E20: 28872523.11 | F20: 589010.59 | G20: 29461533.7 | H20: 50 | I20: 0.02 | J20: 589230.674 | K20: 594767.3821 | L20: -5536.708087
A21: 1810 | B21: Leasehold Improvements | E21: 0 | G21: 0 | I21: 0 | J21: 0 | L21: 0
A22: 1815 | B22: Transformer Station Equipment >50 kV | C22: 31230358.87 | D22: 1126896.08 | E22: 30103462.79 | F22: 531483.7 | G22: 30634946.49 | H22: 40 | I22: 0.025 | J22: 765873.6623 | K22: 772625.53 | L22: -6751.867742
A23: 1820 | B23: Distribution Station Equipment <50 kV | C23: 4811796.68 | D23: 953767.65 | E23: 3858029.03 | F23: 425404 | G23: 4283433.03 | H23: 30 | I23: 0.03333333333 | J23: 142781.101 | K23: 105317.6684 | L23: 37463.43265
A24: 1825 | B24: Storage Battery Equipment | E24: 0 | G24: 0 | I24: 0 | J24: 0 | L24: 0
A25: 1830 | B25: Poles, Towers & Fixtures | C25: 55022226.19 | D25: 5370025.84 | E25: 49652200.35 | F25: 5621082.721 | G25: 55273283.07 | H25: 25 | I25: 0.04 | J25: 2210931.323 | K25: 2110312.452 | L25: 100618.871
A26: 1835 | B26: Overhead Conductors & Devices | C26: 27072748.9 | D26: 1856797.08 | E26: 25215951.82 | F26: 3938300.406 | G26: 29154252.23 | H26: 25 | I26: 0.04 | J26: 1166170.089 | K26: 1116443.732 | L26: 49726.35696
A27: 1840 | B27: Underground Conduit | C27: 15510774.24 | D27: 1870813.74 | E27: 13639960.5 | F27: 1053089.197 | G27: 14693049.7 | H27: 25 | I27: 0.04 | J27: 587721.9879 | K27: 564995.1644 | L27: 22726.82346
A28: 1845 | B28: Underground Conductors & Devices | C28: 35032054.87 | D28: 4341337.68 | E28: 30690717.19 | F28: 2625458.449 | G28: 33316175.64 | H28: 25 | I28: 0.04 | J28: 1332647.026 | K28: 1323624.565 | L28: 9022.460484
A29: 1850 | B29: Line Transformers | C29: 48052253.27 | D29: 4030435.83 | E29: 44021817.44 | F29: 3346545.599 | G29: 47368363.04 | H29: 25 | I29: 0.04 | J29: 1894734.522 | K29: 1793179.803 | L29: 101554.7183
A30: 1855 | B30: Services (Overhead & Underground) | C30: 22829580.62 | D30: 2923012.27 | E30: 19906568.35 | F30: 1453141.289 | G30: 21359709.64 | H30: 25 | I30: 0.04 | J30: 854388.3855 | K30: 808932.977 | L30: 45455.40852
A31: 1860 | B31: Meters | C31: 12154026.08 | D31: 2256275.22 | E31: 9897750.86 | F31: 809494 | G31: 10707244.86 | H31: 25 | I31: 0.04 | J31: 428289.7944 | K31: 535570.22 | L31: -107280.4256
A32: 1860 | B32: Meters (Smart Meters) | C32: 6265880 | E32: 6265880 | G32: 6265880 | H32: 15 | I32: 0.06666666667 | J32: 417725.3333 | K32: 505136.9868 | L32: -87411.65348
A33: 1905 | B33: Land | E33: 0 | G33: 0 | I33: 0 | J33: 0 | L33: 0
A34: 1908 | B34: Buildings & Fixtures | E34: 0 | G34: 0 | I34: 0 | J34: 0 | L34: 0
A35: 1910 | B35: Leasehold Improvements | E35: 0 | G35: 0 | I35: 0 | J35: 0 | L35: 0
A36: 1915 | B36: Office Furniture & Equipment (10 years) | C36: 1757547.67 | D36: 501032.95 | E36: 1256514.72 | F36: 19536.92 | G36: 1276051.64 | H36: 10 | I36: 0.1 | J36: 127605.164 | K36: 106926.84 | L36: 20678.324
A37: 1915 | B37: Office Furniture & Equipment (5 years) | E37: 0 | G37: 0 | H37: 5 | I37: 0.2 | J37: 0 | K37: -2499.739933 | L37: 2499.739933
A38: 1920 | B38: Computer Equipment - Hardware | E38: 0 | G38: 0 | I38: 0 | J38: 0 | L38: 0
A39: 1920 | B39: Computer Equip.-Hardware(Post Mar. 22/04) | E39: 0 | G39: 0 | I39: 0 | J39: 0 | L39: 0
A40: 1920 | B40: Computer Equip.-Hardware(Post Mar. 19/07) | C40: 3815382.27 | D40: 2720706.55 | E40: 1094675.72 | F40: 112736.19 | G40: 1207411.91 | H40: 5 | I40: 0.2 | J40: 241482.382 | K40: 229633.7733 | L40: 11848.60867
A41: 1930 | B41: Transportation Equipment | C41: 7465134.58 | D41: 3614495.99 | E41: 3850638.59 | F41: 911990.56 | G41: 4762629.15 | H41: 7.303250447 | I41: 0.1369253331 | J41: 652124.5827 | K41: 639163.9961 | L41: 12960.58659
A42: 1935 | B42: Stores Equipment | C42: 533924.67 | D42: 73089.42 | E42: 460835.25 | F42: 8581.15 | G42: 469416.4 | H42: 10 | I42: 0.1 | J42: 46941.64 | K42: 46941.72 | L42: -0.08
A43: 1940 | B43: Tools, Shop & Garage Equipment | C43: 1182142.32 | D43: 443704.41 | E43: 738437.91 | F43: 81737.16 | G43: 820175.07 | H43: 10 | I43: 0.1 | J43: 82017.507 | K43: 145992.3345 | L43: -63974.82745
A44: 1945 | B44: Measurement & Testing Equipment | C44: 891281.07 | D44: 477496.05 | E44: 413785.02 | F44: 4725.99 | G44: 418511.01 | H44: 10 | I44: 0.1 | J44: 41851.101 | K44: 52996.856 | L44: -11145.755
A45: 1950 | B45: Power Operated Equipment | E45: 0 | G45: 0 | I45: 0 | J45: 0 | L45: 0
A46: 1955 | B46: Communications Equipment | C46: 902458.15 | D46: 46552.71 | E46: 855905.44 | F46: 8031.18 | G46: 863936.62 | H46: 10 | I46: 0.1 | J46: 86393.662 | K46: 85960.3324 | L46: 433.3296032
A47: 1955 | B47: Communication Equipment (Smart Meters) | E47: 0 | G47: 0 | I47: 0 | J47: 0 | L47: 0
A48: 1960 | B48: Miscellaneous Equipment | C48: 2563676.273 | D48: 441528.61 | E48: 2122147.663 | F48: 17607.76 | G48: 2139755.423 | H48: 10 | I48: 0.1 | J48: 213975.5423 | K48: 211707.0937 | L48: 2268.448565
A49: 1970 | B49: Load Management Controls - Customer Premises | E49: 0 | G49: 0 | I49: 0 | J49: 0 | L49: 0
A50: 1975 | B50: Load Management Controls Utility Premises | E50: 0 | G50: 0 | I50: 0 | J50: 0 | L50: 0
A51: 1980 | B51: System Supervisor Equipment | C51: 3949134.58 | D51: 1455832.62 | E51: 2493301.96 | F51: 465382.76 | G51: 2958684.72 | H51: 15 | I51: 0.06666666667 | J51: 197245.648 | K51: 204791.418 | L51: -7545.769993
A52: 1985 | B52: Miscellaneous Fixed Assets | E52: 0 | G52: 0 | I52: 0 | J52: 0 | L52: 0
A53: 1990 | B53: Other Tangible Property | E53: 0 | G53: 0 | I53: 0 | J53: 0 | L53: 0
A54: 1995 | B54: Contributions & Grants | C54: -30158715.27 | E54: -30158715.27 | F54: -1672704.93 | G54: -31831420.2 | H54: 25 | I54: 0.04 | J54: -1273256.808 | K54: -1273634.808 | L54: 378
B55: Total | C55: =SUM(C17:C54) -> 288113454.1 | D55: =SUM(D17:D54) -> 37740078.66 | E55: =SUM(E17:E54) -> 250373375.4 | F55: =SUM(F17:F54) -> 20736771.38 | G55: =SUM(G17:G54) -> 271110146.8 | J55: =SUM(J17:J54) -> 11332716.02 | K55: =SUM(K17:K54) -> 11203594.78 | L55: =SUM(L17:L54) -> 129121.2452
A57: Notes:
A59: 1 | B59: Board policy of the "half-year" rule - the applicant must ensure that additions in the year attract a half-year depreciation expense in the first year. Deviations from this standard practice must be supported in the application.
A60: 2 | B60: The applicant must provide an explanation of material variances in evidence.
A62: General | B62: Applicants must provide a breakdown of depreciation and amortization expense in the above format for all relevant accounts. Asset Retirement Obligations (AROs), depreciation and accretion expense should be disclosed separately consistent with the Notes of historical Audited Financial Statements.

Sheet App.2-CG_NewCGAAP_DepExp_2013
N1: File Number: | O1: =EBNUMBER -> EB-2015-0108
N2: Exhibit: | O2: 4
N3: Tab:
N4: Schedule: | O4: Table 4-49
N5: Page: | O5: 96
N7: Date: | O7: 2015-05-01
A9: Appendix 2-CO
A10: Depreciation and Amortization Expense
A11: Assumes the applicant made capitalization and depreciation expense accounting policy changes under CGAAP effective January 1, 2013 and will adopt IFRS for financial reporting purposes effective January 1, 2015.
C13: Year | D13: 2013 | E13: Revised CGAAP
A15: Account | B15: Description | C15: Opening NBV as at Jan 1, 2013 5 | D15: Additions | E15: Average Remaining Life of Opening NBV 4 | F15: Years (new additions only) 3 | G15: Depreciation Rate on New Additions | H15: Depreciation Expense on Opening NBV | I15: Depreciation Expense on Additions 1 | J15: 2013 Depreciation Expense | K15: 2013 Depreciation Expense per Appendix 2-BA Fixed Assets, Column J (l) | L15: Variance 2 | M15: Depreciation Expense on 2013 Full Year Additions | N15: Less Depreciation Expense on Assets Fully Depreciated during the year (o) | O15: 2013 Full Year Depreciation 6 | P15: Balances in 2013 Opening NBV, should have been fully depreciated, thus, remove 2013
C16: (a) | D16: (d) | E16: (i) | F16: (f) | G16: (g) = 1 / (f) | H16: (j) = (a) / (i) | I16: (h)=((d)*1)/(f) | J16: (k) = (j) + (h) | L16: (m) = (k) - (l) | M16: (n) = (d)/(f) | O16: (p) = (j) + (n) - (o)
A17: 1611 | B17: Computer Software (Formally known as Account 1925) | C17: 1137960.47 | D17: 342714.16 | E17: 2.437 | F17: 5 | G17: =IF(F17=0,0,1/F17) -> 0.2 | H17: =IF(E17=0,0,+C17/E17) -> 466951.3623 | I17: =IF(F17=0,0,+(D17*1)/F17) -> 68542.832 | J17: =IF(ISERROR(+H17+I17), 0, +H17+I17) -> 535494.1943 | K17: 535469.38 | L17: =IF(ISERROR(+J17-K17), 0, +J17-K17) -> 24.81433073 | M17: =IF(F17=0,0,+(D17)/F17) -> 68542.832 | N17: 125500.88 | O17: =IF(ISERROR(+M17+H17-N17), 0, +M17+H17-N17) -> 409993.3143
A18: 1612 | B18: Land Rights (Formally known as Account 1906) | C18: 510696.18 | D18: 43422.53 | E18: 0 | F18: 0 | G18: 0 | H18: 0 | I18: =IF(F18=0,0,+(D18*1)/F18) -> 0 | J18: 0 | K18: 0 | L18: 0 | M18: 0 | O18: =IF(ISERROR(+M18+H18-N18), 0, +M18+H18-N18) -> 0
A19: 1805 | B19: Land | C19: 2323796.46 | G19: 0 | H19: 0 | I19: 0 | J19: 0 | K19: 0 | L19: 0 | M19: 0 | O19: 0
A20: 1808 | B20: Buildings - MS | C20: 158628.96 | D20: 19349.3 | E20: 24.36 | F20: 50 | G20: 0.02 | H20: 6511.862069 | I20: 386.986 | J20: 6898.848069 | K20: 6899.64 | L20: -0.7919310345 | M20: 386.986 | O20: 6898.848069
A21: 1808 | B21: Buildings - TS | C21: 3132108.26 | D21: -19817.29 | E21: 49.28 | F21: 60 | G21: 0.01666666667 | H21: 63557.39164 | I21: -330.2881667 | J21: 63227.10347 | K21: 60049.32 | L21: 3177.783473 | M21: -330.2881667 | O21: 63227.10347
A22: 1808 | B22: Buildings & Fixtures - Service Centre | C22: 19340595.09 | D22: 286335.76 | E22: 49.8718 | F22: 50 | G22: 0.02 | H22: 387806.237 | I22: 5726.7152 | J22: 393532.9522 | K22: 393533.04 | L22: -0.08777899318 | M22: 5726.7152 | O22: 393532.9522
A23: 1808 | B23: Service Centre - Parking Lot & Fence | C23: 690605.46 | D23: 69216.22 | E23: 23.05 | F23: 25 | G23: 0.04 | H23: 29961.19132 | I23: 2768.6488 | J23: 32729.84012 | K23: 32724.6 | L23: 5.24012321 | M23: 2768.6488 | O23: 32729.84012
A24: 1808 | B24: Service Centre - HVAC | C24: 3577996.8 | D24: 221804.05 | E24: 13.00453 | F24: 15 | G24: 0.06666666667 | H24: 275134.6492 | I24: 14786.93667 | J24: 289921.5859 | K24: 289921.32 | L24: 0.2659004336 | M24: 14786.93667 | O24: 289921.5859
A25: 1808 | B25: Service Centre - Roof | C25: 594826.71 | D25: 5985 | E25: 18 | F25: 20 | G25: 0.05 | H25: 33045.92833 | I25: 299.25 | J25: 33345.17833 | K25: 33345.24 | L25: -0.06166666667 | M25: 299.25 | O25: 33345.17833
A26: 1808 | B26: Service Centre - Automation | C26: 0 | D26: 6137.55 | E26: 13.99 | F26: 15 | G26: 0.06666666667 | H26: 0 | I26: =IF(F26=0,0,+(D26*1)/F26) -> 409.17 | J26: 409.17 | K26: 3107.04 | L26: -2697.87 | M26: 409.17 | O26: 409.17
A27: 1808 | B27: Operation Centre - Workshop | C27: 5322.96 | D27: 0 | E27: 35.49 | F27: 50 | G27: 0.02 | H27: 149.9847844 | I27: 0 | J27: 149.9847844 | K27: 150 | L27: -0.01521555368 | M27: 0 | O27: 149.9847844
A28: 1810 | B28: Leasehold Improvements | G28: 0 | H28: 0 | I28: 0 | J28: 0 | L28: 0 | M28: 0 | O28: 0
A29: 1815 | B29: Transformer Station Equipment >50 kV | C29: 8117510.36 | D29: =320766-211614 -> 109152 | E29: 10.4335 | F29: 30 | G29: 0.03333333333 | H29: =IF(E29=0,0,+C29/E29) -> 778023.7082 | I29: 3638.4 | J29: =IF(ISERROR(+H29+I29), 0, +H29+I29) -> 781662.1082 | K29: =-74634.15+847685+8610.57 -> 781661.42 | L29: 0.6882474723 | M29: 3638.4 | N29: 18603.63 | O29: 763058.4782
A30: 1815 | B30: TSE Auxiliary equipment | C30: 1260559.77 | D30: =33223.74 -> 33223.74 | E30: 22.629 | F30: 30 | G30: 0.03333333333 | H30: =IF(E30=0,0,+C30/E30) -> 55705.50046 | I30: 1107.458 | J30: =IF(ISERROR(+H30+I30), 0, +H30+I30) -> 56812.95846 | K30: 56811.48 | L30: 1.478464006 | M30: 1107.458 | O30: 56812.95846
A31: 1815 | B31: TSE - P&C equipment | C31: 2208862.29 | D31: =213289.89 -> 213289.89 | E31: 10.4621 | F31: 15 | G31: 0.06666666667 | H31: 211129.9156 | I31: 14219.326 | J31: 225349.2416 | K31: 225319.09 | L31: 30.15160012 | M31: 14219.326 | O31: 225349.2416
A32: 1815 | B32: TSE - Power transformer | C32: 10172575.47 | D32: =175818.1 -> 175818.1 | E32: 42.354 | F32: 50 | G32: 0.02 | H32: 240179.8052 | I32: 3516.362 | J32: 243696.1672 | K32: 243695.64 | L32: 0.527213203 | M32: 3516.362 | O32: 243696.1672
A33: 1820 | B33: Distribution Station Equipment <50 kV | C33: 796679.34 | D33: 407723.51 | E33: 6.6855 | F33: 30 | G33: 0.03333333333 | H33: 119165.2591 | I33: 13590.78367 | J33: 132756.0428 | K33: 132756.64 | L33: -0.5971904121 | M33: 13590.78367 | N33: 37383.03 | O33: 95373.01281
A34: 1820 | B34: Meters Wholesale | C34: 739069.06 | D34: 17680 | E34: 13.55086343 | F34: 15 | G34: 0.06666666667 | H34: 54540.36667 | I34: 1178.666667 | J34: 55719.03333 | K34: 55719.03333 | L34: 0 | M34: 1178.666667 | O34: 55719.03333
A35: 1825 | B35: Storage Battery Equipment | G35: 0 | H35: 0 | I35: 0 | J35: 0 | L35: 0 | M35: 0 | O35: 0
A36: 1830 | B36: Poles, Towers & Fixtures | C36: 32108265.47 | D36: 4855043.64 | E36: 38.286 | F36: 45 | G36: 0.02222222222 | H36: 838642.4664 | I36: 107889.8587 | J36: 946532.3251 | K36: 946536 | L36: -3.674896516 | M36: 107889.8587 | O36: 946532.3251
A37: 1835 | B37: Overhead Conductors & Devices | C37: 17765762.07 | D37: 2639429.06 | E37: 36.802 | F37: 45 | G37: 0.02222222222 | H37: 482739.0378 | I37: 58653.97911 | J37: 541393.0169 | K37: 541386.96 | L37: 6.056935142 | M37: 58653.97911 | O37: 541393.0169
A38: 1835 | B38: OH Manual line switches | D38: 372600.49 | E38: 0 | F38: 30 | G38: 0.03333333333 | H38: 0 | I38: 12420.01633 | J38: 12420.01633 | K38: 12420.12 | L38: -0.1036666667 | M38: 12420.01633 | O38: 12420.01633
A39: 1835 | B39: OH SCADA control equipment | D39: 389560.73 | E39: 0 | F39: 15 | G39: 0.06666666667 | H39: 0 | I39: 25970.71533 | J39: 25970.71533 | K39: 25970.76 | L39: -0.04466666666 | M39: 25970.71533 | O39: 25970.71533
A40: 1840 | B40: Underground Conduit | C40: 7776100.81 | D40: 909574.59 | E40: 41.475 | F40: 50 | G40: 0.02 | H40: 187488.8682 | I40: 18191.4918 | J40: 205680.36 | K40: 205571.64 | L40: 108.7200339 | M40: 18191.4918 | O40: 205680.36
A41: 1845 | B41: Underground Conductors & Devices | C41: 17387400.65 | D41: 2267661.94 | E41: 24.985 | F41: 35 | G41: 0.02857142857 | H41: =IF(E41=0,0,+C41/E41)-P41 -> 733536.3841 | I41: 64790.34114 | J41: 798326.7253 | K41: 798336.05 | L41: -9.324712656 | M41: 64790.34114 | O41: =IF(ISERROR(+M41+H41-N41), 0, +M41+H41-N41)+P41 -> 760703.9153 | P41: -37622.81
A42: 1850 | B42: Line Transformers - Overhead | C42: 12702530.35 | D42: =821438.01-170076.73 -> 651361.28 | E42: 37.846 | F42: 45 | G42: 0.02222222222 | H42: =IF(E42=0,0,+C42/E42)-P42 -> 300289.1889 | I42: 14474.69511 | J42: 314763.884 | K42: 314764.82 | L42: -0.9359769828 | M42: 14474.69511 | N42: -35924.8 | O42: =IF(ISERROR(+M42+H42-N42), 0, +M42+H42-N42) -> 350688.684 | P42: 35348.14
A43: 1850 | B43: Line Transformers - Underground | C43: 14232826.71 | D43: =2279599.86-40481.54 -> 2239118.32 | E43: 27.451 | F43: 35 | G43: 0.02857142857 | H43: =IF(E43=0,0,+C43/E43) -> 518481.1741 | I43: 63974.80914 | J43: 582455.9832 | K43: 582455.04 | L43: 0.9432348756 | M43: 63974.80914 | O43: =IF(ISERROR(+M43+H43-N43), 0, +M43+H43-N43) -> 582455.9832
A44: 1855 | B44: Services - Overhead | C44: 4150228.8 | D44: 272539.05 | E44: 37.0279 | F44: 45 | G44: 0.02222222222 | H44: 112083.8287 | I44: 6056.423333 | J44: 118140.252 | K44: 118140.12 | L44: 0.1320138688 | M44: 6056.423333 | O44: 118140.252
A45: 1855 | B45: Services - Underground | C45: 6889107.25 | D45: 982568.68 | E45: 41.243 | F45: 50 | G45: 0.02 | H45: 167037.0063 | I45: 19651.3736 | J45: 186688.3799 | K45: 186686.04 | L45: 2.339879854 | M45: 19651.3736 | O45: 186688.3799
A46: 1860 | B46: Meters - Bi'directional | C46: 33590.49 | D46: 0 | E46: 23.393 | F46: 25 | G46: 0.04 | H46: 1435.920575 | I46: 0 | J46: 1435.920575 | K46: 1435.92 | L46: 0.0005745308424 | M46: 0 | O46: 1435.920575
A47: 1860 | B47: Meters - Commercial | C47: 1798459.54 | D47: 1272.55 | E47: 21.329 | F47: 25 | G47: 0.04 | H47: 84319.91842 | I47: 50.902 | J47: 84370.82042 | K47: 84368.76 | L47: 2.060420929 | M47: 50.902 | O47: 84370.82042
A48: 1860 | B48: Meters - Residential | C48: 2397467.43 | D48: 0 | E48: 10.9717 | F48: 25 | G48: 0.04 | H48: =IF(E48=0,0,+C48/E48)-P48 -> 338974.2309 | I48: 0 | J48: 338974.2309 | K48: 338973.4667 | L48: 0.7641908118 | M48: 0 | N48: 155199.08 | O48: =IF(ISERROR(+M48+H48-N48), 0, +M48+H48-N48)+P48 -> 63314.68086 | P48: -120460.47
A49: 1860 | B49: Meters C& I | C49: 0 | D49: 808222.31 | E49: 0 | F49: 15 | G49: 0.06666666667 | H49: 0 | I49: 53881.48733 | J49: 53881.48733 | K49: 55060.2 | L49: -1178.712667 | M49: 53881.48733 | O49: 53881.48733
A50: 1860 | B50: Meters (Smart Meters) | C50: 6265880 | D50: 0 | E50: 11.568 | F50: 15 | G50: 0.06666666667 | H50: 541656.2932 | I50: 0 | J50: 541656.2932 | K50: 541668.84 | L50: -12.54677732 | M50: 0 | O50: 541656.2932
A51: 1905 | B51: Land | G51: 0 | H51: 0 | I51: 0 | J51: 0 | L51: 0 | M51: 0 | O51: 0
A52: 1908 | B52: Buildings & Fixtures | G52: 0 | H52: 0 | I52: 0 | J52: 0 | L52: 0 | M52: 0 | O52: 0
A53: 1910 | B53: Leasehold Improvements | G53: 0 | H53: 0 | I53: 0 | J53: 0 | L53: 0 | M53: 0 | O53: 0
A54: 1915 | B54: Office Furniture & Equipment (10 years) | C54: 886158.36 | D54: 19536.92 | E54: 8.733 | F54: 10 | G54: 0.1 | H54: 101472.3875 | I54: 1953.692 | J54: 103426.0795 | K54: 103425 | L54: 1.079495706 | M54: 1953.692 | O54: 103426.0795
A55: 1915 | B55: Office Furniture & Equipment (5 years) | C55: 7003.71 | E55: 2 | F55: 5 | G55: 0.2 | H55: 3501.855 | I55: 0 | J55: 3501.855 | K55: 3501.84 | L55: 0.015 | M55: 0 | O55: 3501.855
A56: 1920 | B56: Computer Equipment - Hardware | G56: 0 | H56: 0 | I56: 0 | J56: 0 | L56: 0 | M56: 0 | O56: 0
A57: 1920 | B57: Computer Equip.-Hardware(Post Mar. 22/04) | G57: 0 | H57: 0 | I57: 0 | J57: 0 | L57: 0 | M57: 0 | O57: 0
A58: 1920 | B58: Computer Equip.-Hardware(Post Mar. 19/07) | C58: 473009.83 | D58: 112736.19 | E58: 3.03 | F58: 5 | G58: 0.2 | H58: =IF(E58=0,0,+C58/E58)-+P58 -> 178248.7548 | I58: 22547.238 | J58: 200795.9928 | K58: 200839.38 | L58: -43.38721452 | M58: 22547.238 | N58: 30485.56 | O58: =IF(ISERROR(+M58+H58-N58), 0, +M58+H58-N58)+P58 -> 148170.5328 | P58: -22139.9
A59: 1930 | B59: Transportation Equipment - car | C59: 29729.38 | D59: 0 | E59: 4 | F59: 5 | G59: 0.2 | H59: 7432.345 | I59: 0 | J59: 7432.345 | K59: 7432.32 | L59: 0.025 | M59: 0 | O59: 7432.345
A60: 1930 | B60: Transportation Equipment - Other - trailers etc | C60: 184654.58 | D60: 305041.2 | E60: 12.099 | F60: 15 | G60: 0.06666666667 | H60: 15261.97041 | I60: 20336.08 | J60: 35598.05041 | K60: 35597.88 | L60: 0.1704107778 | M60: 20336.08 | O60: 35598.05041
A61: 1930 | B61: Transportation Equipment - small trucks | C61: 629219.14 | D61: 56996.95 | E61: 6.263593009 | F61: 8 | G61: 0.125 | H61: 100456.5813 | I61: 7124.61875 | J61: 107581.2 | K61: 107581.2 | L61: 0 | M61: 7124.61875 | O61: 107581.2
A62: 1930 | B62: Transportation Equipment - workplatform | C62: 1400100.08 | D62: 408866.64 | E62: 8.973 | F62: 12 | G62: 0.08333333333 | H62: 156034.7799 | I62: 34072.22 | J62: 190106.9999 | K62: 190112.16 | L62: -5.160104759 | M62: 34072.22 | O62: 190106.9999
A63: 1930 | B63: Transportation Equipmnet - Hybrid system | C63: 0 | D63: 141085.77 | E63: 0 | F63: 5 | G63: 0.2 | H63: 0 | I63: 28217.154 | J63: 28217.154 | K63: 28217.16 | L63: -0.006000000001 | M63: 28217.154 | O63: 28217.154
A64: 1935 | B64: Stores Equipment | C64: 340118.52 | D64: 8581.15 | E64: 7.38 | F64: 10 | G64: 0.1 | H64: 46086.52033 | I64: 858.115 | J64: 46944.63533 | K64: 46941.72 | L64: 2.915325203 | M64: 858.115 | O64: 46944.63533
A65: 1940 | B65: Tools, Shop & Garage Equipment | C65: 269625.01 | D65: 10422.73 | E65: 8.365 | F65: 8 | G65: 0.125 | H65: =IF(E65=0,0,+C65/E65)-P65 -> 33437.22763 | I65: 1302.84125 | J65: 34740.06888 | K65: 34739.67 | L65: 0.3988829946 | M65: 1302.84125 | O65: =IF(ISERROR(+M65+H65-N65), 0, +M65+H65-N65)+P65 -> 33535.35888 | P65: -1204.71
A66: 1940 | B66: Truck tools | C66: 220122.17 | D66: 71314.43 | E66: 2.494 | F66: 5 | G66: 0.2 | H66: =IF(E66=0,0,+C66/E66)-+P66 -> 147256.8637 | I66: 14262.886 | J66: 161519.7497 | K66: 161512.34 | L66: 7.409664796 | M66: 14262.886 | N66: 15250.25 | O66: =IF(ISERROR(+M66+H66-N66), 0, +M66+H66-N66)+P66 -> 87273.32966 | P66: -58996.17
A67: 1945 | B67: Measurement & Testing Equipment | C67: 240372.34 | D67: 4725.99 | E67: 4.6162 | F67: 7 | G67: 0.1428571429 | H67: =IF(E67=0,0,+C67/E67)-P67 -> 68183.52437 | I67: 675.1414286 | J67: 68858.6658 | K67: 68859.18 | L67: -0.5141985678 | M67: 675.1414286 | N67: 5346.77 | O67: =IF(ISERROR(+M67+H67-N67), 0, +M67+H67-N67)+P67 -> 47399.8458 | P67: -16112.05
A68: 1950 | B68: Power Operated Equipment | G68: 0 | H68: 0 | I68: 0 | J68: 0 | L68: 0 | M68: 0 | O68: 0
A69: 1955 | B69: Communications Equipment - phones | C69: 341350.47 | D69: 6024 | E69: 6.731 | F69: 10 | G69: 0.1 | H69: 50713.18823 | I69: 602.4 | J69: 51315.58823 | K69: 51312.94 | L69: 2.648233546 | M69: 602.4 | N69: 4512.46 | O69: 46803.12823
A70: 1955 | B70: Communications Equipment - Radio wireless | C70: 109455.16 | D70: 2007.18 | E70: 4.4157 | F70: 8 | G70: 0.125 | H70: 24787.72562 | I70: 250.8975 | J70: 25038.62312 | K70: 25038.6 | L70: 0.02311541771 | M70: 250.8975 | O70: 25038.62312
A71: 1955 | B71: Communications Equipment - Radio | C71: 122011.8 | E71: 6.925 | F71: 10 | G71: 0.1 | H71: 17619.03249 | I71: 0 | J71: 17619.03249 | K71: 17619.96 | L71: -0.9275090253 | M71: 0 | O71: 17619.03249
A72: 1955 | B72: Communication Equipment (Smart Meters) | G72: 0 | H72: 0 | I72: 0 | J72: 0 | L72: 0 | M72: 0 | O72: 0
A73: 1960 | B73: Miscellaneous Equipment | C73: 1554687.143 | D73: 17607.76 | E73: 6.575 | F73: 10 | G73: 0.1 | H73: 236454.3183 | I73: 1760.776 | J73: 238215.0943 | K73: 238202.09 | L73: 13.004327 | M73: 1760.776 | N73: 212.21 | O73: 238002.8843
A74: 1970 | B74: Load Management Controls - Customer Premises | G74: 0 | H74: 0 | I74: 0 | J74: 0 | L74: 0 | M74: 0 | O74: 0
A75: 1975 | B75: Load Management Controls Utility Premises | G75: 0 | H75: 0 | I75: 0 | J75: 0 | L75: 0 | M75: 0 | O75: 0
A76: 1980 | B76: System Supervisor Equipment | C76: 1637568.18 | D76: 465382.76 | E76: 11.225 | F76: 15 | G76: 0.06666666667 | H76: =IF(E76=0,0,+C76/E76)-P76 -> 176968.9367 | I76: 31025.51733 | J76: 207994.454 | K76: 207899.17 | L76: 95.28401485 | M76: 31025.51733 | N76: 1930.32 | O76: =IF(ISERROR(+M76+H76-N76), 0, +M76+H76-N76)+P76 -> 174981.004 | P76: -31083.13
A77: 1985 | B77: Miscellaneous Fixed Assets | G77: 0 | H77: 0 | I77: 0 | J77: 0 | L77: 0 | M77: 0 | O77: 0
A78: 1990 | B78: Other Tangible Property | G78: 0 | H78: 0 | I78: 0 | J78: 0 | L78: 0 | M78: 0 | O78: 0
A79: 1995 | B79: Contributions & Grants | C79: -21932649.26 | D79: -1672705 | G79: 0 | H79: -699607.3844 | I79: -41608.89371 | J79: -741216.2781 | K79: -741216.28 | L79: 0.001857878757 | M79: =+I79 -> -41608.89371 | O79: -741216.2781
B80: Total | C80: =SUM(C17:C79) -> 164787949.8 | D80: =SUM(D17:D79) -> 18278611.83 | H80: =SUM(H17:H79) -> 7692856.106 | I80: 699228.0233 | J80: 8392084.13 | K80: 8392553.95 | L80: -469.8202088 | M80: 699228.0233 | N80: 358499.39 | O80: 7745965.5
A82: Notes:
A84: 1 | B84: Board policy of the "half-year" rule - the applicant must ensure that additions in the year attract a half-year depreciation expense in the first year. Deviations from this standard practice must be supported in the application.
A85: 2 | B85: The applicant must provide an explanation of material variances in evidence.
A86: 3 | B86: The applicant should ensure that the years for new additions of assets are the asset useful lives determined by management in accordance with the Board's regulatory accounting policies. The capitalization and depreciation expense accounting changes should be implemented consistent with the Board’s regulatory accounting policies as set out for MIFRS as contained in the Report of the Board, Transition to International Financial Reporting Standards, EB-2008-0408, the Kinectrics Report, and the Revised 2012 Accounting Procedures Handbook for Electricity Distributors.
A87: 4 | B87: A recalculation should be performed to determine the average remaining life of opening balance of assets (i.e. excluding 2013 additions) under the change in policies under CGAAP. For example, Asset A had a useful life of 20 years under CGAAP without the change in policies. On January 1, 2013, the effective date of the changes in policies, Asset A was 3 years depreciated. As a result, Asset A would have a remaining service life of 17 years (20 years less 3 years) as of January 1, 2013. Due to making the change in policies under CGAAP, management re-assessed the asset useful lives and concluded that the revised useful life of Asset A is now 30 years. Therefore, the average remaining useful life of the opening balance of Asset A is determined to be 27 years (30 years less 3 years) under the revised CGAAP as of January 1, 2013.
A88: 5 | B88: NBV must exclude assets still on the books but which have been fully amortized or depreciated.
A89: 6 | B89: This column refers to the calculated full year depreciation but excludes the depreciation expense on assets fully depreciated during the year. This column is used for the purpose of calculating depreciation expense in the following year on the next worksheet.
A91: General: | B91: Applicants must provide a breakdown of depreciation and amortization expense in the above format for all relevant accounts. Asset Retirement Obligations (AROs), depreciation and accretion expense should be disclosed separately consistent with the Notes of historical Audited Financial Statements.

Sheet App.2-CH_MIFRS_DepExp_2014
J1: File Number: | K1: =EBNUMBER -> EB-2015-0108
J2: Exhibit:
J3: Tab:
J4: Schedule:
J5: Page:
J7: Date:
A9: Appendix 2-CP
A10: Depreciation and Amortization Expense
A11: Assumes the applicant made capitalization and depreciation expense accounting policy changes under CGAAP effective January 1, 2013 and will adopt IFRS for financial reporting purposes effective January 1, 2015.
B12: PLEASE SEE CHAPTER 2 APPENDICES FILE # 2 OF 4
E13: 2014 | F13: MIFRS
A15: Account | B15: Description | C15: Additions | D15: Years (new additions only) | E15: Depreciation Rate on New Additions | F15: 2014 Depreciation Expense 1 | G15: 2014 Depreciation Expense per Apppendix 2-BA Fixed Assets, Column J (l) | H15: Variance 2 | I15: Depreciation Expense on 2014 Full Year Additions | J15: Less Depreciation Expense on Assets Fully Depreciated during the year (o) | K15: 2014 Full Year Depreciation 3
C16: (d) | D16: (f) | E16: (g) = 1 / (f) | F16: (h)=2013 Full Year Deprecation + ((d)*0.5)/(f) | H16: (m) = (h) - (l) | I16: (n)=((d))/(f) | K16: (p) = 2013 Full Year Depreciation + (n) - (o)
A17: 1611 | B17: Computer Software (Formally known as Account 1925) | E17: =IF(D17=0,0,1/D17) -> 0 | F17: =IF(D17=0,+'App.2-CG_NewCGAAP_DepExp_2013'!O17,+'App.2-CG_NewCGAAP_DepExp_2013'!O17+((C17*0.5)/D17)) -> 409993.3143 | H17: =IF(ISERROR(+F17-G17), 0, +F17-G17) -> 409993.3143 | I17: =IF(D17=0,0,+(C17)/D17) -> 0 | K17: =IF(ISERROR(+I17+'App.2-CG_NewCGAAP_DepExp_2013'!O17-J17), 0, +I17+'App.2-CG_NewCGAAP_DepExp_2013'!O17-J17) -> 409993.3143
A18: 1612 | B18: Land Rights (Formally known as Account 1906) | E18: 0 | F18: =IF(D18=0,+'App.2-CG_NewCGAAP_DepExp_2013'!O18,+'App.2-CG_NewCGAAP_DepExp_2013'!O18+((C18*0.5)/D18)) -> 0 | H18: 0 | I18: 0 | K18: =IF(ISERROR(+I18+'App.2-CG_NewCGAAP_DepExp_2013'!O18-J18), 0, +I18+'App.2-CG_NewCGAAP_DepExp_2013'!O18-J18) -> 0
A19: 1805 | B19: Land | E19: 0 | F19: =IF(D19=0,+'App.2-CG_NewCGAAP_DepExp_2013'!O19,+'App.2-CG_NewCGAAP_DepExp_2013'!O19+((C19*0.5)/D19)) -> 0 | H19: 0 | I19: 0 | K19: =IF(ISERROR(+I19+'App.2-CG_NewCGAAP_DepExp_2013'!O19-J19), 0, +I19+'App.2-CG_NewCGAAP_DepExp_2013'!O19-J19) -> 0
A20: 1808 | B20: Buildings | E20: 0 | F20: =IF(D20=0,+'App.2-CG_NewCGAAP_DepExp_2013'!O20,+'App.2-CG_NewCGAAP_DepExp_2013'!O20+((C20*0.5)/D20)) -> 6898.848069 | H20: 6898.848069 | I20: 0 | K20: =IF(ISERROR(+I20+'App.2-CG_NewCGAAP_DepExp_2013'!O20-J20), 0, +I20+'App.2-CG_NewCGAAP_DepExp_2013'!O20-J20) -> 6898.848069
A21: 1810 | B21: Leasehold Improvements | E21: 0 | F21: =IF(D21=0,+'App.2-CG_NewCGAAP_DepExp_2013'!O21,+'App.2-CG_NewCGAAP_DepExp_2013'!O21+((C21*0.5)/D21)) -> 63227.10347 | H21: 63227.10347 | I21: 0 | K21: =IF(ISERROR(+I21+'App.2-CG_NewCGAAP_DepExp_2013'!O21-J21), 0, +I21+'App.2-CG_NewCGAAP_DepExp_2013'!O21-J21) -> 63227.10347
A22: 1815 | B22: Transformer Station Equipment >50 kV | E22: 0 | F22: =IF(D22=0,+'App.2-CG_NewCGAAP_DepExp_2013'!O22,+'App.2-CG_NewCGAAP_DepExp_2013'!O22+((C22*0.5)/D22)) -> 393532.9522 | H22: 393532.9522 | I22: 0 | K22: =IF(ISERROR(+I22+'App.2-CG_NewCGAAP_DepExp_2013'!O22-J22), 0, +I22+'App.2-CG_NewCGAAP_DepExp_2013'!O22-J22) -> 393532.9522
A23: 1820 | B23: Distribution Station Equipment <50 kV | E23: 0 | F23: =IF(D23=0,+'App.2-CG_NewCGAAP_DepExp_2013'!O23,+'App.2-CG_NewCGAAP_DepExp_2013'!O23+((C23*0.5)/D23)) -> 32729.84012 | H23: 32729.84012 | I23: 0 | K23: =IF(ISERROR(+I23+'App.2-CG_NewCGAAP_DepExp_2013'!O23-J23), 0, +I23+'App.2-CG_NewCGAAP_DepExp_2013'!O23-J23) -> 32729.84012
A24: 1825 | B24: Storage Battery Equipment | E24: 0 | F24: =IF(D24=0,+'App.2-CG_NewCGAAP_DepExp_2013'!O24,+'App.2-CG_NewCGAAP_DepExp_2013'!O24+((C24*0.5)/D24)) -> 289921.5859 | H24: 289921.5859 | I24: 0 | K24: =IF(ISERROR(+I24+'App.2-CG_NewCGAAP_DepExp_2013'!O24-J24), 0, +I24+'App.2-CG_NewCGAAP_DepExp_2013'!O24-J24) -> 289921.5859
A25: 1830 | B25: Poles, Towers & Fixtures | E25: 0 | F25: =IF(D25=0,+'App.2-CG_NewCGAAP_DepExp_2013'!O25,+'App.2-CG_NewCGAAP_DepExp_2013'!O25+((C25*0.5)/D25)) -> 33345.17833 | H25: 33345.17833 | I25: 0 | K25: =IF(ISERROR(+I25+'App.2-CG_NewCGAAP_DepExp_2013'!O25-J25), 0, +I25+'App.2-CG_NewCGAAP_DepExp_2013'!O25-J25) -> 33345.17833
A26: 1835 | B26: Overhead Conductors & Devices | E26: 0 | F26: =IF(D26=0,+'App.2-CG_NewCGAAP_DepExp_2013'!O26,+'App.2-CG_NewCGAAP_DepExp_2013'!O26+((C26*0.5)/D26)) -> 409.17 | H26: 409.17 | I26: 0 | K26: =IF(ISERROR(+I26+'App.2-CG_NewCGAAP_DepExp_2013'!O26-J26), 0, +I26+'App.2-CG_NewCGAAP_DepExp_2013'!O26-J26) -> 409.17
A27: 1840 | B27: Underground Conduit | E27: 0 | F27: =IF(D27=0,+'App.2-CG_NewCGAAP_DepExp_2013'!O27,+'App.2-CG_NewCGAAP_DepExp_2013'!O27+((C27*0.5)/D27)) -> 149.9847844 | H27: 149.9847844 | I27: 0 | K27: =IF(ISERROR(+I27+'App.2-CG_NewCGAAP_DepExp_2013'!O27-J27), 0, +I27+'App.2-CG_NewCGAAP_DepExp_2013'!O27-J27) -> 149.9847844
A28: 1845 | B28: Underground Conductors & Devices | E28: 0 | F28: =IF(D28=0,+'App.2-CG_NewCGAAP_DepExp_2013'!O28,+'App.2-CG_NewCGAAP_DepExp_2013'!O28+((C28*0.5)/D28)) -> 0 | H28: 0 | I28: 0 | K28: =IF(ISERROR(+I28+'App.2-CG_NewCGAAP_DepExp_2013'!O28-J28), 0, +I28+'App.2-CG_NewCGAAP_DepExp_2013'!O28-J28) -> 0
A29: 1850 | B29: Line Transformers | E29: 0 | F29: =IF(D29=0,+'App.2-CG_NewCGAAP_DepExp_2013'!O29,+'App.2-CG_NewCGAAP_DepExp_2013'!O29+((C29*0.5)/D29)) -> 763058.4782 | H29: 763058.4782 | I29: 0 | K29: =IF(ISERROR(+I29+'App.2-CG_NewCGAAP_DepExp_2013'!O29-J29), 0, +I29+'App.2-CG_NewCGAAP_DepExp_2013'!O29-J29) -> 763058.4782
A30: 1855 | B30: Services (Overhead & Underground) | E30: 0 | F30: =IF(D30=0,+'App.2-CG_NewCGAAP_DepExp_2013'!O30,+'App.2-CG_NewCGAAP_DepExp_2013'!O30+((C30*0.5)/D30)) -> 56812.95846 | H30: 56812.95846 | I30: 0 | K30: =IF(ISERROR(+I30+'App.2-CG_NewCGAAP_DepExp_2013'!O30-J30), 0, +I30+'App.2-CG_NewCGAAP_DepExp_2013'!O30-J30) -> 56812.95846
A31: 1860 | B31: Meters | E31: 0 | F31: =IF(D31=0,+'App.2-CG_NewCGAAP_DepExp_2013'!O31,+'App.2-CG_NewCGAAP_DepExp_2013'!O31+((C31*0.5)/D31)) -> 225349.2416 | H31: 225349.2416 | I31: 0 | K31: =IF(ISERROR(+I31+'App.2-CG_NewCGAAP_DepExp_2013'!O31-J31), 0, +I31+'App.2-CG_NewCGAAP_DepExp_2013'!O31-J31) -> 225349.2416
A32: 1860 | B32: Meters (Smart Meters) | E32: 0 | F32: =IF(D32=0,+'App.2-CG_NewCGAAP_DepExp_2013'!O32,+'App.2-CG_NewCGAAP_DepExp_2013'!O32+((C32*0.5)/D32)) -> 243696.1672 | H32: 243696.1672 | I32: 0 | K32: =IF(ISERROR(+I32+'App.2-CG_NewCGAAP_DepExp_2013'!O32-J32), 0, +I32+'App.2-CG_NewCGAAP_DepExp_2013'!O32-J32) -> 243696.1672
A33: 1905 | B33: Land | E33: 0 | F33: =IF(D33=0,+'App.2-CG_NewCGAAP_DepExp_2013'!O33,+'App.2-CG_NewCGAAP_DepExp_2013'!O33+((C33*0.5)/D33)) -> 95373.01281 | H33: 95373.01281 | I33: 0 | K33: =IF(ISERROR(+I33+'App.2-CG_NewCGAAP_DepExp_2013'!O33-J33), 0, +I33+'App.2-CG_NewCGAAP_DepExp_2013'!O33-J33) -> 95373.01281
A34: 1908 | B34: Buildings & Fixtures | E34: 0 | F34: =IF(D34=0,+'App.2-CG_NewCGAAP_DepExp_2013'!O34,+'App.2-CG_NewCGAAP_DepExp_2013'!O34+((C34*0.5)/D34)) -> 55719.03333 | H34: 55719.03333 | I34: 0 | K34: =IF(ISERROR(+I34+'App.2-CG_NewCGAAP_DepExp_2013'!O34-J34), 0, +I34+'App.2-CG_NewCGAAP_DepExp_2013'!O34-J34) -> 55719.03333
A35: 1910 | B35: Leasehold Improvements | E35: 0 | F35: =IF(D35=0,+'App.2-CG_NewCGAAP_DepExp_2013'!O35,+'App.2-CG_NewCGAAP_DepExp_2013'!O35+((C35*0.5)/D35)) -> 0 | H35: 0 | I35: 0 | K35: =IF(ISERROR(+I35+'App.2-CG_NewCGAAP_DepExp_2013'!O35-J35), 0, +I35+'App.2-CG_NewCGAAP_DepExp_2013'!O35-J35) -> 0
A36: 1915 | B36: Office Furniture & Equipment (10 years) | E36: 0 | F36: =IF(D36=0,+'App.2-CG_NewCGAAP_DepExp_2013'!O36,+'App.2-CG_NewCGAAP_DepExp_2013'!O36+((C36*0.5)/D36)) -> 946532.3251 | H36: 946532.3251 | I36: 0 | K36: =IF(ISERROR(+I36+'App.2-CG_NewCGAAP_DepExp_2013'!O36-J36), 0, +I36+'App.2-CG_NewCGAAP_DepExp_2013'!O36-J36) -> 946532.3251
A37: 1915 | B37: Office Furniture & Equipment (5 years) | E37: 0 | F37: =IF(D37=0,+'App.2-CG_NewCGAAP_DepExp_2013'!O37,+'App.2-CG_NewCGAAP_DepExp_2013'!O37+((C37*0.5)/D37)) -> 541393.0169 | H37: 541393.0169 | I37: 0 | K37: =IF(ISERROR(+I37+'App.2-CG_NewCGAAP_DepExp_2013'!O37-J37), 0, +I37+'App.2-CG_NewCGAAP_DepExp_2013'!O37-J37) -> 541393.0169
A38: 1920 | B38: Computer Equipment - Hardware | E38: 0 | F38: =IF(D38=0,+'App.2-CG_NewCGAAP_DepExp_2013'!O38,+'App.2-CG_NewCGAAP_DepExp_2013'!O38+((C38*0.5)/D38)) -> 12420.01633 | H38: 12420.01633 | I38: 0 | K38: =IF(ISERROR(+I38+'App.2-CG_NewCGAAP_DepExp_2013'!O38-J38), 0, +I38+'App.2-CG_NewCGAAP_DepExp_2013'!O38-J38) -> 12420.01633
A39: 1920 | B39: Computer Equip.-Hardware(Post Mar. 22/04) | E39: 0 | F39: =IF(D39=0,+'App.2-CG_NewCGAAP_DepExp_2013'!O39,+'App.2-CG_NewCGAAP_DepExp_2013'!O39+((C39*0.5)/D39)) -> 25970.71533 | H39: 25970.71533 | I39: 0 | K39: =IF(ISERROR(+I39+'App.2-CG_NewCGAAP_DepExp_2013'!O39-J39), 0, +I39+'App.2-CG_NewCGAAP_DepExp_2013'!O39-J39) -> 25970.71533
A40: 1920 | B40: Computer Equip.-Hardware(Post Mar. 19/07) | E40: 0 | F40: =IF(D40=0,+'App.2-CG_NewCGAAP_DepExp_2013'!O40,+'App.2-CG_NewCGAAP_DepExp_2013'!O40+((C40*0.5)/D40)) -> 205680.36 | H40: 205680.36 | I40: 0 | K40: =IF(ISERROR(+I40+'App.2-CG_NewCGAAP_DepExp_2013'!O40-J40), 0, +I40+'App.2-CG_NewCGAAP_DepExp_2013'!O40-J40) -> 205680.36
A41: 1930 | B41: Transportation Equipment | E41: 0 | F41: =IF(D41=0,+'App.2-CG_NewCGAAP_DepExp_2013'!O41,+'App.2-CG_NewCGAAP_DepExp_2013'!O41+((C41*0.5)/D41)) -> 760703.9153 | H41: 760703.9153 | I41: 0 | K41: =IF(ISERROR(+I41+'App.2-CG_NewCGAAP_DepExp_2013'!O41-J41), 0, +I41+'App.2-CG_NewCGAAP_DepExp_2013'!O41-J41) -> 760703.9153
A42: 1935 | B42: Stores Equipment | E42: 0 | F42: =IF(D42=0,+'App.2-CG_NewCGAAP_DepExp_2013'!O42,+'App.2-CG_NewCGAAP_DepExp_2013'!O42+((C42*0.5)/D42)) -> 350688.684 | H42: 350688.684 | I42: 0 | K42: =IF(ISERROR(+I42+'App.2-CG_NewCGAAP_DepExp_2013'!O42-J42), 0, +I42+'App.2-CG_NewCGAAP_DepExp_2013'!O42-J42) -> 350688.684
A43: 1940 | B43: Tools, Shop & Garage Equipment | E43: 0 | F43: =IF(D43=0,+'App.2-CG_NewCGAAP_DepExp_2013'!O43,+'App.2-CG_NewCGAAP_DepExp_2013'!O43+((C43*0.5)/D43)) -> 582455.9832 | H43: 582455.9832 | I43: 0 | K43: =IF(ISERROR(+I43+'App.2-CG_NewCGAAP_DepExp_2013'!O43-J43), 0, +I43+'App.2-CG_NewCGAAP_DepExp_2013'!O43-J43) -> 582455.9832
A44: 1945 | B44: Measurement & Testing Equipment | E44: 0 | F44: =IF(D44=0,+'App.2-CG_NewCGAAP_DepExp_2013'!O44,+'App.2-CG_NewCGAAP_DepExp_2013'!O44+((C44*0.5)/D44)) -> 118140.252 | H44: 118140.252 | I44: 0 | K44: =IF(ISERROR(+I44+'App.2-CG_NewCGAAP_DepExp_2013'!O44-J44), 0, +I44+'App.2-CG_NewCGAAP_DepExp_2013'!O44-J44) -> 118140.252
A45: 1950 | B45: Power Operated Equipment | E45: 0 | F45: =IF(D45=0,+'App.2-CG_NewCGAAP_DepExp_2013'!O45,+'App.2-CG_NewCGAAP_DepExp_2013'!O45+((C45*0.5)/D45)) -> 186688.3799 | H45: 186688.3799 | I45: 0 | K45: =IF(ISERROR(+I45+'App.2-CG_NewCGAAP_DepExp_2013'!O45-J45), 0, +I45+'App.2-CG_NewCGAAP_DepExp_2013'!O45-J45) -> 186688.3799
A46: 1955 | B46: Communications Equipment | E46: 0 | F46: =IF(D46=0,+'App.2-CG_NewCGAAP_DepExp_2013'!O46,+'App.2-CG_NewCGAAP_DepExp_2013'!O46+((C46*0.5)/D46)) -> 1435.920575 | H46: 1435.920575 | I46: 0 | K46: =IF(ISERROR(+I46+'App.2-CG_NewCGAAP_DepExp_2013'!O46-J46), 0, +I46+'App.2-CG_NewCGAAP_DepExp_2013'!O46-J46) -> 1435.920575
A47: 1955 | B47: Communication Equipment (Smart Meters) | E47: 0 | F47: =IF(D47=0,+'App.2-CG_NewCGAAP_DepExp_2013'!O47,+'App.2-CG_NewCGAAP_DepExp_2013'!O47+((C47*0.5)/D47)) -> 84370.82042 | H47: 84370.82042 | I47: 0 | K47: =IF(ISERROR(+I47+'App.2-CG_NewCGAAP_DepExp_2013'!O47-J47), 0, +I47+'App.2-CG_NewCGAAP_DepExp_2013'!O47-J47) -> 84370.82042
A48: 1960 | B48: Miscellaneous Equipment | E48: 0 | F48: =IF(D48=0,+'App.2-CG_NewCGAAP_DepExp_2013'!O48,+'App.2-CG_NewCGAAP_DepExp_2013'!O48+((C48*0.5)/D48)) -> 63314.68086 | H48: 63314.68086 | I48: 0 | K48: =IF(ISERROR(+I48+'App.2-CG_NewCGAAP_DepExp_2013'!O48-J48), 0, +I48+'App.2-CG_NewCGAAP_DepExp_2013'!O48-J48) -> 63314.68086
A49: 1970 | B49: Load Management Controls - Customer Premises | E49: 0 | F49: =IF(D49=0,+'App.2-CG_NewCGAAP_DepExp_2013'!O49,+'App.2-CG_NewCGAAP_DepExp_2013'!O49+((C49*0.5)/D49)) -> 53881.48733 | H49: 53881.48733 | I49: 0 | K49: =IF(ISERROR(+I49+'App.2-CG_NewCGAAP_DepExp_2013'!O49-J49), 0, +I49+'App.2-CG_NewCGAAP_DepExp_2013'!O49-J49) -> 53881.48733
A50: 1975 | B50: Load Management Controls Utility Premises | E50: 0 | F50: =IF(D50=0,+'App.2-CG_NewCGAAP_DepExp_2013'!O50,+'App.2-CG_NewCGAAP_DepExp_2013'!O50+((C50*0.5)/D50)) -> 541656.2932 | H50: 541656.2932 | I50: 0 | K50: =IF(ISERROR(+I50+'App.2-CG_NewCGAAP_DepExp_2013'!O50-J50), 0, +I50+'App.2-CG_NewCGAAP_DepExp_2013'!O50-J50) -> 541656.2932
A51: 1980 | B51: System Supervisor Equipment | E51: 0 | F51: =IF(D51=0,+'App.2-CG_NewCGAAP_DepExp_2013'!O51,+'App.2-CG_NewCGAAP_DepExp_2013'!O51+((C51*0.5)/D51)) -> 0 | H51: 0 | I51: 0 | K51: =IF(ISERROR(+I51+'App.2-CG_NewCGAAP_DepExp_2013'!O51-J51), 0, +I51+'App.2-CG_NewCGAAP_DepExp_2013'!O51-J51) -> 0
A52: 1985 | B52: Miscellaneous Fixed Assets | E52: 0 | F52: =IF(D52=0,+'App.2-CG_NewCGAAP_DepExp_2013'!O52,+'App.2-CG_NewCGAAP_DepExp_2013'!O52+((C52*0.5)/D52)) -> 0 | H52: 0 | I52: 0 | K52: =IF(ISERROR(+I52+'App.2-CG_NewCGAAP_DepExp_2013'!O52-J52), 0, +I52+'App.2-CG_NewCGAAP_DepExp_2013'!O52-J52) -> 0
A53: 1990 | B53: Other Tangible Property | E53: 0 | F53: =IF(D53=0,+'App.2-CG_NewCGAAP_DepExp_2013'!O53,+'App.2-CG_NewCGAAP_DepExp_2013'!O53+((C53*0.5)/D53)) -> 0 | H53: 0 | I53: 0 | K53: =IF(ISERROR(+I53+'App.2-CG_NewCGAAP_DepExp_2013'!O53-J53), 0, +I53+'App.2-CG_NewCGAAP_DepExp_2013'!O53-J53) -> 0
E54: 0 | F54: =IF(D54=0,+'App.2-CG_NewCGAAP_DepExp_2013'!O54,+'App.2-CG_NewCGAAP_DepExp_2013'!O54+((C54*0.5)/D54)) -> 103426.0795 | H54: 103426.0795 | I54: 0 | K54: =IF(ISERROR(+I54+'App.2-CG_NewCGAAP_DepExp_2013'!O54-J54), 0, +I54+'App.2-CG_NewCGAAP_DepExp_2013'!O54-J54) -> 103426.0795
B55: Total | C55: =SUM(C17:C54) -> 0 | F55: =SUM(F17:F54) -> 7248975.799 | G55: 0 | H55: 7248975.799 | I55: 0 | J55: 0 | K55: 7248975.799
B56: Depreciation exp. adj. from gain or loss on the retirement of assets (pool of like assets)
B57: Total Depreciation Expense | F57: =SUM(F55:F56) -> 7248975.799
A59: Notes:
A60: 1 | B60: Board policy of the "half-year" rule - the applicant must ensure that additions in the year attract a half-year depreciation expense in the first year. Deviations from this standard practice must be supported in the application.
A61: 2 | B61: The applicant must provide an explanation of material variances in evidence.
A62: 3 | B62: This column refers to the calculated full year depreciation but excludes the depreciation expense on assets fully depreciated during the year. This column is used for the purpose of calculating depreciation expense in the following year on the next worksheet.
A64: General: | B64: Applicants must provide a breakdown of depreciation and amortization expense in the above format for all relevant accounts. Asset Retirement Obligations (AROs), depreciation and accretion expense should be disclosed separately consistent with the Notes of historical Audited Financial Statements.

Sheet App.2-CI MIFRS_DepExp_2015
G1: File Number: | H1: =EBNUMBER -> EB-2015-0108
G2: Exhibit:
G3: Tab:
G4: Schedule:
G5: Page:
G7: Date:
A9: Appendix 2-CQ
A10: Depreciation and Amortization Expense
A11: Assumes the applicant made capitalization and depreciation expense accounting policy changes under CGAAP effective January 1, 2013 and will adopt IFRS for financial reporting purposes effective January 1, 2015.
B12: PLEASE SEE CHAPTER 2 APPENDICES FILE # 2 OF 4
D13: 2015 | E13: MIFRS | F13: AND 2016 | G13: MIFRS
A15: Account | B15: Description | C15: Additions | D15: Years (new additions only) | E15: Depreciation Rate on New Additions | F15: 2015 Depreciation Expense 1 | G15: 2015 Depreciation Expense per Appendix 2-BA Fixed Assets, Column J (l) | H15: Variance 2
C16: (d) | D16: (f) | E16: (g) = 1 / (f) | F16: (h)=2014 Full Year Depreciation + ((d)*0.5)/(f) | H16: (m) = (h) - (l)
A17: 1611 | B17: Computer Software (Formally known as Account 1925) | E17: =IF(D17=0,0,1/D17) -> 0 | F17: =IF(D17=0,'App.2-CH_MIFRS_DepExp_2014'!K17,+'App.2-CH_MIFRS_DepExp_2014'!K17+((C17*0.5)/D17)) -> 409993.3143 | H17: =IF(ISERROR(+F17-G17), 0, +F17-G17) -> 409993.3143
A18: 1612 | B18: Land Rights (Formally known as Account 1906) | E18: 0 | F18: =IF(D18=0,'App.2-CH_MIFRS_DepExp_2014'!K18,+'App.2-CH_MIFRS_DepExp_2014'!K18+((C18*0.5)/D18)) -> 0 | H18: 0
A19: 1805 | B19: Land | E19: 0 | F19: =IF(D19=0,'App.2-CH_MIFRS_DepExp_2014'!K19,+'App.2-CH_MIFRS_DepExp_2014'!K19+((C19*0.5)/D19)) -> 0 | H19: 0
A20: 1808 | B20: Buildings | E20: 0 | F20: =IF(D20=0,'App.2-CH_MIFRS_DepExp_2014'!K20,+'App.2-CH_MIFRS_DepExp_2014'!K20+((C20*0.5)/D20)) -> 6898.848069 | H20: 6898.848069
A21: 1810 | B21: Leasehold Improvements | E21: 0 | F21: =IF(D21=0,'App.2-CH_MIFRS_DepExp_2014'!K21,+'App.2-CH_MIFRS_DepExp_2014'!K21+((C21*0.5)/D21)) -> 63227.10347 | H21: 63227.10347
A22: 1815 | B22: Transformer Station Equipment >50 kV | E22: 0 | F22: =IF(D22=0,'App.2-CH_MIFRS_DepExp_2014'!K22,+'App.2-CH_MIFRS_DepExp_2014'!K22+((C22*0.5)/D22)) -> 393532.9522 | H22: 393532.9522
A23: 1820 | B23: Distribution Station Equipment <50 kV | E23: 0 | F23: =IF(D23=0,'App.2-CH_MIFRS_DepExp_2014'!K23,+'App.2-CH_MIFRS_DepExp_2014'!K23+((C23*0.5)/D23)) -> 32729.84012 | H23: 32729.84012
A24: 1825 | B24: Storage Battery Equipment | E24: 0 | F24: =IF(D24=0,'App.2-CH_MIFRS_DepExp_2014'!K24,+'App.2-CH_MIFRS_DepExp_2014'!K24+((C24*0.5)/D24)) -> 289921.5859 | H24: 289921.5859
A25: 1830 | B25: Poles, Towers & Fixtures | E25: 0 | F25: =IF(D25=0,'App.2-CH_MIFRS_DepExp_2014'!K25,+'App.2-CH_MIFRS_DepExp_2014'!K25+((C25*0.5)/D25)) -> 33345.17833 | H25: 33345.17833
A26: 1835 | B26: Overhead Conductors & Devices | E26: 0 | F26: =IF(D26=0,'App.2-CH_MIFRS_DepExp_2014'!K26,+'App.2-CH_MIFRS_DepExp_2014'!K26+((C26*0.5)/D26)) -> 409.17 | H26: 409.17
A27: 1840 | B27: Underground Conduit | E27: 0 | F27: =IF(D27=0,'App.2-CH_MIFRS_DepExp_2014'!K27,+'App.2-CH_MIFRS_DepExp_2014'!K27+((C27*0.5)/D27)) -> 149.9847844 | H27: 149.9847844
A28: 1845 | B28: Underground Conductors & Devices | E28: 0 | F28: =IF(D28=0,'App.2-CH_MIFRS_DepExp_2014'!K28,+'App.2-CH_MIFRS_DepExp_2014'!K28+((C28*0.5)/D28)) -> 0 | H28: 0
A29: 1850 | B29: Line Transformers | E29: 0 | F29: =IF(D29=0,'App.2-CH_MIFRS_DepExp_2014'!K29,+'App.2-CH_MIFRS_DepExp_2014'!K29+((C29*0.5)/D29)) -> 763058.4782 | H29: 763058.4782
A30: 1855 | B30: Services (Overhead & Underground) | E30: 0 | F30: =IF(D30=0,'App.2-CH_MIFRS_DepExp_2014'!K30,+'App.2-CH_MIFRS_DepExp_2014'!K30+((C30*0.5)/D30)) -> 56812.95846 | H30: 56812.95846
A31: 1860 | B31: Meters | E31: 0 | F31: =IF(D31=0,'App.2-CH_MIFRS_DepExp_2014'!K31,+'App.2-CH_MIFRS_DepExp_2014'!K31+((C31*0.5)/D31)) -> 225349.2416 | H31: 225349.2416
A32: 1860 | B32: Meters (Smart Meters) | E32: 0 | F32: =IF(D32=0,'App.2-CH_MIFRS_DepExp_2014'!K32,+'App.2-CH_MIFRS_DepExp_2014'!K32+((C32*0.5)/D32)) -> 243696.1672 | H32: 243696.1672
A33: 1905 | B33: Land | E33: 0 | F33: =IF(D33=0,'App.2-CH_MIFRS_DepExp_2014'!K33,+'App.2-CH_MIFRS_DepExp_2014'!K33+((C33*0.5)/D33)) -> 95373.01281 | H33: 95373.01281
A34: 1908 | B34: Buildings & Fixtures | E34: 0 | F34: =IF(D34=0,'App.2-CH_MIFRS_DepExp_2014'!K34,+'App.2-CH_MIFRS_DepExp_2014'!K34+((C34*0.5)/D34)) -> 55719.03333 | H34: 55719.03333
A35: 1910 | B35: Leasehold Improvements | E35: 0 | F35: =IF(D35=0,'App.2-CH_MIFRS_DepExp_2014'!K35,+'App.2-CH_MIFRS_DepExp_2014'!K35+((C35*0.5)/D35)) -> 0 | H35: 0
A36: 1915 | B36: Office Furniture & Equipment (10 years) | E36: 0 | F36: =IF(D36=0,'App.2-CH_MIFRS_DepExp_2014'!K36,+'App.2-CH_MIFRS_DepExp_2014'!K36+((C36*0.5)/D36)) -> 946532.3251 | H36: 946532.3251
A37: 1915 | B37: Office Furniture & Equipment (5 years) | E37: 0 | F37: =IF(D37=0,'App.2-CH_MIFRS_DepExp_2014'!K37,+'App.2-CH_MIFRS_DepExp_2014'!K37+((C37*0.5)/D37)) -> 541393.0169 | H37: 541393.0169
A38: 1920 | B38: Computer Equipment - Hardware | E38: 0 | F38: =IF(D38=0,'App.2-CH_MIFRS_DepExp_2014'!K38,+'App.2-CH_MIFRS_DepExp_2014'!K38+((C38*0.5)/D38)) -> 12420.01633 | H38: 12420.01633
A39: 1920 | B39: Computer Equip.-Hardware(Post Mar. 22/04) | E39: 0 | F39: =IF(D39=0,'App.2-CH_MIFRS_DepExp_2014'!K39,+'App.2-CH_MIFRS_DepExp_2014'!K39+((C39*0.5)/D39)) -> 25970.71533 | H39: 25970.71533
A40: 1920 | B40: Computer Equip.-Hardware(Post Mar. 19/07) | E40: 0 | F40: =IF(D40=0,'App.2-CH_MIFRS_DepExp_2014'!K40,+'App.2-CH_MIFRS_DepExp_2014'!K40+((C40*0.5)/D40)) -> 205680.36 | H40: 205680.36
A41: 1930 | B41: Transportation Equipment | E41: 0 | F41: =IF(D41=0,'App.2-CH_MIFRS_DepExp_2014'!K41,+'App.2-CH_MIFRS_DepExp_2014'!K41+((C41*0.5)/D41)) -> 760703.9153 | H41: 760703.9153
A42: 1935 | B42: Stores Equipment | E42: 0 | F42: =IF(D42=0,'App.2-CH_MIFRS_DepExp_2014'!K42,+'App.2-CH_MIFRS_DepExp_2014'!K42+((C42*0.5)/D42)) -> 350688.684 | H42: 350688.684
A43: 1940 | B43: Tools, Shop & Garage Equipment | E43: 0 | F43: =IF(D43=0,'App.2-CH_MIFRS_DepExp_2014'!K43,+'App.2-CH_MIFRS_DepExp_2014'!K43+((C43*0.5)/D43)) -> 582455.9832 | H43: 582455.9832
A44: 1945 | B44: Measurement & Testing Equipment | E44: 0 | F44: =IF(D44=0,'App.2-CH_MIFRS_DepExp_2014'!K44,+'App.2-CH_MIFRS_DepExp_2014'!K44+((C44*0.5)/D44)) -> 118140.252 | H44: 118140.252
A45: 1950 | B45: Power Operated Equipment | E45: 0 | F45: =IF(D45=0,'App.2-CH_MIFRS_DepExp_2014'!K45,+'App.2-CH_MIFRS_DepExp_2014'!K45+((C45*0.5)/D45)) -> 186688.3799 | H45: 186688.3799
A46: 1955 | B46: Communications Equipment | E46: 0 | F46: =IF(D46=0,'App.2-CH_MIFRS_DepExp_2014'!K46,+'App.2-CH_MIFRS_DepExp_2014'!K46+((C46*0.5)/D46)) -> 1435.920575 | H46: 1435.920575
A47: 1955 | B47: Communication Equipment (Smart Meters) | E47: 0 | F47: =IF(D47=0,'App.2-CH_MIFRS_DepExp_2014'!K47,+'App.2-CH_MIFRS_DepExp_2014'!K47+((C47*0.5)/D47)) -> 84370.82042 | H47: 84370.82042
A48: 1960 | B48: Miscellaneous Equipment | E48: 0 | F48: =IF(D48=0,'App.2-CH_MIFRS_DepExp_2014'!K48,+'App.2-CH_MIFRS_DepExp_2014'!K48+((C48*0.5)/D48)) -> 63314.68086 | H48: 63314.68086
A49: 1970 | B49: Load Management Controls - Customer Premises | E49: 0 | F49: =IF(D49=0,'App.2-CH_MIFRS_DepExp_2014'!K49,+'App.2-CH_MIFRS_DepExp_2014'!K49+((C49*0.5)/D49)) -> 53881.48733 | H49: 53881.48733
A50: 1975 | B50: Load Management Controls Utility Premises | E50: 0 | F50: =IF(D50=0,'App.2-CH_MIFRS_DepExp_2014'!K50,+'App.2-CH_MIFRS_DepExp_2014'!K50+((C50*0.5)/D50)) -> 541656.2932 | H50: 541656.2932
A51: 1980 | B51: System Supervisor Equipment | E51: 0 | F51: =IF(D51=0,'App.2-CH_MIFRS_DepExp_2014'!K51,+'App.2-CH_MIFRS_DepExp_2014'!K51+((C51*0.5)/D51)) -> 0 | H51: 0
A52: 1985 | B52: Miscellaneous Fixed Assets | E52: 0 | F52: =IF(D52=0,'App.2-CH_MIFRS_DepExp_2014'!K52,+'App.2-CH_MIFRS_DepExp_2014'!K52+((C52*0.5)/D52)) -> 0 | H52: 0
A53: 1990 | B53: Other Tangible Property | E53: 0 | F53: =IF(D53=0,'App.2-CH_MIFRS_DepExp_2014'!K53,+'App.2-CH_MIFRS_DepExp_2014'!K53+((C53*0.5)/D53)) -> 0 | H53: 0
A54: 1995 | B54: Contributions & Grants | E54: 0 | F54: =IF(D54=0,'App.2-CH_MIFRS_DepExp_2014'!K54,+'App.2-CH_MIFRS_DepExp_2014'!K54+((C54*0.5)/D54)) -> 103426.0795 | H54: 103426.0795
B55: Total | C55: =SUM(C17:C54) -> 0 | F55: =SUM(F17:F54) -> 7248975.799 | G55: =SUM(G17:G54) -> 0 | H55: =SUM(H17:H54) -> 7248975.799
B56: Depreciation exp. adj. from gain or loss on the retirement of assets (pool of like assets)
B57: Total Depreciation expense to be included in the test year revenue requirement | F57: =SUM(F55:F56) -> 7248975.799
A58: Notes:
A59: 1 | B59: Board policy of the "half-year" rule - the applicant must ensure that additions in the year attract a half-year depreciation expense in the first year. Deviations from this standard practice must be supported in the application.
A60: 2 | B60: The applicant must provide an explanation of material variances in evidence.
A62: General: | B62: Applicants must provide a breakdown of depreciation and amortization expense in the above format for all relevant accounts. Asset Retirement Obligations (AROs), depreciation and accretion expense should be disclosed separately consistent with the Notes of historical Audited Financial Statements.

Sheet App.2-D_Overhead
G1: File Number: | H1: =EBNUMBER -> EB-2015-0108
G2: Exhibit: | H2: 2
G3: Tab:
G4: Schedule: | H4: Table 2-34
G5: Page: | H5: 88
G7: Date: | H7: 2015-05-01
A9: Appendix 2-D
A10: Overhead Expense
A12: Applicants are to provide a breakdown of OM&A before capitalization in the below table. OM&A before capitalization may be broken down by cost center, program, drivers or another format best suited to focus on capitalized vs. uncapitalized OM&A.
A14: OM&A Before Capitalization - | B14: 2011 | C14: 2012 | D14: 2013 | E14: 2014 | F14: 2015 | G14: 2016
B16: Historical Year | C16: Historical Year | D16: Historical Year | E16: Historical Year | F16: Bridge Year | G16: Test Year
A17: Distribution Expenses | B17: =+B59 -> 4855570 | C17: =+C59 -> 5730973 | D17: 7406564 | E17: 8092236 | F17: 7483386 | G17: 7412521
A18: Billing and Collecting | B18: =+B60 -> 2208871 | C18: 2940036 | D18: 2632182 | E18: 2615113.61 | F18: 2702873 | G18: 2902731
A19: Community Relations | B19: 164146 | C19: 202478 | D19: 193918 | E19: 163853.69 | F19: 147200 | G19: 142200
A20: Administrative and General Expenses | B20: 2421553.61 | C20: 2125787.61 | D20: 2682238.49 | E20: 2795054.89 | F20: 3042602 | G20: 3221881.57
A21: Engineering | B21: =+B34 -> 1169878.66 | C21: =+C34 -> 1111188.23 | D21: 0 | E21: 0 | F21: 0 | G21: 0
A22: Operations Administration | B22: =+B35 -> 235633.3232 | C22: 228691.57 | D22: 0 | E22: 0 | F22: 0 | G22: 0
A23: Stores | B23: 451032.4892 | C23: 425165.6 | D23: 117010.3 | E23: 132862.43 | F23: 136549 | G23: 137154
A24: Fleet | B24: 1269966.57 | C24: 1115759.28 | D24: 1363865.57 | E24: 1147057.76 | F24: 1140141 | G24: 1193728
A25: Loss Prevention | B25: 94979.0289 | C25: 101378.12 | D25: 0 | E25: 0 | F25: 0 | G25: 0
A26: Total OM&A Before Capitalization (B) | B26: =SUM(B17:B25) -> 12871630.68 | C26: 13981457.41 | D26: 14395778.36 | E26: 14946178.38 | F26: 14652751 | G26: 15010215.57
A27: Please note that any overhead costs expensed are included in their functional OM&A area above
A29: Applicants are to provide a breakdown of capitalized OM&A in the below table. Capitalized OM&A may be broken down using the categories listed in the table below if possible. Otherwise, applicants are to provide its own break down of capitalized OM&A.
A31: Capitalized OM&A | B31: 2011 | C31: 2012 | D31: 2013 | E31: 2014 | F31: 2015 | G31: 2016 | H31: Directly | I31: Explanation for Change in Overhead Capitalized
B32: Historical Year | C32: Historical Year | D32: Historical Year | E32: Historical Year | F32: Bridge Year | G32: Test Year | H32: Attributable?
H33: (Y/N)
A34: Engineering | B34: 1169878.66 | C34: 1111188.23 | D34: 0 | E34: 0 | F34: 0 | G34: 0 | H34: Y | I34: MIFRS no longer allowed to capitalize these costs
A35: Operations Administration | B35: 235633.3232 | C35: 228691.57 | D35: 0 | E35: 0 | F35: 0 | G35: 0 | H35: Y | I35: MIFRS no longer allowed to capitalize these costs
A36: Stores | B36: 451032.4892 | C36: 425165.6 | D36: 117010.3 | E36: 132862.43 | F36: 136549 | G36: 137154 | H36: Y | I36: MIFRS restricted some of the costs able to capitalize
A37: Fleet | B37: 1269966.57 | C37: 1115759.28 | D37: 1363865.57 | E37: 1147057.76 | F37: 1140141 | G37: 1193728 | H37: Y | I37: MIFRS restricted some of the costs able to capitalize
A38: Loss Prevention | B38: 94979.0289 | C38: 101378.12 | D38: 0 | E38: 0 | F38: 0 | G38: 0 | H38: Y | I38: MIFRS no longer allowed to capitalize these costs
A39: Employee Benefits | B39: 627280.3625 | C39: 562804.65 | D39: 675543.3802 | E39: 649970.3133 | F39: 539426.7676 | G39: 577615.1635 | H39: Y | I39: MIFRS no longer allows Employee Future Benefits to be capitalized
A41: costs of site preparation
A42: initial delivery and handling costs
A43: costs of testing whether the asset is functioning properly
A44: professional fees
A45: costs of opening a new facility
A46: costs of introducing a new product or service (including costs of advertising and promotional activities)
A47: costs of conducting business in a new location or with a new class of customer (including costs of staff training)
A48: administration and other general overhead costs
A50: Insert description of additional item(s) and new rows if needed
A51: Total Capitalized OM&A (A) | B51: =SUM(B34:B50) -> 3848770.434 | C51: =SUM(C34:C50) -> 3544987.45 | D51: 2156419.25 | E51: 1929890.503 | F51: 1816116.768 | G51: 1908497.164
A53: % of Capitalized OM&A (=A/B) | B53: =IF(ISERROR(B51/B26),"0%",B51/B26) -> 0.2990118757 | C53: 0.2535492078 | D53: 0.1497952522 | E53: 0.129122673 | F53: 0.1239437405 | G53: 0.1271465526
A56: OM&A After Capitalization - | B56: 2011 | C56: 2012 | D56: 2013 | E56: 2014 | F56: 2015 | G56: 2016
B58: Historical Year | C58: Historical Year | D58: Historical Year | E58: Historical Year | F58: Bridge Year | G58: Test Year
A59: Distribution Expenses | B59: 4855570 | C59: 5730973 | D59: 7406564 | E59: 8092236 | F59: 7483386 | G59: 7412521
A60: Billing and Collecting | B60: 2208871 | C60: 2940036 | D60: 2632182 | E60: 2615113.61 | F60: 2702873 | G60: 2902731
A61: Community Relations | B61: 164146 | C61: 202478 | D61: 193918 | E61: 163853.69 | F61: 147200 | G61: 142200
A62: Administrative and General Expenses | B62: 2421553.61 | C62: 2125787.61 | D62: 2682238.49 | E62: 2795054.89 | F62: 3042602 | G62: 3221881.57
A63: Total OM&A After Capitalization (C) = A - B | B63: =SUM(B59:B62) -> 9650140.61 | C63: 10999274.61 | D63: 12914902.49 | E63: 13666258.19 | F63: 13376061 | G63: 13679333.57

Sheet App.2-EA_1575 (2015)
I1: File Number: | J1: =EBNUMBER -> EB-2015-0108
I2: Exhibit:
I3: Tab:
I4: Schedule:
I5: Page:
I7: Date:
A9: Appendix 2-EA
A10: Account 1575 - IFRS-CGAAP Transitional PP&E Amounts
A11: 2015 Adopters of IFRS for Financial Reporting Purposes
A13: For applicants that will adopt IFRS on January 1, 2015 for financial reporting purposes
A16: N/A
B17: =RebaseYear &" Rebasing Year" -> 2011 Rebasing Year | C17: 2011 | D17: 2012 | E17: 2013 | F17: 2014 | G17: 2015 Rebasing Year
A18: Reporting Basis | B18: CGAAP | C18: IRM | D18: IRM | E18: IRM | F18: IRM | G18: MIFRS
B19: Forecast | C19: Actual | D19: Actual | E19: Actual | F19: Forecast | G19: Forecast
F20: $ | G20: $
A21: PP&E Values under CGAAP
A22: Opening net PP&E - Note 1
A23: Net Additions - Note 4
A24: Net Depreciation (amounts should be negative) - Note 4
A25: Closing net PP&E (1) | F25: =SUM(F22:F24) -> 0
A27: PP&E Values under MIFRS (Starts from 2014, the transition year)
A28: Opening net PP&E - Note 1
A29: Net Additions - Note 4
A30: Net Depreciation (amounts should be negative) - Note 4
A31: Closing net PP&E (2) | F31: =SUM(F28:F30) -> 0
A33: Difference in Closing net PP&E, CGAAP vs. MIFRS | F33: =F25-F31 -> 0
A36: Effect on Deferral and Variance Account Rate Riders
A37: Closing balance in deferral account | G37: =IF(ISERROR(F33), 0, F33) -> 0 | I37: WACC
A38: Return on Rate Base Associated with deferred PP&E balance at WACC - Note 2 | G38: =F33*J37*J38 -> 0 | H38: # of years of rate rider disposition period
A39: Amount included in Deferral and Variance Account Rate Rider Calculation | G39: =G37+G38 -> 0
A41: Notes:
A42: 1 For an applicant that adopts IFRS on January 1, 2015, the PP&E values as of January 1, 2014 under both CGAAP and MIFRS should be the same.
A43: 2 Return on rate base associated with deferred balance is calculated as:
A44: the deferral account opening balance as of 2015 rebasing year x WACC X # of years of rate rider disposition period
A45: * Please note that the calculation should be adjusted once WACC is updated and finalized in the rate application.
A46: 3 The PP&E deferral account is cleared by including the total balance in the deferral and variance account rate rider calculation.
A47: 4 Net additions are additions net of disposals; Net depreciation is additions to depreciation net of disposals.

Sheet App.2-EB_Account 1576 (2012)
I1: File Number: | J1: =EBNUMBER -> EB-2015-0108
I2: Exhibit:
I3: Tab:
I4: Schedule:
I5: Page:
I7: Date:
A9: Appendix 2-EB
A10: Account 1576 - Accounting Changes under CGAAP
A11: 2012 Changes in Accounting Policies under CGAAP
A13: For applicants that made capitalization and depreciation expense accounting policy changes under CGAAP effective January 1, 2012
A16: N/A
B17: =RebaseYear &" Rebasing Year" -> 2011 Rebasing Year | C17: 2011 | D17: 2012 | E17: 2013 | F17: 2014 | G17: 2015 Rebasing Year
A18: Reporting Basis | B18: CGAAP | C18: IRM | D18: IRM | E18: IRM | F18: IRM | G18: MIFRS
B19: Forecast | C19: Actual | D19: Actual | E19: Actual | F19: Forecast | G19: Forecast
D20: $ | F20: $ | G20: $
A21: PP&E Values under former CGAAP
A22: Opening net PP&E - Note 1 | E22: =+D25 -> 0 | F22: =+E25 -> 0
A23: Net Additions - Note 4
A24: Net Depreciation (amounts should be negative) - Note 4
A25: Closing net PP&E (1) | D25: =D22+D23+D24 -> 0 | E25: =E22+E23+E24 -> 0 | F25: =F22+F23+F24 -> 0
A27: PP&E Values under revised CGAAP (Starts from 2012)
A28: Opening net PP&E - Note 1 | E28: =+D31 -> 0 | F28: =+E31 -> 0
A29: Net Additions - Note 4
A30: Net Depreciation (amounts should be negative) - Note 4
A31: Closing net PP&E (2) | D31: =SUM(D28:D30) -> 0 | E31: =SUM(E28:E30) -> 0 | F31: =SUM(F28:F30) -> 0
A33: Difference in Closing net PP&E, former CGAAP vs. revised CGAAP | D33: =D25-D31 -> 0 | E33: =E25-E31 -> 0 | F33: =F25-F31 -> 0
A36: Effect on Deferral and Variance Account Rate Riders
A37: Closing balance in Account 1576 | G37: =IF(ISERROR(F33), 0, F33) -> 0 | I37: WACC
A38: Return on Rate Base Associated with Account 1576 balance at WACC - Note 2 | G38: =F33*J37*J38 -> 0 | H38: # of years of rate rider disposition period
A39: Amount included in Deferral and Variance Account Rate Rider Calculation | G39: =G37+G38 -> 0
A41: Notes:
A42: 1 For an applicant that made the capitalization and depreciation expense accounting policy changes on January 1, 2012, the PP&E values as of January 1, 2012 under both former CGAAP and revised CGAAP should be the same.
A43: 2 Return on rate base associated with Account 1576 balance is calculated as:
A44: the variance account opening balance as of 2015 rebasing year x WACC X # of years of rate rider disposition period
A45: * Please note that the calculation should be adjusted once WACC is updated and finalized in the rate application.
A46: 3 Account 1576 is cleared by including the total balance in the deferral and variance account rate rider calculation.
A47: 4 Net additions are additions net of disposals; Net depreciation is additions to depreciation net of disposals.

Sheet App.2-EC_Account 1576 (2013)
J1: File Number: | K1: =EBNUMBER -> EB-2015-0108
J2: Exhibit: | K2: 9
J3: Tab:
J4: Schedule: | K4: Table 9-15
J5: Page: | K5: 23
J7: Date: | K7: 2015-05-01
A9: Appendix 2-EC
A10: Account 1576 - Accounting Changes under CGAAP
A11: 2013 Changes in Accounting Policies under CGAAP
A13: For applicants that made capitalization and depreciation expense accounting policy changes under CGAAP effective January 1, 2013
B17: =RebaseYear &" Rebasing Year" -> 2011 Rebasing Year | C17: 2011 | D17: 2012 | E17: 2013 | F17: 2014 | G17: 2015 | H17: 2015 Rebasing Year
A18: Reporting Basis | B18: CGAAP | C18: IRM | D18: IRM | E18: IRM | F18: IRM | G18: IRM | H18: MIFRS
B19: Forecast | C19: Actual | D19: Actual | E19: Actual | F19: Actual | G19: Forecast | H19: Forecast
F20: $ | H20: $
A21: PP&E Values under former CGAAP
A22: Opening net PP&E - Note 1 | E22: 164787949.8 | F22: =+E25 -> 174237461.7 | G22: =+F25 -> 182269723.2
A23: Net Additions - Note 4 | E23: 20339323.67 | F23: 13206058.52 | G23: 18066595.16
A24: Net Depreciation (amounts should be negative) - Note 4 | E24: -10889811.79 | F24: -5173797 | G24: -10709504.24
A25: Closing net PP&E (1) | E25: =E22+E23+E24 -> 174237461.7 | F25: =SUM(F22:F24) -> 182269723.2 | G25: =SUM(G22:G24) -> 189626814.1
A27: PP&E Values under revised CGAAP (Starts from 2013)
A28: Opening net PP&E - Note 1 | E28: 164787949.8 | F28: =+E31 -> 174590342.4 | G28: =+F31 -> 183020607.6
A29: Net Additions - Note 4 | E29: 17881163.79 | F29: 11001407.26 | G29: 15751658.34
A30: Net Depreciation (amounts should be negative) - Note 4 | E30: -8078771.23 | F30: -2571142 | G30: -8341638.851
A31: Closing net PP&E (2) | E31: =SUM(E28:E30) -> 174590342.4 | F31: =SUM(F28:F30) -> 183020607.6 | G31: =SUM(G28:G30) -> 190430627.1
A33: Difference in Closing net PP&E, former CGAAP vs. revised CGAAP | E33: =E25-E31 -> -352880.6802 | F33: =F25-F31 -> -750884.4203 | G33: =G25-G31 -> -803812.9942
A36: Effect on Deferral and Variance Account Rate Riders
A37: Closing balance in Account 1576 | H37: =IF(ISERROR(G33), 0, G33) -> -803812.9942 | J37: WACC | K37: 0.06174486979
A38: Return on Rate Base Associated with Account 1576 balance at WACC - Note 2 | H38: =G33*K37*K38 -> -49631.32866 | I38: # of years of rate rider disposition period | K38: 1
A39: Amount included in Deferral and Variance Account Rate Rider Calculation | H39: =H37+H38 -> -853444.3228
A41: Notes:
A42: 1 For an applicant that made the capitalization and depreciation expense accounting policy changes on January 1, 2013, the PP&E values as of January 1, 2013 under both former CGAAP and revised CGAAP should be the same.
A43: 2 Return on rate base associated with Account 1576 balance is calculated as:
A44: the variance account opening balance as of 2015 rebasing year x WACC X # of years of rate rider disposition period
A45: * Please note that the calculation should be adjusted once WACC is updated and finalized in the rate application.
A46: 3 Account 1576 is cleared by including the total balance in the deferral and variance account rate rider calculation.
A47: 4 Net additions are additions net of disposals; Net depreciation is additions to depreciation net of disposals.

Sheet App.2-FA Proposed REG Invest.
J1: File Number: | K1: =EBNUMBER -> EB-2015-0108
J2: Exhibit: | K2: 2
J3: Tab:
J4: Schedule: | K4: Attachment 2-2
J5: Page:
J7: Date: | K7: 2015-05-01
A9: Appendix 2-FA
A10: Renewable Generation Connection Investment Summary (past investments or over the future rate setting period)
A12: Enter the details of the Renewable Generation Connection projects as described in the appropriate section of the Filing Requirements.
A13: All costs entered on this page will be transferred to the appropriate cells in the appendices that follow.
A14: For Part A, Renewable Enabling Improvements (REI), these amounts will be transferred to Appendix 2 - FB
A15: For Part B, Expansions, these amounts will be transferred to Appendix 2 - FC
A17: If there are more than five projects proposed to be in-service in a certain year, please amend the tables below and ensure that the formulae for the Total Amounts in any given rate year are updated.
A18: Based on the current methodology and allocation, amounts allocated represent 6% for REI Connection Investments and 17% for Expansion Investments. (pg 15, EB-2009-0349)
A20: There are two scenarios described below. Separate sets of spreadsheets (2-FA, 2-FB, 2-FC) should be submited for each scenario as required.
A21: Scenario 1: Past Investments with No Recovery. The distributor has made investments in the past (during the IRM Years), but has not received approval for these projects and therefore did not receive
A22: revenue from the IESO under Regulation 330/09 and did not receive ratepayer revenue for the direct benefit portion of the investment.
A23: The WCA percentage, debt percentages, interest rates, kWh, tax rates, amortization period, CCA Class and percentage should correspond to the distributor's last Cost of Service approval.
A24: The Direct Benefit portion of the calculated Revenue Requirement for each year should be summed and can be applied for recovery from the distributor's ratepayers through a rate rider.
A25: The Provincial Recovery portion of the calculated Revenue Requirement for each year should be summed and can be applied for recovery from the IESO through a separate order.
A27: Scenario 2: Investments in the Test Year and Beyond. Distributor plans to make investments in 2015 and/or beyond. These investments should be added to 2-FA in the appropriate year.
A28: The WCA percentage, debt percentages, interest rates, kWh, tax rates, amortization period, CCA Class and percentage should correspond to the distributor's current application.
A30: Part A
A31: REI Investments (Direct Benefit at 6%) | C31: 2011 | D31: 2012 | E31: 2013 | F31: 2014 | G31: 2015 | H31: =G31+1 -> 2016 | I31: =H31+1 -> 2017 | J31: 2018 | K31: 2019
A32: Project 1
A33: Name: REI Connection Project
A34: Capital Costs | C34: 0 | D34: 0 | E34: 0 | F34: 0 | G34: 0 | H34: 0 | I34: 0 | J34: 0 | K34: 0
A35: OM&A (Start-Up) | C35: 0 | D35: 0 | E35: 0 | F35: 0 | G35: 0 | H35: 0 | I35: 0 | J35: 0 | K35: 0
A36: OM&A (Ongoing) | C36: 0 | D36: 0 | E36: 0 | F36: 0 | G36: 0 | H36: 0 | I36: 0 | J36: 0 | K36: 0
A38: Project 2
A39: Name: REI Connection Project
A40: Capital Costs | C40: 0 | D40: 0 | E40: 0 | F40: 0 | G40: 0 | H40: 0 | I40: 0 | J40: 0 | K40: 0
A41: OM&A (Start-Up) | C41: 0 | D41: 0 | E41: 0 | F41: 0 | G41: 0 | H41: 0 | I41: 0 | J41: 0 | K41: 0
A42: OM&A (Ongoing) | C42: 0 | D42: 0 | E42: 0 | F42: 0 | G42: 0 | H42: 0 | I42: 0 | J42: 0 | K42: 0
A44: Project 3
A45: Name: REI Connection Project
A46: Capital Costs | C46: 0 | D46: 0 | E46: 0 | F46: 0 | G46: 0 | H46: 0 | I46: 0 | J46: 0 | K46: 0
A47: OM&A (Start-Up) | C47: 0 | D47: 0 | E47: 0 | F47: 0 | G47: 0 | H47: 0 | I47: 0 | J47: 0 | K47: 0
A48: OM&A (Ongoing) | C48: 0 | D48: 0 | E48: 0 | F48: 0 | G48: 0 | H48: 0 | I48: 0 | J48: 0 | K48: 0
A50: Project 4
A51: Name: REI Connection Project
A52: Capital Costs | C52: 0 | D52: 0 | E52: 0 | F52: 0 | G52: 0 | H52: 0 | I52: 0 | J52: 0 | K52: 0
A53: OM&A (Start-Up) | C53: 0 | D53: 0 | E53: 0 | F53: 0 | G53: 0 | H53: 0 | I53: 0 | J53: 0 | K53: 0
A54: OM&A (Ongoing) | C54: 0 | D54: 0 | E54: 0 | F54: 0 | G54: 0 | H54: 0 | I54: 0 | J54: 0 | K54: 0
A56: Project 5
A57: Name: REI Connection Project
A58: Capital Costs | C58: 0 | D58: 0 | E58: 0 | F58: 0 | G58: 0 | H58: 0 | I58: 0 | J58: 0 | K58: 0
A59: OM&A (Start-Up) | C59: 0 | D59: 0 | E59: 0 | F59: 0 | G59: 0 | H59: 0 | I59: 0 | J59: 0 | K59: 0
A60: OM&A (Ongoing) | C60: 0 | D60: 0 | E60: 0 | F60: 0 | G60: 0 | H60: 0 | I60: 0 | J60: 0 | K60: 0
A62: Total Capital Costs | C62: =SUM(C58,C52,C46,C40,C34) -> 0 | D62: 0 | E62: 0 | F62: 0 | G62: =SUM(G58,G52,G46,G40,G34) -> 0 | H62: =SUM(H58,H52,H46,H40,H34) -> 0 | I62: 0 | J62: 0 | K62: 0
A63: Total OM&A (Start-Up) | C63: 0 | D63: 0 | E63: 0 | F63: 0 | G63: =SUM(G59,G53,G47,G41,G35) -> 0 | H63: 0 | I63: 0 | J63: 0 | K63: 0
A64: Total OM&A (Ongoing) | C64: 0 | D64: 0 | E64: 0 | F64: 0 | G64: =SUM(G60,G54,G48,G42,G36) -> 0 | H64: 0 | I64: 0 | J64: 0 | K64: 0
A67: Part B
A68: Expansion Investments (Direct Benefit at 17%) | C68: 2011 | D68: 2012 | E68: 2013 | F68: 2014 | G68: 2015 | H68: =G68+1 -> 2016 | I68: =H68+1 -> 2017 | J68: 2018 | K68: 2019
A69: Project 1
A70: Name: Expansion Connection Project
A71: Capital Costs | C71: 0 | D71: 0 | E71: 117320.21 | F71: 0 | G71: 0 | H71: 0 | I71: 0 | J71: 0 | K71: 0
A72: OM&A (Start-Up) | C72: 0 | D72: 0 | E72: 0 | F72: 0 | G72: 0 | H72: 0 | I72: 0 | J72: 0 | K72: 0
A73: OM&A (Ongoing) | C73: 0 | D73: 0 | E73: 0 | F73: 0 | G73: 0 | H73: 0 | I73: 0 | J73: 0 | K73: 0
A75: Project 2
A76: Name: Expansion Connection Project
A77: Capital Costs | C77: 0 | D77: 0 | E77: 0 | F77: 0 | G77: 0 | H77: 0 | I77: 0 | J77: 0 | K77: 0
A78: OM&A (Start-Up) | C78: 0 | D78: 0 | E78: 0 | F78: 0 | G78: 0 | H78: 0 | I78: 0 | J78: 0 | K78: 0
A79: OM&A (Ongoing) | C79: 0 | D79: 0 | E79: 0 | F79: 0 | G79: 0 | H79: 0 | I79: 0 | J79: 0 | K79: 0
A81: Project 3
A82: Name: Expansion Connection Project
A83: Capital Costs | C83: 0 | D83: 0 | E83: 0 | F83: 0 | G83: 0 | H83: 0 | I83: 0 | J83: 0 | K83: 0
A84: OM&A (Start-Up) | C84: 0 | D84: 0 | E84: 0 | F84: 0 | G84: 0 | H84: 0 | I84: 0 | J84: 0 | K84: 0
A85: OM&A (Ongoing) | C85: 0 | D85: 0 | E85: 0 | F85: 0 | G85: 0 | H85: 0 | I85: 0 | J85: 0 | K85: 0
A87: Project 4
A88: Name: Expansion Connection Project
A89: Capital Costs | C89: 0 | D89: 0 | E89: 0 | F89: 0 | G89: 0 | H89: 0 | I89: 0 | J89: 0 | K89: 0
A90: OM&A (Start-Up) | C90: 0 | D90: 0 | E90: 0 | F90: 0 | G90: 0 | H90: 0 | I90: 0 | J90: 0 | K90: 0
A91: OM&A (Ongoing) | C91: 0 | D91: 0 | E91: 0 | F91: 0 | G91: 0 | H91: 0 | I91: 0 | J91: 0 | K91: 0
A93: Project 5
A94: Name: Expansion Connection Project
A95: Capital Costs | C95: 0 | D95: 0 | E95: 0 | F95: 0 | G95: 0 | H95: 0 | I95: 0 | J95: 0 | K95: 0
A96: OM&A (Start-Up) | C96: 0 | D96: 0 | E96: 0 | F96: 0 | G96: 0 | H96: 0 | I96: 0 | J96: 0 | K96: 0
A97: OM&A (Ongoing) | C97: 0 | D97: 0 | E97: 0 | F97: 0 | G97: 0 | H97: 0 | I97: 0 | J97: 0 | K97: 0
A99: Total Capital Costs | C99: =SUM(C95,C89,C83,C77,C71) -> 0 | D99: 0 | E99: 117320.21 | F99: 0 | G99: =SUM(G95,G89,G83,G77,G71) -> 0 | H99: =SUM(H95,H89,H83,H77,H71) -> 0 | I99: 0 | J99: 0 | K99: 0
A100: Total OM&A (Start-Up) | C100: 0 | D100: 0 | E100: 0 | F100: 0 | G100: =SUM(G96,G90,G84,G78,G72) -> 0 | H100: 0 | I100: 0 | J100: 0 | K100: 0
A101: Total OM&A (Ongoing) | C101: 0 | D101: 0 | E101: 0 | F101: 0 | G101: =SUM(G97,G91,G85,G79,G73) -> 0 | H101: 0 | I101: 0 | J101: 0 | K101: 0

Sheet App.2-FB Calc of REG Improvemnt
N1: File Number: | O1: =EBNUMBER -> EB-2015-0108
N2: Exhibit:
N3: Tab:
N4: Schedule:
N5: Page:
N7: Date:
A9: Appendix 2-FB
A10: Calculation of Renewable Generation Connection Direct Benefits/Provincial Amount: Renewable Enabling Improvement Investments
A11: N/A
A12: This table will calculate the distributor/provincial shares of the investments entered in Part A of Appendix 2-FA.
A13: Enter values in green shaded cells: WCA percentage, debt percentages, interest rates, kWh, tax rates, amortization period, CCA Class and percentage.
A14: For historical investments, enter these variables for your last cost of service test year. For 2015 and beyond, enter variables as in the application.
A15: Rate Riders are not calculated for Test Year as these assets and costs are already in the distributor's rate base/revenue requirement.
C17: 2011 | F17: 2012 | I17: 2013 | L17: 2014 | O17: 2015 Test Year | R17: 2016 | U17: 2017 | V17: 2016 | X17: 2018 | AA17: 2019
D18: Direct Benefit | E18: Provincial | G18: Direct Benefit | H18: Provincial | J18: Direct Benefit | K18: Provincial | M18: Direct Benefit | N18: Provincial | P18: Direct Benefit | Q18: Provincial | S18: Direct Benefit | T18: Provincial | V18: Direct Benefit | W18: Provincial | Y18: Direct Benefit | Z18: Provincial | AB18: Direct Benefit | AC18: Provincial
C19: Total | D19: 0.06 | E19: 0.94 | F19: Total | G19: 0.06 | H19: 0.94 | I19: Total | J19: 0.06 | K19: 0.94 | L19: Total | M19: 0.06 | N19: 0.94 | O19: Total | P19: 0.06 | Q19: 0.94 | R19: Total | S19: 0.06 | T19: 0.94 | U19: Total | V19: 0.06 | W19: 0.94 | X19: Total | Y19: 0.06 | Z19: 0.94 | AA19: Total | AB19: 0.06 | AC19: 0.94
A20: Net Fixed Assets (average) | C20: =D82 -> 0 | D20: =C20*D19 -> 0 | E20: =C20*E19 -> 0 | F20: =E82 -> 0 | G20: =F20*G19 -> 0 | H20: =F20*H19 -> 0 | I20: =F82 -> 0 | J20: =I20*J19 -> 0 | K20: =I20*K19 -> 0 | L20: =G82 -> 0 | M20: =L20*M19 -> 0 | N20: =L20*N19 -> 0 | O20: =H82 -> 0 | P20: =O20*P19 -> 0 | Q20: =O20*Q19 -> 0 | R20: =I82 -> 0 | S20: =R20*S19 -> 0 | T20: =R20*T19 -> 0 | U20: =J82 -> 0 | V20: =U20*V19 -> 0 | W20: =U20*W19 -> 0 | X20: =K82 -> 0 | Y20: =X20*Y19 -> 0 | Z20: =X20*Z19 -> 0 | AA20: =L82 -> 0 | AB20: =AA20*AB19 -> 0 | AC20: =AA20*AC19 -> 0
A21: Incremental OM&A (on-going, N/A for Provincial Recovery) | C21: ='App.2-FA Proposed REG Invest.'!C64 -> 0 | D21: =C21 -> 0 | F21: ='App.2-FA Proposed REG Invest.'!D64 -> 0 | G21: =F21 -> 0 | I21: ='App.2-FA Proposed REG Invest.'!E64 -> 0 | J21: =I21 -> 0 | L21: ='App.2-FA Proposed REG Invest.'!F64 -> 0 | M21: =L21 -> 0 | O21: ='App.2-FA Proposed REG Invest.'!G64 -> 0 | P21: =O21 -> 0 | R21: ='App.2-FA Proposed REG Invest.'!H64 -> 0 | S21: =R21 -> 0 | U21: ='App.2-FA Proposed REG Invest.'!I64 -> 0 | V21: =U21 -> 0 | X21: ='App.2-FA Proposed REG Invest.'!J64 -> 0 | Y21: =X21 -> 0 | AA21: ='App.2-FA Proposed REG Invest.'!K64 -> 0 | AB21: =AA21 -> 0
A22: Incremental OM&A (start-up, applicable for Provincial Recovery) | C22: ='App.2-FA Proposed REG Invest.'!C63 -> 0 | D22: =C22*D19 -> 0 | E22: =C22*E19 -> 0 | F22: ='App.2-FA Proposed REG Invest.'!D63 -> 0 | G22: =F22*G19 -> 0 | H22: =F22*H19 -> 0 | I22: ='App.2-FA Proposed REG Invest.'!E63 -> 0 | J22: =I22*J19 -> 0 | K22: =I22*K19 -> 0 | L22: ='App.2-FA Proposed REG Invest.'!F63 -> 0 | M22: =L22*M19 -> 0 | N22: =L22*N19 -> 0 | O22: ='App.2-FA Proposed REG Invest.'!G63 -> 0 | P22: =O22*P19 -> 0 | Q22: =O22*Q19 -> 0 | R22: ='App.2-FA Proposed REG Invest.'!H63 -> 0 | S22: =R22*S19 -> 0 | T22: =R22*T19 -> 0 | U22: ='App.2-FA Proposed REG Invest.'!I63 -> 0 | V22: =U22*V19 -> 0 | W22: =U22*W19 -> 0 | X22: ='App.2-FA Proposed REG Invest.'!J63 -> 0 | Y22: =X22*Y19 -> 0 | Z22: =X22*Z19 -> 0 | AA22: ='App.2-FA Proposed REG Invest.'!K63 -> 0 | AB22: =AA22*AB19 -> 0 | AC22: =AA22*AC19 -> 0
A23: WCA | B23: 0.13 | D23: =(D21+D22)*$B$23 -> 0 | E23: =E22*$B$23 -> 0 | G23: =(G21+G22)*$B$23 -> 0 | H23: =H22*$B$23 -> 0 | J23: =(J21+J22)*$B$23 -> 0 | K23: =K22*$B$23 -> 0 | M23: =(M21+M22)*$B$23 -> 0 | N23: =N22*$B$23 -> 0 | P23: =(P21+P22)*$B$23 -> 0 | Q23: =Q22*$B$23 -> 0 | S23: =(S21+S22)*$B$23 -> 0 | T23: =T22*$B$23 -> 0 | V23: =(V21+V22)*$B$23 -> 0 | W23: =W22*$B$23 -> 0 | Y23: =(Y21+Y22)*$B$23 -> 0 | Z23: =Z22*$B$23 -> 0 | AB23: =(AB21+AB22)*$B$23 -> 0 | AC23: =AC22*$B$23 -> 0
A24: Rate Base | D24: =SUM(D20+D23) -> 0 | E24: =SUM(E20+E23) -> 0 | G24: =SUM(G20+G23) -> 0 | H24: =SUM(H20+H23) -> 0 | J24: =SUM(J20+J23) -> 0 | K24: =SUM(K20+K23) -> 0 | M24: =SUM(M20+M23) -> 0 | N24: =SUM(N20+N23) -> 0 | P24: =SUM(P20+P23) -> 0 | Q24: =SUM(Q20+Q23) -> 0 | S24: =SUM(S20+S23) -> 0 | T24: =SUM(T20+T23) -> 0 | V24: =SUM(V20+V23) -> 0 | W24: =SUM(W20+W23) -> 0 | Y24: =SUM(Y20+Y23) -> 0 | Z24: =SUM(Z20+Z23) -> 0 | AB24: =SUM(AB20+AB23) -> 0 | AC24: =SUM(AC20+AC23) -> 0
A27: Deemed ST Debt | D27: =D24*$B$27 -> 0 | E27: =E24*$B$27 -> 0 | G27: =G24*$B$27 -> 0 | H27: =H24*$B$27 -> 0 | J27: =J24*$B$27 -> 0 | K27: =K24*$B$27 -> 0 | M27: =M24*$B$27 -> 0 | N27: =N24*$B$27 -> 0 | P27: =P24*$B$27 -> 0 | Q27: =Q24*$B$27 -> 0 | S27: =S24*$B$27 -> 0 | T27: =T24*$B$27 -> 0 | V27: =V24*$B$27 -> 0 | W27: =W24*$B$27 -> 0 | Y27: =Y24*$B$27 -> 0 | Z27: =Z24*$B$27 -> 0 | AB27: =AB24*$B$27 -> 0 | AC27: =AC24*$B$27 -> 0
A28: Deemed LT Debt | D28: =D24*$B$28 -> 0 | E28: =E24*$B$28 -> 0 | G28: =G24*$B$28 -> 0 | H28: =H24*$B$28 -> 0 | J28: =J24*$B$28 -> 0 | K28: =K24*$B$28 -> 0 | M28: =M24*$B$28 -> 0 | N28: =N24*$B$28 -> 0 | P28: =P24*$B$28 -> 0 | Q28: =Q24*$B$28 -> 0 | S28: =S24*$B$28 -> 0 | T28: =T24*$B$28 -> 0 | V28: =V24*$B$28 -> 0 | W28: =W24*$B$28 -> 0 | Y28: =Y24*$B$28 -> 0 | Z28: =Z24*$B$28 -> 0 | AB28: =AB24*$B$28 -> 0 | AC28: =AC24*$B$28 -> 0
A29: Deemed Equity | D29: =D24*$B$29 -> 0 | E29: =E24*$B$29 -> 0 | G29: =G24*$B$29 -> 0 | H29: =H24*$B$29 -> 0 | J29: =J24*$B$29 -> 0 | K29: =K24*$B$29 -> 0 | M29: =M24*$B$29 -> 0 | N29: =N24*$B$29 -> 0 | P29: =P24*$B$29 -> 0 | Q29: =Q24*$B$29 -> 0 | S29: =S24*$B$29 -> 0 | T29: =T24*$B$29 -> 0 | V29: =V24*$B$29 -> 0 | W29: =W24*$B$29 -> 0 | Y29: =Y24*$B$29 -> 0 | Z29: =Z24*$B$29 -> 0 | AB29: =AB24*$B$29 -> 0 | AC29: =AC24*$B$29 -> 0
A31: ST Interest | D31: =D27*$B31 -> 0 | E31: =E27*$B31 -> 0 | G31: =G27*$B31 -> 0 | H31: =H27*$B31 -> 0 | J31: =J27*$B31 -> 0 | K31: =K27*$B31 -> 0 | M31: =M27*$B31 -> 0 | N31: =N27*$B31 -> 0 | P31: =P27*$B31 -> 0 | Q31: =Q27*$B31 -> 0 | S31: =S27*$B31 -> 0 | T31: =T27*$B31 -> 0 | V31: =V27*$B31 -> 0 | W31: =W27*$B31 -> 0 | Y31: =Y27*$B31 -> 0 | Z31: =Z27*$B31 -> 0 | AB31: =AB27*$B31 -> 0 | AC31: =AC27*$B31 -> 0
A32: LT Interest | D32: =D28*$B32 -> 0 | E32: 0 | G32: =G28*$B32 -> 0 | H32: 0 | J32: =J28*$B32 -> 0 | K32: 0 | M32: =M28*$B32 -> 0 | N32: 0 | P32: =P28*$B32 -> 0 | Q32: 0 | S32: =S28*$B32 -> 0 | T32: 0 | V32: =V28*$B32 -> 0 | W32: 0 | Y32: =Y28*$B32 -> 0 | Z32: 0 | AB32: =AB28*$B32 -> 0 | AC32: 0
A33: ROE | D33: 0 | E33: 0 | G33: 0 | H33: 0 | J33: 0 | K33: 0 | M33: 0 | N33: 0 | P33: 0 | Q33: 0 | S33: 0 | T33: 0 | V33: 0 | W33: 0 | Y33: 0 | Z33: 0 | AB33: 0 | AC33: 0
A34: Cost of Capital Total | D34: =SUM(D31:D33) -> 0 | E34: =SUM(E31:E33) -> 0 | G34: =SUM(G31:G33) -> 0 | H34: =SUM(H31:H33) -> 0 | J34: =SUM(J31:J33) -> 0 | K34: =SUM(K31:K33) -> 0 | M34: =SUM(M31:M33) -> 0 | N34: =SUM(N31:N33) -> 0 | P34: =SUM(P31:P33) -> 0 | Q34: =SUM(Q31:Q33) -> 0 | S34: =SUM(S31:S33) -> 0 | T34: =SUM(T31:T33) -> 0 | V34: =SUM(V31:V33) -> 0 | W34: =SUM(W31:W33) -> 0 | Y34: =SUM(Y31:Y33) -> 0 | Z34: =SUM(Z31:Z33) -> 0 | AB34: =SUM(AB31:AB33) -> 0 | AC34: =SUM(AC31:AC33) -> 0
A36: OM&A | D36: =D21+D22 -> 0 | E36: =E22 -> 0 | G36: =G21+G22 -> 0 | H36: =H22 -> 0 | J36: =J21+J22 -> 0 | K36: =K22 -> 0 | M36: =M21+M22 -> 0 | N36: =N22 -> 0 | P36: =P21+P22 -> 0 | Q36: =Q22 -> 0 | S36: =S21+S22 -> 0 | T36: =T22 -> 0 | V36: =V21+V22 -> 0 | W36: =W22 -> 0 | Y36: =Y21+Y22 -> 0 | Z36: =Z22 -> 0 | AB36: =AB21+AB22 -> 0 | AC36: =AC22 -> 0
A37: Amortization | C37: =D77 -> 0 | D37: =C37*D$19 -> 0 | E37: =C37*E$19 -> 0 | F37: =E77 -> 0 | G37: =F37*G$19 -> 0 | H37: =F37*H$19 -> 0 | I37: =F77 -> 0 | J37: =I37*J$19 -> 0 | K37: =I37*K$19 -> 0 | L37: =G77 -> 0 | M37: =L37*M$19 -> 0 | N37: =L37*N$19 -> 0 | O37: =H77 -> 0 | P37: =O37*P$19 -> 0 | Q37: =O37*Q$19 -> 0 | R37: =I76+I77 -> 0 | S37: =R37*S$19 -> 0 | T37: =R37*T$19 -> 0 | U37: =J76+J77 -> 0 | V37: =U37*V$19 -> 0 | W37: =U37*W$19 -> 0 | X37: =K76+K77 -> 0 | Y37: =X37*Y$19 -> 0 | Z37: =X37*Z$19 -> 0 | AA37: =L76+L77 -> 0 | AB37: =AA37*AB$19 -> 0 | AC37: =AA37*AC$19 -> 0
A38: Grossed-up PILs | D38: =D65 -> 0 | E38: =E65 -> 0 | G38: =G65 -> 0 | H38: =H65 -> 0 | J38: =J65 -> 0 | K38: =K65 -> 0 | M38: =M65 -> 0 | N38: =N65 -> 0 | P38: =P65 -> 0 | Q38: =Q65 -> 0 | S38: =S65 -> 0 | T38: =T65 -> 0 | V38: =V65 -> 0 | W38: =W65 -> 0 | Y38: =Y65 -> 0 | Z38: =Z65 -> 0 | AB38: =AB65 -> 0 | AC38: =AC65 -> 0
A40: Revenue Requirement | D40: =SUM(D34:D38) -> 0 | E40: =SUM(E34:E38) -> 0 | G40: =SUM(G34:G38) -> 0 | H40: =SUM(H34:H38) -> 0 | J40: =SUM(J34:J38) -> 0 | K40: =SUM(K34:K38) -> 0 | M40: =SUM(M34:M38) -> 0 | N40: =SUM(N34:N38) -> 0 | P40: =SUM(P34:P38) -> 0 | Q40: =SUM(Q34:Q38) -> 0 | S40: =SUM(S34:S38) -> 0 | T40: =SUM(T34:T38) -> 0 | V40: =SUM(V34:V38) -> 0 | W40: =SUM(W34:W38) -> 0 | Y40: =SUM(Y34:Y38) -> 0 | Z40: =SUM(Z34:Z38) -> 0 | AB40: =SUM(AB34:AB38) -> 0 | AC40: =SUM(AC34:AC38) -> 0
A43: Provincial Rate Protection | E43: =E40 -> 0 | H43: =H40 -> 0 | K43: =K40 -> 0 | N43: =N40 -> 0 | Q43: =Q40 -> 0 | T43: =T40 -> 0 | W43: =W40 -> 0 | Z43: =Z40 -> 0 | AC43: =AC40 -> 0
A45: Monthly Amount Paid by IESO | E45: =E43/12 -> 0 | H45: =H43/12 -> 0 | K45: =K43/12 -> 0 | N45: =N43/12 -> 0 | Q45: =Q43/12 -> 0 | T45: =T43/12 -> 0 | W45: =W43/12 -> 0 | Z45: =Z43/12 -> 0 | AC45: =AC43/12 -> 0
A47: Note 1: The difference between the actual costs of approved eligible investments and revenue received from the IESO should be recorded in a variance account. The Board may provide
A48: regulatory accounting guidance regarding a variance account either in an individual proceeding or on a generic basis.
A49: Note 2: For the 2015 Test Year, Costs and Revenues of the Direct Benefit are to be included in the test year applicant Rate Base and Revenues.
A51: PILs Calculation
D52: 2011 | G52: 2012 | J52: 2013 | M52: 2014 | P52: 2015 | S52: =P52+1 -> 2016 | V52: =S52+1 -> 2017 | Y52: =V52+1 -> 2018 | AB52: =Y52+1 -> 2019
A53: Income Tax | D53: Direct Benefit | E53: Provincial | G53: Direct Benefit | H53: Provincial | J53: Direct Benefit | K53: Provincial | M53: Direct Benefit | N53: Provincial | P53: Direct Benefit | Q53: Provincial | S53: Direct Benefit | T53: Provincial | V53: Direct Benefit | W53: Provincial | Y53: Direct Benefit | Z53: Provincial | AB53: Direct Benefit | AC53: Provincial
X54: Total | AA54: Total
A55: Net Income - ROE on Rate Base | D55: =D33 -> 0 | E55: =E33 -> 0 | G55: =G33 -> 0 | H55: =H33 -> 0 | J55: =J33 -> 0 | K55: =K33 -> 0 | M55: =M33 -> 0 | N55: =N33 -> 0 | P55: =P33 -> 0 | Q55: =Q33 -> 0 | S55: =S33 -> 0 | T55: =T33 -> 0 | V55: =V33 -> 0 | W55: =W33 -> 0 | Y55: =Y33 -> 0 | Z55: =Z33 -> 0 | AB55: =AB33 -> 0 | AC55: =AC33 -> 0
A56: Amortization (6% DB and 94% P) | D56: =D37 -> 0 | E56: =E37 -> 0 | G56: =G37 -> 0 | H56: =H37 -> 0 | J56: =J37 -> 0 | K56: =K37 -> 0 | M56: =M37 -> 0 | N56: =N37 -> 0 | P56: =P37 -> 0 | Q56: =Q37 -> 0 | S56: =S37 -> 0 | T56: =T37 -> 0 | V56: =V37 -> 0 | W56: =W37 -> 0 | Y56: =Y37 -> 0 | Z56: =Z37 -> 0 | AB56: =AB37 -> 0 | AC56: =AC37 -> 0
A57: CCA (6% DB and 94% P) | D57: =-D94*D$19 -> 0 | E57: =-D94*E$19 -> 0 | G57: =-E94*G19 -> 0 | H57: =-E94*H$19 -> 0 | J57: =-F94*J$19 -> 0 | K57: =-F94*K$19 -> 0 | M57: =-G94*M$19 -> 0 | N57: =-G94*N$19 -> 0 | P57: =-H94*P$19 -> 0 | Q57: =-H94*Q$19 -> 0 | S57: =-I94*S$19 -> 0 | T57: =-I94*T$19 -> 0 | V57: =-J94*V$19 -> 0 | W57: =-J94*W$19 -> 0 | Y57: =-K94*Y$19 -> 0 | Z57: =-K94*Z$19 -> 0 | AB57: =-L94*AB$19 -> 0 | AC57: =-L94*AC$19 -> 0
A58: Taxable income | D58: =SUM(D55:D57) -> 0 | E58: =SUM(E55:E57) -> 0 | G58: =SUM(G55:G57) -> 0 | H58: =SUM(H55:H57) -> 0 | J58: =SUM(J55:J57) -> 0 | K58: =SUM(K55:K57) -> 0 | M58: =SUM(M55:M57) -> 0 | N58: =SUM(N55:N57) -> 0 | P58: =SUM(P55:P57) -> 0 | Q58: =SUM(Q55:Q57) -> 0 | S58: =SUM(S55:S57) -> 0 | T58: =SUM(T55:T57) -> 0 | V58: =SUM(V55:V57) -> 0 | W58: =SUM(W55:W57) -> 0 | Y58: =SUM(Y55:Y57) -> 0 | Z58: =SUM(Z55:Z57) -> 0 | AB58: =SUM(AB55:AB57) -> 0 | AC58: =SUM(AC55:AC57) -> 0
A60: Tax Rate (to be entered)
A62: Income Taxes Payable | D62: =D58*D60 -> 0 | E62: =E58*E60 -> 0 | G62: =G58*G60 -> 0 | H62: =H58*H60 -> 0 | J62: =J58*J60 -> 0 | K62: =K58*K60 -> 0 | M62: =M58*M60 -> 0 | N62: =N58*N60 -> 0 | P62: =P58*P60 -> 0 | Q62: =Q58*Q60 -> 0 | S62: =S58*S60 -> 0 | T62: =T58*T60 -> 0 | V62: =V58*V60 -> 0 | W62: =W58*W60 -> 0 | Y62: =Y58*Y60 -> 0 | Z62: =Z58*Z60 -> 0 | AB62: =AB58*AB60 -> 0 | AC62: =AC58*AC60 -> 0
A63: Gross Up
A64: Income Taxes Payable | D64: =D62/(1-D60) -> 0 | E64: =E62/(1-E60) -> 0 | G64: =G62/(1-G60) -> 0 | H64: =H62/(1-H60) -> 0 | J64: =J62/(1-J60) -> 0 | K64: =K62/(1-K60) -> 0 | M64: =M62/(1-M60) -> 0 | N64: =N62/(1-N60) -> 0 | P64: =P62/(1-P60) -> 0 | Q64: =Q62/(1-Q60) -> 0 | S64: =S62/(1-S60) -> 0 | T64: =T62/(1-T60) -> 0 | V64: =V62/(1-V60) -> 0 | W64: =W62/(1-W60) -> 0 | Y64: =Y62/(1-Y60) -> 0 | Z64: =Z62/(1-Z60) -> 0 | AB64: =AB62/(1-AB60) -> 0 | AC64: =AC62/(1-AC60) -> 0
A65: Grossed Up PILs | D65: =SUM(D64:D64) -> 0 | E65: =SUM(E64:E64) -> 0 | G65: =SUM(G64:G64) -> 0 | H65: =SUM(H64:H64) -> 0 | J65: =SUM(J64:J64) -> 0 | K65: =SUM(K64:K64) -> 0 | M65: =SUM(M64:M64) -> 0 | N65: =SUM(N64:N64) -> 0 | P65: =SUM(P64:P64) -> 0 | Q65: =SUM(Q64:Q64) -> 0 | S65: =SUM(S64:S64) -> 0 | T65: =SUM(T64:T64) -> 0 | V65: =SUM(V64:V64) -> 0 | W65: =SUM(W64:W64) -> 0 | Y65: =SUM(Y64:Y64) -> 0 | Z65: =SUM(Z64:Z64) -> 0 | AB65: =SUM(AB64:AB64) -> 0 | AC65: =SUM(AC64:AC64) -> 0
D68: 2011 | E68: 2012 | F68: 2013 | G68: 2014 | H68: 2015 | I68: =H68+1 -> 2016 | J68: =I68+1 -> 2017 | K68: 2018 | L68: 2019
A69: Net Fixed Assets
B70: Enter applicable amortization in years: | C70: 45
A71: Opening Gross Fixed Assets | E71: =D73 -> 0 | F71: 0 | G71: 0 | H71: 0 | I71: =H73 -> 0 | J71: =I73 -> 0 | K71: =J73 -> 0 | L71: =K73 -> 0
A72: Gross Capital Additions | D72: ='App.2-FA Proposed REG Invest.'!C62 -> 0 | E72: ='App.2-FA Proposed REG Invest.'!D62 -> 0 | F72: ='App.2-FA Proposed REG Invest.'!E62 -> 0 | G72: ='App.2-FA Proposed REG Invest.'!F62 -> 0 | H72: ='App.2-FA Proposed REG Invest.'!G62 -> 0 | I72: ='App.2-FA Proposed REG Invest.'!H62 -> 0 | J72: ='App.2-FA Proposed REG Invest.'!I62 -> 0 | K72: ='App.2-FA Proposed REG Invest.'!J62 -> 0 | L72: ='App.2-FA Proposed REG Invest.'!K62 -> 0
A73: Closing Gross Fixed Assets | D73: =SUM(D71:D72) -> 0 | E73: 0 | F73: 0 | G73: 0 | H73: =SUM(H71:H72) -> 0 | I73: =SUM(I71:I72) -> 0 | J73: 0 | K73: 0 | L73: 0
A75: Opening Accumulated Amortization | E75: =+D78 -> 0 | F75: =E78 -> 0 | G75: 0 | H75: 0 | I75: 0 | J75: 0 | K75: 0 | L75: 0
A76: Current Year Amortization (before additions) | D76: =IF(ISERROR(D71/$C$70), 0, D71/$C$70) -> 0 | E76: 0 | F76: 0 | G76: 0 | H76: 0 | I76: =IF(ISERROR(I71/$C$70), 0, I71/$C$70) -> 0 | J76: =IF(ISERROR(J71/$C$70), 0, J71/$C$70) -> 0 | K76: =IF(ISERROR(K71/$C$70), 0, K71/$C$70) -> 0 | L76: =IF(ISERROR(L71/$C$70), 0, L71/$C$70) -> 0
A77: Additions (half year) | D77: =D72/$C$70/2 -> 0 | E77: =E72/$C$70/2 -> 0 | F77: =F72/$C$70/2 -> 0 | G77: 0 | H77: =H72/$C$70/2 -> 0 | I77: =I72/C70/2 -> 0 | J77: =J72/C70/2 -> 0 | K77: =K72/C70/2 -> 0 | L77: =L72/C70/2 -> 0
A78: Closing Accumulated Amortization | D78: =SUM(D75+D76+D77) -> 0 | E78: =SUM(E75+E76+E77) -> 0 | F78: =SUM(F75+F76+F77) -> 0 | G78: =SUM(G75+G76+G77) -> 0 | H78: =SUM(H75+H76+H77) -> 0 | I78: =SUM(I75:I77) -> 0 | J78: =SUM(J75:J77) -> 0 | K78: =SUM(K75:K77) -> 0 | L78: =SUM(L75:L77) -> 0
A80: Opening Net Fixed Assets | D80: =D71-D75 -> 0 | E80: 0 | F80: =F71-F75 -> 0 | G80: 0 | H80: =H71-H75 -> 0 | I80: =H81 -> 0 | J80: =I81 -> 0 | K80: =J81 -> 0 | L80: =K81 -> 0
A81: Closing Net Fixed Assets | D81: =D73-D78 -> 0 | E81: =E73-E78 -> 0 | F81: 0 | G81: 0 | H81: =H73-H78 -> 0 | I81: =I73-I78 -> 0 | J81: =J73-J78 -> 0 | K81: =K73-K78 -> 0 | L81: =L73-L78 -> 0
A82: Average Net Fixed Assets | D82: =SUM(D80:D81)/2 -> 0 | E82: 0 | F82: 0 | G82: 0 | H82: =SUM(H80:H81)/2 -> 0 | I82: =SUM(I80:I81)/2 -> 0 | J82: =SUM(J80:J81)/2 -> 0 | K82: =SUM(K80:K81)/2 -> 0 | L82: =SUM(L80:L81)/2 -> 0
A84: UCC for PILs Calculation
D85: 2011 | E85: 2012 | F85: 2013 | G85: 2014 | H85: 2015 | I85: =H85+1 -> 2016 | J85: =I85+1 -> 2017 | K85: 2018 | L85: 2019
A87: Opening UCC | E87: =D95 -> 0 | F87: 0 | G87: 0 | H87: 0 | I87: 0 | J87: 0 | K87: 0 | L87: 0
A88: Capital Additions (from Appendix 2-FA) | D88: =D72 -> 0 | E88: 0 | F88: 0 | G88: 0 | H88: =H72 -> 0 | I88: ='App.2-FA Proposed REG Invest.'!H40 -> 0 | J88: ='App.2-FA Proposed REG Invest.'!I40 -> 0 | K88: ='App.2-FA Proposed REG Invest.'!J40 -> 0 | L88: ='App.2-FA Proposed REG Invest.'!K40 -> 0
A89: UCC Before Half Year Rule | D89: =SUM(D87:D88) -> 0 | E89: 0 | F89: 0 | G89: 0 | H89: =SUM(H87:H88) -> 0 | I89: =SUM(I87:I88) -> 0 | J89: =SUM(J87:J88) -> 0 | K89: =SUM(K87:K88) -> 0 | L89: =SUM(L87:L88) -> 0
A90: Half Year Rule (1/2 Additions - Disposals) | D90: =D88/2 -> 0 | E90: 0 | F90: 0 | G90: 0 | H90: =H88/2 -> 0 | I90: =I88/2 -> 0 | J90: =J88/2 -> 0 | K90: =K88/2 -> 0 | L90: =L88/2 -> 0
A91: Reduced UCC | D91: =D89-D90 -> 0 | E91: 0 | F91: 0 | G91: 0 | H91: =H89-H90 -> 0 | I91: =I89-I90 -> 0 | J91: =J89-J90 -> 0 | K91: =K89-K90 -> 0 | L91: =L89-L90 -> 0
A92: CCA Rate Class (to be entered) | C92: 47 | D92: =C92 -> 47 | E92: =D92 -> 47 | F92: 47 | G92: 47 | H92: 47 | I92: 47 | J92: 47 | K92: 47 | L92: 47
A93: CCA Rate (to be entered) | C93: 0.08 | D93: =C93 -> 0.08 | E93: 0.08 | F93: 0.08 | G93: 0.08 | H93: 0.08 | I93: 0.08 | J93: 0.08 | K93: 0.08 | L93: 0.08
A94: CCA | D94: =D91*D93 -> 0 | E94: 0 | F94: 0 | G94: 0 | H94: =H91*H93 -> 0 | I94: =I91*I93 -> 0 | J94: 0 | K94: 0 | L94: =L91*L93 -> 0
A95: Closing UCC | D95: =D89-D94 -> 0 | E95: 0 | F95: 0 | G95: 0 | H95: =H89-H94 -> 0 | I95: =I89-I94 -> 0 | J95: =J89-J94 -> 0 | K95: =K89-K94 -> 0 | L95: =L89-L94 -> 0

Sheet App.2-FC Calc of REG Expansion
N1: File Number: | O1: =EBNUMBER -> EB-2015-0108
N2: Exhibit: | O2: 2
N3: Tab:
N4: Schedule: | O4: Attachment 2-2
N5: Page:
N7: Date: | O7: 2015-05-01
A9: Appendix 2-FC
A10: Calculation of Renewable Generation Connection Direct Benefits/Provincial Amount: Renewable Expansion Investments
A12: This table will calculate the distributor/provincial shares of the investments entered in Part B of Appendix 2-FA.
A13: Enter values in green shaded cells: WCA percentage, debt percentages, interest rates, kWh, tax rates, amortization period, CCA Class and percentage.
A14: For historical investments, enter these variables for your last cost of service test year. For 2015 and beyond, enter vaiables as in the application.
A15: Rate Riders are not calculated for Test Year as these assets and costs are already in the distributors rate base.
D18: 2011 | G18: 2012 | J18: 2013 | M18: 2014 | P18: 2015 BRIDGE YEAR | S18: 2016 TEST YEAR | V18: 2017 | Y18: 2018 | AB18: 2019
E19: Direct Benefit | F19: Provincial | H19: Direct Benefit | I19: Provincial | K19: Direct Benefit | L19: Provincial | N19: Direct Benefit | O19: Provincial | Q19: Direct Benefit | R19: Provincial | T19: Direct Benefit | U19: Provincial | W19: Direct Benefit | X19: Provincial | Z19: Direct Benefit | AA19: Provincial | AC19: Direct Benefit | AD19: Provincial
D20: Total | E20: 0.17 | F20: 0.83 | G20: Total | H20: 0.17 | I20: 0.83 | J20: Total | K20: 0.17 | L20: 0.83 | M20: Total | N20: 0.17 | O20: 0.83 | P20: Total | Q20: 0.17 | R20: 0.83 | S20: Total | T20: 0.17 | U20: 0.83 | V20: Total | W20: 0.17 | X20: 0.83 | Y20: Total | Z20: 0.17 | AA20: 0.83 | AB20: Total | AC20: 0.17 | AD20: 0.83
A21: Net Fixed Assets (average) | D21: =D82 -> 0 | E21: =D21*E20 -> 0 | F21: =D21*F20 -> 0 | G21: =E82 -> 0 | H21: =G21*H20 -> 0 | I21: =G21*I20 -> 0 | J21: =F82 -> 58008.32606 | K21: =J21*K20 -> 9861.415429 | L21: =J21*L20 -> 48146.91063 | M21: =G82 -> 114713.0942 | N21: =M21*N20 -> 19501.22602 | O21: =M21*O20 -> 95211.8682 | P21: =H82 -> 112105.9784 | Q21: =P21*Q20 -> 19058.01634 | R21: =P21*R20 -> 93047.96211 | S21: =I82 -> 109498.8627 | T21: =S21*T20 -> 18614.80665 | U21: =S21*U20 -> 90884.05601 | V21: =J82 -> 106891.7469 | W21: =V21*W20 -> 18171.59697 | X21: =V21*X20 -> 88720.14992 | Y21: =K82 -> 104284.6311 | Z21: =Y21*Z20 -> 17728.38729 | AA21: =Y21*AA20 -> 86556.24382 | AB21: =L82 -> 101677.5153 | AC21: =AB21*AC20 -> 17285.17761 | AD21: =AB21*AD20 -> 84392.33773
A22: Incremental OM&A (on-going, N/A for Provincial Recovery) | D22: ='App.2-FA Proposed REG Invest.'!C101 -> 0 | E22: =D22 -> 0 | G22: ='App.2-FA Proposed REG Invest.'!D$101 -> 0 | H22: =G22 -> 0 | J22: ='App.2-FA Proposed REG Invest.'!E$101 -> 0 | K22: =J22 -> 0 | M22: ='App.2-FA Proposed REG Invest.'!F$101 -> 0 | N22: =M22 -> 0 | P22: ='App.2-FA Proposed REG Invest.'!G$101 -> 0 | Q22: =P22 -> 0 | S22: ='App.2-FA Proposed REG Invest.'!H$101 -> 0 | T22: =S22 -> 0 | V22: ='App.2-FA Proposed REG Invest.'!I$101 -> 0 | W22: =V22 -> 0 | Y22: ='App.2-FA Proposed REG Invest.'!J$101 -> 0 | Z22: =Y22 -> 0 | AB22: ='App.2-FA Proposed REG Invest.'!K$101 -> 0 | AC22: =AB22 -> 0
A23: Incremental OM&A (start-up, applicable for Provincial Recovery) | D23: ='App.2-FA Proposed REG Invest.'!C100 -> 0 | E23: =D23*E20 -> 0 | F23: =D23*F20 -> 0 | G23: ='App.2-FA Proposed REG Invest.'!D$100 -> 0 | H23: =G23*H20 -> 0 | I23: =G23*I20 -> 0 | J23: ='App.2-FA Proposed REG Invest.'!E$100 -> 0 | K23: =J23*K20 -> 0 | L23: =J23*L20 -> 0 | M23: ='App.2-FA Proposed REG Invest.'!F$100 -> 0 | N23: =M23*N20 -> 0 | O23: =M23*O20 -> 0 | P23: ='App.2-FA Proposed REG Invest.'!G$100 -> 0 | Q23: =P23*Q20 -> 0 | R23: =P23*R20 -> 0 | S23: ='App.2-FA Proposed REG Invest.'!H$100 -> 0 | T23: =S23*T20 -> 0 | U23: =S23*U20 -> 0 | V23: ='App.2-FA Proposed REG Invest.'!I$100 -> 0 | W23: =V23*W20 -> 0 | X23: =V23*X20 -> 0 | Y23: ='App.2-FA Proposed REG Invest.'!J$100 -> 0 | Z23: =Y23*Z20 -> 0 | AA23: =Y23*AA20 -> 0 | AB23: ='App.2-FA Proposed REG Invest.'!K$100 -> 0 | AC23: =AB23*AC20 -> 0 | AD23: =AB23*AD20 -> 0
A24: WCA | B24: 0.13 | E24: =(E22+E23)*$B$24 -> 0 | F24: =F23*$B$24 -> 0 | H24: =(H22+H23)*$B$24 -> 0 | I24: =I23*$B$24 -> 0 | K24: =(K22+K23)*$B$24 -> 0 | L24: =L23*$B$24 -> 0 | N24: =(N22+N23)*$B$24 -> 0 | O24: =O23*$B$24 -> 0 | Q24: =(Q22+Q23)*$B$24 -> 0 | R24: =R23*$B$24 -> 0 | T24: =(T22+T23)*$B$24 -> 0 | U24: =U23*$B$24 -> 0 | W24: =(W22+W23)*$B$24 -> 0 | X24: =X23*$B$24 -> 0 | Z24: =(Z22+Z23)*$B$24 -> 0 | AA24: =AA23*$B$24 -> 0 | AC24: =(AC22+AC23)*$B$24 -> 0 | AD24: =AD23*$B$24 -> 0
A25: Rate Base | E25: =SUM(E21+E24) -> 0 | F25: =SUM(F21+F24) -> 0 | H25: =SUM(H21+H24) -> 0 | I25: =SUM(I21+I24) -> 0 | K25: =SUM(K21+K24) -> 9861.415429 | L25: =SUM(L21+L24) -> 48146.91063 | N25: =SUM(N21+N24) -> 19501.22602 | O25: =SUM(O21+O24) -> 95211.8682 | Q25: =SUM(Q21+Q24) -> 19058.01634 | R25: =SUM(R21+R24) -> 93047.96211 | T25: =SUM(T21+T24) -> 18614.80665 | U25: =SUM(U21+U24) -> 90884.05601 | W25: =SUM(W21+W24) -> 18171.59697 | X25: =SUM(X21+X24) -> 88720.14992 | Z25: =SUM(Z21+Z24) -> 17728.38729 | AA25: =SUM(AA21+AA24) -> 86556.24382 | AC25: =SUM(AC21+AC24) -> 17285.17761 | AD25: =SUM(AD21+AD24) -> 84392.33773
B27: Historial/Bridge | C27: Test
A28: Deemed ST Debt | B28: 0.04 | E28: =E25*$B$28 -> 0 | F28: =F25*$B$28 -> 0 | H28: =H25*$B$28 -> 0 | I28: =I25*$B$28 -> 0 | K28: =K25*$B$28 -> 394.4566172 | L28: =L25*$B$28 -> 1925.876425 | N28: =N25*$B$28 -> 780.0490407 | O28: =O25*$B$28 -> 3808.474728 | Q28: =Q25*$B$28 -> 762.3206534 | R28: =R25*$B$28 -> 3721.918484 | T28: =T25*$B$28 -> 744.5922661 | U28: =U25*$B$28 -> 3635.362241 | W28: =W25*$B$28 -> 726.8638788 | X28: =X25*$B$28 -> 3548.805997 | Z28: =Z25*$B$28 -> 709.1354916 | AA28: =AA25*$B$28 -> 3462.249753 | AC28: =AC25*$B$28 -> 691.4071043 | AD28: =AD25*$B$28 -> 3375.693509
A29: Deemed LT Debt | B29: 0.56 | E29: =E25*$B$29 -> 0 | F29: =F25*$B$29 -> 0 | H29: =H25*$B$29 -> 0 | I29: =I25*$B$29 -> 0 | K29: =K25*$B$29 -> 5522.39264 | L29: =L25*$B$29 -> 26962.26995 | N29: =N25*$B$29 -> 10920.68657 | O29: =O25*$B$29 -> 53318.64619 | Q29: =Q25*$B$29 -> 10672.48915 | R29: =R25*$B$29 -> 52106.85878 | T29: =T25*$B$29 -> 10424.29173 | U29: =U25*$B$29 -> 50895.07137 | W29: =W25*$B$29 -> 10176.0943 | X29: =X25*$B$29 -> 49683.28395 | Z29: =Z25*$B$29 -> 9927.896882 | AA29: =AA25*$B$29 -> 48471.49654 | AC29: =AC25*$B$29 -> 9679.69946 | AD29: =AD25*$B$29 -> 47259.70913
A30: Deemed Equity | B30: 0.4 | E30: =E25*$B$30 -> 0 | F30: =F25*$B$30 -> 0 | H30: =H25*$B$30 -> 0 | I30: =I25*$B$30 -> 0 | K30: =K25*$B$30 -> 3944.566172 | L30: =L25*$B$30 -> 19258.76425 | N30: =N25*$B$30 -> 7800.490407 | O30: =O25*$B$30 -> 38084.74728 | Q30: =Q25*$B$30 -> 7623.206534 | R30: =R25*$B$30 -> 37219.18484 | T30: =T25*$B$30 -> 7445.922661 | U30: =U25*$B$30 -> 36353.62241 | W30: =W25*$B$30 -> 7268.638788 | X30: =X25*$B$30 -> 35488.05997 | Z30: =Z25*$B$30 -> 7091.354916 | AA30: =AA25*$B$30 -> 34622.49753 | AC30: =AC25*$B$30 -> 6914.071043 | AD30: =AD25*$B$30 -> 33756.93509
A32: ST Interest | B32: 0.0246 | C32: 0.02161 | E32: =E28*$B$32 -> 0 | F32: =F28*$B$32 -> 0 | H32: =H28*$B$32 -> 0 | I32: =I28*$B$32 -> 0 | K32: =K28*$B$32 -> 9.703632783 | L32: =L28*$B$32 -> 47.37656006 | N32: =N28*$B$32 -> 19.1892064 | O32: =O28*$B$32 -> 93.68847831 | Q32: =Q28*$B$32 -> 18.75308807 | R32: =R28*$B$32 -> 91.55919472 | T32: =T28*$C$32 -> 16.09063887 | U32: =U28*$C$32 -> 78.56017802 | W32: =W28*$C$32 -> 15.70752842 | X32: =X28*$C$32 -> 76.68969759 | Z32: =Z28*$C$32 -> 15.32441797 | AA32: =AA28*$C$32 -> 74.81921716 | AC32: =AC28*$C$32 -> 14.94130752 | AD32: =AD28*$C$32 -> 72.94873673
A33: LT Interest | B33: 0.05215731565 | C33: 0.04228726748 | E33: =E29*$B$33 -> 0 | F33: =F29*$B$33 -> 0 | H33: =H29*$B$33 -> 0 | I33: =I29*$B$33 -> 0 | K33: =K29*$B$33 -> 288.0331761 | L33: =L29*$B$33 -> 1406.279624 | N33: =N29*$B$33 -> 569.5936965 | O33: =O29*$B$33 -> 2780.957459 | Q33: =Q29*$B$33 -> 556.6483852 | R33: =R29*$B$33 -> 2717.753881 | T33: =T29*$C$33 -> 440.8148125 | U33: =U29*$C$33 -> 2152.213496 | W33: =W29*$C$33 -> 430.3192217 | X33: =X29*$C$33 -> 2100.970318 | Z33: =Z29*$C$33 -> 419.823631 | AA33: =AA29*$C$33 -> 2049.727139 | AC33: =AC29*$C$33 -> 409.3280402 | AD33: =AD29*$C$33 -> 1998.483961
A34: ROE | B34: 0.0958 | C34: 0.093 | E34: =E30*$B$34 -> 0 | F34: =F30*$B$34 -> 0 | H34: =H30*$B$34 -> 0 | I34: =I30*$B$34 -> 0 | K34: =K30*$B$34 -> 377.8894393 | L34: =L30*$B$34 -> 1844.989615 | N34: =N30*$B$34 -> 747.286981 | O34: =O30*$B$34 -> 3648.51879 | Q34: =Q30*$B$34 -> 730.303186 | R34: =R30*$B$34 -> 3565.597908 | T34: =T30*$C$34 -> 692.4708075 | U34: =U30*$C$34 -> 3380.886884 | W34: =W30*$C$34 -> 675.9834073 | X34: =X30*$C$34 -> 3300.389577 | Z34: =Z30*$C$34 -> 659.4960071 | AA34: =AA30*$C$34 -> 3219.89227 | AC34: =AC30*$C$34 -> 643.008607 | AD34: =AD30*$C$34 -> 3139.394963
A35: Cost of Capital Total | E35: =SUM(E32:E34) -> 0 | F35: =SUM(F32:F34) -> 0 | H35: =SUM(H32:H34) -> 0 | I35: =SUM(I32:I34) -> 0 | K35: =SUM(K32:K34) -> 675.6262481 | L35: =SUM(L32:L34) -> 3298.6458 | N35: =SUM(N32:N34) -> 1336.069884 | O35: =SUM(O32:O34) -> 6523.164727 | Q35: =SUM(Q32:Q34) -> 1305.704659 | R35: =SUM(R32:R34) -> 6374.910984 | T35: =SUM(T32:T34) -> 1149.376259 | U35: =SUM(U32:U34) -> 5611.660558 | W35: =SUM(W32:W34) -> 1122.010157 | X35: =SUM(X32:X34) -> 5478.049592 | Z35: =SUM(Z32:Z34) -> 1094.644056 | AA35: =SUM(AA32:AA34) -> 5344.438627 | AC35: =SUM(AC32:AC34) -> 1067.277955 | AD35: =SUM(AD32:AD34) -> 5210.827661
A37: OM&A | E37: =E22+E23 -> 0 | F37: =F23 -> 0 | H37: =H22+H23 -> 0 | I37: =I23 -> 0 | K37: =K22+K23 -> 0 | L37: =L23 -> 0 | N37: =N22+N23 -> 0 | O37: =O23 -> 0 | Q37: =Q22+Q23 -> 0 | R37: =R23 -> 0 | T37: =T22+T23 -> 0 | U37: =U23 -> 0 | W37: =W22+W23 -> 0 | X37: =X23 -> 0 | Z37: =Z22+Z23 -> 0 | AA37: =AA23 -> 0 | AC37: =AC22+AC23 -> 0 | AD37: =AD23 -> 0
A38: Amortization | D38: =D78 -> 0 | E38: =D38*E$20 -> 0 | F38: =D38*F$20 -> 0 | G38: =E78 -> 0 | H38: =G38*H$20 -> 0 | I38: =G38*I$20 -> 0 | J38: =F78 -> 1303.557889 | K38: =J38*K$20 -> 221.6048411 | L38: =J38*L$20 -> 1081.953048 | M38: =G78 -> 3910.673667 | N38: =M38*N$20 -> 664.8145233 | O38: =M38*O$20 -> 3245.859143 | P38: =H76+H77 -> 2607.115778 | Q38: =P38*Q$20 -> 443.2096822 | R38: =P38*R$20 -> 2163.906096 | S38: =I76+I77 -> 2607.115778 | T38: =S38*T$20 -> 443.2096822 | U38: =S38*U$20 -> 2163.906096 | V38: =J76+J77 -> 2607.115778 | W38: =V38*W$20 -> 443.2096822 | X38: =V38*X$20 -> 2163.906096 | Y38: =K76+K77 -> 2607.115778 | Z38: =Y38*Z$20 -> 443.2096822 | AA38: =Y38*AA$20 -> 2163.906096 | AB38: =L76+L77 -> 2607.115778 | AC38: =AB38*AC$20 -> 443.2096822 | AD38: =AB38*AD$20 -> 2163.906096
A39: Grossed-up PILs | E39: =E66 -> 0 | F39: =F66 -> 0 | H39: =H66 -> 0 | I39: =I66 -> 0 | K39: =K66 -> 0 | L39: =L66 -> 0 | N39: =N66 -> 0 | O39: =O66 -> 0 | Q39: =Q66 -> 0 | R39: =R66 -> 0 | T39: =T66 -> 0 | U39: =U66 -> 0 | W39: =W66 -> 0 | X39: =X66 -> 0 | Z39: =Z66 -> 0 | AA39: =AA66 -> 0 | AC39: =AC66 -> 0 | AD39: =AD66 -> 0
A41: Revenue Requirement | E41: =SUM(E35:E39) -> 0 | F41: =SUM(F35:F39) -> 0 | H41: =SUM(H35:H39) -> 0 | I41: =SUM(I35:I39) -> 0 | K41: =SUM(K35:K39) -> 897.2310892 | L41: =SUM(L35:L39) -> 4380.598847 | N41: =SUM(N35:N39) -> 2000.884407 | O41: =SUM(O35:O39) -> 9769.023871 | Q41: =SUM(Q35:Q39) -> 1748.914341 | R41: =SUM(R35:R39) -> 8538.817079 | T41: =SUM(T35:T39) -> 1592.585941 | U41: =SUM(U35:U39) -> 7775.566654 | W41: =SUM(W35:W39) -> 1565.21984 | X41: =SUM(X35:X39) -> 7641.955688 | Z41: =SUM(Z35:Z39) -> 1537.853738 | AA41: =SUM(AA35:AA39) -> 7508.344722 | AC41: =SUM(AC35:AC39) -> 1510.487637 | AD41: =SUM(AD35:AD39) -> 7374.733757
A44: Provincial Rate Protection | F44: =F41 -> 0 | I44: =I41 -> 0 | L44: =L41 -> 4380.598847 | O44: =O41 -> 9769.023871 | R44: =R41 -> 8538.817079 | U44: =U41 -> 7775.566654 | X44: =X41 -> 7641.955688 | AA44: =AA41 -> 7508.344722 | AD44: =AD41 -> 7374.733757
A46: Monthly Amount Paid by IESO | F46: =F44/12 -> 0 | I46: =I44/12 -> 0 | L46: =L44/12 -> 365.0499039 | O46: =O44/12 -> 814.0853226 | R46: =R44/12 -> 711.5680899 | U46: =U44/12 -> 647.9638878 | X46: =X44/12 -> 636.8296407 | AA46: =AA44/12 -> 625.6953935 | AD46: =AD44/12 -> 614.5611464
A48: Note 1: The difference between the actual costs of approved eligible investments and revenue received from the IESO should be recorded in a variance account. The Board may provide
A49: regulatory accounting guidance regarding a variance account either in an individual proceeding or on a generic basis.
A50: Note 2: For the 2015 Test Year, Costs and Revenues of the Direct Benefit are to be included in the test year applicant Rate Base and Revenues.
A52: PILs Calculation
E53: 2011 | H53: 2012 | K53: 2013 | N53: 2014 | Q53: 2015 TEST YEAR | T53: 2016 | W53: 2017 | Z53: 2018 | AC53: 2019
A54: Income Tax | E54: Direct Benefit | F54: Provincial | H54: Direct Benefit | I54: Provincial | K54: Direct Benefit | L54: Provincial | N54: Direct Benefit | O54: Provincial | Q54: Direct Benefit | R54: Provincial | T54: Direct Benefit | U54: Provincial | W54: Direct Benefit | X54: Provincial | Z54: Direct Benefit | AA54: Provincial | AC54: Direct Benefit | AD54: Provincial
V55: Total | Y55: Total | AB55: Total
A56: Net Income - ROE on Rate Base | E56: =E34 -> 0 | F56: =F34 -> 0 | H56: =H34 -> 0 | I56: =I34 -> 0 | K56: =K34 -> 377.8894393 | L56: =L34 -> 1844.989615 | N56: =N34 -> 747.286981 | O56: =O34 -> 3648.51879 | Q56: =Q34 -> 730.303186 | R56: =R34 -> 3565.597908 | T56: =T34 -> 692.4708075 | U56: =U34 -> 3380.886884 | W56: =W34 -> 675.9834073 | X56: =X34 -> 3300.389577 | Z56: =Z34 -> 659.4960071 | AA56: =AA34 -> 3219.89227 | AC56: =AC34 -> 643.008607 | AD56: =AD34 -> 3139.394963
A57: Amortization (17% DB and 83% P) | E57: =E38 -> 0 | F57: =F38 -> 0 | H57: =H38 -> 0 | I57: =I38 -> 0 | K57: =K38 -> 221.6048411 | L57: =L38 -> 1081.953048 | N57: =N38 -> 664.8145233 | O57: =O38 -> 3245.859143 | Q57: =Q38 -> 443.2096822 | R57: =R38 -> 2163.906096 | T57: =T38 -> 443.2096822 | U57: =U38 -> 2163.906096 | W57: =W38 -> 443.2096822 | X57: =X38 -> 2163.906096 | Z57: =Z38 -> 443.2096822 | AA57: =AA38 -> 2163.906096 | AC57: =AC38 -> 443.2096822 | AD57: =AD38 -> 2163.906096
A58: CCA (17% DB and 83% P) | E58: =-D94*E$20 -> 0 | F58: =-D94*F$20 -> 0 | H58: =-E94*H$20 -> 0 | I58: =-E94*I$20 -> 0 | K58: =-F94*K$20 -> -797.777428 | L58: =-F94*L$20 -> -3895.030972 | N58: =-G94*N$20 -> -1531.732662 | O58: =-G94*O$20 -> -7478.459466 | Q58: =-H94*Q$20 -> -1409.194049 | R58: =-H94*R$20 -> -6880.182709 | T58: =-I94*T$20 -> -1296.458525 | U58: =-I94*U$20 -> -6329.768092 | W58: =-J94*W$20 -> -1192.741843 | X58: =-J94*X$20 -> -5823.386645 | Z58: =-K94*Z$20 -> -1097.322495 | AA58: =-K94*AA$20 -> -5357.515713 | AC58: =-L94*AC$20 -> -1009.536696 | AD58: =-L94*AD$20 -> -4928.914456
A59: Taxable income | E59: =SUM(E56:E58) -> 0 | F59: =SUM(F56:F58) -> 0 | H59: =SUM(H56:H58) -> 0 | I59: =SUM(I56:I58) -> 0 | K59: =SUM(K56:K58) -> -198.2831476 | L59: =SUM(L56:L58) -> -968.088309 | N59: =SUM(N56:N58) -> -119.6311574 | O59: =SUM(O56:O58) -> -584.0815333 | Q59: =SUM(Q56:Q58) -> -235.6811806 | R59: =SUM(R56:R58) -> -1150.678705 | T59: =SUM(T56:T58) -> -160.7780352 | U59: =SUM(U56:U58) -> -784.975113 | W59: =SUM(W56:W58) -> -73.54875337 | X59: =SUM(X56:X58) -> -359.0909724 | Z59: =SUM(Z56:Z58) -> 5.383193882 | AA59: =SUM(AA56:AA58) -> 26.28265248 | AC59: =SUM(AC56:AC58) -> 76.68159334 | AD59: =SUM(AD56:AD58) -> 374.3866028
A61: Tax Rate (to be entered)
A63: Income Taxes Payable | E63: =E59*E61 -> 0 | F63: =F59*F61 -> 0 | H63: =H59*H61 -> 0 | I63: =I59*I61 -> 0 | K63: =K59*K61 -> 0 | L63: =L59*L61 -> 0 | N63: =N59*N61 -> 0 | O63: =O59*O61 -> 0 | Q63: =Q59*Q61 -> 0 | R63: =R59*R61 -> 0 | T63: =T59*T61 -> 0 | U63: =U59*U61 -> 0 | W63: =W59*W61 -> 0 | X63: =X59*X61 -> 0 | Z63: =Z59*Z61 -> 0 | AA63: =AA59*AA61 -> 0 | AC63: =AC59*AC61 -> 0 | AD63: =AD59*AD61 -> 0
A64: Gross Up
A65: Income Taxes Payable | E65: =E63/(1-E61) -> 0 | F65: =F63/(1-F61) -> 0 | H65: =H63/(1-H61) -> 0 | I65: =I63/(1-I61) -> 0 | K65: =K63/(1-K61) -> 0 | L65: =L63/(1-L61) -> 0 | N65: =N63/(1-N61) -> 0 | O65: =O63/(1-O61) -> 0 | Q65: =Q63/(1-Q61) -> 0 | R65: =R63/(1-R61) -> 0 | T65: =T63/(1-T61) -> 0 | U65: =U63/(1-U61) -> 0 | W65: =W63/(1-W61) -> 0 | X65: =X63/(1-X61) -> 0 | Z65: =Z63/(1-Z61) -> 0 | AA65: =AA63/(1-AA61) -> 0 | AC65: =AC63/(1-AC61) -> 0 | AD65: =AD63/(1-AD61) -> 0
A66: Grossed Up PILs | E66: =SUM(E65:E65) -> 0 | F66: =SUM(F65:F65) -> 0 | H66: =SUM(H65:H65) -> 0 | I66: =SUM(I65:I65) -> 0 | K66: =SUM(K65:K65) -> 0 | L66: =SUM(L65:L65) -> 0 | N66: =SUM(N65:N65) -> 0 | O66: =SUM(O65:O65) -> 0 | Q66: =SUM(Q65:Q65) -> 0 | R66: =SUM(R65:R65) -> 0 | T66: =SUM(T65:T65) -> 0 | U66: =SUM(U65:U65) -> 0 | W66: =SUM(W65:W65) -> 0 | X66: =SUM(X65:X65) -> 0 | Z66: =SUM(Z65:Z65) -> 0 | AA66: =SUM(AA65:AA65) -> 0 | AC66: =SUM(AC65:AC65) -> 0 | AD66: =SUM(AD65:AD65) -> 0
A69: Net Fixed Assets | D69: 2011 | E69: 2012 | F69: 2013 | G69: 2014 | H69: 2015 | I69: 2016 | J69: 2017 | K69: 2018 | L69: 2019
B70: Enter applicable amortization in years: | C70: 45
A71: Opening Gross Fixed Assets | E71: =D73 -> 0 | F71: 0 | G71: 117320.21 | H71: 117320.21 | I71: 117320.21 | J71: 117320.21 | K71: 117320.21 | L71: 117320.21
A72: Gross Capital Additions | D72: ='App.2-FA Proposed REG Invest.'!C99 -> 0 | E72: ='App.2-FA Proposed REG Invest.'!D99 -> 0 | F72: ='App.2-FA Proposed REG Invest.'!E99 -> 117320.21 | G72: ='App.2-FA Proposed REG Invest.'!F99 -> 0 | H72: ='App.2-FA Proposed REG Invest.'!G99 -> 0 | I72: ='App.2-FA Proposed REG Invest.'!H99 -> 0 | J72: ='App.2-FA Proposed REG Invest.'!I99 -> 0 | K72: ='App.2-FA Proposed REG Invest.'!J99 -> 0 | L72: ='App.2-FA Proposed REG Invest.'!K99 -> 0
A73: Closing Gross Fixed Assets | D73: =SUM(D71:D72) -> 0 | E73: 0 | F73: 117320.21 | G73: 117320.21 | H73: 117320.21 | I73: 117320.21 | J73: 117320.21 | K73: 117320.21 | L73: 117320.21
A75: Opening Accumulated Amortization | E75: =+D78 -> 0 | F75: =E78 -> 0 | G75: 1303.557889 | H75: =G78 -> 3910.673667 | I75: =H78 -> 6517.789444 | J75: =I78 -> 9124.905222 | K75: =J78 -> 11732.021 | L75: =K78 -> 14339.13678
A76: Current Year Amortization (before additions) | E76: =IF(ISERROR(E71/$C$70), 0, E71/$C$70) -> 0 | F76: 0 | G76: 2607.115778 | H76: =H71/$C$70 -> 2607.115778 | I76: =I71/$C$70 -> 2607.115778 | J76: =J71/$C$70 -> 2607.115778 | K76: =K71/$C$70 -> 2607.115778 | L76: =L71/$C$70 -> 2607.115778
A77: Additions (half year) | D77: =D72/C70/2 -> 0 | E77: =E72/C70/2 -> 0 | F77: =F72/C70/2 -> 1303.557889 | G77: =G72/C70/2 -> 0 | H77: =H72/C70/2 -> 0 | I77: =I72/C70/2 -> 0 | J77: =J72/C70/2 -> 0 | K77: =K72/C70/2 -> 0 | L77: =L72/C70/2 -> 0
A78: Closing Accumulated Amortization | D78: =SUM(D75+D77) -> 0 | E78: =SUM(E75:E77) -> 0 | F78: 1303.557889 | G78: 3910.673667 | H78: 6517.789444 | I78: 9124.905222 | J78: 11732.021 | K78: 14339.13678 | L78: 16946.25256
A80: Opening Net Fixed Assets | D80: =D71-D75 -> 0 | E80: =E71-E75 -> 0 | F80: =F71-F75 -> 0 | G80: =G71-G75 -> 116016.6521 | H80: =G81 -> 113409.5363 | I80: =H81 -> 110802.4206 | J80: =I81 -> 108195.3048 | K80: =J81 -> 105588.189 | L80: =K81 -> 102981.0732
A81: Closing Net Fixed Assets | D81: =D73-D78 -> 0 | E81: 0 | F81: 116016.6521 | G81: 113409.5363 | H81: 110802.4206 | I81: 108195.3048 | J81: 105588.189 | K81: 102981.0732 | L81: 100373.9574
A82: Average Net Fixed Assets | D82: =SUM(D80:D81)/2 -> 0 | E82: 0 | F82: 58008.32606 | G82: 114713.0942 | H82: 112105.9784 | I82: 109498.8627 | J82: 106891.7469 | K82: 104284.6311 | L82: 101677.5153
A84: UCC for PILs Calculation
D85: 2014 | E85: 2014 | F85: 2014 | G85: 2014 | H85: 2015 | I85: 2016 | J85: 2017 | K85: 2018 | L85: 2019
A87: Opening UCC | E87: =D95 -> 0 | F87: 0 | G87: 112627.4016 | H87: 103617.2095 | I87: 95327.83271 | J87: 87701.6061 | K87: 80685.47761 | L87: 74230.6394
A88: Capital Additions (from Appendix 2-FA) | D88: =D72 -> 0 | E88: 0 | F88: 117320.21 | G88: 0 | H88: 0 | I88: 0 | J88: 0 | K88: 0 | L88: 0
A89: UCC Before Half Year Rule | D89: =SUM(D87:D88) -> 0 | E89: 0 | F89: 117320.21 | G89: 112627.4016 | H89: 103617.2095 | I89: 95327.83271 | J89: 87701.6061 | K89: 80685.47761 | L89: 74230.6394
A90: Half Year Rule (1/2 Additions - Disposals) | D90: =D88/2 -> 0 | E90: 0 | F90: 58660.105 | G90: 0 | H90: 0 | I90: 0 | J90: 0 | K90: 0 | L90: 0
A91: Reduced UCC | D91: =D89-D90 -> 0 | E91: 0 | F91: 58660.105 | G91: 112627.4016 | H91: 103617.2095 | I91: 95327.83271 | J91: 87701.6061 | K91: 80685.47761 | L91: 74230.6394
A92: CCA Rate Class (to be entered) | C92: 47 | D92: =$C$92 -> 47 | E92: =$C$92 -> 47 | F92: 47 | G92: 47 | H92: 47 | I92: 47 | J92: 47 | K92: 47 | L92: 47
A93: CCA Rate (to be entered) | C93: 0.08 | D93: =$C$93 -> 0.08 | E93: =$C$93 -> 0.08 | F93: 0.08 | G93: 0.08 | H93: 0.08 | I93: 0.08 | J93: 0.08 | K93: 0.08 | L93: 0.08
A94: CCA | D94: =D91*D$93 -> 0 | E94: =E91*E$93 -> 0 | F94: =F91*F$93 -> 4692.8084 | G94: =G91*G$93 -> 9010.192128 | H94: =H91*H$93 -> 8289.376758 | I94: 7626.226617 | J94: 7016.128488 | K94: 6454.838209 | L94: 5938.451152
A95: Closing UCC | D95: =D89-D94 -> 0 | E95: 0 | F95: 112627.4016 | G95: 103617.2095 | H95: 95327.83271 | I95: 87701.6061 | J95: 80685.47761 | K95: 74230.6394 | L95: 68292.18825

Sheet App.2-FA Proposed REG Inves (2 (hidden)
F1: File Number: | G1: =EBNUMBER -> EB-2015-0108
F2: Exhibit:
F3: Tab:
F4: Schedule:
F5: Page:
F7: Date:
A9: Appendix 2-FA
A10: Renewable Generation Connection Investment Summary (over the rate setting period)
A12: Enter the details of the Renewable Generation Connection projects as described in Section 2.5.2.5 of the Filing Requirements.
A13: All costs entered on this page will be transferred to the appropriate cells in the appendices that follow.
A14: For Part A, Renewable Enabling Improvements (REI), these amounts will be transferred to Appendix 2 - FB
A15: For Part B, Expansions, these amounts will be transferred to Appendix 2 - FC
A17: If there are more than five projects proposed to be in-service in a certain year, please amend the tables below and ensure that the formulae for the Total Amounts in any given rate year are updated.
A18: Based on the current methodology and allocation, amounts allocated represent 6% for REI Connection Investments and 17% for Expansion Investments. (pg 15, EB-2009-0349)
A21: Part A
A22: REI Investments (Direct Benefit at 6%) | C22: 2015 | D22: =C22+1 -> 2016 | E22: =D22+1 -> 2017 | F22: 2018 | G22: 2019
A23: Project 1
A24: Name: REI Connection Project
A25: Capital Costs | C25: 1000 | D25: 0 | E25: 1000 | F25: 0 | G25: 0
A26: OM&A (Start-Up) | C26: 0 | D26: 0 | E26: 0 | F26: 0 | G26: 0
A27: OM&A (Ongoing) | C27: 0 | D27: 0 | E27: 0 | F27: 0 | G27: 0
A29: Project 2
A30: Name: REI Connection Project
A31: Capital Costs | C31: 0 | D31: 0 | E31: 0 | F31: 0 | G31: 0
A32: OM&A (Start-Up) | C32: 0 | D32: 0 | E32: 0 | F32: 0 | G32: 0
A33: OM&A (Ongoing) | C33: 0 | D33: 0 | E33: 0 | F33: 0 | G33: 0
A35: Project 3
A36: Name: REI Connection Project
A37: Capital Costs | C37: 0 | D37: 0 | E37: 0 | F37: 0 | G37: 0
A38: OM&A (Start-Up) | C38: 0 | D38: 0 | E38: 0 | F38: 0 | G38: 0
A39: OM&A (Ongoing) | C39: 0 | D39: 0 | E39: 0 | F39: 0 | G39: 0
A41: Project 4
A42: Name: REI Connection Project
A43: Capital Costs | C43: 0 | D43: 0 | E43: 0 | F43: 0 | G43: 0
A44: OM&A (Start-Up) | C44: 0 | D44: 0 | E44: 0 | F44: 0 | G44: 0
A45: OM&A (Ongoing) | C45: 0 | D45: 0 | E45: 0 | F45: 0 | G45: 0
A47: Project 5
A48: Name: REI Connection Project
A49: Capital Costs | C49: 0 | D49: 0 | E49: 0 | F49: 0 | G49: 0
A50: OM&A (Start-Up) | C50: 0 | D50: 0 | E50: 0 | F50: 0 | G50: 0
A51: OM&A (Ongoing) | C51: 0 | D51: 0 | E51: 0 | F51: 0 | G51: 0
A53: Total Capital Costs | C53: =SUM(C49,C43,C37,C31,C25) -> 1000 | D53: =SUM(D49,D43,D37,D31,D25) -> 0 | E53: 1000 | F53: 0 | G53: 0
A54: Total OM&A (Start-Up) | C54: =SUM(C50,C44,C38,C32,C26) -> 0 | D54: 0 | E54: 0 | F54: 0 | G54: 0
A55: Total OM&A (Ongoing) | C55: =SUM(C51,C45,C39,C33,C27) -> 0 | D55: 0 | E55: 0 | F55: 0 | G55: 0
A58: Part B
A59: Expansion Investments (Direct Benefit at 17%) | C59: 2015 | D59: =C59+1 -> 2016 | E59: =D59+1 -> 2017 | F59: 2018 | G59: 2019
A60: Project 1
A61: Name: Expansion Connection Project
A62: Capital Costs | C62: 0 | D62: 0 | E62: 0 | F62: 0 | G62: 0
A63: OM&A (Start-Up) | C63: 0 | D63: 0 | E63: 0 | F63: 0 | G63: 0
A64: OM&A (Ongoing) | C64: 0 | D64: 0 | E64: 0 | F64: 0 | G64: 0
A66: Project 2
A67: Name: Expansion Connection Project
A68: Capital Costs | C68: 0 | D68: 0 | E68: 0 | F68: 0 | G68: 0
A69: OM&A (Start-Up) | C69: 0 | D69: 0 | E69: 0 | F69: 0 | G69: 0
A70: OM&A (Ongoing) | C70: 0 | D70: 0 | E70: 0 | F70: 0 | G70: 0
A72: Project 3
A73: Name: Expansion Connection Project
A74: Capital Costs | C74: 0 | D74: 0 | E74: 0 | F74: 0 | G74: 0
A75: OM&A (Start-Up) | C75: 0 | D75: 0 | E75: 0 | F75: 0 | G75: 0
A76: OM&A (Ongoing) | C76: 0 | D76: 0 | E76: 0 | F76: 0 | G76: 0
A78: Project 4
A79: Name: Expansion Connection Project
A80: Capital Costs | C80: 0 | D80: 0 | E80: 0 | F80: 0 | G80: 0
A81: OM&A (Start-Up) | C81: 0 | D81: 0 | E81: 0 | F81: 0 | G81: 0
A82: OM&A (Ongoing) | C82: 0 | D82: 0 | E82: 0 | F82: 0 | G82: 0
A84: Project 5
A85: Name: Expansion Connection Project
A86: Capital Costs | C86: 0 | D86: 0 | E86: 0 | F86: 0 | G86: 0
A87: OM&A (Start-Up) | C87: 0 | D87: 0 | E87: 0 | F87: 0 | G87: 0
A88: OM&A (Ongoing) | C88: 0 | D88: 0 | E88: 0 | F88: 0 | G88: 0
A90: Total Capital Costs | C90: =SUM(C86,C80,C74,C68,C62) -> 0 | D90: =SUM(D86,D80,D74,D68,D62) -> 0 | E90: 0 | F90: 0 | G90: 0
A91: Total OM&A (Start-Up) | C91: =SUM(C87,C81,C75,C69,C63) -> 0 | D91: 0 | E91: 0 | F91: 0 | G91: 0
A92: Total OM&A (Ongoing) | C92: =SUM(C88,C82,C76,C70,C64) -> 0 | D92: 0 | E92: 0 | F92: 0 | G92: 0

Sheet App.2-FB Calc of REG Improv (2 (hidden)
F1: File Number: | G1: =EBNUMBER -> EB-2015-0108
F2: Exhibit:
F3: Tab:
F4: Schedule:
F5: Page:
F7: Date:
A9: Appendix 2-FB
A10: Calculation of Renewable Generation Connection Direct Benefits/Provincial Amount: Renewable Enabling Improvement Investments
A12: This table will calculate the distributor/provincial shares of the investments entered in Part A of Appendix 2-FA.
A13: Enter values in green shaded cells: WCA percentage, debt percentages, interest rates, kWh, tax rates, amortization period, CCA Class and percentage.
A14: Rate Riders are not calculated for Test Year as these assets and costs are already in the distributor's rate base/revenue requirement.
D17: 2015 Test Year | G17: 2016 | J17: 2017 | K17: 2016 | M17: 2018 | P17: 2019
E18: Direct Benefit | F18: Provincial | H18: Direct Benefit | I18: Provincial | K18: Direct Benefit | L18: Provincial | N18: Direct Benefit | O18: Provincial | Q18: Direct Benefit | R18: Provincial
D19: Total | E19: 0.06 | F19: 0.94 | G19: Total | H19: 0.06 | I19: 0.94 | J19: Total | K19: 0.06 | L19: 0.94 | M19: Total | N19: 0.06 | O19: 0.94 | P19: Total | Q19: 0.06 | R19: 0.94
A20: Net Fixed Assets (average) | D20: =D82 -> 490 | E20: =D20*E19 -> 29.4 | F20: =D20*F19 -> 460.6 | G20: =E82 -> 960 | H20: =G20*H19 -> 57.6 | I20: =G20*I19 -> 902.4 | J20: =F82 -> 1410 | K20: =J20*K19 -> 84.6 | L20: =J20*L19 -> 1325.4 | M20: =G82 -> 1840 | N20: =M20*N19 -> 110.4 | O20: =M20*O19 -> 1729.6 | P20: =H82 -> 1760 | Q20: =P20*Q19 -> 105.6 | R20: =P20*R19 -> 1654.4
A21: Incremental OM&A (on-going, N/A for Provincial Recovery) | D21: ='App.2-FA Proposed REG Inves (2'!C55 -> 0 | E21: =D21 -> 0 | G21: ='App.2-FA Proposed REG Inves (2'!D55 -> 0 | H21: =G21 -> 0 | J21: ='App.2-FA Proposed REG Inves (2'!E55 -> 0 | K21: =J21 -> 0 | M21: ='App.2-FA Proposed REG Inves (2'!F55 -> 0 | N21: =M21 -> 0 | P21: ='App.2-FA Proposed REG Inves (2'!G55 -> 0 | Q21: =P21 -> 0
A22: Incremental OM&A (start-up, applicable for Provincial Recovery) | D22: ='App.2-FA Proposed REG Inves (2'!C54 -> 0 | E22: =D22*E19 -> 0 | F22: =D22*F19 -> 0 | G22: ='App.2-FA Proposed REG Inves (2'!D54 -> 0 | H22: =G22*H19 -> 0 | I22: =G22*I19 -> 0 | J22: ='App.2-FA Proposed REG Inves (2'!E54 -> 0 | K22: =J22*K19 -> 0 | L22: =J22*L19 -> 0 | M22: ='App.2-FA Proposed REG Inves (2'!F54 -> 0 | N22: =M22*N19 -> 0 | O22: =M22*O19 -> 0 | P22: ='App.2-FA Proposed REG Inves (2'!G54 -> 0 | Q22: =P22*Q19 -> 0 | R22: =P22*R19 -> 0
A23: WCA | B23: 0.13 | E23: =(E21+E22)*$B$23 -> 0 | F23: =F22*$B$23 -> 0 | H23: =(H21+H22)*$B$23 -> 0 | I23: =I22*$B$23 -> 0 | K23: =(K21+K22)*$B$23 -> 0 | L23: =L22*$B$23 -> 0 | N23: =(N21+N22)*$B$23 -> 0 | O23: =O22*$B$23 -> 0 | Q23: =(Q21+Q22)*$B$23 -> 0 | R23: =R22*$B$23 -> 0
A24: Rate Base | E24: =SUM(E20+E23) -> 29.4 | F24: =SUM(F20+F23) -> 460.6 | H24: =SUM(H20+H23) -> 57.6 | I24: =SUM(I20+I23) -> 902.4 | K24: =SUM(K20+K23) -> 84.6 | L24: =SUM(L20+L23) -> 1325.4 | N24: =SUM(N20+N23) -> 110.4 | O24: =SUM(O20+O23) -> 1729.6 | Q24: =SUM(Q20+Q23) -> 105.6 | R24: =SUM(R20+R23) -> 1654.4
A27: Deemed ST Debt | B27: 0.04 | E27: =E24*$B$27 -> 1.176 | F27: =F24*$B$27 -> 18.424 | H27: =H24*$B$27 -> 2.304 | I27: =I24*$B$27 -> 36.096 | K27: =K24*$B$27 -> 3.384 | L27: =L24*$B$27 -> 53.016 | N27: =N24*$B$27 -> 4.416 | O27: =O24*$B$27 -> 69.184 | Q27: =Q24*$B$27 -> 4.224 | R27: =R24*$B$27 -> 66.176
A28: Deemed LT Debt | B28: 0.56 | E28: =E24*$B$28 -> 16.464 | F28: =F24*$B$28 -> 257.936 | H28: =H24*$B$28 -> 32.256 | I28: =I24*$B$28 -> 505.344 | K28: =K24*$B$28 -> 47.376 | L28: =L24*$B$28 -> 742.224 | N28: =N24*$B$28 -> 61.824 | O28: =O24*$B$28 -> 968.576 | Q28: =Q24*$B$28 -> 59.136 | R28: =R24*$B$28 -> 926.464
A29: Deemed Equity | B29: 0.4 | E29: =E24*$B$29 -> 11.76 | F29: =F24*$B$29 -> 184.24 | H29: =H24*$B$29 -> 23.04 | I29: =I24*$B$29 -> 360.96 | K29: =K24*$B$29 -> 33.84 | L29: =L24*$B$29 -> 530.16 | N29: =N24*$B$29 -> 44.16 | O29: =O24*$B$29 -> 691.84 | Q29: =Q24*$B$29 -> 42.24 | R29: =R24*$B$29 -> 661.76
A31: ST Interest | B31: 0.024 | E31: =E27*$B31 -> 0.028224 | F31: =F27*$B31 -> 0.442176 | H31: =H27*$B31 -> 0.055296 | I31: =I27*$B31 -> 0.866304 | K31: =K27*$B31 -> 0.081216 | L31: =L27*$B31 -> 1.272384 | N31: =N27*$B31 -> 0.105984 | O31: =O27*$B31 -> 1.660416 | Q31: =Q27*$B31 -> 0.101376 | R31: =R27*$B31 -> 1.588224
A32: LT Interest | B32: 0.056 | E32: =E28*$B32 -> 0.921984 | F32: 14.444416 | H32: =H28*$B32 -> 1.806336 | I32: 28.299264 | K32: =K28*$B32 -> 2.653056 | L32: 41.564544 | N32: =N28*$B32 -> 3.462144 | O32: 54.240256 | Q32: =Q28*$B32 -> 3.311616 | R32: 51.881984
A33: ROE | B33: 0.085 | E33: 0.9996 | F33: 15.6604 | H33: 1.9584 | I33: 30.6816 | K33: 2.8764 | L33: 45.0636 | N33: 3.7536 | O33: 58.8064 | Q33: 3.5904 | R33: 56.2496
A34: Cost of Capital Total | E34: =SUM(E31:E33) -> 1.949808 | F34: =SUM(F31:F33) -> 30.546992 | H34: =SUM(H31:H33) -> 3.820032 | I34: =SUM(I31:I33) -> 59.847168 | K34: =SUM(K31:K33) -> 5.610672 | L34: =SUM(L31:L33) -> 87.900528 | N34: =SUM(N31:N33) -> 7.321728 | O34: =SUM(O31:O33) -> 114.707072 | Q34: =SUM(Q31:Q33) -> 7.003392 | R34: =SUM(R31:R33) -> 109.719808
A36: OM&A | E36: =E21+E22 -> 0 | F36: =F22 -> 0 | H36: =H21+H22 -> 0 | I36: =I22 -> 0 | K36: =K21+K22 -> 0 | L36: =L22 -> 0 | N36: =N21+N22 -> 0 | O36: =O22 -> 0 | Q36: =Q21+Q22 -> 0 | R36: =R22 -> 0
A37: Amortization | D37: =D77 -> 20 | E37: =D37*E$19 -> 1.2 | F37: =D37*F$19 -> 18.8 | G37: =E76+E77 -> 40 | H37: =G37*H$19 -> 2.4 | I37: =G37*I$19 -> 37.6 | J37: =F76+F77 -> 60 | K37: =J37*K$19 -> 3.6 | L37: =J37*L$19 -> 56.4 | M37: =G76+G77 -> 80 | N37: =M37*N$19 -> 4.8 | O37: =M37*O$19 -> 75.2 | P37: =H76+H77 -> 80 | Q37: =P37*Q$19 -> 4.8 | R37: =P37*R$19 -> 75.2
A38: Grossed-up PILs | E38: =E65 -> 0 | F38: =F65 -> 0 | H38: =H65 -> 0 | I38: =I65 -> 0 | K38: =K65 -> 0 | L38: =L65 -> 0 | N38: =N65 -> 0 | O38: =O65 -> 0 | Q38: =Q65 -> 0 | R38: =R65 -> 0
A40: Revenue Requirement | E40: =SUM(E34:E38) -> 3.149808 | F40: =SUM(F34:F38) -> 49.346992 | H40: =SUM(H34:H38) -> 6.220032 | I40: =SUM(I34:I38) -> 97.447168 | K40: =SUM(K34:K38) -> 9.210672 | L40: =SUM(L34:L38) -> 144.300528 | N40: =SUM(N34:N38) -> 12.121728 | O40: =SUM(O34:O38) -> 189.907072 | Q40: =SUM(Q34:Q38) -> 11.803392 | R40: =SUM(R34:R38) -> 184.919808
A43: Provincial Rate Protection | F43: =F40 -> 49.346992 | I43: =I40 -> 97.447168 | L43: =L40 -> 144.300528 | O43: =O40 -> 189.907072 | R43: =R40 -> 184.919808
A45: Monthly Amount Paid by IESO | F45: =F43/12 -> 4.112249333 | I45: =I43/12 -> 8.120597333 | L45: =L43/12 -> 12.025044 | O45: =O43/12 -> 15.82558933 | R45: =R43/12 -> 15.409984
A47: Note 1: The difference between the actual costs of approved eligible investments and revenue received from the IESO should be recorded in a variance account. The Board may provide
A48: regulatory accounting guidance regarding a variance account either in an individual proceeding or on a generic basis.
A49: Note 2: For the 2014 Test Year, Costs and Revenues of the Direct Benefit are to be included in the test year applicant Rate Base and Revenues.
A51: PILs Calculation
E52: 2015 | H52: =E52+1 -> 2016 | K52: =H52+1 -> 2017 | N52: =K52+1 -> 2018 | Q52: =N52+1 -> 2019
A53: Income Tax | E53: Direct Benefit | F53: Provincial | H53: Direct Benefit | I53: Provincial | K53: Direct Benefit | L53: Provincial | N53: Direct Benefit | O53: Provincial | Q53: Direct Benefit | R53: Provincial
M54: Total | P54: Total
A55: Net Income - ROE on Rate Base | E55: =E33 -> 0.9996 | F55: =F33 -> 15.6604 | H55: =H33 -> 1.9584 | I55: =I33 -> 30.6816 | K55: =K33 -> 2.8764 | L55: =L33 -> 45.0636 | N55: =N33 -> 3.7536 | O55: =O33 -> 58.8064 | Q55: =Q33 -> 3.5904 | R55: =R33 -> 56.2496
A56: Amortization (6% DB and 94% P) | E56: =E37 -> 1.2 | F56: =F37 -> 18.8 | H56: =H37 -> 2.4 | I56: =I37 -> 37.6 | K56: =K37 -> 3.6 | L56: =L37 -> 56.4 | N56: =N37 -> 4.8 | O56: =O37 -> 75.2 | Q56: =Q37 -> 4.8 | R56: =R37 -> 75.2
A57: CCA (6% DB and 94% P) | E57: =-D94*E$19 -> -2.4 | F57: =-D94*F$19 -> -37.6 | H57: =-E94*H$19 -> -4.608 | I57: =-E94*I$19 -> -72.192 | K57: =-F94*K$19 -> -4.23936 | L57: =-F94*L$19 -> -66.41664 | N57: =-G94*N$19 -> -3.9002112 | O57: =-G94*O$19 -> -61.1033088 | Q57: =-H94*Q$19 -> -3.588194304 | R57: =-H94*R$19 -> -56.2150441
A58: Taxable income | E58: =SUM(E55:E57) -> -0.2004 | F58: =SUM(F55:F57) -> -3.1396 | H58: =SUM(H55:H57) -> -0.2496 | I58: =SUM(I55:I57) -> -3.9104 | K58: =SUM(K55:K57) -> 2.23704 | L58: =SUM(L55:L57) -> 35.04696 | N58: =SUM(N55:N57) -> 4.6533888 | O58: =SUM(O55:O57) -> 72.9030912 | Q58: =SUM(Q55:Q57) -> 4.802205696 | R58: =SUM(R55:R57) -> 75.2345559
A60: Tax Rate (to be entered)
A62: Income Taxes Payable | E62: =E58*E60 -> 0 | F62: =F58*F60 -> 0 | H62: =H58*H60 -> 0 | I62: =I58*I60 -> 0 | K62: =K58*K60 -> 0 | L62: =L58*L60 -> 0 | N62: =N58*N60 -> 0 | O62: =O58*O60 -> 0 | Q62: =Q58*Q60 -> 0 | R62: =R58*R60 -> 0
A63: Gross Up
A64: Income Taxes Payable | E64: =E62/(1-E60) -> 0 | F64: =F62/(1-F60) -> 0 | H64: =H62/(1-H60) -> 0 | I64: =I62/(1-I60) -> 0 | K64: =K62/(1-K60) -> 0 | L64: =L62/(1-L60) -> 0 | N64: =N62/(1-N60) -> 0 | O64: =O62/(1-O60) -> 0 | Q64: =Q62/(1-Q60) -> 0 | R64: =R62/(1-R60) -> 0
A65: Grossed Up PILs | E65: =SUM(E64:E64) -> 0 | F65: =SUM(F64:F64) -> 0 | H65: =SUM(H64:H64) -> 0 | I65: =SUM(I64:I64) -> 0 | K65: =SUM(K64:K64) -> 0 | L65: =SUM(L64:L64) -> 0 | N65: =SUM(N64:N64) -> 0 | O65: =SUM(O64:O64) -> 0 | Q65: =SUM(Q64:Q64) -> 0 | R65: =SUM(R64:R64) -> 0
D68: 2015 | E68: =D68+1 -> 2016 | F68: =E68+1 -> 2017 | G68: 2018 | H68: 2019
A69: Net Fixed Assets
B70: Enter applicable amortization in years: | C70: 25
A71: Opening Gross Fixed Assets | E71: =D73 -> 1000 | F71: =E73 -> 1000 | G71: =F73 -> 2000 | H71: =G73 -> 2000
A72: Gross Capital Additions | D72: ='App.2-FA Proposed REG Inves (2'!C53 -> 1000 | E72: ='App.2-FA Proposed REG Inves (2'!D53 -> 0 | F72: ='App.2-FA Proposed REG Inves (2'!E53 -> 1000 | G72: ='App.2-FA Proposed REG Inves (2'!F53 -> 0 | H72: ='App.2-FA Proposed REG Inves (2'!G53 -> 0
A73: Closing Gross Fixed Assets | D73: =SUM(D71:D72) -> 1000 | E73: =SUM(E71:E72) -> 1000 | F73: 2000 | G73: 2000 | H73: 2000
A75: Opening Accumulated Amortization | E75: =D78 -> 20 | F75: =E78 -> 60 | G75: =F78 -> 120 | H75: =G78 -> 200
A76: Current Year Amortization (before additions) | E76: =IF(ISERROR(E71/$C$70), 0, E71/$C$70) -> 40 | F76: =IF(ISERROR(F71/$C$70), 0, F71/$C$70) -> 40 | G76: =IF(ISERROR(G71/$C$70), 0, G71/$C$70) -> 80 | H76: =IF(ISERROR(H71/$C$70), 0, H71/$C$70) -> 80
A77: Additions (half year) | D77: =D72/C70/2 -> 20 | E77: =E72/C70/2 -> 0 | F77: =F72/C70/2 -> 20 | G77: =G72/C70/2 -> 0 | H77: =H72/C70/2 -> 0
A78: Closing Accumulated Amortization | D78: =SUM(D75+D77) -> 20 | E78: =SUM(E75:E77) -> 60 | F78: =SUM(F75:F77) -> 120 | G78: =SUM(G75:G77) -> 200 | H78: =SUM(H75:H77) -> 280
A80: Opening Net Fixed Assets | D80: =D71-D75 -> 0 | E80: =D81 -> 980 | F80: =E81 -> 940 | G80: =F81 -> 1880 | H80: =G81 -> 1800
A81: Closing Net Fixed Assets | D81: =D73-D78 -> 980 | E81: =E73-E78 -> 940 | F81: =F73-F78 -> 1880 | G81: =G73-G78 -> 1800 | H81: =H73-H78 -> 1720
A82: Average Net Fixed Assets | D82: =SUM(D80:D81)/2 -> 490 | E82: =SUM(E80:E81)/2 -> 960 | F82: =SUM(F80:F81)/2 -> 1410 | G82: =SUM(G80:G81)/2 -> 1840 | H82: =SUM(H80:H81)/2 -> 1760
A84: UCC for PILs Calculation
D85: 2015 | E85: =D85+1 -> 2016 | F85: =E85+1 -> 2017 | G85: 2018 | H85: 2019
A87: Opening UCC | E87: =D95 -> 960 | F87: =E95 -> 883.2 | G87: =F95 -> 812.544 | H87: =G95 -> 747.54048
A88: Capital Additions (from Appendix 2-FA) | D88: =D72 -> 1000 | E88: ='App.2-FA Proposed REG Inves (2'!D31 -> 0 | F88: ='App.2-FA Proposed REG Inves (2'!E31 -> 0 | G88: ='App.2-FA Proposed REG Inves (2'!F31 -> 0 | H88: ='App.2-FA Proposed REG Inves (2'!G31 -> 0
A89: UCC Before Half Year Rule | D89: =SUM(D87:D88) -> 1000 | E89: =SUM(E87:E88) -> 960 | F89: =SUM(F87:F88) -> 883.2 | G89: =SUM(G87:G88) -> 812.544 | H89: =SUM(H87:H88) -> 747.54048
A90: Half Year Rule (1/2 Additions - Disposals) | D90: =D88/2 -> 500 | E90: =E88/2 -> 0 | F90: =F88/2 -> 0 | G90: =G88/2 -> 0 | H90: =H88/2 -> 0
A91: Reduced UCC | D91: =D89-D90 -> 500 | E91: =E89-E90 -> 960 | F91: =F89-F90 -> 883.2 | G91: =G89-G90 -> 812.544 | H91: =H89-H90 -> 747.54048
A92: CCA Rate Class (to be entered) | C92: 47 | D92: =C92 -> 47 | E92: =C92 -> 47 | F92: =C92 -> 47 | G92: =C92 -> 47 | H92: =C92 -> 47
A93: CCA Rate (to be entered) | C93: 0.08 | D93: =C93 -> 0.08 | E93: =C93 -> 0.08 | F93: =C93 -> 0.08 | G93: =C93 -> 0.08 | H93: =C93 -> 0.08
A94: CCA | D94: =D91*D93 -> 40 | E94: =E91*E93 -> 76.8 | F94: 70.656 | G94: 65.00352 | H94: =H91*H93 -> 59.8032384
A95: Closing UCC | D95: =D89-D94 -> 960 | E95: =E89-E94 -> 883.2 | F95: =F89-F94 -> 812.544 | G95: =G89-G94 -> 747.54048 | H95: =H89-H94 -> 687.7372416

Sheet App.2-FC Calc of REG Expans (2 (hidden)
E1: File Number: | F1: =EBNUMBER -> EB-2015-0108
E2: Exhibit:
E3: Tab:
E4: Schedule:
E5: Page:
E7: Date:
A9: Appendix 2-FC
A10: Calculation of Renewable Generation Connection Direct Benefits/Provincial Amount: Renewable Expansion Investments
A12: This table will calculate the distributor/provincial shares of the investments entered in Part B of Appendix 2-FA.
A13: Enter values in green shaded cells: WCA percentage, debt percentages, interest rates, kWh, tax rates, amortization period, CCA Class and percentage.
A14: Rate Riders are not calculated for Test Year as these assets and costs are already in the distributors rate base.
D17: 2014 Test Year | G17: 2015 | J17: 2016 | K17: 2016 | M17: 2017 | P17: 2018
E18: Direct Benefit | F18: Provincial | H18: Direct Benefit | I18: Provincial | K18: Direct Benefit | L18: Provincial | N18: Direct Benefit | O18: Provincial | Q18: Direct Benefit | R18: Provincial
D19: Total | E19: 0.17 | F19: 0.83 | G19: Total | H19: 0.17 | I19: 0.83 | J19: Total | K19: 0.17 | L19: 0.83 | M19: Total | N19: 0.17 | O19: 0.83 | P19: Total | Q19: 0.17 | R19: 0.83
A20: Net Fixed Assets (average) | D20: =D81 -> 0 | E20: =D20*E19 -> 0 | F20: =D20*F19 -> 0 | G20: =E81 -> 0 | H20: =G20*H19 -> 0 | I20: =G20*I19 -> 0 | J20: =F81 -> 0 | K20: =J20*K19 -> 0 | L20: =J20*L19 -> 0 | M20: =G81 -> 0 | N20: =M20*N19 -> 0 | O20: =M20*O19 -> 0 | P20: =H81 -> 0 | Q20: =P20*Q19 -> 0 | R20: =P20*R19 -> 0
A21: Incremental OM&A (on-going, N/A for Provincial Recovery) | D21: ='App.2-FA Proposed REG Inves (2'!C$92 -> 0 | E21: =D21 -> 0 | G21: ='App.2-FA Proposed REG Inves (2'!D$92 -> 0 | H21: =G21 -> 0 | J21: ='App.2-FA Proposed REG Inves (2'!E$92 -> 0 | K21: =J21 -> 0 | M21: ='App.2-FA Proposed REG Inves (2'!F$92 -> 0 | N21: =M21 -> 0 | P21: ='App.2-FA Proposed REG Inves (2'!G$92 -> 0 | Q21: =P21 -> 0
